{"text_format":"2","workbook":"xlsx","n_sheets":4,"sheets":["Тексты","Контактная информация","Регионы","Словарь значений полей"],"not_rendered":{"charts":0,"images":0,"macros":0,"external_links":0,"defined_names":0,"comments":0,"pivot_tables":0},"unopened":[],"bounds":{"document_bytes":16777216,"sheet_cells":100000,"run_cost":"one","rows_first":2000,"rows_last":500,"rows_between":2000,"halvings":0,"cell_chars":16384,"cell_head_chars":4096},"cells_cut":0,"cells_raw":0,"read":"whole","date_system":"1900"}

{"sheet":"Тексты","index":0,"n_rows":269,"n_cols":48,"rows_kept":269,"cut":false,"hidden":false,"merged":[[9,0,10,0],[9,1,10,1],[9,2,10,2],[9,3,10,3],[9,4,10,4],[9,5,10,5],[9,6,10,6],[9,7,10,7],[9,8,10,8],[9,9,10,9],[9,10,10,10],[9,11,10,11],[9,12,10,12],[9,13,9,15],[9,16,10,16],[9,17,10,17],[9,18,10,18],[9,19,10,19],[9,20,10,20],[9,21,10,21],[9,22,10,22],[9,23,10,23],[9,24,10,24],[9,25,10,25],[9,26,10,26],[9,27,10,27],[9,28,10,28],[9,29,10,29],[9,30,10,30],[9,31,10,31],[9,32,10,32],[9,33,10,33],[9,34,10,34],[9,35,10,35],[9,36,10,36],[9,37,10,37],[9,38,10,38],[9,39,9,42],[9,43,9,47]]}
[]
[]
[]
[]
[]
["Предложение текстовых блоков для рекламной кампании"]
["","","","Тип кампании:","Текстово-графическая кампания"]
["","","","№ заказа:","59155612","","Валюта:","RUB"]
["","","","Минус-фразы на кампанию:",""]
["Доп. объявление группы","Тип объявления","Мобильное объявление","ID группы","Название группы","Номер группы","Статус \"Мало показов\"","ID фразы","Фраза (с минус-словами)","ID объявления","Заголовок 1","Заголовок 2","Текст","Длина","","","Ссылка","Отображаемая ссылка","Организация Яндекс.Справочника","Турбо-страница","Регион","Ставка","Ставка в сетях","Контакты","Статус объявления","Статус фразы","Заголовки быстрых ссылок","Описания быстрых ссылок","Адреса быстрых ссылок","Турбо-страницы быстрых ссылок","Параметр 1","Параметр 2","Метки","Изображение","Креатив","Статус модерации креатива","Уточнения","Минус-фразы на группу","Возрастные ограничения","Реклама мобильных приложений: настройки на группу","","","","Реклама мобильных приложений: настройки на объявление","","","",""]
["","","","","","","","","","","","","","заголовок 1","заголовок 2","текст","","","","","","","","","","","","","","","","","","","","","","","","Ссылка на приложение в магазине","Тип устройства","Тип связи","Версия ОС","Трекинговая ссылка","Иконка","Рейтинг","Количество оценок","Цена"]
["-","Текстово-графическое","-","4458363191","Группа 1","1","-","26433374920","бойцовский клуб игра онлайн","10259215430","Компьютерная игра твоего детства.","Полное погружение в игру БК-2!","БК-2 компьютерная игра прямиком из 2000-х. Отличная графика и полное погружение!",{"$f":"IF(K12=\"\",\"\",LEN(SUBSTITUTE(SUBSTITUTE(SUBSTITUTE(SUBSTITUTE(SUBSTITUTE(SUBSTITUTE(K12,\"!\",\"\"),\",\",\"\"),\".\",\"\"),\";\",\"\"),\":\",\"\"),\"\"\"\",\"\")))","v":null},{"$f":"IF(L12=\"\",\"\",LEN(SUBSTITUTE(SUBSTITUTE(SUBSTITUTE(SUBSTITUTE(SUBSTITUTE(SUBSTITUTE(L12,\"!\",\"\"),\",\",\"\"),\".\",\"\"),\";\",\"\"),\":\",\"\"),\"\"\"\",\"\")))","v":null},{"$f":"IF(M12=\"\",\"\",LEN(SUBSTITUTE(SUBSTITUTE(SUBSTITUTE(SUBSTITUTE(SUBSTITUTE(SUBSTITUTE(M12,\"!\",\"\"),\",\",\"\"),\".\",\"\"),\";\",\"\"),\":\",\"\"),\"\"\"\",\"\")))","v":null},"https://likebk.com/","регистрация-сейчас","","","Россия","2,3","","-","Остановлено","Работает везде","Регистрация прямо сейчас||Форум||Новости||Рейтинг персонажей||||||||","Зарегистрируйтесь и вступите в наш клуб||Обсудите все ваши достежения и задания с реальными игроками||Узнайте все новости о мире БК-2||Посмотрите рейтинг реальных персонажей||||||||","https://likebk.com/register||https://forum.likebk.com/||https://likebk.com/news||https://top.likebk.com/exp_raiting.php/||||||||","","","","","https://direct.yandex.ru/images/direct/4474510/T4C5nRZRFcW9zGul6SLOCQ","","","Отлична графика||MMORPG||Передача атмосферы||Увлекательная игра||Отличное качество","","","","","","","","","","",""]
["-","Текстово-графическое","-","4458363191","Группа 1","1","-","26433374921","бойцовский клуб играть","10259215430","Компьютерная игра твоего детства.","Полное погружение в игру БК-2!","БК-2 компьютерная игра прямиком из 2000-х. Отличная графика и полное погружение!",{"$f":"IF(K13=\"\",\"\",LEN(SUBSTITUTE(SUBSTITUTE(SUBSTITUTE(SUBSTITUTE(SUBSTITUTE(SUBSTITUTE(K13,\"!\",\"\"),\",\",\"\"),\".\",\"\"),\";\",\"\"),\":\",\"\"),\"\"\"\",\"\")))","v":null},{"$f":"IF(L13=\"\",\"\",LEN(SUBSTITUTE(SUBSTITUTE(SUBSTITUTE(SUBSTITUTE(SUBSTITUTE(SUBSTITUTE(L13,\"!\",\"\"),\",\",\"\"),\".\",\"\"),\";\",\"\"),\":\",\"\"),\"\"\"\",\"\")))","v":null},{"$f":"IF(M13=\"\",\"\",LEN(SUBSTITUTE(SUBSTITUTE(SUBSTITUTE(SUBSTITUTE(SUBSTITUTE(SUBSTITUTE(M13,\"!\",\"\"),\",\",\"\"),\".\",\"\"),\";\",\"\"),\":\",\"\"),\"\"\"\",\"\")))","v":null},"https://likebk.com/","регистрация-сейчас","","","Россия","2,3","","-","Остановлено","Работает везде","Регистрация прямо сейчас||Форум||Новости||Рейтинг персонажей||||||||","Зарегистрируйтесь и вступите в наш клуб||Обсудите все ваши достежения и задания с реальными игроками||Узнайте все новости о мире БК-2||Посмотрите рейтинг реальных персонажей||||||||","https://likebk.com/register||https://forum.likebk.com/||https://likebk.com/news||https://top.likebk.com/exp_raiting.php/||||||||","","","","","https://direct.yandex.ru/images/direct/4474510/T4C5nRZRFcW9zGul6SLOCQ","","","Отлична графика||MMORPG||Передача атмосферы||Увлекательная игра||Отличное качество","","","","","","","","","","",""]
["-","Текстово-графическое","-","4458363191","Группа 1","1","-","26433374922","онлайн игра детства","10259215430","Компьютерная игра твоего детства.","Полное погружение в игру БК-2!","БК-2 компьютерная игра прямиком из 2000-х. Отличная графика и полное погружение!",{"$f":"IF(K14=\"\",\"\",LEN(SUBSTITUTE(SUBSTITUTE(SUBSTITUTE(SUBSTITUTE(SUBSTITUTE(SUBSTITUTE(K14,\"!\",\"\"),\",\",\"\"),\".\",\"\"),\";\",\"\"),\":\",\"\"),\"\"\"\",\"\")))","v":null},{"$f":"IF(L14=\"\",\"\",LEN(SUBSTITUTE(SUBSTITUTE(SUBSTITUTE(SUBSTITUTE(SUBSTITUTE(SUBSTITUTE(L14,\"!\",\"\"),\",\",\"\"),\".\",\"\"),\";\",\"\"),\":\",\"\"),\"\"\"\",\"\")))","v":null},{"$f":"IF(M14=\"\",\"\",LEN(SUBSTITUTE(SUBSTITUTE(SUBSTITUTE(SUBSTITUTE(SUBSTITUTE(SUBSTITUTE(M14,\"!\",\"\"),\",\",\"\"),\".\",\"\"),\";\",\"\"),\":\",\"\"),\"\"\"\",\"\")))","v":null},"https://likebk.com/","регистрация-сейчас","","","Россия","2,3","","-","Остановлено","Работает везде","Регистрация прямо сейчас||Форум||Новости||Рейтинг персонажей||||||||","Зарегистрируйтесь и вступите в наш клуб||Обсудите все ваши достежения и задания с реальными игроками||Узнайте все новости о мире БК-2||Посмотрите рейтинг реальных персонажей||||||||","https://likebk.com/register||https://forum.likebk.com/||https://likebk.com/news||https://top.likebk.com/exp_raiting.php/||||||||","","","","","https://direct.yandex.ru/images/direct/4474510/T4C5nRZRFcW9zGul6SLOCQ","","","Отлична графика||MMORPG||Передача атмосферы||Увлекательная игра||Отличное качество","","","","","","","","","","",""]
["-","Текстово-графическое","-","4458363191","Группа 1","1","-","26433374923","игра бойцовский клуб","10259215430","Компьютерная игра твоего детства.","Полное погружение в игру БК-2!","БК-2 компьютерная игра прямиком из 2000-х. Отличная графика и полное погружение!",{"$f":"IF(K15=\"\",\"\",LEN(SUBSTITUTE(SUBSTITUTE(SUBSTITUTE(SUBSTITUTE(SUBSTITUTE(SUBSTITUTE(K15,\"!\",\"\"),\",\",\"\"),\".\",\"\"),\";\",\"\"),\":\",\"\"),\"\"\"\",\"\")))","v":null},{"$f":"IF(L15=\"\",\"\",LEN(SUBSTITUTE(SUBSTITUTE(SUBSTITUTE(SUBSTITUTE(SUBSTITUTE(SUBSTITUTE(L15,\"!\",\"\"),\",\",\"\"),\".\",\"\"),\";\",\"\"),\":\",\"\"),\"\"\"\",\"\")))","v":null},{"$f":"IF(M15=\"\",\"\",LEN(SUBSTITUTE(SUBSTITUTE(SUBSTITUTE(SUBSTITUTE(SUBSTITUTE(SUBSTITUTE(M15,\"!\",\"\"),\",\",\"\"),\".\",\"\"),\";\",\"\"),\":\",\"\"),\"\"\"\",\"\")))","v":null},"https://likebk.com/","регистрация-сейчас","","","Россия","2,3","","-","Остановлено","Работает везде","Регистрация прямо сейчас||Форум||Новости||Рейтинг персонажей||||||||","Зарегистрируйтесь и вступите в наш клуб||Обсудите все ваши достежения и задания с реальными игроками||Узнайте все новости о мире БК-2||Посмотрите рейтинг реальных персонажей||||||||","https://likebk.com/register||https://forum.likebk.com/||https://likebk.com/news||https://top.likebk.com/exp_raiting.php/||||||||","","","","","https://direct.yandex.ru/images/direct/4474510/T4C5nRZRFcW9zGul6SLOCQ","","","Отлична графика||MMORPG||Передача атмосферы||Увлекательная игра||Отличное качество","","","","","","","","","","",""]
["-","Текстово-графическое","-","4458363191","Группа 1","1","-","26433374924","новый бойцовский клуб онлайн игра","10259215430","Компьютерная игра твоего детства.","Полное погружение в игру БК-2!","БК-2 компьютерная игра прямиком из 2000-х. Отличная графика и полное погружение!",{"$f":"IF(K16=\"\",\"\",LEN(SUBSTITUTE(SUBSTITUTE(SUBSTITUTE(SUBSTITUTE(SUBSTITUTE(SUBSTITUTE(K16,\"!\",\"\"),\",\",\"\"),\".\",\"\"),\";\",\"\"),\":\",\"\"),\"\"\"\",\"\")))","v":null},{"$f":"IF(L16=\"\",\"\",LEN(SUBSTITUTE(SUBSTITUTE(SUBSTITUTE(SUBSTITUTE(SUBSTITUTE(SUBSTITUTE(L16,\"!\",\"\"),\",\",\"\"),\".\",\"\"),\";\",\"\"),\":\",\"\"),\"\"\"\",\"\")))","v":null},{"$f":"IF(M16=\"\",\"\",LEN(SUBSTITUTE(SUBSTITUTE(SUBSTITUTE(SUBSTITUTE(SUBSTITUTE(SUBSTITUTE(M16,\"!\",\"\"),\",\",\"\"),\".\",\"\"),\";\",\"\"),\":\",\"\"),\"\"\"\",\"\")))","v":null},"https://likebk.com/","регистрация-сейчас","","","Россия","2,3","","-","Остановлено","Работает везде","Регистрация прямо сейчас||Форум||Новости||Рейтинг персонажей||||||||","Зарегистрируйтесь и вступите в наш клуб||Обсудите все ваши достежения и задания с реальными игроками||Узнайте все новости о мире БК-2||Посмотрите рейтинг реальных персонажей||||||||","https://likebk.com/register||https://forum.likebk.com/||https://likebk.com/news||https://top.likebk.com/exp_raiting.php/||||||||","","","","","https://direct.yandex.ru/images/direct/4474510/T4C5nRZRFcW9zGul6SLOCQ","","","Отлична графика||MMORPG||Передача атмосферы||Увлекательная игра||Отличное качество","","","","","","","","","","",""]
["-","Текстово-графическое","-","4458363191","Группа 1","1","-","26433374925","старый бойцовский клуб игра","10259215430","Компьютерная игра твоего детства.","Полное погружение в игру БК-2!","БК-2 компьютерная игра прямиком из 2000-х. Отличная графика и полное погружение!",{"$f":"IF(K17=\"\",\"\",LEN(SUBSTITUTE(SUBSTITUTE(SUBSTITUTE(SUBSTITUTE(SUBSTITUTE(SUBSTITUTE(K17,\"!\",\"\"),\",\",\"\"),\".\",\"\"),\";\",\"\"),\":\",\"\"),\"\"\"\",\"\")))","v":null},{"$f":"IF(L17=\"\",\"\",LEN(SUBSTITUTE(SUBSTITUTE(SUBSTITUTE(SUBSTITUTE(SUBSTITUTE(SUBSTITUTE(L17,\"!\",\"\"),\",\",\"\"),\".\",\"\"),\";\",\"\"),\":\",\"\"),\"\"\"\",\"\")))","v":null},{"$f":"IF(M17=\"\",\"\",LEN(SUBSTITUTE(SUBSTITUTE(SUBSTITUTE(SUBSTITUTE(SUBSTITUTE(SUBSTITUTE(M17,\"!\",\"\"),\",\",\"\"),\".\",\"\"),\";\",\"\"),\":\",\"\"),\"\"\"\",\"\")))","v":null},"https://likebk.com/","регистрация-сейчас","","","Россия","2,3","","-","Остановлено","Работает везде","Регистрация прямо сейчас||Форум||Новости||Рейтинг персонажей||||||||","Зарегистрируйтесь и вступите в наш клуб||Обсудите все ваши достежения и задания с реальными игроками||Узнайте все новости о мире БК-2||Посмотрите рейтинг реальных персонажей||||||||","https://likebk.com/register||https://forum.likebk.com/||https://likebk.com/news||https://top.likebk.com/exp_raiting.php/||||||||","","","","","https://direct.yandex.ru/images/direct/4474510/T4C5nRZRFcW9zGul6SLOCQ","","","Отлична графика||MMORPG||Передача атмосферы||Увлекательная игра||Отличное качество","","","","","","","","","","",""]
["-","Текстово-графическое","-","4458363191","Группа 1","1","-","26433374926","бойцовский клуб браузерная игра","10259215430","Компьютерная игра твоего детства.","Полное погружение в игру БК-2!","БК-2 компьютерная игра прямиком из 2000-х. Отличная графика и полное погружение!",{"$f":"IF(K18=\"\",\"\",LEN(SUBSTITUTE(SUBSTITUTE(SUBSTITUTE(SUBSTITUTE(SUBSTITUTE(SUBSTITUTE(K18,\"!\",\"\"),\",\",\"\"),\".\",\"\"),\";\",\"\"),\":\",\"\"),\"\"\"\",\"\")))","v":null},{"$f":"IF(L18=\"\",\"\",LEN(SUBSTITUTE(SUBSTITUTE(SUBSTITUTE(SUBSTITUTE(SUBSTITUTE(SUBSTITUTE(L18,\"!\",\"\"),\",\",\"\"),\".\",\"\"),\";\",\"\"),\":\",\"\"),\"\"\"\",\"\")))","v":null},{"$f":"IF(M18=\"\",\"\",LEN(SUBSTITUTE(SUBSTITUTE(SUBSTITUTE(SUBSTITUTE(SUBSTITUTE(SUBSTITUTE(M18,\"!\",\"\"),\",\",\"\"),\".\",\"\"),\";\",\"\"),\":\",\"\"),\"\"\"\",\"\")))","v":null},"https://likebk.com/","регистрация-сейчас","","","Россия","2,3","","-","Остановлено","Работает везде","Регистрация прямо сейчас||Форум||Новости||Рейтинг персонажей||||||||","Зарегистрируйтесь и вступите в наш клуб||Обсудите все ваши достежения и задания с реальными игроками||Узнайте все новости о мире БК-2||Посмотрите рейтинг реальных персонажей||||||||","https://likebk.com/register||https://forum.likebk.com/||https://likebk.com/news||https://top.likebk.com/exp_raiting.php/||||||||","","","","","https://direct.yandex.ru/images/direct/4474510/T4C5nRZRFcW9zGul6SLOCQ","","","Отлична графика||MMORPG||Передача атмосферы||Увлекательная игра||Отличное качество","","","","","","","","","","",""]
["-","Текстово-графическое","-","4458363191","Группа 1","1","-","26433374927","старый бойцовский клуб онлайн игра","10259215430","Компьютерная игра твоего детства.","Полное погружение в игру БК-2!","БК-2 компьютерная игра прямиком из 2000-х. Отличная графика и полное погружение!",{"$f":"IF(K19=\"\",\"\",LEN(SUBSTITUTE(SUBSTITUTE(SUBSTITUTE(SUBSTITUTE(SUBSTITUTE(SUBSTITUTE(K19,\"!\",\"\"),\",\",\"\"),\".\",\"\"),\";\",\"\"),\":\",\"\"),\"\"\"\",\"\")))","v":null},{"$f":"IF(L19=\"\",\"\",LEN(SUBSTITUTE(SUBSTITUTE(SUBSTITUTE(SUBSTITUTE(SUBSTITUTE(SUBSTITUTE(L19,\"!\",\"\"),\",\",\"\"),\".\",\"\"),\";\",\"\"),\":\",\"\"),\"\"\"\",\"\")))","v":null},{"$f":"IF(M19=\"\",\"\",LEN(SUBSTITUTE(SUBSTITUTE(SUBSTITUTE(SUBSTITUTE(SUBSTITUTE(SUBSTITUTE(M19,\"!\",\"\"),\",\",\"\"),\".\",\"\"),\";\",\"\"),\":\",\"\"),\"\"\"\",\"\")))","v":null},"https://likebk.com/","регистрация-сейчас","","","Россия","2,3","","-","Остановлено","Работает везде","Регистрация прямо сейчас||Форум||Новости||Рейтинг персонажей||||||||","Зарегистрируйтесь и вступите в наш клуб||Обсудите все ваши достежения и задания с реальными игроками||Узнайте все новости о мире БК-2||Посмотрите рейтинг реальных персонажей||||||||","https://likebk.com/register||https://forum.likebk.com/||https://likebk.com/news||https://top.likebk.com/exp_raiting.php/||||||||","","","","","https://direct.yandex.ru/images/direct/4474510/T4C5nRZRFcW9zGul6SLOCQ","","","Отлична графика||MMORPG||Передача атмосферы||Увлекательная игра||Отличное качество","","","","","","","","","","",""]
["-","Текстово-графическое","-","4458363191","Группа 1","1","-","26433374928","likebk бойцовский клуб","10259215430","Компьютерная игра твоего детства.","Полное погружение в игру БК-2!","БК-2 компьютерная игра прямиком из 2000-х. Отличная графика и полное погружение!",{"$f":"IF(K20=\"\",\"\",LEN(SUBSTITUTE(SUBSTITUTE(SUBSTITUTE(SUBSTITUTE(SUBSTITUTE(SUBSTITUTE(K20,\"!\",\"\"),\",\",\"\"),\".\",\"\"),\";\",\"\"),\":\",\"\"),\"\"\"\",\"\")))","v":null},{"$f":"IF(L20=\"\",\"\",LEN(SUBSTITUTE(SUBSTITUTE(SUBSTITUTE(SUBSTITUTE(SUBSTITUTE(SUBSTITUTE(L20,\"!\",\"\"),\",\",\"\"),\".\",\"\"),\";\",\"\"),\":\",\"\"),\"\"\"\",\"\")))","v":null},{"$f":"IF(M20=\"\",\"\",LEN(SUBSTITUTE(SUBSTITUTE(SUBSTITUTE(SUBSTITUTE(SUBSTITUTE(SUBSTITUTE(M20,\"!\",\"\"),\",\",\"\"),\".\",\"\"),\";\",\"\"),\":\",\"\"),\"\"\"\",\"\")))","v":null},"https://likebk.com/","регистрация-сейчас","","","Россия","2,3","","-","Остановлено","Работает везде","Регистрация прямо сейчас||Форум||Новости||Рейтинг персонажей||||||||","Зарегистрируйтесь и вступите в наш клуб||Обсудите все ваши достежения и задания с реальными игроками||Узнайте все новости о мире БК-2||Посмотрите рейтинг реальных персонажей||||||||","https://likebk.com/register||https://forum.likebk.com/||https://likebk.com/news||https://top.likebk.com/exp_raiting.php/||||||||","","","","","https://direct.yandex.ru/images/direct/4474510/T4C5nRZRFcW9zGul6SLOCQ","","","Отлична графика||MMORPG||Передача атмосферы||Увлекательная игра||Отличное качество","","","","","","","","","","",""]
["-","Текстово-графическое","-","4458363191","Группа 1","1","-","26433374929","браузерные игры типа бк","10259215430","Компьютерная игра твоего детства.","Полное погружение в игру БК-2!","БК-2 компьютерная игра прямиком из 2000-х. Отличная графика и полное погружение!",{"$f":"IF(K21=\"\",\"\",LEN(SUBSTITUTE(SUBSTITUTE(SUBSTITUTE(SUBSTITUTE(SUBSTITUTE(SUBSTITUTE(K21,\"!\",\"\"),\",\",\"\"),\".\",\"\"),\";\",\"\"),\":\",\"\"),\"\"\"\",\"\")))","v":null},{"$f":"IF(L21=\"\",\"\",LEN(SUBSTITUTE(SUBSTITUTE(SUBSTITUTE(SUBSTITUTE(SUBSTITUTE(SUBSTITUTE(L21,\"!\",\"\"),\",\",\"\"),\".\",\"\"),\";\",\"\"),\":\",\"\"),\"\"\"\",\"\")))","v":null},{"$f":"IF(M21=\"\",\"\",LEN(SUBSTITUTE(SUBSTITUTE(SUBSTITUTE(SUBSTITUTE(SUBSTITUTE(SUBSTITUTE(M21,\"!\",\"\"),\",\",\"\"),\".\",\"\"),\";\",\"\"),\":\",\"\"),\"\"\"\",\"\")))","v":null},"https://likebk.com/","регистрация-сейчас","","","Россия","2,3","","-","Остановлено","Работает везде","Регистрация прямо сейчас||Форум||Новости||Рейтинг персонажей||||||||","Зарегистрируйтесь и вступите в наш клуб||Обсудите все ваши достежения и задания с реальными игроками||Узнайте все новости о мире БК-2||Посмотрите рейтинг реальных персонажей||||||||","https://likebk.com/register||https://forum.likebk.com/||https://likebk.com/news||https://top.likebk.com/exp_raiting.php/||||||||","","","","","https://direct.yandex.ru/images/direct/4474510/T4C5nRZRFcW9zGul6SLOCQ","","","Отлична графика||MMORPG||Передача атмосферы||Увлекательная игра||Отличное качество","","","","","","","","","","",""]
["-","Текстово-графическое","-","4458363191","Группа 1","1","-","26433374930","бойцовский клуб игра 2018","10259215430","Компьютерная игра твоего детства.","Полное погружение в игру БК-2!","БК-2 компьютерная игра прямиком из 2000-х. Отличная графика и полное погружение!",{"$f":"IF(K22=\"\",\"\",LEN(SUBSTITUTE(SUBSTITUTE(SUBSTITUTE(SUBSTITUTE(SUBSTITUTE(SUBSTITUTE(K22,\"!\",\"\"),\",\",\"\"),\".\",\"\"),\";\",\"\"),\":\",\"\"),\"\"\"\",\"\")))","v":null},{"$f":"IF(L22=\"\",\"\",LEN(SUBSTITUTE(SUBSTITUTE(SUBSTITUTE(SUBSTITUTE(SUBSTITUTE(SUBSTITUTE(L22,\"!\",\"\"),\",\",\"\"),\".\",\"\"),\";\",\"\"),\":\",\"\"),\"\"\"\",\"\")))","v":null},{"$f":"IF(M22=\"\",\"\",LEN(SUBSTITUTE(SUBSTITUTE(SUBSTITUTE(SUBSTITUTE(SUBSTITUTE(SUBSTITUTE(M22,\"!\",\"\"),\",\",\"\"),\".\",\"\"),\";\",\"\"),\":\",\"\"),\"\"\"\",\"\")))","v":null},"https://likebk.com/","регистрация-сейчас","","","Россия","2,3","","-","Остановлено","Работает везде","Регистрация прямо сейчас||Форум||Новости||Рейтинг персонажей||||||||","Зарегистрируйтесь и вступите в наш клуб||Обсудите все ваши достежения и задания с реальными игроками||Узнайте все новости о мире БК-2||Посмотрите рейтинг реальных персонажей||||||||","https://likebk.com/register||https://forum.likebk.com/||https://likebk.com/news||https://top.likebk.com/exp_raiting.php/||||||||","","","","","https://direct.yandex.ru/images/direct/4474510/T4C5nRZRFcW9zGul6SLOCQ","","","Отлична графика||MMORPG||Передача атмосферы||Увлекательная игра||Отличное качество","","","","","","","","","","",""]
["-","Текстово-графическое","-","4458363191","Группа 1","1","-","26433374931","игра детства из 2000-х","10259215430","Компьютерная игра твоего детства.","Полное погружение в игру БК-2!","БК-2 компьютерная игра прямиком из 2000-х. Отличная графика и полное погружение!",{"$f":"IF(K23=\"\",\"\",LEN(SUBSTITUTE(SUBSTITUTE(SUBSTITUTE(SUBSTITUTE(SUBSTITUTE(SUBSTITUTE(K23,\"!\",\"\"),\",\",\"\"),\".\",\"\"),\";\",\"\"),\":\",\"\"),\"\"\"\",\"\")))","v":null},{"$f":"IF(L23=\"\",\"\",LEN(SUBSTITUTE(SUBSTITUTE(SUBSTITUTE(SUBSTITUTE(SUBSTITUTE(SUBSTITUTE(L23,\"!\",\"\"),\",\",\"\"),\".\",\"\"),\";\",\"\"),\":\",\"\"),\"\"\"\",\"\")))","v":null},{"$f":"IF(M23=\"\",\"\",LEN(SUBSTITUTE(SUBSTITUTE(SUBSTITUTE(SUBSTITUTE(SUBSTITUTE(SUBSTITUTE(M23,\"!\",\"\"),\",\",\"\"),\".\",\"\"),\";\",\"\"),\":\",\"\"),\"\"\"\",\"\")))","v":null},"https://likebk.com/","регистрация-сейчас","","","Россия","2,3","","-","Остановлено","Работает везде","Регистрация прямо сейчас||Форум||Новости||Рейтинг персонажей||||||||","Зарегистрируйтесь и вступите в наш клуб||Обсудите все ваши достежения и задания с реальными игроками||Узнайте все новости о мире БК-2||Посмотрите рейтинг реальных персонажей||||||||","https://likebk.com/register||https://forum.likebk.com/||https://likebk.com/news||https://top.likebk.com/exp_raiting.php/||||||||","","","","","https://direct.yandex.ru/images/direct/4474510/T4C5nRZRFcW9zGul6SLOCQ","","","Отлична графика||MMORPG||Передача атмосферы||Увлекательная игра||Отличное качество","","","","","","","","","","",""]
["-","Текстово-графическое","-","4458363191","Группа 1","1","-","26433374932","игра бк-2","10259215430","Компьютерная игра твоего детства.","Полное погружение в игру БК-2!","БК-2 компьютерная игра прямиком из 2000-х. Отличная графика и полное погружение!",{"$f":"IF(K24=\"\",\"\",LEN(SUBSTITUTE(SUBSTITUTE(SUBSTITUTE(SUBSTITUTE(SUBSTITUTE(SUBSTITUTE(K24,\"!\",\"\"),\",\",\"\"),\".\",\"\"),\";\",\"\"),\":\",\"\"),\"\"\"\",\"\")))","v":null},{"$f":"IF(L24=\"\",\"\",LEN(SUBSTITUTE(SUBSTITUTE(SUBSTITUTE(SUBSTITUTE(SUBSTITUTE(SUBSTITUTE(L24,\"!\",\"\"),\",\",\"\"),\".\",\"\"),\";\",\"\"),\":\",\"\"),\"\"\"\",\"\")))","v":null},{"$f":"IF(M24=\"\",\"\",LEN(SUBSTITUTE(SUBSTITUTE(SUBSTITUTE(SUBSTITUTE(SUBSTITUTE(SUBSTITUTE(M24,\"!\",\"\"),\",\",\"\"),\".\",\"\"),\";\",\"\"),\":\",\"\"),\"\"\"\",\"\")))","v":null},"https://likebk.com/","регистрация-сейчас","","","Россия","2,3","","-","Остановлено","Работает везде","Регистрация прямо сейчас||Форум||Новости||Рейтинг персонажей||||||||","Зарегистрируйтесь и вступите в наш клуб||Обсудите все ваши достежения и задания с реальными игроками||Узнайте все новости о мире БК-2||Посмотрите рейтинг реальных персонажей||||||||","https://likebk.com/register||https://forum.likebk.com/||https://likebk.com/news||https://top.likebk.com/exp_raiting.php/||||||||","","","","","https://direct.yandex.ru/images/direct/4474510/T4C5nRZRFcW9zGul6SLOCQ","","","Отлична графика||MMORPG||Передача атмосферы||Увлекательная игра||Отличное качество","","","","","","","","","","",""]
["-","Текстово-графическое","-","4458363191","Группа 1","1","-","26433374933","бк-2 играть онлайн","10259215430","Компьютерная игра твоего детства.","Полное погружение в игру БК-2!","БК-2 компьютерная игра прямиком из 2000-х. Отличная графика и полное погружение!",{"$f":"IF(K25=\"\",\"\",LEN(SUBSTITUTE(SUBSTITUTE(SUBSTITUTE(SUBSTITUTE(SUBSTITUTE(SUBSTITUTE(K25,\"!\",\"\"),\",\",\"\"),\".\",\"\"),\";\",\"\"),\":\",\"\"),\"\"\"\",\"\")))","v":null},{"$f":"IF(L25=\"\",\"\",LEN(SUBSTITUTE(SUBSTITUTE(SUBSTITUTE(SUBSTITUTE(SUBSTITUTE(SUBSTITUTE(L25,\"!\",\"\"),\",\",\"\"),\".\",\"\"),\";\",\"\"),\":\",\"\"),\"\"\"\",\"\")))","v":null},{"$f":"IF(M25=\"\",\"\",LEN(SUBSTITUTE(SUBSTITUTE(SUBSTITUTE(SUBSTITUTE(SUBSTITUTE(SUBSTITUTE(M25,\"!\",\"\"),\",\",\"\"),\".\",\"\"),\";\",\"\"),\":\",\"\"),\"\"\"\",\"\")))","v":null},"https://likebk.com/","регистрация-сейчас","","","Россия","2,3","","-","Остановлено","Работает везде","Регистрация прямо сейчас||Форум||Новости||Рейтинг персонажей||||||||","Зарегистрируйтесь и вступите в наш клуб||Обсудите все ваши достежения и задания с реальными игроками||Узнайте все новости о мире БК-2||Посмотрите рейтинг реальных персонажей||||||||","https://likebk.com/register||https://forum.likebk.com/||https://likebk.com/news||https://top.likebk.com/exp_raiting.php/||||||||","","","","","https://direct.yandex.ru/images/direct/4474510/T4C5nRZRFcW9zGul6SLOCQ","","","Отлична графика||MMORPG||Передача атмосферы||Увлекательная игра||Отличное качество","","","","","","","","","","",""]
["-","Текстово-графическое","-","4458363191","Группа 1","1","-","26433374934","бк онлайн игра бойцовский клуб","10259215430","Компьютерная игра твоего детства.","Полное погружение в игру БК-2!","БК-2 компьютерная игра прямиком из 2000-х. Отличная графика и полное погружение!",{"$f":"IF(K26=\"\",\"\",LEN(SUBSTITUTE(SUBSTITUTE(SUBSTITUTE(SUBSTITUTE(SUBSTITUTE(SUBSTITUTE(K26,\"!\",\"\"),\",\",\"\"),\".\",\"\"),\";\",\"\"),\":\",\"\"),\"\"\"\",\"\")))","v":null},{"$f":"IF(L26=\"\",\"\",LEN(SUBSTITUTE(SUBSTITUTE(SUBSTITUTE(SUBSTITUTE(SUBSTITUTE(SUBSTITUTE(L26,\"!\",\"\"),\",\",\"\"),\".\",\"\"),\";\",\"\"),\":\",\"\"),\"\"\"\",\"\")))","v":null},{"$f":"IF(M26=\"\",\"\",LEN(SUBSTITUTE(SUBSTITUTE(SUBSTITUTE(SUBSTITUTE(SUBSTITUTE(SUBSTITUTE(M26,\"!\",\"\"),\",\",\"\"),\".\",\"\"),\";\",\"\"),\":\",\"\"),\"\"\"\",\"\")))","v":null},"https://likebk.com/","регистрация-сейчас","","","Россия","2,3","","-","Остановлено","Работает везде","Регистрация прямо сейчас||Форум||Новости||Рейтинг персонажей||||||||","Зарегистрируйтесь и вступите в наш клуб||Обсудите все ваши достежения и задания с реальными игроками||Узнайте все новости о мире БК-2||Посмотрите рейтинг реальных персонажей||||||||","https://likebk.com/register||https://forum.likebk.com/||https://likebk.com/news||https://top.likebk.com/exp_raiting.php/||||||||","","","","","https://direct.yandex.ru/images/direct/4474510/T4C5nRZRFcW9zGul6SLOCQ","","","Отлична графика||MMORPG||Передача атмосферы||Увлекательная игра||Отличное качество","","","","","","","","","","",""]
["-","Текстово-графическое","-","4458363191","Группа 1","1","-","26433374935","бойцовский клуб браузерная онлайн игра","10259215430","Компьютерная игра твоего детства.","Полное погружение в игру БК-2!","БК-2 компьютерная игра прямиком из 2000-х. Отличная графика и полное погружение!",{"$f":"IF(K27=\"\",\"\",LEN(SUBSTITUTE(SUBSTITUTE(SUBSTITUTE(SUBSTITUTE(SUBSTITUTE(SUBSTITUTE(K27,\"!\",\"\"),\",\",\"\"),\".\",\"\"),\";\",\"\"),\":\",\"\"),\"\"\"\",\"\")))","v":null},{"$f":"IF(L27=\"\",\"\",LEN(SUBSTITUTE(SUBSTITUTE(SUBSTITUTE(SUBSTITUTE(SUBSTITUTE(SUBSTITUTE(L27,\"!\",\"\"),\",\",\"\"),\".\",\"\"),\";\",\"\"),\":\",\"\"),\"\"\"\",\"\")))","v":null},{"$f":"IF(M27=\"\",\"\",LEN(SUBSTITUTE(SUBSTITUTE(SUBSTITUTE(SUBSTITUTE(SUBSTITUTE(SUBSTITUTE(M27,\"!\",\"\"),\",\",\"\"),\".\",\"\"),\";\",\"\"),\":\",\"\"),\"\"\"\",\"\")))","v":null},"https://likebk.com/","регистрация-сейчас","","","Россия","2,3","","-","Остановлено","Работает везде","Регистрация прямо сейчас||Форум||Новости||Рейтинг персонажей||||||||","Зарегистрируйтесь и вступите в наш клуб||Обсудите все ваши достежения и задания с реальными игроками||Узнайте все новости о мире БК-2||Посмотрите рейтинг реальных персонажей||||||||","https://likebk.com/register||https://forum.likebk.com/||https://likebk.com/news||https://top.likebk.com/exp_raiting.php/||||||||","","","","","https://direct.yandex.ru/images/direct/4474510/T4C5nRZRFcW9zGul6SLOCQ","","","Отлична графика||MMORPG||Передача атмосферы||Увлекательная игра||Отличное качество","","","","","","","","","","",""]
["-","Текстово-графическое","-","4458363191","Группа 1","1","-","26433374936","игра мморпг","10259215430","Компьютерная игра твоего детства.","Полное погружение в игру БК-2!","БК-2 компьютерная игра прямиком из 2000-х. Отличная графика и полное погружение!",{"$f":"IF(K28=\"\",\"\",LEN(SUBSTITUTE(SUBSTITUTE(SUBSTITUTE(SUBSTITUTE(SUBSTITUTE(SUBSTITUTE(K28,\"!\",\"\"),\",\",\"\"),\".\",\"\"),\";\",\"\"),\":\",\"\"),\"\"\"\",\"\")))","v":null},{"$f":"IF(L28=\"\",\"\",LEN(SUBSTITUTE(SUBSTITUTE(SUBSTITUTE(SUBSTITUTE(SUBSTITUTE(SUBSTITUTE(L28,\"!\",\"\"),\",\",\"\"),\".\",\"\"),\";\",\"\"),\":\",\"\"),\"\"\"\",\"\")))","v":null},{"$f":"IF(M28=\"\",\"\",LEN(SUBSTITUTE(SUBSTITUTE(SUBSTITUTE(SUBSTITUTE(SUBSTITUTE(SUBSTITUTE(M28,\"!\",\"\"),\",\",\"\"),\".\",\"\"),\";\",\"\"),\":\",\"\"),\"\"\"\",\"\")))","v":null},"https://likebk.com/","регистрация-сейчас","","","Россия","2,3","","-","Остановлено","Работает везде","Регистрация прямо сейчас||Форум||Новости||Рейтинг персонажей||||||||","Зарегистрируйтесь и вступите в наш клуб||Обсудите все ваши достежения и задания с реальными игроками||Узнайте все новости о мире БК-2||Посмотрите рейтинг реальных персонажей||||||||","https://likebk.com/register||https://forum.likebk.com/||https://likebk.com/news||https://top.likebk.com/exp_raiting.php/||||||||","","","","","https://direct.yandex.ru/images/direct/4474510/T4C5nRZRFcW9zGul6SLOCQ","","","Отлична графика||MMORPG||Передача атмосферы||Увлекательная игра||Отличное качество","","","","","","","","","","",""]
["-","Текстово-графическое","-","4458363191","Группа 1","1","-","26433374937","образа +для бойцовский клуб игра онлайн","10259215430","Компьютерная игра твоего детства.","Полное погружение в игру БК-2!","БК-2 компьютерная игра прямиком из 2000-х. Отличная графика и полное погружение!",{"$f":"IF(K29=\"\",\"\",LEN(SUBSTITUTE(SUBSTITUTE(SUBSTITUTE(SUBSTITUTE(SUBSTITUTE(SUBSTITUTE(K29,\"!\",\"\"),\",\",\"\"),\".\",\"\"),\";\",\"\"),\":\",\"\"),\"\"\"\",\"\")))","v":null},{"$f":"IF(L29=\"\",\"\",LEN(SUBSTITUTE(SUBSTITUTE(SUBSTITUTE(SUBSTITUTE(SUBSTITUTE(SUBSTITUTE(L29,\"!\",\"\"),\",\",\"\"),\".\",\"\"),\";\",\"\"),\":\",\"\"),\"\"\"\",\"\")))","v":null},{"$f":"IF(M29=\"\",\"\",LEN(SUBSTITUTE(SUBSTITUTE(SUBSTITUTE(SUBSTITUTE(SUBSTITUTE(SUBSTITUTE(M29,\"!\",\"\"),\",\",\"\"),\".\",\"\"),\";\",\"\"),\":\",\"\"),\"\"\"\",\"\")))","v":null},"https://likebk.com/","регистрация-сейчас","","","Россия","2,3","","-","Остановлено","Работает везде","Регистрация прямо сейчас||Форум||Новости||Рейтинг персонажей||||||||","Зарегистрируйтесь и вступите в наш клуб||Обсудите все ваши достежения и задания с реальными игроками||Узнайте все новости о мире БК-2||Посмотрите рейтинг реальных персонажей||||||||","https://likebk.com/register||https://forum.likebk.com/||https://likebk.com/news||https://top.likebk.com/exp_raiting.php/||||||||","","","","","https://direct.yandex.ru/images/direct/4474510/T4C5nRZRFcW9zGul6SLOCQ","","","Отлична графика||MMORPG||Передача атмосферы||Увлекательная игра||Отличное качество","","","","","","","","","","",""]
["-","Текстово-графическое","-","4458363191","Группа 1","1","-","26433374938","mmorpg +для слабых пк онлайн","10259215430","Компьютерная игра твоего детства.","Полное погружение в игру БК-2!","БК-2 компьютерная игра прямиком из 2000-х. Отличная графика и полное погружение!",{"$f":"IF(K30=\"\",\"\",LEN(SUBSTITUTE(SUBSTITUTE(SUBSTITUTE(SUBSTITUTE(SUBSTITUTE(SUBSTITUTE(K30,\"!\",\"\"),\",\",\"\"),\".\",\"\"),\";\",\"\"),\":\",\"\"),\"\"\"\",\"\")))","v":null},{"$f":"IF(L30=\"\",\"\",LEN(SUBSTITUTE(SUBSTITUTE(SUBSTITUTE(SUBSTITUTE(SUBSTITUTE(SUBSTITUTE(L30,\"!\",\"\"),\",\",\"\"),\".\",\"\"),\";\",\"\"),\":\",\"\"),\"\"\"\",\"\")))","v":null},{"$f":"IF(M30=\"\",\"\",LEN(SUBSTITUTE(SUBSTITUTE(SUBSTITUTE(SUBSTITUTE(SUBSTITUTE(SUBSTITUTE(M30,\"!\",\"\"),\",\",\"\"),\".\",\"\"),\";\",\"\"),\":\",\"\"),\"\"\"\",\"\")))","v":null},"https://likebk.com/","регистрация-сейчас","","","Россия","2,3","","-","Остановлено","Работает везде","Регистрация прямо сейчас||Форум||Новости||Рейтинг персонажей||||||||","Зарегистрируйтесь и вступите в наш клуб||Обсудите все ваши достежения и задания с реальными игроками||Узнайте все новости о мире БК-2||Посмотрите рейтинг реальных персонажей||||||||","https://likebk.com/register||https://forum.likebk.com/||https://likebk.com/news||https://top.likebk.com/exp_raiting.php/||||||||","","","","","https://direct.yandex.ru/images/direct/4474510/T4C5nRZRFcW9zGul6SLOCQ","","","Отлична графика||MMORPG||Передача атмосферы||Увлекательная игра||Отличное качество","","","","","","","","","","",""]
["-","Текстово-графическое","-","4458363191","Группа 1","1","-","26433374939","mmorpg +на пк онлайн","10259215430","Компьютерная игра твоего детства.","Полное погружение в игру БК-2!","БК-2 компьютерная игра прямиком из 2000-х. Отличная графика и полное погружение!",{"$f":"IF(K31=\"\",\"\",LEN(SUBSTITUTE(SUBSTITUTE(SUBSTITUTE(SUBSTITUTE(SUBSTITUTE(SUBSTITUTE(K31,\"!\",\"\"),\",\",\"\"),\".\",\"\"),\";\",\"\"),\":\",\"\"),\"\"\"\",\"\")))","v":null},{"$f":"IF(L31=\"\",\"\",LEN(SUBSTITUTE(SUBSTITUTE(SUBSTITUTE(SUBSTITUTE(SUBSTITUTE(SUBSTITUTE(L31,\"!\",\"\"),\",\",\"\"),\".\",\"\"),\";\",\"\"),\":\",\"\"),\"\"\"\",\"\")))","v":null},{"$f":"IF(M31=\"\",\"\",LEN(SUBSTITUTE(SUBSTITUTE(SUBSTITUTE(SUBSTITUTE(SUBSTITUTE(SUBSTITUTE(M31,\"!\",\"\"),\",\",\"\"),\".\",\"\"),\";\",\"\"),\":\",\"\"),\"\"\"\",\"\")))","v":null},"https://likebk.com/","регистрация-сейчас","","","Россия","2,3","","-","Остановлено","Работает везде","Регистрация прямо сейчас||Форум||Новости||Рейтинг персонажей||||||||","Зарегистрируйтесь и вступите в наш клуб||Обсудите все ваши достежения и задания с реальными игроками||Узнайте все новости о мире БК-2||Посмотрите рейтинг реальных персонажей||||||||","https://likebk.com/register||https://forum.likebk.com/||https://likebk.com/news||https://top.likebk.com/exp_raiting.php/||||||||","","","","","https://direct.yandex.ru/images/direct/4474510/T4C5nRZRFcW9zGul6SLOCQ","","","Отлична графика||MMORPG||Передача атмосферы||Увлекательная игра||Отличное качество","","","","","","","","","","",""]
["-","Текстово-графическое","-","4458363191","Группа 1","1","-","26433374940","mmorpg +на пк онлайн топ","10259215430","Компьютерная игра твоего детства.","Полное погружение в игру БК-2!","БК-2 компьютерная игра прямиком из 2000-х. Отличная графика и полное погружение!",{"$f":"IF(K32=\"\",\"\",LEN(SUBSTITUTE(SUBSTITUTE(SUBSTITUTE(SUBSTITUTE(SUBSTITUTE(SUBSTITUTE(K32,\"!\",\"\"),\",\",\"\"),\".\",\"\"),\";\",\"\"),\":\",\"\"),\"\"\"\",\"\")))","v":null},{"$f":"IF(L32=\"\",\"\",LEN(SUBSTITUTE(SUBSTITUTE(SUBSTITUTE(SUBSTITUTE(SUBSTITUTE(SUBSTITUTE(L32,\"!\",\"\"),\",\",\"\"),\".\",\"\"),\";\",\"\"),\":\",\"\"),\"\"\"\",\"\")))","v":null},{"$f":"IF(M32=\"\",\"\",LEN(SUBSTITUTE(SUBSTITUTE(SUBSTITUTE(SUBSTITUTE(SUBSTITUTE(SUBSTITUTE(M32,\"!\",\"\"),\",\",\"\"),\".\",\"\"),\";\",\"\"),\":\",\"\"),\"\"\"\",\"\")))","v":null},"https://likebk.com/","регистрация-сейчас","","","Россия","2,3","","-","Остановлено","Работает везде","Регистрация прямо сейчас||Форум||Новости||Рейтинг персонажей||||||||","Зарегистрируйтесь и вступите в наш клуб||Обсудите все ваши достежения и задания с реальными игроками||Узнайте все новости о мире БК-2||Посмотрите рейтинг реальных персонажей||||||||","https://likebk.com/register||https://forum.likebk.com/||https://likebk.com/news||https://top.likebk.com/exp_raiting.php/||||||||","","","","","https://direct.yandex.ru/images/direct/4474510/T4C5nRZRFcW9zGul6SLOCQ","","","Отлична графика||MMORPG||Передача атмосферы||Увлекательная игра||Отличное качество","","","","","","","","","","",""]
["-","Текстово-графическое","-","4458363191","Группа 1","1","-","26433374941","mmorpg +с большим онлайном","10259215430","Компьютерная игра твоего детства.","Полное погружение в игру БК-2!","БК-2 компьютерная игра прямиком из 2000-х. Отличная графика и полное погружение!",{"$f":"IF(K33=\"\",\"\",LEN(SUBSTITUTE(SUBSTITUTE(SUBSTITUTE(SUBSTITUTE(SUBSTITUTE(SUBSTITUTE(K33,\"!\",\"\"),\",\",\"\"),\".\",\"\"),\";\",\"\"),\":\",\"\"),\"\"\"\",\"\")))","v":null},{"$f":"IF(L33=\"\",\"\",LEN(SUBSTITUTE(SUBSTITUTE(SUBSTITUTE(SUBSTITUTE(SUBSTITUTE(SUBSTITUTE(L33,\"!\",\"\"),\",\",\"\"),\".\",\"\"),\";\",\"\"),\":\",\"\"),\"\"\"\",\"\")))","v":null},{"$f":"IF(M33=\"\",\"\",LEN(SUBSTITUTE(SUBSTITUTE(SUBSTITUTE(SUBSTITUTE(SUBSTITUTE(SUBSTITUTE(M33,\"!\",\"\"),\",\",\"\"),\".\",\"\"),\";\",\"\"),\":\",\"\"),\"\"\"\",\"\")))","v":null},"https://likebk.com/","регистрация-сейчас","","","Россия","2,3","","-","Остановлено","Работает везде","Регистрация прямо сейчас||Форум||Новости||Рейтинг персонажей||||||||","Зарегистрируйтесь и вступите в наш клуб||Обсудите все ваши достежения и задания с реальными игроками||Узнайте все новости о мире БК-2||Посмотрите рейтинг реальных персонажей||||||||","https://likebk.com/register||https://forum.likebk.com/||https://likebk.com/news||https://top.likebk.com/exp_raiting.php/||||||||","","","","","https://direct.yandex.ru/images/direct/4474510/T4C5nRZRFcW9zGul6SLOCQ","","","Отлична графика||MMORPG||Передача атмосферы||Увлекательная игра||Отличное качество","","","","","","","","","","",""]
["-","Текстово-графическое","-","4458363191","Группа 1","1","-","26433374942","mmorpg +с открытым миром онлайн","10259215430","Компьютерная игра твоего детства.","Полное погружение в игру БК-2!","БК-2 компьютерная игра прямиком из 2000-х. Отличная графика и полное погружение!",{"$f":"IF(K34=\"\",\"\",LEN(SUBSTITUTE(SUBSTITUTE(SUBSTITUTE(SUBSTITUTE(SUBSTITUTE(SUBSTITUTE(K34,\"!\",\"\"),\",\",\"\"),\".\",\"\"),\";\",\"\"),\":\",\"\"),\"\"\"\",\"\")))","v":null},{"$f":"IF(L34=\"\",\"\",LEN(SUBSTITUTE(SUBSTITUTE(SUBSTITUTE(SUBSTITUTE(SUBSTITUTE(SUBSTITUTE(L34,\"!\",\"\"),\",\",\"\"),\".\",\"\"),\";\",\"\"),\":\",\"\"),\"\"\"\",\"\")))","v":null},{"$f":"IF(M34=\"\",\"\",LEN(SUBSTITUTE(SUBSTITUTE(SUBSTITUTE(SUBSTITUTE(SUBSTITUTE(SUBSTITUTE(M34,\"!\",\"\"),\",\",\"\"),\".\",\"\"),\";\",\"\"),\":\",\"\"),\"\"\"\",\"\")))","v":null},"https://likebk.com/","регистрация-сейчас","","","Россия","2,3","","-","Остановлено","Работает везде","Регистрация прямо сейчас||Форум||Новости||Рейтинг персонажей||||||||","Зарегистрируйтесь и вступите в наш клуб||Обсудите все ваши достежения и задания с реальными игроками||Узнайте все новости о мире БК-2||Посмотрите рейтинг реальных персонажей||||||||","https://likebk.com/register||https://forum.likebk.com/||https://likebk.com/news||https://top.likebk.com/exp_raiting.php/||||||||","","","","","https://direct.yandex.ru/images/direct/4474510/T4C5nRZRFcW9zGul6SLOCQ","","","Отлична графика||MMORPG||Передача атмосферы||Увлекательная игра||Отличное качество","","","","","","","","","","",""]
["-","Текстово-графическое","-","4458363191","Группа 1","1","-","26433374943","mmorpg онлайн","10259215430","Компьютерная игра твоего детства.","Полное погружение в игру БК-2!","БК-2 компьютерная игра прямиком из 2000-х. Отличная графика и полное погружение!",{"$f":"IF(K35=\"\",\"\",LEN(SUBSTITUTE(SUBSTITUTE(SUBSTITUTE(SUBSTITUTE(SUBSTITUTE(SUBSTITUTE(K35,\"!\",\"\"),\",\",\"\"),\".\",\"\"),\";\",\"\"),\":\",\"\"),\"\"\"\",\"\")))","v":null},{"$f":"IF(L35=\"\",\"\",LEN(SUBSTITUTE(SUBSTITUTE(SUBSTITUTE(SUBSTITUTE(SUBSTITUTE(SUBSTITUTE(L35,\"!\",\"\"),\",\",\"\"),\".\",\"\"),\";\",\"\"),\":\",\"\"),\"\"\"\",\"\")))","v":null},{"$f":"IF(M35=\"\",\"\",LEN(SUBSTITUTE(SUBSTITUTE(SUBSTITUTE(SUBSTITUTE(SUBSTITUTE(SUBSTITUTE(M35,\"!\",\"\"),\",\",\"\"),\".\",\"\"),\";\",\"\"),\":\",\"\"),\"\"\"\",\"\")))","v":null},"https://likebk.com/","регистрация-сейчас","","","Россия","2,3","","-","Остановлено","Работает везде","Регистрация прямо сейчас||Форум||Новости||Рейтинг персонажей||||||||","Зарегистрируйтесь и вступите в наш клуб||Обсудите все ваши достежения и задания с реальными игроками||Узнайте все новости о мире БК-2||Посмотрите рейтинг реальных персонажей||||||||","https://likebk.com/register||https://forum.likebk.com/||https://likebk.com/news||https://top.likebk.com/exp_raiting.php/||||||||","","","","","https://direct.yandex.ru/images/direct/4474510/T4C5nRZRFcW9zGul6SLOCQ","","","Отлична графика||MMORPG||Передача атмосферы||Увлекательная игра||Отличное качество","","","","","","","","","","",""]
["-","Текстово-графическое","-","4458363191","Группа 1","1","-","26433374944","mmorpg онлайн игры +на пк","10259215430","Компьютерная игра твоего детства.","Полное погружение в игру БК-2!","БК-2 компьютерная игра прямиком из 2000-х. Отличная графика и полное погружение!",{"$f":"IF(K36=\"\",\"\",LEN(SUBSTITUTE(SUBSTITUTE(SUBSTITUTE(SUBSTITUTE(SUBSTITUTE(SUBSTITUTE(K36,\"!\",\"\"),\",\",\"\"),\".\",\"\"),\";\",\"\"),\":\",\"\"),\"\"\"\",\"\")))","v":null},{"$f":"IF(L36=\"\",\"\",LEN(SUBSTITUTE(SUBSTITUTE(SUBSTITUTE(SUBSTITUTE(SUBSTITUTE(SUBSTITUTE(L36,\"!\",\"\"),\",\",\"\"),\".\",\"\"),\";\",\"\"),\":\",\"\"),\"\"\"\",\"\")))","v":null},{"$f":"IF(M36=\"\",\"\",LEN(SUBSTITUTE(SUBSTITUTE(SUBSTITUTE(SUBSTITUTE(SUBSTITUTE(SUBSTITUTE(M36,\"!\",\"\"),\",\",\"\"),\".\",\"\"),\";\",\"\"),\":\",\"\"),\"\"\"\",\"\")))","v":null},"https://likebk.com/","регистрация-сейчас","","","Россия","2,3","","-","Остановлено","Работает везде","Регистрация прямо сейчас||Форум||Новости||Рейтинг персонажей||||||||","Зарегистрируйтесь и вступите в наш клуб||Обсудите все ваши достежения и задания с реальными игроками||Узнайте все новости о мире БК-2||Посмотрите рейтинг реальных персонажей||||||||","https://likebk.com/register||https://forum.likebk.com/||https://likebk.com/news||https://top.likebk.com/exp_raiting.php/||||||||","","","","","https://direct.yandex.ru/images/direct/4474510/T4C5nRZRFcW9zGul6SLOCQ","","","Отлична графика||MMORPG||Передача атмосферы||Увлекательная игра||Отличное качество","","","","","","","","","","",""]
["-","Текстово-графическое","-","4458363191","Группа 1","1","-","26433374945","mmorpg онлайн игры браузерные","10259215430","Компьютерная игра твоего детства.","Полное погружение в игру БК-2!","БК-2 компьютерная игра прямиком из 2000-х. Отличная графика и полное погружение!",{"$f":"IF(K37=\"\",\"\",LEN(SUBSTITUTE(SUBSTITUTE(SUBSTITUTE(SUBSTITUTE(SUBSTITUTE(SUBSTITUTE(K37,\"!\",\"\"),\",\",\"\"),\".\",\"\"),\";\",\"\"),\":\",\"\"),\"\"\"\",\"\")))","v":null},{"$f":"IF(L37=\"\",\"\",LEN(SUBSTITUTE(SUBSTITUTE(SUBSTITUTE(SUBSTITUTE(SUBSTITUTE(SUBSTITUTE(L37,\"!\",\"\"),\",\",\"\"),\".\",\"\"),\";\",\"\"),\":\",\"\"),\"\"\"\",\"\")))","v":null},{"$f":"IF(M37=\"\",\"\",LEN(SUBSTITUTE(SUBSTITUTE(SUBSTITUTE(SUBSTITUTE(SUBSTITUTE(SUBSTITUTE(M37,\"!\",\"\"),\",\",\"\"),\".\",\"\"),\";\",\"\"),\":\",\"\"),\"\"\"\",\"\")))","v":null},"https://likebk.com/","регистрация-сейчас","","","Россия","2,3","","-","Остановлено","Работает везде","Регистрация прямо сейчас||Форум||Новости||Рейтинг персонажей||||||||","Зарегистрируйтесь и вступите в наш клуб||Обсудите все ваши достежения и задания с реальными игроками||Узнайте все новости о мире БК-2||Посмотрите рейтинг реальных персонажей||||||||","https://likebk.com/register||https://forum.likebk.com/||https://likebk.com/news||https://top.likebk.com/exp_raiting.php/||||||||","","","","","https://direct.yandex.ru/images/direct/4474510/T4C5nRZRFcW9zGul6SLOCQ","","","Отлична графика||MMORPG||Передача атмосферы||Увлекательная игра||Отличное качество","","","","","","","","","","",""]
["-","Текстово-графическое","-","4458363191","Группа 1","1","-","26433374946","бойцовский клуб игра онлайн олдбк 2","10259215430","Компьютерная игра твоего детства.","Полное погружение в игру БК-2!","БК-2 компьютерная игра прямиком из 2000-х. Отличная графика и полное погружение!",{"$f":"IF(K38=\"\",\"\",LEN(SUBSTITUTE(SUBSTITUTE(SUBSTITUTE(SUBSTITUTE(SUBSTITUTE(SUBSTITUTE(K38,\"!\",\"\"),\",\",\"\"),\".\",\"\"),\";\",\"\"),\":\",\"\"),\"\"\"\",\"\")))","v":null},{"$f":"IF(L38=\"\",\"\",LEN(SUBSTITUTE(SUBSTITUTE(SUBSTITUTE(SUBSTITUTE(SUBSTITUTE(SUBSTITUTE(L38,\"!\",\"\"),\",\",\"\"),\".\",\"\"),\";\",\"\"),\":\",\"\"),\"\"\"\",\"\")))","v":null},{"$f":"IF(M38=\"\",\"\",LEN(SUBSTITUTE(SUBSTITUTE(SUBSTITUTE(SUBSTITUTE(SUBSTITUTE(SUBSTITUTE(M38,\"!\",\"\"),\",\",\"\"),\".\",\"\"),\";\",\"\"),\":\",\"\"),\"\"\"\",\"\")))","v":null},"https://likebk.com/","регистрация-сейчас","","","Россия","2,3","","-","Остановлено","Работает везде","Регистрация прямо сейчас||Форум||Новости||Рейтинг персонажей||||||||","Зарегистрируйтесь и вступите в наш клуб||Обсудите все ваши достежения и задания с реальными игроками||Узнайте все новости о мире БК-2||Посмотрите рейтинг реальных персонажей||||||||","https://likebk.com/register||https://forum.likebk.com/||https://likebk.com/news||https://top.likebk.com/exp_raiting.php/||||||||","","","","","https://direct.yandex.ru/images/direct/4474510/T4C5nRZRFcW9zGul6SLOCQ","","","Отлична графика||MMORPG||Передача атмосферы||Увлекательная игра||Отличное качество","","","","","","","","","","",""]
["-","Текстово-графическое","-","4458363191","Группа 1","1","-","26433374947","бойцовский клуб игра онлайн официальный сайт","10259215430","Компьютерная игра твоего детства.","Полное погружение в игру БК-2!","БК-2 компьютерная игра прямиком из 2000-х. Отличная графика и полное погружение!",{"$f":"IF(K39=\"\",\"\",LEN(SUBSTITUTE(SUBSTITUTE(SUBSTITUTE(SUBSTITUTE(SUBSTITUTE(SUBSTITUTE(K39,\"!\",\"\"),\",\",\"\"),\".\",\"\"),\";\",\"\"),\":\",\"\"),\"\"\"\",\"\")))","v":null},{"$f":"IF(L39=\"\",\"\",LEN(SUBSTITUTE(SUBSTITUTE(SUBSTITUTE(SUBSTITUTE(SUBSTITUTE(SUBSTITUTE(L39,\"!\",\"\"),\",\",\"\"),\".\",\"\"),\";\",\"\"),\":\",\"\"),\"\"\"\",\"\")))","v":null},{"$f":"IF(M39=\"\",\"\",LEN(SUBSTITUTE(SUBSTITUTE(SUBSTITUTE(SUBSTITUTE(SUBSTITUTE(SUBSTITUTE(M39,\"!\",\"\"),\",\",\"\"),\".\",\"\"),\";\",\"\"),\":\",\"\"),\"\"\"\",\"\")))","v":null},"https://likebk.com/","регистрация-сейчас","","","Россия","2,3","","-","Остановлено","Работает везде","Регистрация прямо сейчас||Форум||Новости||Рейтинг персонажей||||||||","Зарегистрируйтесь и вступите в наш клуб||Обсудите все ваши достежения и задания с реальными игроками||Узнайте все новости о мире БК-2||Посмотрите рейтинг реальных персонажей||||||||","https://likebk.com/register||https://forum.likebk.com/||https://likebk.com/news||https://top.likebk.com/exp_raiting.php/||||||||","","","","","https://direct.yandex.ru/images/direct/4474510/T4C5nRZRFcW9zGul6SLOCQ","","","Отлична графика||MMORPG||Передача атмосферы||Увлекательная игра||Отличное качество","","","","","","","","","","",""]
["-","Текстово-графическое","-","4458363191","Группа 1","1","-","26433374948","браузерная онлайн mmorpg","10259215430","Компьютерная игра твоего детства.","Полное погружение в игру БК-2!","БК-2 компьютерная игра прямиком из 2000-х. Отличная графика и полное погружение!",{"$f":"IF(K40=\"\",\"\",LEN(SUBSTITUTE(SUBSTITUTE(SUBSTITUTE(SUBSTITUTE(SUBSTITUTE(SUBSTITUTE(K40,\"!\",\"\"),\",\",\"\"),\".\",\"\"),\";\",\"\"),\":\",\"\"),\"\"\"\",\"\")))","v":null},{"$f":"IF(L40=\"\",\"\",LEN(SUBSTITUTE(SUBSTITUTE(SUBSTITUTE(SUBSTITUTE(SUBSTITUTE(SUBSTITUTE(L40,\"!\",\"\"),\",\",\"\"),\".\",\"\"),\";\",\"\"),\":\",\"\"),\"\"\"\",\"\")))","v":null},{"$f":"IF(M40=\"\",\"\",LEN(SUBSTITUTE(SUBSTITUTE(SUBSTITUTE(SUBSTITUTE(SUBSTITUTE(SUBSTITUTE(M40,\"!\",\"\"),\",\",\"\"),\".\",\"\"),\";\",\"\"),\":\",\"\"),\"\"\"\",\"\")))","v":null},"https://likebk.com/","регистрация-сейчас","","","Россия","2,3","","-","Остановлено","Работает везде","Регистрация прямо сейчас||Форум||Новости||Рейтинг персонажей||||||||","Зарегистрируйтесь и вступите в наш клуб||Обсудите все ваши достежения и задания с реальными игроками||Узнайте все новости о мире БК-2||Посмотрите рейтинг реальных персонажей||||||||","https://likebk.com/register||https://forum.likebk.com/||https://likebk.com/news||https://top.likebk.com/exp_raiting.php/||||||||","","","","","https://direct.yandex.ru/images/direct/4474510/T4C5nRZRFcW9zGul6SLOCQ","","","Отлична графика||MMORPG||Передача атмосферы||Увлекательная игра||Отличное качество","","","","","","","","","","",""]
["-","Текстово-графическое","-","4458363191","Группа 1","1","-","26433374949","игра mmorpg","10259215430","Компьютерная игра твоего детства.","Полное погружение в игру БК-2!","БК-2 компьютерная игра прямиком из 2000-х. Отличная графика и полное погружение!",{"$f":"IF(K41=\"\",\"\",LEN(SUBSTITUTE(SUBSTITUTE(SUBSTITUTE(SUBSTITUTE(SUBSTITUTE(SUBSTITUTE(K41,\"!\",\"\"),\",\",\"\"),\".\",\"\"),\";\",\"\"),\":\",\"\"),\"\"\"\",\"\")))","v":null},{"$f":"IF(L41=\"\",\"\",LEN(SUBSTITUTE(SUBSTITUTE(SUBSTITUTE(SUBSTITUTE(SUBSTITUTE(SUBSTITUTE(L41,\"!\",\"\"),\",\",\"\"),\".\",\"\"),\";\",\"\"),\":\",\"\"),\"\"\"\",\"\")))","v":null},{"$f":"IF(M41=\"\",\"\",LEN(SUBSTITUTE(SUBSTITUTE(SUBSTITUTE(SUBSTITUTE(SUBSTITUTE(SUBSTITUTE(M41,\"!\",\"\"),\",\",\"\"),\".\",\"\"),\";\",\"\"),\":\",\"\"),\"\"\"\",\"\")))","v":null},"https://likebk.com/","регистрация-сейчас","","","Россия","2,3","","-","Остановлено","Работает везде","Регистрация прямо сейчас||Форум||Новости||Рейтинг персонажей||||||||","Зарегистрируйтесь и вступите в наш клуб||Обсудите все ваши достежения и задания с реальными игроками||Узнайте все новости о мире БК-2||Посмотрите рейтинг реальных персонажей||||||||","https://likebk.com/register||https://forum.likebk.com/||https://likebk.com/news||https://top.likebk.com/exp_raiting.php/||||||||","","","","","https://direct.yandex.ru/images/direct/4474510/T4C5nRZRFcW9zGul6SLOCQ","","","Отлична графика||MMORPG||Передача атмосферы||Увлекательная игра||Отличное качество","","","","","","","","","","",""]
["-","Текстово-графическое","-","4458363191","Группа 1","1","-","26433374950","играть онлайн mmorpg игры","10259215430","Компьютерная игра твоего детства.","Полное погружение в игру БК-2!","БК-2 компьютерная игра прямиком из 2000-х. Отличная графика и полное погружение!",{"$f":"IF(K42=\"\",\"\",LEN(SUBSTITUTE(SUBSTITUTE(SUBSTITUTE(SUBSTITUTE(SUBSTITUTE(SUBSTITUTE(K42,\"!\",\"\"),\",\",\"\"),\".\",\"\"),\";\",\"\"),\":\",\"\"),\"\"\"\",\"\")))","v":null},{"$f":"IF(L42=\"\",\"\",LEN(SUBSTITUTE(SUBSTITUTE(SUBSTITUTE(SUBSTITUTE(SUBSTITUTE(SUBSTITUTE(L42,\"!\",\"\"),\",\",\"\"),\".\",\"\"),\";\",\"\"),\":\",\"\"),\"\"\"\",\"\")))","v":null},{"$f":"IF(M42=\"\",\"\",LEN(SUBSTITUTE(SUBSTITUTE(SUBSTITUTE(SUBSTITUTE(SUBSTITUTE(SUBSTITUTE(M42,\"!\",\"\"),\",\",\"\"),\".\",\"\"),\";\",\"\"),\":\",\"\"),\"\"\"\",\"\")))","v":null},"https://likebk.com/","регистрация-сейчас","","","Россия","2,3","","-","Остановлено","Работает везде","Регистрация прямо сейчас||Форум||Новости||Рейтинг персонажей||||||||","Зарегистрируйтесь и вступите в наш клуб||Обсудите все ваши достежения и задания с реальными игроками||Узнайте все новости о мире БК-2||Посмотрите рейтинг реальных персонажей||||||||","https://likebk.com/register||https://forum.likebk.com/||https://likebk.com/news||https://top.likebk.com/exp_raiting.php/||||||||","","","","","https://direct.yandex.ru/images/direct/4474510/T4C5nRZRFcW9zGul6SLOCQ","","","Отлична графика||MMORPG||Передача атмосферы||Увлекательная игра||Отличное качество","","","","","","","","","","",""]
["-","Текстово-графическое","-","4458363191","Группа 1","1","-","26433374951","игры онлайн mmorpg 2020","10259215430","Компьютерная игра твоего детства.","Полное погружение в игру БК-2!","БК-2 компьютерная игра прямиком из 2000-х. Отличная графика и полное погружение!",{"$f":"IF(K43=\"\",\"\",LEN(SUBSTITUTE(SUBSTITUTE(SUBSTITUTE(SUBSTITUTE(SUBSTITUTE(SUBSTITUTE(K43,\"!\",\"\"),\",\",\"\"),\".\",\"\"),\";\",\"\"),\":\",\"\"),\"\"\"\",\"\")))","v":null},{"$f":"IF(L43=\"\",\"\",LEN(SUBSTITUTE(SUBSTITUTE(SUBSTITUTE(SUBSTITUTE(SUBSTITUTE(SUBSTITUTE(L43,\"!\",\"\"),\",\",\"\"),\".\",\"\"),\";\",\"\"),\":\",\"\"),\"\"\"\",\"\")))","v":null},{"$f":"IF(M43=\"\",\"\",LEN(SUBSTITUTE(SUBSTITUTE(SUBSTITUTE(SUBSTITUTE(SUBSTITUTE(SUBSTITUTE(M43,\"!\",\"\"),\",\",\"\"),\".\",\"\"),\";\",\"\"),\":\",\"\"),\"\"\"\",\"\")))","v":null},"https://likebk.com/","регистрация-сейчас","","","Россия","2,3","","-","Остановлено","Работает везде","Регистрация прямо сейчас||Форум||Новости||Рейтинг персонажей||||||||","Зарегистрируйтесь и вступите в наш клуб||Обсудите все ваши достежения и задания с реальными игроками||Узнайте все новости о мире БК-2||Посмотрите рейтинг реальных персонажей||||||||","https://likebk.com/register||https://forum.likebk.com/||https://likebk.com/news||https://top.likebk.com/exp_raiting.php/||||||||","","","","","https://direct.yandex.ru/images/direct/4474510/T4C5nRZRFcW9zGul6SLOCQ","","","Отлична графика||MMORPG||Передача атмосферы||Увлекательная игра||Отличное качество","","","","","","","","","","",""]
["-","Текстово-графическое","-","4458363191","Группа 1","1","-","26433374952","клиентская онлайн mmorpg","10259215430","Компьютерная игра твоего детства.","Полное погружение в игру БК-2!","БК-2 компьютерная игра прямиком из 2000-х. Отличная графика и полное погружение!",{"$f":"IF(K44=\"\",\"\",LEN(SUBSTITUTE(SUBSTITUTE(SUBSTITUTE(SUBSTITUTE(SUBSTITUTE(SUBSTITUTE(K44,\"!\",\"\"),\",\",\"\"),\".\",\"\"),\";\",\"\"),\":\",\"\"),\"\"\"\",\"\")))","v":null},{"$f":"IF(L44=\"\",\"\",LEN(SUBSTITUTE(SUBSTITUTE(SUBSTITUTE(SUBSTITUTE(SUBSTITUTE(SUBSTITUTE(L44,\"!\",\"\"),\",\",\"\"),\".\",\"\"),\";\",\"\"),\":\",\"\"),\"\"\"\",\"\")))","v":null},{"$f":"IF(M44=\"\",\"\",LEN(SUBSTITUTE(SUBSTITUTE(SUBSTITUTE(SUBSTITUTE(SUBSTITUTE(SUBSTITUTE(M44,\"!\",\"\"),\",\",\"\"),\".\",\"\"),\";\",\"\"),\":\",\"\"),\"\"\"\",\"\")))","v":null},"https://likebk.com/","регистрация-сейчас","","","Россия","2,3","","-","Остановлено","Работает везде","Регистрация прямо сейчас||Форум||Новости||Рейтинг персонажей||||||||","Зарегистрируйтесь и вступите в наш клуб||Обсудите все ваши достежения и задания с реальными игроками||Узнайте все новости о мире БК-2||Посмотрите рейтинг реальных персонажей||||||||","https://likebk.com/register||https://forum.likebk.com/||https://likebk.com/news||https://top.likebk.com/exp_raiting.php/||||||||","","","","","https://direct.yandex.ru/images/direct/4474510/T4C5nRZRFcW9zGul6SLOCQ","","","Отлична графика||MMORPG||Передача атмосферы||Увлекательная игра||Отличное качество","","","","","","","","","","",""]
["-","Текстово-графическое","-","4458363191","Группа 1","1","-","26433374953","лучшие онлайн mmorpg","10259215430","Компьютерная игра твоего детства.","Полное погружение в игру БК-2!","БК-2 компьютерная игра прямиком из 2000-х. Отличная графика и полное погружение!",{"$f":"IF(K45=\"\",\"\",LEN(SUBSTITUTE(SUBSTITUTE(SUBSTITUTE(SUBSTITUTE(SUBSTITUTE(SUBSTITUTE(K45,\"!\",\"\"),\",\",\"\"),\".\",\"\"),\";\",\"\"),\":\",\"\"),\"\"\"\",\"\")))","v":null},{"$f":"IF(L45=\"\",\"\",LEN(SUBSTITUTE(SUBSTITUTE(SUBSTITUTE(SUBSTITUTE(SUBSTITUTE(SUBSTITUTE(L45,\"!\",\"\"),\",\",\"\"),\".\",\"\"),\";\",\"\"),\":\",\"\"),\"\"\"\",\"\")))","v":null},{"$f":"IF(M45=\"\",\"\",LEN(SUBSTITUTE(SUBSTITUTE(SUBSTITUTE(SUBSTITUTE(SUBSTITUTE(SUBSTITUTE(M45,\"!\",\"\"),\",\",\"\"),\".\",\"\"),\";\",\"\"),\":\",\"\"),\"\"\"\",\"\")))","v":null},"https://likebk.com/","регистрация-сейчас","","","Россия","2,3","","-","Остановлено","Работает везде","Регистрация прямо сейчас||Форум||Новости||Рейтинг персонажей||||||||","Зарегистрируйтесь и вступите в наш клуб||Обсудите все ваши достежения и задания с реальными игроками||Узнайте все новости о мире БК-2||Посмотрите рейтинг реальных персонажей||||||||","https://likebk.com/register||https://forum.likebk.com/||https://likebk.com/news||https://top.likebk.com/exp_raiting.php/||||||||","","","","","https://direct.yandex.ru/images/direct/4474510/T4C5nRZRFcW9zGul6SLOCQ","","","Отлична графика||MMORPG||Передача атмосферы||Увлекательная игра||Отличное качество","","","","","","","","","","",""]
["-","Текстово-графическое","-","4458363191","Группа 1","1","-","26433374954","новые онлайн mmorpg","10259215430","Компьютерная игра твоего детства.","Полное погружение в игру БК-2!","БК-2 компьютерная игра прямиком из 2000-х. Отличная графика и полное погружение!",{"$f":"IF(K46=\"\",\"\",LEN(SUBSTITUTE(SUBSTITUTE(SUBSTITUTE(SUBSTITUTE(SUBSTITUTE(SUBSTITUTE(K46,\"!\",\"\"),\",\",\"\"),\".\",\"\"),\";\",\"\"),\":\",\"\"),\"\"\"\",\"\")))","v":null},{"$f":"IF(L46=\"\",\"\",LEN(SUBSTITUTE(SUBSTITUTE(SUBSTITUTE(SUBSTITUTE(SUBSTITUTE(SUBSTITUTE(L46,\"!\",\"\"),\",\",\"\"),\".\",\"\"),\";\",\"\"),\":\",\"\"),\"\"\"\",\"\")))","v":null},{"$f":"IF(M46=\"\",\"\",LEN(SUBSTITUTE(SUBSTITUTE(SUBSTITUTE(SUBSTITUTE(SUBSTITUTE(SUBSTITUTE(M46,\"!\",\"\"),\",\",\"\"),\".\",\"\"),\";\",\"\"),\":\",\"\"),\"\"\"\",\"\")))","v":null},"https://likebk.com/","регистрация-сейчас","","","Россия","2,3","","-","Остановлено","Работает везде","Регистрация прямо сейчас||Форум||Новости||Рейтинг персонажей||||||||","Зарегистрируйтесь и вступите в наш клуб||Обсудите все ваши достежения и задания с реальными игроками||Узнайте все новости о мире БК-2||Посмотрите рейтинг реальных персонажей||||||||","https://likebk.com/register||https://forum.likebk.com/||https://likebk.com/news||https://top.likebk.com/exp_raiting.php/||||||||","","","","","https://direct.yandex.ru/images/direct/4474510/T4C5nRZRFcW9zGul6SLOCQ","","","Отлична графика||MMORPG||Передача атмосферы||Увлекательная игра||Отличное качество","","","","","","","","","","",""]
["-","Текстово-графическое","-","4458363191","Группа 1","1","-","26433374955","онлайн игры 2020 года mmorpg новинки","10259215430","Компьютерная игра твоего детства.","Полное погружение в игру БК-2!","БК-2 компьютерная игра прямиком из 2000-х. Отличная графика и полное погружение!",{"$f":"IF(K47=\"\",\"\",LEN(SUBSTITUTE(SUBSTITUTE(SUBSTITUTE(SUBSTITUTE(SUBSTITUTE(SUBSTITUTE(K47,\"!\",\"\"),\",\",\"\"),\".\",\"\"),\";\",\"\"),\":\",\"\"),\"\"\"\",\"\")))","v":null},{"$f":"IF(L47=\"\",\"\",LEN(SUBSTITUTE(SUBSTITUTE(SUBSTITUTE(SUBSTITUTE(SUBSTITUTE(SUBSTITUTE(L47,\"!\",\"\"),\",\",\"\"),\".\",\"\"),\";\",\"\"),\":\",\"\"),\"\"\"\",\"\")))","v":null},{"$f":"IF(M47=\"\",\"\",LEN(SUBSTITUTE(SUBSTITUTE(SUBSTITUTE(SUBSTITUTE(SUBSTITUTE(SUBSTITUTE(M47,\"!\",\"\"),\",\",\"\"),\".\",\"\"),\";\",\"\"),\":\",\"\"),\"\"\"\",\"\")))","v":null},"https://likebk.com/","регистрация-сейчас","","","Россия","2,3","","-","Остановлено","Работает везде","Регистрация прямо сейчас||Форум||Новости||Рейтинг персонажей||||||||","Зарегистрируйтесь и вступите в наш клуб||Обсудите все ваши достежения и задания с реальными игроками||Узнайте все новости о мире БК-2||Посмотрите рейтинг реальных персонажей||||||||","https://likebk.com/register||https://forum.likebk.com/||https://likebk.com/news||https://top.likebk.com/exp_raiting.php/||||||||","","","","","https://direct.yandex.ru/images/direct/4474510/T4C5nRZRFcW9zGul6SLOCQ","","","Отлична графика||MMORPG||Передача атмосферы||Увлекательная игра||Отличное качество","","","","","","","","","","",""]
["-","Текстово-графическое","-","4458363191","Группа 1","1","-","26433374956","онлайн игры mmorpg","10259215430","Компьютерная игра твоего детства.","Полное погружение в игру БК-2!","БК-2 компьютерная игра прямиком из 2000-х. Отличная графика и полное погружение!",{"$f":"IF(K48=\"\",\"\",LEN(SUBSTITUTE(SUBSTITUTE(SUBSTITUTE(SUBSTITUTE(SUBSTITUTE(SUBSTITUTE(K48,\"!\",\"\"),\",\",\"\"),\".\",\"\"),\";\",\"\"),\":\",\"\"),\"\"\"\",\"\")))","v":null},{"$f":"IF(L48=\"\",\"\",LEN(SUBSTITUTE(SUBSTITUTE(SUBSTITUTE(SUBSTITUTE(SUBSTITUTE(SUBSTITUTE(L48,\"!\",\"\"),\",\",\"\"),\".\",\"\"),\";\",\"\"),\":\",\"\"),\"\"\"\",\"\")))","v":null},{"$f":"IF(M48=\"\",\"\",LEN(SUBSTITUTE(SUBSTITUTE(SUBSTITUTE(SUBSTITUTE(SUBSTITUTE(SUBSTITUTE(M48,\"!\",\"\"),\",\",\"\"),\".\",\"\"),\";\",\"\"),\":\",\"\"),\"\"\"\",\"\")))","v":null},"https://likebk.com/","регистрация-сейчас","","","Россия","2,3","","-","Остановлено","Работает везде","Регистрация прямо сейчас||Форум||Новости||Рейтинг персонажей||||||||","Зарегистрируйтесь и вступите в наш клуб||Обсудите все ваши достежения и задания с реальными игроками||Узнайте все новости о мире БК-2||Посмотрите рейтинг реальных персонажей||||||||","https://likebk.com/register||https://forum.likebk.com/||https://likebk.com/news||https://top.likebk.com/exp_raiting.php/||||||||","","","","","https://direct.yandex.ru/images/direct/4474510/T4C5nRZRFcW9zGul6SLOCQ","","","Отлична графика||MMORPG||Передача атмосферы||Увлекательная игра||Отличное качество","","","","","","","","","","",""]
["-","Текстово-графическое","-","4458363191","Группа 1","1","-","26433374957","онлайн игры mmorpg клиентские","10259215430","Компьютерная игра твоего детства.","Полное погружение в игру БК-2!","БК-2 компьютерная игра прямиком из 2000-х. Отличная графика и полное погружение!",{"$f":"IF(K49=\"\",\"\",LEN(SUBSTITUTE(SUBSTITUTE(SUBSTITUTE(SUBSTITUTE(SUBSTITUTE(SUBSTITUTE(K49,\"!\",\"\"),\",\",\"\"),\".\",\"\"),\";\",\"\"),\":\",\"\"),\"\"\"\",\"\")))","v":null},{"$f":"IF(L49=\"\",\"\",LEN(SUBSTITUTE(SUBSTITUTE(SUBSTITUTE(SUBSTITUTE(SUBSTITUTE(SUBSTITUTE(L49,\"!\",\"\"),\",\",\"\"),\".\",\"\"),\";\",\"\"),\":\",\"\"),\"\"\"\",\"\")))","v":null},{"$f":"IF(M49=\"\",\"\",LEN(SUBSTITUTE(SUBSTITUTE(SUBSTITUTE(SUBSTITUTE(SUBSTITUTE(SUBSTITUTE(M49,\"!\",\"\"),\",\",\"\"),\".\",\"\"),\";\",\"\"),\":\",\"\"),\"\"\"\",\"\")))","v":null},"https://likebk.com/","регистрация-сейчас","","","Россия","2,3","","-","Остановлено","Работает везде","Регистрация прямо сейчас||Форум||Новости||Рейтинг персонажей||||||||","Зарегистрируйтесь и вступите в наш клуб||Обсудите все ваши достежения и задания с реальными игроками||Узнайте все новости о мире БК-2||Посмотрите рейтинг реальных персонажей||||||||","https://likebk.com/register||https://forum.likebk.com/||https://likebk.com/news||https://top.likebk.com/exp_raiting.php/||||||||","","","","","https://direct.yandex.ru/images/direct/4474510/T4C5nRZRFcW9zGul6SLOCQ","","","Отлична графика||MMORPG||Передача атмосферы||Увлекательная игра||Отличное качество","","","","","","","","","","",""]
["-","Текстово-графическое","-","4458363191","Группа 1","1","-","26433374958","онлайн игры жанре mmorpg","10259215430","Компьютерная игра твоего детства.","Полное погружение в игру БК-2!","БК-2 компьютерная игра прямиком из 2000-х. Отличная графика и полное погружение!",{"$f":"IF(K50=\"\",\"\",LEN(SUBSTITUTE(SUBSTITUTE(SUBSTITUTE(SUBSTITUTE(SUBSTITUTE(SUBSTITUTE(K50,\"!\",\"\"),\",\",\"\"),\".\",\"\"),\";\",\"\"),\":\",\"\"),\"\"\"\",\"\")))","v":null},{"$f":"IF(L50=\"\",\"\",LEN(SUBSTITUTE(SUBSTITUTE(SUBSTITUTE(SUBSTITUTE(SUBSTITUTE(SUBSTITUTE(L50,\"!\",\"\"),\",\",\"\"),\".\",\"\"),\";\",\"\"),\":\",\"\"),\"\"\"\",\"\")))","v":null},{"$f":"IF(M50=\"\",\"\",LEN(SUBSTITUTE(SUBSTITUTE(SUBSTITUTE(SUBSTITUTE(SUBSTITUTE(SUBSTITUTE(M50,\"!\",\"\"),\",\",\"\"),\".\",\"\"),\";\",\"\"),\":\",\"\"),\"\"\"\",\"\")))","v":null},"https://likebk.com/","регистрация-сейчас","","","Россия","2,3","","-","Остановлено","Работает везде","Регистрация прямо сейчас||Форум||Новости||Рейтинг персонажей||||||||","Зарегистрируйтесь и вступите в наш клуб||Обсудите все ваши достежения и задания с реальными игроками||Узнайте все новости о мире БК-2||Посмотрите рейтинг реальных персонажей||||||||","https://likebk.com/register||https://forum.likebk.com/||https://likebk.com/news||https://top.likebk.com/exp_raiting.php/||||||||","","","","","https://direct.yandex.ru/images/direct/4474510/T4C5nRZRFcW9zGul6SLOCQ","","","Отлична графика||MMORPG||Передача атмосферы||Увлекательная игра||Отличное качество","","","","","","","","","","",""]
["-","Текстово-графическое","-","4458363191","Группа 1","1","-","26433374959","русские онлайн mmorpg","10259215430","Компьютерная игра твоего детства.","Полное погружение в игру БК-2!","БК-2 компьютерная игра прямиком из 2000-х. Отличная графика и полное погружение!",{"$f":"IF(K51=\"\",\"\",LEN(SUBSTITUTE(SUBSTITUTE(SUBSTITUTE(SUBSTITUTE(SUBSTITUTE(SUBSTITUTE(K51,\"!\",\"\"),\",\",\"\"),\".\",\"\"),\";\",\"\"),\":\",\"\"),\"\"\"\",\"\")))","v":null},{"$f":"IF(L51=\"\",\"\",LEN(SUBSTITUTE(SUBSTITUTE(SUBSTITUTE(SUBSTITUTE(SUBSTITUTE(SUBSTITUTE(L51,\"!\",\"\"),\",\",\"\"),\".\",\"\"),\";\",\"\"),\":\",\"\"),\"\"\"\",\"\")))","v":null},{"$f":"IF(M51=\"\",\"\",LEN(SUBSTITUTE(SUBSTITUTE(SUBSTITUTE(SUBSTITUTE(SUBSTITUTE(SUBSTITUTE(M51,\"!\",\"\"),\",\",\"\"),\".\",\"\"),\";\",\"\"),\":\",\"\"),\"\"\"\",\"\")))","v":null},"https://likebk.com/","регистрация-сейчас","","","Россия","2,3","","-","Остановлено","Работает везде","Регистрация прямо сейчас||Форум||Новости||Рейтинг персонажей||||||||","Зарегистрируйтесь и вступите в наш клуб||Обсудите все ваши достежения и задания с реальными игроками||Узнайте все новости о мире БК-2||Посмотрите рейтинг реальных персонажей||||||||","https://likebk.com/register||https://forum.likebk.com/||https://likebk.com/news||https://top.likebk.com/exp_raiting.php/||||||||","","","","","https://direct.yandex.ru/images/direct/4474510/T4C5nRZRFcW9zGul6SLOCQ","","","Отлична графика||MMORPG||Передача атмосферы||Увлекательная игра||Отличное качество","","","","","","","","","","",""]
["-","Текстово-графическое","-","4458363191","Группа 1","1","-","26433374960","список онлайн mmorpg","10259215430","Компьютерная игра твоего детства.","Полное погружение в игру БК-2!","БК-2 компьютерная игра прямиком из 2000-х. Отличная графика и полное погружение!",{"$f":"IF(K52=\"\",\"\",LEN(SUBSTITUTE(SUBSTITUTE(SUBSTITUTE(SUBSTITUTE(SUBSTITUTE(SUBSTITUTE(K52,\"!\",\"\"),\",\",\"\"),\".\",\"\"),\";\",\"\"),\":\",\"\"),\"\"\"\",\"\")))","v":null},{"$f":"IF(L52=\"\",\"\",LEN(SUBSTITUTE(SUBSTITUTE(SUBSTITUTE(SUBSTITUTE(SUBSTITUTE(SUBSTITUTE(L52,\"!\",\"\"),\",\",\"\"),\".\",\"\"),\";\",\"\"),\":\",\"\"),\"\"\"\",\"\")))","v":null},{"$f":"IF(M52=\"\",\"\",LEN(SUBSTITUTE(SUBSTITUTE(SUBSTITUTE(SUBSTITUTE(SUBSTITUTE(SUBSTITUTE(M52,\"!\",\"\"),\",\",\"\"),\".\",\"\"),\";\",\"\"),\":\",\"\"),\"\"\"\",\"\")))","v":null},"https://likebk.com/","регистрация-сейчас","","","Россия","2,3","","-","Остановлено","Работает везде","Регистрация прямо сейчас||Форум||Новости||Рейтинг персонажей||||||||","Зарегистрируйтесь и вступите в наш клуб||Обсудите все ваши достежения и задания с реальными игроками||Узнайте все новости о мире БК-2||Посмотрите рейтинг реальных персонажей||||||||","https://likebk.com/register||https://forum.likebk.com/||https://likebk.com/news||https://top.likebk.com/exp_raiting.php/||||||||","","","","","https://direct.yandex.ru/images/direct/4474510/T4C5nRZRFcW9zGul6SLOCQ","","","Отлична графика||MMORPG||Передача атмосферы||Увлекательная игра||Отличное качество","","","","","","","","","","",""]
["+","Текстово-графическое","-","4458363191","Группа 1","1","-","","","10259215431","Компьютерная игра твоего детства.","Реалистическая графика!","БК-2 компьютерная игра прямиком из 2000-х. Отличная графика и полное погружение!",{"$f":"IF(K53=\"\",\"\",LEN(SUBSTITUTE(SUBSTITUTE(SUBSTITUTE(SUBSTITUTE(SUBSTITUTE(SUBSTITUTE(K53,\"!\",\"\"),\",\",\"\"),\".\",\"\"),\";\",\"\"),\":\",\"\"),\"\"\"\",\"\")))","v":null},{"$f":"IF(L53=\"\",\"\",LEN(SUBSTITUTE(SUBSTITUTE(SUBSTITUTE(SUBSTITUTE(SUBSTITUTE(SUBSTITUTE(L53,\"!\",\"\"),\",\",\"\"),\".\",\"\"),\";\",\"\"),\":\",\"\"),\"\"\"\",\"\")))","v":null},{"$f":"IF(M53=\"\",\"\",LEN(SUBSTITUTE(SUBSTITUTE(SUBSTITUTE(SUBSTITUTE(SUBSTITUTE(SUBSTITUTE(M53,\"!\",\"\"),\",\",\"\"),\".\",\"\"),\";\",\"\"),\":\",\"\"),\"\"\"\",\"\")))","v":null},"https://likebk.com/","регистрация-сейчас","","","","","","-","Остановлено","","Регистрация прямо сейчас||Форум||Новости||Рейтинг персонажей||||||||","Зарегистрируйтесь и вступите в наш клуб||Обсудите все ваши достежения и задания с реальными игроками||Узнайте все новости о мире БК-2||Посмотрите рейтинг реальных персонажей||||||||","https://likebk.com/register||https://forum.likebk.com/||https://likebk.com/news||https://top.likebk.com/exp_raiting.php/||||||||","","","","","https://direct.yandex.ru/images/direct/4474510/T4C5nRZRFcW9zGul6SLOCQ","","","Отлична графика||MMORPG||Передача атмосферы||Увлекательная игра||Отличное качество","","","","","","","","","","",""]
["+","Текстово-графическое","-","4458363191","Группа 1","1","-","","","10259215433","Компьютерная игра твоего детства.","Уникальный мир с населением!","БК-2 компьютерная игра прямиком из 2000-х. Отличная графика и полное погружение!",{"$f":"IF(K54=\"\",\"\",LEN(SUBSTITUTE(SUBSTITUTE(SUBSTITUTE(SUBSTITUTE(SUBSTITUTE(SUBSTITUTE(K54,\"!\",\"\"),\",\",\"\"),\".\",\"\"),\";\",\"\"),\":\",\"\"),\"\"\"\",\"\")))","v":null},{"$f":"IF(L54=\"\",\"\",LEN(SUBSTITUTE(SUBSTITUTE(SUBSTITUTE(SUBSTITUTE(SUBSTITUTE(SUBSTITUTE(L54,\"!\",\"\"),\",\",\"\"),\".\",\"\"),\";\",\"\"),\":\",\"\"),\"\"\"\",\"\")))","v":null},{"$f":"IF(M54=\"\",\"\",LEN(SUBSTITUTE(SUBSTITUTE(SUBSTITUTE(SUBSTITUTE(SUBSTITUTE(SUBSTITUTE(M54,\"!\",\"\"),\",\",\"\"),\".\",\"\"),\";\",\"\"),\":\",\"\"),\"\"\"\",\"\")))","v":null},"https://likebk.com/","регистрация-сейчас","","","","","","-","Остановлено","","Регистрация прямо сейчас||Форум||Новости||Рейтинг персонажей||||||||","Зарегистрируйтесь и вступите в наш клуб||Обсудите все ваши достежения и задания с реальными игроками||Узнайте все новости о мире БК-2||Посмотрите рейтинг реальных персонажей||||||||","https://likebk.com/register||https://forum.likebk.com/||https://likebk.com/news||https://top.likebk.com/exp_raiting.php/||||||||","","","","","https://direct.yandex.ru/images/direct/4474510/T4C5nRZRFcW9zGul6SLOCQ","","","Отлична графика||MMORPG||Передача атмосферы||Увлекательная игра||Отличное качество","","","","","","","","","","",""]
["-","Текстово-графическое","-","4458363192","Группа 2","2","-","26433374961","бойцовский клуб игра онлайн","10259215434","Компьютерная игра твоего детства.","Полное погружение в игру БК-2!","БК-2 компьютерная игра прямиком из 2000-х. Отличная графиа и полное погружение!",{"$f":"IF(K55=\"\",\"\",LEN(SUBSTITUTE(SUBSTITUTE(SUBSTITUTE(SUBSTITUTE(SUBSTITUTE(SUBSTITUTE(K55,\"!\",\"\"),\",\",\"\"),\".\",\"\"),\";\",\"\"),\":\",\"\"),\"\"\"\",\"\")))","v":null},{"$f":"IF(L55=\"\",\"\",LEN(SUBSTITUTE(SUBSTITUTE(SUBSTITUTE(SUBSTITUTE(SUBSTITUTE(SUBSTITUTE(L55,\"!\",\"\"),\",\",\"\"),\".\",\"\"),\";\",\"\"),\":\",\"\"),\"\"\"\",\"\")))","v":null},{"$f":"IF(M55=\"\",\"\",LEN(SUBSTITUTE(SUBSTITUTE(SUBSTITUTE(SUBSTITUTE(SUBSTITUTE(SUBSTITUTE(M55,\"!\",\"\"),\",\",\"\"),\".\",\"\"),\";\",\"\"),\":\",\"\"),\"\"\"\",\"\")))","v":null},"https://likebk.com/","регистрация-сейчас","","","Россия","2,3","","-","Остановлено","Работает везде","Регистрация прямо сейчас||Форум||Новости||Рейтинг персонажей||||||||","Зарегистрируйтесь и вступите в наш бойцовский клуб||Обсудите все ваши достежения и задания с реальными игроками||Узнайте все новости о мире боев||Посмотрите рейтинг реальных персонажей||||||||","https://likebk.com/register||https://forum.likebk.com/||https://likebk.com/news||https://top.likebk.com/exp_raiting.php/||||||||","","","","","https://direct.yandex.ru/images/direct/2799451/bHXmtVENGILep2M2rxPXnA","","","Отлична графика||MMORPG||Передача атмосферы||Увлекательная игра||Отличное качество","","","","","","","","","","",""]
["-","Текстово-графическое","-","4458363192","Группа 2","2","-","26433374962","бойцовский клуб играть","10259215434","Компьютерная игра твоего детства.","Полное погружение в игру БК-2!","БК-2 компьютерная игра прямиком из 2000-х. Отличная графиа и полное погружение!",{"$f":"IF(K56=\"\",\"\",LEN(SUBSTITUTE(SUBSTITUTE(SUBSTITUTE(SUBSTITUTE(SUBSTITUTE(SUBSTITUTE(K56,\"!\",\"\"),\",\",\"\"),\".\",\"\"),\";\",\"\"),\":\",\"\"),\"\"\"\",\"\")))","v":null},{"$f":"IF(L56=\"\",\"\",LEN(SUBSTITUTE(SUBSTITUTE(SUBSTITUTE(SUBSTITUTE(SUBSTITUTE(SUBSTITUTE(L56,\"!\",\"\"),\",\",\"\"),\".\",\"\"),\";\",\"\"),\":\",\"\"),\"\"\"\",\"\")))","v":null},{"$f":"IF(M56=\"\",\"\",LEN(SUBSTITUTE(SUBSTITUTE(SUBSTITUTE(SUBSTITUTE(SUBSTITUTE(SUBSTITUTE(M56,\"!\",\"\"),\",\",\"\"),\".\",\"\"),\";\",\"\"),\":\",\"\"),\"\"\"\",\"\")))","v":null},"https://likebk.com/","регистрация-сейчас","","","Россия","2,3","","-","Остановлено","Работает везде","Регистрация прямо сейчас||Форум||Новости||Рейтинг персонажей||||||||","Зарегистрируйтесь и вступите в наш бойцовский клуб||Обсудите все ваши достежения и задания с реальными игроками||Узнайте все новости о мире боев||Посмотрите рейтинг реальных персонажей||||||||","https://likebk.com/register||https://forum.likebk.com/||https://likebk.com/news||https://top.likebk.com/exp_raiting.php/||||||||","","","","","https://direct.yandex.ru/images/direct/2799451/bHXmtVENGILep2M2rxPXnA","","","Отлична графика||MMORPG||Передача атмосферы||Увлекательная игра||Отличное качество","","","","","","","","","","",""]
["-","Текстово-графическое","-","4458363192","Группа 2","2","-","26433374963","онлайн игра детства","10259215434","Компьютерная игра твоего детства.","Полное погружение в игру БК-2!","БК-2 компьютерная игра прямиком из 2000-х. Отличная графиа и полное погружение!",{"$f":"IF(K57=\"\",\"\",LEN(SUBSTITUTE(SUBSTITUTE(SUBSTITUTE(SUBSTITUTE(SUBSTITUTE(SUBSTITUTE(K57,\"!\",\"\"),\",\",\"\"),\".\",\"\"),\";\",\"\"),\":\",\"\"),\"\"\"\",\"\")))","v":null},{"$f":"IF(L57=\"\",\"\",LEN(SUBSTITUTE(SUBSTITUTE(SUBSTITUTE(SUBSTITUTE(SUBSTITUTE(SUBSTITUTE(L57,\"!\",\"\"),\",\",\"\"),\".\",\"\"),\";\",\"\"),\":\",\"\"),\"\"\"\",\"\")))","v":null},{"$f":"IF(M57=\"\",\"\",LEN(SUBSTITUTE(SUBSTITUTE(SUBSTITUTE(SUBSTITUTE(SUBSTITUTE(SUBSTITUTE(M57,\"!\",\"\"),\",\",\"\"),\".\",\"\"),\";\",\"\"),\":\",\"\"),\"\"\"\",\"\")))","v":null},"https://likebk.com/","регистрация-сейчас","","","Россия","2,3","","-","Остановлено","Работает везде","Регистрация прямо сейчас||Форум||Новости||Рейтинг персонажей||||||||","Зарегистрируйтесь и вступите в наш бойцовский клуб||Обсудите все ваши достежения и задания с реальными игроками||Узнайте все новости о мире боев||Посмотрите рейтинг реальных персонажей||||||||","https://likebk.com/register||https://forum.likebk.com/||https://likebk.com/news||https://top.likebk.com/exp_raiting.php/||||||||","","","","","https://direct.yandex.ru/images/direct/2799451/bHXmtVENGILep2M2rxPXnA","","","Отлична графика||MMORPG||Передача атмосферы||Увлекательная игра||Отличное качество","","","","","","","","","","",""]
["-","Текстово-графическое","-","4458363192","Группа 2","2","-","26433374964","игра бойцовский клуб","10259215434","Компьютерная игра твоего детства.","Полное погружение в игру БК-2!","БК-2 компьютерная игра прямиком из 2000-х. Отличная графиа и полное погружение!",{"$f":"IF(K58=\"\",\"\",LEN(SUBSTITUTE(SUBSTITUTE(SUBSTITUTE(SUBSTITUTE(SUBSTITUTE(SUBSTITUTE(K58,\"!\",\"\"),\",\",\"\"),\".\",\"\"),\";\",\"\"),\":\",\"\"),\"\"\"\",\"\")))","v":null},{"$f":"IF(L58=\"\",\"\",LEN(SUBSTITUTE(SUBSTITUTE(SUBSTITUTE(SUBSTITUTE(SUBSTITUTE(SUBSTITUTE(L58,\"!\",\"\"),\",\",\"\"),\".\",\"\"),\";\",\"\"),\":\",\"\"),\"\"\"\",\"\")))","v":null},{"$f":"IF(M58=\"\",\"\",LEN(SUBSTITUTE(SUBSTITUTE(SUBSTITUTE(SUBSTITUTE(SUBSTITUTE(SUBSTITUTE(M58,\"!\",\"\"),\",\",\"\"),\".\",\"\"),\";\",\"\"),\":\",\"\"),\"\"\"\",\"\")))","v":null},"https://likebk.com/","регистрация-сейчас","","","Россия","2,3","","-","Остановлено","Работает везде","Регистрация прямо сейчас||Форум||Новости||Рейтинг персонажей||||||||","Зарегистрируйтесь и вступите в наш бойцовский клуб||Обсудите все ваши достежения и задания с реальными игроками||Узнайте все новости о мире боев||Посмотрите рейтинг реальных персонажей||||||||","https://likebk.com/register||https://forum.likebk.com/||https://likebk.com/news||https://top.likebk.com/exp_raiting.php/||||||||","","","","","https://direct.yandex.ru/images/direct/2799451/bHXmtVENGILep2M2rxPXnA","","","Отлична графика||MMORPG||Передача атмосферы||Увлекательная игра||Отличное качество","","","","","","","","","","",""]
["-","Текстово-графическое","-","4458363192","Группа 2","2","-","26433374965","новый бойцовский клуб онлайн игра","10259215434","Компьютерная игра твоего детства.","Полное погружение в игру БК-2!","БК-2 компьютерная игра прямиком из 2000-х. Отличная графиа и полное погружение!",{"$f":"IF(K59=\"\",\"\",LEN(SUBSTITUTE(SUBSTITUTE(SUBSTITUTE(SUBSTITUTE(SUBSTITUTE(SUBSTITUTE(K59,\"!\",\"\"),\",\",\"\"),\".\",\"\"),\";\",\"\"),\":\",\"\"),\"\"\"\",\"\")))","v":null},{"$f":"IF(L59=\"\",\"\",LEN(SUBSTITUTE(SUBSTITUTE(SUBSTITUTE(SUBSTITUTE(SUBSTITUTE(SUBSTITUTE(L59,\"!\",\"\"),\",\",\"\"),\".\",\"\"),\";\",\"\"),\":\",\"\"),\"\"\"\",\"\")))","v":null},{"$f":"IF(M59=\"\",\"\",LEN(SUBSTITUTE(SUBSTITUTE(SUBSTITUTE(SUBSTITUTE(SUBSTITUTE(SUBSTITUTE(M59,\"!\",\"\"),\",\",\"\"),\".\",\"\"),\";\",\"\"),\":\",\"\"),\"\"\"\",\"\")))","v":null},"https://likebk.com/","регистрация-сейчас","","","Россия","2,3","","-","Остановлено","Работает везде","Регистрация прямо сейчас||Форум||Новости||Рейтинг персонажей||||||||","Зарегистрируйтесь и вступите в наш бойцовский клуб||Обсудите все ваши достежения и задания с реальными игроками||Узнайте все новости о мире боев||Посмотрите рейтинг реальных персонажей||||||||","https://likebk.com/register||https://forum.likebk.com/||https://likebk.com/news||https://top.likebk.com/exp_raiting.php/||||||||","","","","","https://direct.yandex.ru/images/direct/2799451/bHXmtVENGILep2M2rxPXnA","","","Отлична графика||MMORPG||Передача атмосферы||Увлекательная игра||Отличное качество","","","","","","","","","","",""]
["-","Текстово-графическое","-","4458363192","Группа 2","2","-","26433374966","старый бойцовский клуб игра","10259215434","Компьютерная игра твоего детства.","Полное погружение в игру БК-2!","БК-2 компьютерная игра прямиком из 2000-х. Отличная графиа и полное погружение!",{"$f":"IF(K60=\"\",\"\",LEN(SUBSTITUTE(SUBSTITUTE(SUBSTITUTE(SUBSTITUTE(SUBSTITUTE(SUBSTITUTE(K60,\"!\",\"\"),\",\",\"\"),\".\",\"\"),\";\",\"\"),\":\",\"\"),\"\"\"\",\"\")))","v":null},{"$f":"IF(L60=\"\",\"\",LEN(SUBSTITUTE(SUBSTITUTE(SUBSTITUTE(SUBSTITUTE(SUBSTITUTE(SUBSTITUTE(L60,\"!\",\"\"),\",\",\"\"),\".\",\"\"),\";\",\"\"),\":\",\"\"),\"\"\"\",\"\")))","v":null},{"$f":"IF(M60=\"\",\"\",LEN(SUBSTITUTE(SUBSTITUTE(SUBSTITUTE(SUBSTITUTE(SUBSTITUTE(SUBSTITUTE(M60,\"!\",\"\"),\",\",\"\"),\".\",\"\"),\";\",\"\"),\":\",\"\"),\"\"\"\",\"\")))","v":null},"https://likebk.com/","регистрация-сейчас","","","Россия","2,3","","-","Остановлено","Работает везде","Регистрация прямо сейчас||Форум||Новости||Рейтинг персонажей||||||||","Зарегистрируйтесь и вступите в наш бойцовский клуб||Обсудите все ваши достежения и задания с реальными игроками||Узнайте все новости о мире боев||Посмотрите рейтинг реальных персонажей||||||||","https://likebk.com/register||https://forum.likebk.com/||https://likebk.com/news||https://top.likebk.com/exp_raiting.php/||||||||","","","","","https://direct.yandex.ru/images/direct/2799451/bHXmtVENGILep2M2rxPXnA","","","Отлична графика||MMORPG||Передача атмосферы||Увлекательная игра||Отличное качество","","","","","","","","","","",""]
["-","Текстово-графическое","-","4458363192","Группа 2","2","-","26433374967","бойцовский клуб браузерная игра","10259215434","Компьютерная игра твоего детства.","Полное погружение в игру БК-2!","БК-2 компьютерная игра прямиком из 2000-х. Отличная графиа и полное погружение!",{"$f":"IF(K61=\"\",\"\",LEN(SUBSTITUTE(SUBSTITUTE(SUBSTITUTE(SUBSTITUTE(SUBSTITUTE(SUBSTITUTE(K61,\"!\",\"\"),\",\",\"\"),\".\",\"\"),\";\",\"\"),\":\",\"\"),\"\"\"\",\"\")))","v":null},{"$f":"IF(L61=\"\",\"\",LEN(SUBSTITUTE(SUBSTITUTE(SUBSTITUTE(SUBSTITUTE(SUBSTITUTE(SUBSTITUTE(L61,\"!\",\"\"),\",\",\"\"),\".\",\"\"),\";\",\"\"),\":\",\"\"),\"\"\"\",\"\")))","v":null},{"$f":"IF(M61=\"\",\"\",LEN(SUBSTITUTE(SUBSTITUTE(SUBSTITUTE(SUBSTITUTE(SUBSTITUTE(SUBSTITUTE(M61,\"!\",\"\"),\",\",\"\"),\".\",\"\"),\";\",\"\"),\":\",\"\"),\"\"\"\",\"\")))","v":null},"https://likebk.com/","регистрация-сейчас","","","Россия","2,3","","-","Остановлено","Работает везде","Регистрация прямо сейчас||Форум||Новости||Рейтинг персонажей||||||||","Зарегистрируйтесь и вступите в наш бойцовский клуб||Обсудите все ваши достежения и задания с реальными игроками||Узнайте все новости о мире боев||Посмотрите рейтинг реальных персонажей||||||||","https://likebk.com/register||https://forum.likebk.com/||https://likebk.com/news||https://top.likebk.com/exp_raiting.php/||||||||","","","","","https://direct.yandex.ru/images/direct/2799451/bHXmtVENGILep2M2rxPXnA","","","Отлична графика||MMORPG||Передача атмосферы||Увлекательная игра||Отличное качество","","","","","","","","","","",""]
["-","Текстово-графическое","-","4458363192","Группа 2","2","-","26433374968","старый бойцовский клуб онлайн игра","10259215434","Компьютерная игра твоего детства.","Полное погружение в игру БК-2!","БК-2 компьютерная игра прямиком из 2000-х. Отличная графиа и полное погружение!",{"$f":"IF(K62=\"\",\"\",LEN(SUBSTITUTE(SUBSTITUTE(SUBSTITUTE(SUBSTITUTE(SUBSTITUTE(SUBSTITUTE(K62,\"!\",\"\"),\",\",\"\"),\".\",\"\"),\";\",\"\"),\":\",\"\"),\"\"\"\",\"\")))","v":null},{"$f":"IF(L62=\"\",\"\",LEN(SUBSTITUTE(SUBSTITUTE(SUBSTITUTE(SUBSTITUTE(SUBSTITUTE(SUBSTITUTE(L62,\"!\",\"\"),\",\",\"\"),\".\",\"\"),\";\",\"\"),\":\",\"\"),\"\"\"\",\"\")))","v":null},{"$f":"IF(M62=\"\",\"\",LEN(SUBSTITUTE(SUBSTITUTE(SUBSTITUTE(SUBSTITUTE(SUBSTITUTE(SUBSTITUTE(M62,\"!\",\"\"),\",\",\"\"),\".\",\"\"),\";\",\"\"),\":\",\"\"),\"\"\"\",\"\")))","v":null},"https://likebk.com/","регистрация-сейчас","","","Россия","2,3","","-","Остановлено","Работает везде","Регистрация прямо сейчас||Форум||Новости||Рейтинг персонажей||||||||","Зарегистрируйтесь и вступите в наш бойцовский клуб||Обсудите все ваши достежения и задания с реальными игроками||Узнайте все новости о мире боев||Посмотрите рейтинг реальных персонажей||||||||","https://likebk.com/register||https://forum.likebk.com/||https://likebk.com/news||https://top.likebk.com/exp_raiting.php/||||||||","","","","","https://direct.yandex.ru/images/direct/2799451/bHXmtVENGILep2M2rxPXnA","","","Отлична графика||MMORPG||Передача атмосферы||Увлекательная игра||Отличное качество","","","","","","","","","","",""]
["-","Текстово-графическое","-","4458363192","Группа 2","2","-","26433374969","likebk бойцовский клуб","10259215434","Компьютерная игра твоего детства.","Полное погружение в игру БК-2!","БК-2 компьютерная игра прямиком из 2000-х. Отличная графиа и полное погружение!",{"$f":"IF(K63=\"\",\"\",LEN(SUBSTITUTE(SUBSTITUTE(SUBSTITUTE(SUBSTITUTE(SUBSTITUTE(SUBSTITUTE(K63,\"!\",\"\"),\",\",\"\"),\".\",\"\"),\";\",\"\"),\":\",\"\"),\"\"\"\",\"\")))","v":null},{"$f":"IF(L63=\"\",\"\",LEN(SUBSTITUTE(SUBSTITUTE(SUBSTITUTE(SUBSTITUTE(SUBSTITUTE(SUBSTITUTE(L63,\"!\",\"\"),\",\",\"\"),\".\",\"\"),\";\",\"\"),\":\",\"\"),\"\"\"\",\"\")))","v":null},{"$f":"IF(M63=\"\",\"\",LEN(SUBSTITUTE(SUBSTITUTE(SUBSTITUTE(SUBSTITUTE(SUBSTITUTE(SUBSTITUTE(M63,\"!\",\"\"),\",\",\"\"),\".\",\"\"),\";\",\"\"),\":\",\"\"),\"\"\"\",\"\")))","v":null},"https://likebk.com/","регистрация-сейчас","","","Россия","2,3","","-","Остановлено","Работает везде","Регистрация прямо сейчас||Форум||Новости||Рейтинг персонажей||||||||","Зарегистрируйтесь и вступите в наш бойцовский клуб||Обсудите все ваши достежения и задания с реальными игроками||Узнайте все новости о мире боев||Посмотрите рейтинг реальных персонажей||||||||","https://likebk.com/register||https://forum.likebk.com/||https://likebk.com/news||https://top.likebk.com/exp_raiting.php/||||||||","","","","","https://direct.yandex.ru/images/direct/2799451/bHXmtVENGILep2M2rxPXnA","","","Отлична графика||MMORPG||Передача атмосферы||Увлекательная игра||Отличное качество","","","","","","","","","","",""]
["-","Текстово-графическое","-","4458363192","Группа 2","2","-","26433374970","браузерные игры типа бк","10259215434","Компьютерная игра твоего детства.","Полное погружение в игру БК-2!","БК-2 компьютерная игра прямиком из 2000-х. Отличная графиа и полное погружение!",{"$f":"IF(K64=\"\",\"\",LEN(SUBSTITUTE(SUBSTITUTE(SUBSTITUTE(SUBSTITUTE(SUBSTITUTE(SUBSTITUTE(K64,\"!\",\"\"),\",\",\"\"),\".\",\"\"),\";\",\"\"),\":\",\"\"),\"\"\"\",\"\")))","v":null},{"$f":"IF(L64=\"\",\"\",LEN(SUBSTITUTE(SUBSTITUTE(SUBSTITUTE(SUBSTITUTE(SUBSTITUTE(SUBSTITUTE(L64,\"!\",\"\"),\",\",\"\"),\".\",\"\"),\";\",\"\"),\":\",\"\"),\"\"\"\",\"\")))","v":null},{"$f":"IF(M64=\"\",\"\",LEN(SUBSTITUTE(SUBSTITUTE(SUBSTITUTE(SUBSTITUTE(SUBSTITUTE(SUBSTITUTE(M64,\"!\",\"\"),\",\",\"\"),\".\",\"\"),\";\",\"\"),\":\",\"\"),\"\"\"\",\"\")))","v":null},"https://likebk.com/","регистрация-сейчас","","","Россия","2,3","","-","Остановлено","Работает везде","Регистрация прямо сейчас||Форум||Новости||Рейтинг персонажей||||||||","Зарегистрируйтесь и вступите в наш бойцовский клуб||Обсудите все ваши достежения и задания с реальными игроками||Узнайте все новости о мире боев||Посмотрите рейтинг реальных персонажей||||||||","https://likebk.com/register||https://forum.likebk.com/||https://likebk.com/news||https://top.likebk.com/exp_raiting.php/||||||||","","","","","https://direct.yandex.ru/images/direct/2799451/bHXmtVENGILep2M2rxPXnA","","","Отлична графика||MMORPG||Передача атмосферы||Увлекательная игра||Отличное качество","","","","","","","","","","",""]
["-","Текстово-графическое","-","4458363192","Группа 2","2","-","26433374971","бойцовский клуб игра 2018","10259215434","Компьютерная игра твоего детства.","Полное погружение в игру БК-2!","БК-2 компьютерная игра прямиком из 2000-х. Отличная графиа и полное погружение!",{"$f":"IF(K65=\"\",\"\",LEN(SUBSTITUTE(SUBSTITUTE(SUBSTITUTE(SUBSTITUTE(SUBSTITUTE(SUBSTITUTE(K65,\"!\",\"\"),\",\",\"\"),\".\",\"\"),\";\",\"\"),\":\",\"\"),\"\"\"\",\"\")))","v":null},{"$f":"IF(L65=\"\",\"\",LEN(SUBSTITUTE(SUBSTITUTE(SUBSTITUTE(SUBSTITUTE(SUBSTITUTE(SUBSTITUTE(L65,\"!\",\"\"),\",\",\"\"),\".\",\"\"),\";\",\"\"),\":\",\"\"),\"\"\"\",\"\")))","v":null},{"$f":"IF(M65=\"\",\"\",LEN(SUBSTITUTE(SUBSTITUTE(SUBSTITUTE(SUBSTITUTE(SUBSTITUTE(SUBSTITUTE(M65,\"!\",\"\"),\",\",\"\"),\".\",\"\"),\";\",\"\"),\":\",\"\"),\"\"\"\",\"\")))","v":null},"https://likebk.com/","регистрация-сейчас","","","Россия","2,3","","-","Остановлено","Работает везде","Регистрация прямо сейчас||Форум||Новости||Рейтинг персонажей||||||||","Зарегистрируйтесь и вступите в наш бойцовский клуб||Обсудите все ваши достежения и задания с реальными игроками||Узнайте все новости о мире боев||Посмотрите рейтинг реальных персонажей||||||||","https://likebk.com/register||https://forum.likebk.com/||https://likebk.com/news||https://top.likebk.com/exp_raiting.php/||||||||","","","","","https://direct.yandex.ru/images/direct/2799451/bHXmtVENGILep2M2rxPXnA","","","Отлична графика||MMORPG||Передача атмосферы||Увлекательная игра||Отличное качество","","","","","","","","","","",""]
["-","Текстово-графическое","-","4458363192","Группа 2","2","-","26433374972","игра детства из 2000-х","10259215434","Компьютерная игра твоего детства.","Полное погружение в игру БК-2!","БК-2 компьютерная игра прямиком из 2000-х. Отличная графиа и полное погружение!",{"$f":"IF(K66=\"\",\"\",LEN(SUBSTITUTE(SUBSTITUTE(SUBSTITUTE(SUBSTITUTE(SUBSTITUTE(SUBSTITUTE(K66,\"!\",\"\"),\",\",\"\"),\".\",\"\"),\";\",\"\"),\":\",\"\"),\"\"\"\",\"\")))","v":null},{"$f":"IF(L66=\"\",\"\",LEN(SUBSTITUTE(SUBSTITUTE(SUBSTITUTE(SUBSTITUTE(SUBSTITUTE(SUBSTITUTE(L66,\"!\",\"\"),\",\",\"\"),\".\",\"\"),\";\",\"\"),\":\",\"\"),\"\"\"\",\"\")))","v":null},{"$f":"IF(M66=\"\",\"\",LEN(SUBSTITUTE(SUBSTITUTE(SUBSTITUTE(SUBSTITUTE(SUBSTITUTE(SUBSTITUTE(M66,\"!\",\"\"),\",\",\"\"),\".\",\"\"),\";\",\"\"),\":\",\"\"),\"\"\"\",\"\")))","v":null},"https://likebk.com/","регистрация-сейчас","","","Россия","2,3","","-","Остановлено","Работает везде","Регистрация прямо сейчас||Форум||Новости||Рейтинг персонажей||||||||","Зарегистрируйтесь и вступите в наш бойцовский клуб||Обсудите все ваши достежения и задания с реальными игроками||Узнайте все новости о мире боев||Посмотрите рейтинг реальных персонажей||||||||","https://likebk.com/register||https://forum.likebk.com/||https://likebk.com/news||https://top.likebk.com/exp_raiting.php/||||||||","","","","","https://direct.yandex.ru/images/direct/2799451/bHXmtVENGILep2M2rxPXnA","","","Отлична графика||MMORPG||Передача атмосферы||Увлекательная игра||Отличное качество","","","","","","","","","","",""]
["-","Текстово-графическое","-","4458363192","Группа 2","2","-","26433374973","игра бк-2","10259215434","Компьютерная игра твоего детства.","Полное погружение в игру БК-2!","БК-2 компьютерная игра прямиком из 2000-х. Отличная графиа и полное погружение!",{"$f":"IF(K67=\"\",\"\",LEN(SUBSTITUTE(SUBSTITUTE(SUBSTITUTE(SUBSTITUTE(SUBSTITUTE(SUBSTITUTE(K67,\"!\",\"\"),\",\",\"\"),\".\",\"\"),\";\",\"\"),\":\",\"\"),\"\"\"\",\"\")))","v":null},{"$f":"IF(L67=\"\",\"\",LEN(SUBSTITUTE(SUBSTITUTE(SUBSTITUTE(SUBSTITUTE(SUBSTITUTE(SUBSTITUTE(L67,\"!\",\"\"),\",\",\"\"),\".\",\"\"),\";\",\"\"),\":\",\"\"),\"\"\"\",\"\")))","v":null},{"$f":"IF(M67=\"\",\"\",LEN(SUBSTITUTE(SUBSTITUTE(SUBSTITUTE(SUBSTITUTE(SUBSTITUTE(SUBSTITUTE(M67,\"!\",\"\"),\",\",\"\"),\".\",\"\"),\";\",\"\"),\":\",\"\"),\"\"\"\",\"\")))","v":null},"https://likebk.com/","регистрация-сейчас","","","Россия","2,3","","-","Остановлено","Работает везде","Регистрация прямо сейчас||Форум||Новости||Рейтинг персонажей||||||||","Зарегистрируйтесь и вступите в наш бойцовский клуб||Обсудите все ваши достежения и задания с реальными игроками||Узнайте все новости о мире боев||Посмотрите рейтинг реальных персонажей||||||||","https://likebk.com/register||https://forum.likebk.com/||https://likebk.com/news||https://top.likebk.com/exp_raiting.php/||||||||","","","","","https://direct.yandex.ru/images/direct/2799451/bHXmtVENGILep2M2rxPXnA","","","Отлична графика||MMORPG||Передача атмосферы||Увлекательная игра||Отличное качество","","","","","","","","","","",""]
["-","Текстово-графическое","-","4458363192","Группа 2","2","-","26433374974","бк-2 играть онлайн","10259215434","Компьютерная игра твоего детства.","Полное погружение в игру БК-2!","БК-2 компьютерная игра прямиком из 2000-х. Отличная графиа и полное погружение!",{"$f":"IF(K68=\"\",\"\",LEN(SUBSTITUTE(SUBSTITUTE(SUBSTITUTE(SUBSTITUTE(SUBSTITUTE(SUBSTITUTE(K68,\"!\",\"\"),\",\",\"\"),\".\",\"\"),\";\",\"\"),\":\",\"\"),\"\"\"\",\"\")))","v":null},{"$f":"IF(L68=\"\",\"\",LEN(SUBSTITUTE(SUBSTITUTE(SUBSTITUTE(SUBSTITUTE(SUBSTITUTE(SUBSTITUTE(L68,\"!\",\"\"),\",\",\"\"),\".\",\"\"),\";\",\"\"),\":\",\"\"),\"\"\"\",\"\")))","v":null},{"$f":"IF(M68=\"\",\"\",LEN(SUBSTITUTE(SUBSTITUTE(SUBSTITUTE(SUBSTITUTE(SUBSTITUTE(SUBSTITUTE(M68,\"!\",\"\"),\",\",\"\"),\".\",\"\"),\";\",\"\"),\":\",\"\"),\"\"\"\",\"\")))","v":null},"https://likebk.com/","регистрация-сейчас","","","Россия","2,3","","-","Остановлено","Работает везде","Регистрация прямо сейчас||Форум||Новости||Рейтинг персонажей||||||||","Зарегистрируйтесь и вступите в наш бойцовский клуб||Обсудите все ваши достежения и задания с реальными игроками||Узнайте все новости о мире боев||Посмотрите рейтинг реальных персонажей||||||||","https://likebk.com/register||https://forum.likebk.com/||https://likebk.com/news||https://top.likebk.com/exp_raiting.php/||||||||","","","","","https://direct.yandex.ru/images/direct/2799451/bHXmtVENGILep2M2rxPXnA","","","Отлична графика||MMORPG||Передача атмосферы||Увлекательная игра||Отличное качество","","","","","","","","","","",""]
["-","Текстово-графическое","-","4458363192","Группа 2","2","-","26433374975","бк онлайн игра бойцовский клуб","10259215434","Компьютерная игра твоего детства.","Полное погружение в игру БК-2!","БК-2 компьютерная игра прямиком из 2000-х. Отличная графиа и полное погружение!",{"$f":"IF(K69=\"\",\"\",LEN(SUBSTITUTE(SUBSTITUTE(SUBSTITUTE(SUBSTITUTE(SUBSTITUTE(SUBSTITUTE(K69,\"!\",\"\"),\",\",\"\"),\".\",\"\"),\";\",\"\"),\":\",\"\"),\"\"\"\",\"\")))","v":null},{"$f":"IF(L69=\"\",\"\",LEN(SUBSTITUTE(SUBSTITUTE(SUBSTITUTE(SUBSTITUTE(SUBSTITUTE(SUBSTITUTE(L69,\"!\",\"\"),\",\",\"\"),\".\",\"\"),\";\",\"\"),\":\",\"\"),\"\"\"\",\"\")))","v":null},{"$f":"IF(M69=\"\",\"\",LEN(SUBSTITUTE(SUBSTITUTE(SUBSTITUTE(SUBSTITUTE(SUBSTITUTE(SUBSTITUTE(M69,\"!\",\"\"),\",\",\"\"),\".\",\"\"),\";\",\"\"),\":\",\"\"),\"\"\"\",\"\")))","v":null},"https://likebk.com/","регистрация-сейчас","","","Россия","2,3","","-","Остановлено","Работает везде","Регистрация прямо сейчас||Форум||Новости||Рейтинг персонажей||||||||","Зарегистрируйтесь и вступите в наш бойцовский клуб||Обсудите все ваши достежения и задания с реальными игроками||Узнайте все новости о мире боев||Посмотрите рейтинг реальных персонажей||||||||","https://likebk.com/register||https://forum.likebk.com/||https://likebk.com/news||https://top.likebk.com/exp_raiting.php/||||||||","","","","","https://direct.yandex.ru/images/direct/2799451/bHXmtVENGILep2M2rxPXnA","","","Отлична графика||MMORPG||Передача атмосферы||Увлекательная игра||Отличное качество","","","","","","","","","","",""]
["-","Текстово-графическое","-","4458363192","Группа 2","2","-","26433374976","бойцовский клуб браузерная онлайн игра","10259215434","Компьютерная игра твоего детства.","Полное погружение в игру БК-2!","БК-2 компьютерная игра прямиком из 2000-х. Отличная графиа и полное погружение!",{"$f":"IF(K70=\"\",\"\",LEN(SUBSTITUTE(SUBSTITUTE(SUBSTITUTE(SUBSTITUTE(SUBSTITUTE(SUBSTITUTE(K70,\"!\",\"\"),\",\",\"\"),\".\",\"\"),\";\",\"\"),\":\",\"\"),\"\"\"\",\"\")))","v":null},{"$f":"IF(L70=\"\",\"\",LEN(SUBSTITUTE(SUBSTITUTE(SUBSTITUTE(SUBSTITUTE(SUBSTITUTE(SUBSTITUTE(L70,\"!\",\"\"),\",\",\"\"),\".\",\"\"),\";\",\"\"),\":\",\"\"),\"\"\"\",\"\")))","v":null},{"$f":"IF(M70=\"\",\"\",LEN(SUBSTITUTE(SUBSTITUTE(SUBSTITUTE(SUBSTITUTE(SUBSTITUTE(SUBSTITUTE(M70,\"!\",\"\"),\",\",\"\"),\".\",\"\"),\";\",\"\"),\":\",\"\"),\"\"\"\",\"\")))","v":null},"https://likebk.com/","регистрация-сейчас","","","Россия","2,3","","-","Остановлено","Работает везде","Регистрация прямо сейчас||Форум||Новости||Рейтинг персонажей||||||||","Зарегистрируйтесь и вступите в наш бойцовский клуб||Обсудите все ваши достежения и задания с реальными игроками||Узнайте все новости о мире боев||Посмотрите рейтинг реальных персонажей||||||||","https://likebk.com/register||https://forum.likebk.com/||https://likebk.com/news||https://top.likebk.com/exp_raiting.php/||||||||","","","","","https://direct.yandex.ru/images/direct/2799451/bHXmtVENGILep2M2rxPXnA","","","Отлична графика||MMORPG||Передача атмосферы||Увлекательная игра||Отличное качество","","","","","","","","","","",""]
["-","Текстово-графическое","-","4458363192","Группа 2","2","-","26433374977","игра мморпг","10259215434","Компьютерная игра твоего детства.","Полное погружение в игру БК-2!","БК-2 компьютерная игра прямиком из 2000-х. Отличная графиа и полное погружение!",{"$f":"IF(K71=\"\",\"\",LEN(SUBSTITUTE(SUBSTITUTE(SUBSTITUTE(SUBSTITUTE(SUBSTITUTE(SUBSTITUTE(K71,\"!\",\"\"),\",\",\"\"),\".\",\"\"),\";\",\"\"),\":\",\"\"),\"\"\"\",\"\")))","v":null},{"$f":"IF(L71=\"\",\"\",LEN(SUBSTITUTE(SUBSTITUTE(SUBSTITUTE(SUBSTITUTE(SUBSTITUTE(SUBSTITUTE(L71,\"!\",\"\"),\",\",\"\"),\".\",\"\"),\";\",\"\"),\":\",\"\"),\"\"\"\",\"\")))","v":null},{"$f":"IF(M71=\"\",\"\",LEN(SUBSTITUTE(SUBSTITUTE(SUBSTITUTE(SUBSTITUTE(SUBSTITUTE(SUBSTITUTE(M71,\"!\",\"\"),\",\",\"\"),\".\",\"\"),\";\",\"\"),\":\",\"\"),\"\"\"\",\"\")))","v":null},"https://likebk.com/","регистрация-сейчас","","","Россия","2,3","","-","Остановлено","Работает везде","Регистрация прямо сейчас||Форум||Новости||Рейтинг персонажей||||||||","Зарегистрируйтесь и вступите в наш бойцовский клуб||Обсудите все ваши достежения и задания с реальными игроками||Узнайте все новости о мире боев||Посмотрите рейтинг реальных персонажей||||||||","https://likebk.com/register||https://forum.likebk.com/||https://likebk.com/news||https://top.likebk.com/exp_raiting.php/||||||||","","","","","https://direct.yandex.ru/images/direct/2799451/bHXmtVENGILep2M2rxPXnA","","","Отлична графика||MMORPG||Передача атмосферы||Увлекательная игра||Отличное качество","","","","","","","","","","",""]
["-","Текстово-графическое","-","4458363192","Группа 2","2","-","26433374978","образа +для бойцовский клуб игра онлайн","10259215434","Компьютерная игра твоего детства.","Полное погружение в игру БК-2!","БК-2 компьютерная игра прямиком из 2000-х. Отличная графиа и полное погружение!",{"$f":"IF(K72=\"\",\"\",LEN(SUBSTITUTE(SUBSTITUTE(SUBSTITUTE(SUBSTITUTE(SUBSTITUTE(SUBSTITUTE(K72,\"!\",\"\"),\",\",\"\"),\".\",\"\"),\";\",\"\"),\":\",\"\"),\"\"\"\",\"\")))","v":null},{"$f":"IF(L72=\"\",\"\",LEN(SUBSTITUTE(SUBSTITUTE(SUBSTITUTE(SUBSTITUTE(SUBSTITUTE(SUBSTITUTE(L72,\"!\",\"\"),\",\",\"\"),\".\",\"\"),\";\",\"\"),\":\",\"\"),\"\"\"\",\"\")))","v":null},{"$f":"IF(M72=\"\",\"\",LEN(SUBSTITUTE(SUBSTITUTE(SUBSTITUTE(SUBSTITUTE(SUBSTITUTE(SUBSTITUTE(M72,\"!\",\"\"),\",\",\"\"),\".\",\"\"),\";\",\"\"),\":\",\"\"),\"\"\"\",\"\")))","v":null},"https://likebk.com/","регистрация-сейчас","","","Россия","2,3","","-","Остановлено","Работает везде","Регистрация прямо сейчас||Форум||Новости||Рейтинг персонажей||||||||","Зарегистрируйтесь и вступите в наш бойцовский клуб||Обсудите все ваши достежения и задания с реальными игроками||Узнайте все новости о мире боев||Посмотрите рейтинг реальных персонажей||||||||","https://likebk.com/register||https://forum.likebk.com/||https://likebk.com/news||https://top.likebk.com/exp_raiting.php/||||||||","","","","","https://direct.yandex.ru/images/direct/2799451/bHXmtVENGILep2M2rxPXnA","","","Отлична графика||MMORPG||Передача атмосферы||Увлекательная игра||Отличное качество","","","","","","","","","","",""]
["-","Текстово-графическое","-","4458363192","Группа 2","2","-","26433374979","mmorpg +для слабых пк онлайн","10259215434","Компьютерная игра твоего детства.","Полное погружение в игру БК-2!","БК-2 компьютерная игра прямиком из 2000-х. Отличная графиа и полное погружение!",{"$f":"IF(K73=\"\",\"\",LEN(SUBSTITUTE(SUBSTITUTE(SUBSTITUTE(SUBSTITUTE(SUBSTITUTE(SUBSTITUTE(K73,\"!\",\"\"),\",\",\"\"),\".\",\"\"),\";\",\"\"),\":\",\"\"),\"\"\"\",\"\")))","v":null},{"$f":"IF(L73=\"\",\"\",LEN(SUBSTITUTE(SUBSTITUTE(SUBSTITUTE(SUBSTITUTE(SUBSTITUTE(SUBSTITUTE(L73,\"!\",\"\"),\",\",\"\"),\".\",\"\"),\";\",\"\"),\":\",\"\"),\"\"\"\",\"\")))","v":null},{"$f":"IF(M73=\"\",\"\",LEN(SUBSTITUTE(SUBSTITUTE(SUBSTITUTE(SUBSTITUTE(SUBSTITUTE(SUBSTITUTE(M73,\"!\",\"\"),\",\",\"\"),\".\",\"\"),\";\",\"\"),\":\",\"\"),\"\"\"\",\"\")))","v":null},"https://likebk.com/","регистрация-сейчас","","","Россия","2,3","","-","Остановлено","Работает везде","Регистрация прямо сейчас||Форум||Новости||Рейтинг персонажей||||||||","Зарегистрируйтесь и вступите в наш бойцовский клуб||Обсудите все ваши достежения и задания с реальными игроками||Узнайте все новости о мире боев||Посмотрите рейтинг реальных персонажей||||||||","https://likebk.com/register||https://forum.likebk.com/||https://likebk.com/news||https://top.likebk.com/exp_raiting.php/||||||||","","","","","https://direct.yandex.ru/images/direct/2799451/bHXmtVENGILep2M2rxPXnA","","","Отлична графика||MMORPG||Передача атмосферы||Увлекательная игра||Отличное качество","","","","","","","","","","",""]
["-","Текстово-графическое","-","4458363192","Группа 2","2","-","26433374980","mmorpg +на пк онлайн","10259215434","Компьютерная игра твоего детства.","Полное погружение в игру БК-2!","БК-2 компьютерная игра прямиком из 2000-х. Отличная графиа и полное погружение!",{"$f":"IF(K74=\"\",\"\",LEN(SUBSTITUTE(SUBSTITUTE(SUBSTITUTE(SUBSTITUTE(SUBSTITUTE(SUBSTITUTE(K74,\"!\",\"\"),\",\",\"\"),\".\",\"\"),\";\",\"\"),\":\",\"\"),\"\"\"\",\"\")))","v":null},{"$f":"IF(L74=\"\",\"\",LEN(SUBSTITUTE(SUBSTITUTE(SUBSTITUTE(SUBSTITUTE(SUBSTITUTE(SUBSTITUTE(L74,\"!\",\"\"),\",\",\"\"),\".\",\"\"),\";\",\"\"),\":\",\"\"),\"\"\"\",\"\")))","v":null},{"$f":"IF(M74=\"\",\"\",LEN(SUBSTITUTE(SUBSTITUTE(SUBSTITUTE(SUBSTITUTE(SUBSTITUTE(SUBSTITUTE(M74,\"!\",\"\"),\",\",\"\"),\".\",\"\"),\";\",\"\"),\":\",\"\"),\"\"\"\",\"\")))","v":null},"https://likebk.com/","регистрация-сейчас","","","Россия","2,3","","-","Остановлено","Работает везде","Регистрация прямо сейчас||Форум||Новости||Рейтинг персонажей||||||||","Зарегистрируйтесь и вступите в наш бойцовский клуб||Обсудите все ваши достежения и задания с реальными игроками||Узнайте все новости о мире боев||Посмотрите рейтинг реальных персонажей||||||||","https://likebk.com/register||https://forum.likebk.com/||https://likebk.com/news||https://top.likebk.com/exp_raiting.php/||||||||","","","","","https://direct.yandex.ru/images/direct/2799451/bHXmtVENGILep2M2rxPXnA","","","Отлична графика||MMORPG||Передача атмосферы||Увлекательная игра||Отличное качество","","","","","","","","","","",""]
["-","Текстово-графическое","-","4458363192","Группа 2","2","-","26433374981","mmorpg +на пк онлайн топ","10259215434","Компьютерная игра твоего детства.","Полное погружение в игру БК-2!","БК-2 компьютерная игра прямиком из 2000-х. Отличная графиа и полное погружение!",{"$f":"IF(K75=\"\",\"\",LEN(SUBSTITUTE(SUBSTITUTE(SUBSTITUTE(SUBSTITUTE(SUBSTITUTE(SUBSTITUTE(K75,\"!\",\"\"),\",\",\"\"),\".\",\"\"),\";\",\"\"),\":\",\"\"),\"\"\"\",\"\")))","v":null},{"$f":"IF(L75=\"\",\"\",LEN(SUBSTITUTE(SUBSTITUTE(SUBSTITUTE(SUBSTITUTE(SUBSTITUTE(SUBSTITUTE(L75,\"!\",\"\"),\",\",\"\"),\".\",\"\"),\";\",\"\"),\":\",\"\"),\"\"\"\",\"\")))","v":null},{"$f":"IF(M75=\"\",\"\",LEN(SUBSTITUTE(SUBSTITUTE(SUBSTITUTE(SUBSTITUTE(SUBSTITUTE(SUBSTITUTE(M75,\"!\",\"\"),\",\",\"\"),\".\",\"\"),\";\",\"\"),\":\",\"\"),\"\"\"\",\"\")))","v":null},"https://likebk.com/","регистрация-сейчас","","","Россия","2,3","","-","Остановлено","Работает везде","Регистрация прямо сейчас||Форум||Новости||Рейтинг персонажей||||||||","Зарегистрируйтесь и вступите в наш бойцовский клуб||Обсудите все ваши достежения и задания с реальными игроками||Узнайте все новости о мире боев||Посмотрите рейтинг реальных персонажей||||||||","https://likebk.com/register||https://forum.likebk.com/||https://likebk.com/news||https://top.likebk.com/exp_raiting.php/||||||||","","","","","https://direct.yandex.ru/images/direct/2799451/bHXmtVENGILep2M2rxPXnA","","","Отлична графика||MMORPG||Передача атмосферы||Увлекательная игра||Отличное качество","","","","","","","","","","",""]
["-","Текстово-графическое","-","4458363192","Группа 2","2","-","26433374982","mmorpg +с большим онлайном","10259215434","Компьютерная игра твоего детства.","Полное погружение в игру БК-2!","БК-2 компьютерная игра прямиком из 2000-х. Отличная графиа и полное погружение!",{"$f":"IF(K76=\"\",\"\",LEN(SUBSTITUTE(SUBSTITUTE(SUBSTITUTE(SUBSTITUTE(SUBSTITUTE(SUBSTITUTE(K76,\"!\",\"\"),\",\",\"\"),\".\",\"\"),\";\",\"\"),\":\",\"\"),\"\"\"\",\"\")))","v":null},{"$f":"IF(L76=\"\",\"\",LEN(SUBSTITUTE(SUBSTITUTE(SUBSTITUTE(SUBSTITUTE(SUBSTITUTE(SUBSTITUTE(L76,\"!\",\"\"),\",\",\"\"),\".\",\"\"),\";\",\"\"),\":\",\"\"),\"\"\"\",\"\")))","v":null},{"$f":"IF(M76=\"\",\"\",LEN(SUBSTITUTE(SUBSTITUTE(SUBSTITUTE(SUBSTITUTE(SUBSTITUTE(SUBSTITUTE(M76,\"!\",\"\"),\",\",\"\"),\".\",\"\"),\";\",\"\"),\":\",\"\"),\"\"\"\",\"\")))","v":null},"https://likebk.com/","регистрация-сейчас","","","Россия","2,3","","-","Остановлено","Работает везде","Регистрация прямо сейчас||Форум||Новости||Рейтинг персонажей||||||||","Зарегистрируйтесь и вступите в наш бойцовский клуб||Обсудите все ваши достежения и задания с реальными игроками||Узнайте все новости о мире боев||Посмотрите рейтинг реальных персонажей||||||||","https://likebk.com/register||https://forum.likebk.com/||https://likebk.com/news||https://top.likebk.com/exp_raiting.php/||||||||","","","","","https://direct.yandex.ru/images/direct/2799451/bHXmtVENGILep2M2rxPXnA","","","Отлична графика||MMORPG||Передача атмосферы||Увлекательная игра||Отличное качество","","","","","","","","","","",""]
["-","Текстово-графическое","-","4458363192","Группа 2","2","-","26433374983","mmorpg +с открытым миром онлайн","10259215434","Компьютерная игра твоего детства.","Полное погружение в игру БК-2!","БК-2 компьютерная игра прямиком из 2000-х. Отличная графиа и полное погружение!",{"$f":"IF(K77=\"\",\"\",LEN(SUBSTITUTE(SUBSTITUTE(SUBSTITUTE(SUBSTITUTE(SUBSTITUTE(SUBSTITUTE(K77,\"!\",\"\"),\",\",\"\"),\".\",\"\"),\";\",\"\"),\":\",\"\"),\"\"\"\",\"\")))","v":null},{"$f":"IF(L77=\"\",\"\",LEN(SUBSTITUTE(SUBSTITUTE(SUBSTITUTE(SUBSTITUTE(SUBSTITUTE(SUBSTITUTE(L77,\"!\",\"\"),\",\",\"\"),\".\",\"\"),\";\",\"\"),\":\",\"\"),\"\"\"\",\"\")))","v":null},{"$f":"IF(M77=\"\",\"\",LEN(SUBSTITUTE(SUBSTITUTE(SUBSTITUTE(SUBSTITUTE(SUBSTITUTE(SUBSTITUTE(M77,\"!\",\"\"),\",\",\"\"),\".\",\"\"),\";\",\"\"),\":\",\"\"),\"\"\"\",\"\")))","v":null},"https://likebk.com/","регистрация-сейчас","","","Россия","2,3","","-","Остановлено","Работает везде","Регистрация прямо сейчас||Форум||Новости||Рейтинг персонажей||||||||","Зарегистрируйтесь и вступите в наш бойцовский клуб||Обсудите все ваши достежения и задания с реальными игроками||Узнайте все новости о мире боев||Посмотрите рейтинг реальных персонажей||||||||","https://likebk.com/register||https://forum.likebk.com/||https://likebk.com/news||https://top.likebk.com/exp_raiting.php/||||||||","","","","","https://direct.yandex.ru/images/direct/2799451/bHXmtVENGILep2M2rxPXnA","","","Отлична графика||MMORPG||Передача атмосферы||Увлекательная игра||Отличное качество","","","","","","","","","","",""]
["-","Текстово-графическое","-","4458363192","Группа 2","2","-","26433374984","mmorpg онлайн","10259215434","Компьютерная игра твоего детства.","Полное погружение в игру БК-2!","БК-2 компьютерная игра прямиком из 2000-х. Отличная графиа и полное погружение!",{"$f":"IF(K78=\"\",\"\",LEN(SUBSTITUTE(SUBSTITUTE(SUBSTITUTE(SUBSTITUTE(SUBSTITUTE(SUBSTITUTE(K78,\"!\",\"\"),\",\",\"\"),\".\",\"\"),\";\",\"\"),\":\",\"\"),\"\"\"\",\"\")))","v":null},{"$f":"IF(L78=\"\",\"\",LEN(SUBSTITUTE(SUBSTITUTE(SUBSTITUTE(SUBSTITUTE(SUBSTITUTE(SUBSTITUTE(L78,\"!\",\"\"),\",\",\"\"),\".\",\"\"),\";\",\"\"),\":\",\"\"),\"\"\"\",\"\")))","v":null},{"$f":"IF(M78=\"\",\"\",LEN(SUBSTITUTE(SUBSTITUTE(SUBSTITUTE(SUBSTITUTE(SUBSTITUTE(SUBSTITUTE(M78,\"!\",\"\"),\",\",\"\"),\".\",\"\"),\";\",\"\"),\":\",\"\"),\"\"\"\",\"\")))","v":null},"https://likebk.com/","регистрация-сейчас","","","Россия","2,3","","-","Остановлено","Работает везде","Регистрация прямо сейчас||Форум||Новости||Рейтинг персонажей||||||||","Зарегистрируйтесь и вступите в наш бойцовский клуб||Обсудите все ваши достежения и задания с реальными игроками||Узнайте все новости о мире боев||Посмотрите рейтинг реальных персонажей||||||||","https://likebk.com/register||https://forum.likebk.com/||https://likebk.com/news||https://top.likebk.com/exp_raiting.php/||||||||","","","","","https://direct.yandex.ru/images/direct/2799451/bHXmtVENGILep2M2rxPXnA","","","Отлична графика||MMORPG||Передача атмосферы||Увлекательная игра||Отличное качество","","","","","","","","","","",""]
["-","Текстово-графическое","-","4458363192","Группа 2","2","-","26433374985","mmorpg онлайн игры +на пк","10259215434","Компьютерная игра твоего детства.","Полное погружение в игру БК-2!","БК-2 компьютерная игра прямиком из 2000-х. Отличная графиа и полное погружение!",{"$f":"IF(K79=\"\",\"\",LEN(SUBSTITUTE(SUBSTITUTE(SUBSTITUTE(SUBSTITUTE(SUBSTITUTE(SUBSTITUTE(K79,\"!\",\"\"),\",\",\"\"),\".\",\"\"),\";\",\"\"),\":\",\"\"),\"\"\"\",\"\")))","v":null},{"$f":"IF(L79=\"\",\"\",LEN(SUBSTITUTE(SUBSTITUTE(SUBSTITUTE(SUBSTITUTE(SUBSTITUTE(SUBSTITUTE(L79,\"!\",\"\"),\",\",\"\"),\".\",\"\"),\";\",\"\"),\":\",\"\"),\"\"\"\",\"\")))","v":null},{"$f":"IF(M79=\"\",\"\",LEN(SUBSTITUTE(SUBSTITUTE(SUBSTITUTE(SUBSTITUTE(SUBSTITUTE(SUBSTITUTE(M79,\"!\",\"\"),\",\",\"\"),\".\",\"\"),\";\",\"\"),\":\",\"\"),\"\"\"\",\"\")))","v":null},"https://likebk.com/","регистрация-сейчас","","","Россия","2,3","","-","Остановлено","Работает везде","Регистрация прямо сейчас||Форум||Новости||Рейтинг персонажей||||||||","Зарегистрируйтесь и вступите в наш бойцовский клуб||Обсудите все ваши достежения и задания с реальными игроками||Узнайте все новости о мире боев||Посмотрите рейтинг реальных персонажей||||||||","https://likebk.com/register||https://forum.likebk.com/||https://likebk.com/news||https://top.likebk.com/exp_raiting.php/||||||||","","","","","https://direct.yandex.ru/images/direct/2799451/bHXmtVENGILep2M2rxPXnA","","","Отлична графика||MMORPG||Передача атмосферы||Увлекательная игра||Отличное качество","","","","","","","","","","",""]
["-","Текстово-графическое","-","4458363192","Группа 2","2","-","26433374986","mmorpg онлайн игры браузерные","10259215434","Компьютерная игра твоего детства.","Полное погружение в игру БК-2!","БК-2 компьютерная игра прямиком из 2000-х. Отличная графиа и полное погружение!",{"$f":"IF(K80=\"\",\"\",LEN(SUBSTITUTE(SUBSTITUTE(SUBSTITUTE(SUBSTITUTE(SUBSTITUTE(SUBSTITUTE(K80,\"!\",\"\"),\",\",\"\"),\".\",\"\"),\";\",\"\"),\":\",\"\"),\"\"\"\",\"\")))","v":null},{"$f":"IF(L80=\"\",\"\",LEN(SUBSTITUTE(SUBSTITUTE(SUBSTITUTE(SUBSTITUTE(SUBSTITUTE(SUBSTITUTE(L80,\"!\",\"\"),\",\",\"\"),\".\",\"\"),\";\",\"\"),\":\",\"\"),\"\"\"\",\"\")))","v":null},{"$f":"IF(M80=\"\",\"\",LEN(SUBSTITUTE(SUBSTITUTE(SUBSTITUTE(SUBSTITUTE(SUBSTITUTE(SUBSTITUTE(M80,\"!\",\"\"),\",\",\"\"),\".\",\"\"),\";\",\"\"),\":\",\"\"),\"\"\"\",\"\")))","v":null},"https://likebk.com/","регистрация-сейчас","","","Россия","2,3","","-","Остановлено","Работает везде","Регистрация прямо сейчас||Форум||Новости||Рейтинг персонажей||||||||","Зарегистрируйтесь и вступите в наш бойцовский клуб||Обсудите все ваши достежения и задания с реальными игроками||Узнайте все новости о мире боев||Посмотрите рейтинг реальных персонажей||||||||","https://likebk.com/register||https://forum.likebk.com/||https://likebk.com/news||https://top.likebk.com/exp_raiting.php/||||||||","","","","","https://direct.yandex.ru/images/direct/2799451/bHXmtVENGILep2M2rxPXnA","","","Отлична графика||MMORPG||Передача атмосферы||Увлекательная игра||Отличное качество","","","","","","","","","","",""]
["-","Текстово-графическое","-","4458363192","Группа 2","2","-","26433374987","бойцовский клуб игра онлайн олдбк 2","10259215434","Компьютерная игра твоего детства.","Полное погружение в игру БК-2!","БК-2 компьютерная игра прямиком из 2000-х. Отличная графиа и полное погружение!",{"$f":"IF(K81=\"\",\"\",LEN(SUBSTITUTE(SUBSTITUTE(SUBSTITUTE(SUBSTITUTE(SUBSTITUTE(SUBSTITUTE(K81,\"!\",\"\"),\",\",\"\"),\".\",\"\"),\";\",\"\"),\":\",\"\"),\"\"\"\",\"\")))","v":null},{"$f":"IF(L81=\"\",\"\",LEN(SUBSTITUTE(SUBSTITUTE(SUBSTITUTE(SUBSTITUTE(SUBSTITUTE(SUBSTITUTE(L81,\"!\",\"\"),\",\",\"\"),\".\",\"\"),\";\",\"\"),\":\",\"\"),\"\"\"\",\"\")))","v":null},{"$f":"IF(M81=\"\",\"\",LEN(SUBSTITUTE(SUBSTITUTE(SUBSTITUTE(SUBSTITUTE(SUBSTITUTE(SUBSTITUTE(M81,\"!\",\"\"),\",\",\"\"),\".\",\"\"),\";\",\"\"),\":\",\"\"),\"\"\"\",\"\")))","v":null},"https://likebk.com/","регистрация-сейчас","","","Россия","2,3","","-","Остановлено","Работает везде","Регистрация прямо сейчас||Форум||Новости||Рейтинг персонажей||||||||","Зарегистрируйтесь и вступите в наш бойцовский клуб||Обсудите все ваши достежения и задания с реальными игроками||Узнайте все новости о мире боев||Посмотрите рейтинг реальных персонажей||||||||","https://likebk.com/register||https://forum.likebk.com/||https://likebk.com/news||https://top.likebk.com/exp_raiting.php/||||||||","","","","","https://direct.yandex.ru/images/direct/2799451/bHXmtVENGILep2M2rxPXnA","","","Отлична графика||MMORPG||Передача атмосферы||Увлекательная игра||Отличное качество","","","","","","","","","","",""]
["-","Текстово-графическое","-","4458363192","Группа 2","2","-","26433374988","бойцовский клуб игра онлайн официальный сайт","10259215434","Компьютерная игра твоего детства.","Полное погружение в игру БК-2!","БК-2 компьютерная игра прямиком из 2000-х. Отличная графиа и полное погружение!",{"$f":"IF(K82=\"\",\"\",LEN(SUBSTITUTE(SUBSTITUTE(SUBSTITUTE(SUBSTITUTE(SUBSTITUTE(SUBSTITUTE(K82,\"!\",\"\"),\",\",\"\"),\".\",\"\"),\";\",\"\"),\":\",\"\"),\"\"\"\",\"\")))","v":null},{"$f":"IF(L82=\"\",\"\",LEN(SUBSTITUTE(SUBSTITUTE(SUBSTITUTE(SUBSTITUTE(SUBSTITUTE(SUBSTITUTE(L82,\"!\",\"\"),\",\",\"\"),\".\",\"\"),\";\",\"\"),\":\",\"\"),\"\"\"\",\"\")))","v":null},{"$f":"IF(M82=\"\",\"\",LEN(SUBSTITUTE(SUBSTITUTE(SUBSTITUTE(SUBSTITUTE(SUBSTITUTE(SUBSTITUTE(M82,\"!\",\"\"),\",\",\"\"),\".\",\"\"),\";\",\"\"),\":\",\"\"),\"\"\"\",\"\")))","v":null},"https://likebk.com/","регистрация-сейчас","","","Россия","2,3","","-","Остановлено","Работает везде","Регистрация прямо сейчас||Форум||Новости||Рейтинг персонажей||||||||","Зарегистрируйтесь и вступите в наш бойцовский клуб||Обсудите все ваши достежения и задания с реальными игроками||Узнайте все новости о мире боев||Посмотрите рейтинг реальных персонажей||||||||","https://likebk.com/register||https://forum.likebk.com/||https://likebk.com/news||https://top.likebk.com/exp_raiting.php/||||||||","","","","","https://direct.yandex.ru/images/direct/2799451/bHXmtVENGILep2M2rxPXnA","","","Отлична графика||MMORPG||Передача атмосферы||Увлекательная игра||Отличное качество","","","","","","","","","","",""]
["-","Текстово-графическое","-","4458363192","Группа 2","2","-","26433374989","браузерная онлайн mmorpg","10259215434","Компьютерная игра твоего детства.","Полное погружение в игру БК-2!","БК-2 компьютерная игра прямиком из 2000-х. Отличная графиа и полное погружение!",{"$f":"IF(K83=\"\",\"\",LEN(SUBSTITUTE(SUBSTITUTE(SUBSTITUTE(SUBSTITUTE(SUBSTITUTE(SUBSTITUTE(K83,\"!\",\"\"),\",\",\"\"),\".\",\"\"),\";\",\"\"),\":\",\"\"),\"\"\"\",\"\")))","v":null},{"$f":"IF(L83=\"\",\"\",LEN(SUBSTITUTE(SUBSTITUTE(SUBSTITUTE(SUBSTITUTE(SUBSTITUTE(SUBSTITUTE(L83,\"!\",\"\"),\",\",\"\"),\".\",\"\"),\";\",\"\"),\":\",\"\"),\"\"\"\",\"\")))","v":null},{"$f":"IF(M83=\"\",\"\",LEN(SUBSTITUTE(SUBSTITUTE(SUBSTITUTE(SUBSTITUTE(SUBSTITUTE(SUBSTITUTE(M83,\"!\",\"\"),\",\",\"\"),\".\",\"\"),\";\",\"\"),\":\",\"\"),\"\"\"\",\"\")))","v":null},"https://likebk.com/","регистрация-сейчас","","","Россия","2,3","","-","Остановлено","Работает везде","Регистрация прямо сейчас||Форум||Новости||Рейтинг персонажей||||||||","Зарегистрируйтесь и вступите в наш бойцовский клуб||Обсудите все ваши достежения и задания с реальными игроками||Узнайте все новости о мире боев||Посмотрите рейтинг реальных персонажей||||||||","https://likebk.com/register||https://forum.likebk.com/||https://likebk.com/news||https://top.likebk.com/exp_raiting.php/||||||||","","","","","https://direct.yandex.ru/images/direct/2799451/bHXmtVENGILep2M2rxPXnA","","","Отлична графика||MMORPG||Передача атмосферы||Увлекательная игра||Отличное качество","","","","","","","","","","",""]
["-","Текстово-графическое","-","4458363192","Группа 2","2","-","26433374990","игра mmorpg","10259215434","Компьютерная игра твоего детства.","Полное погружение в игру БК-2!","БК-2 компьютерная игра прямиком из 2000-х. Отличная графиа и полное погружение!",{"$f":"IF(K84=\"\",\"\",LEN(SUBSTITUTE(SUBSTITUTE(SUBSTITUTE(SUBSTITUTE(SUBSTITUTE(SUBSTITUTE(K84,\"!\",\"\"),\",\",\"\"),\".\",\"\"),\";\",\"\"),\":\",\"\"),\"\"\"\",\"\")))","v":null},{"$f":"IF(L84=\"\",\"\",LEN(SUBSTITUTE(SUBSTITUTE(SUBSTITUTE(SUBSTITUTE(SUBSTITUTE(SUBSTITUTE(L84,\"!\",\"\"),\",\",\"\"),\".\",\"\"),\";\",\"\"),\":\",\"\"),\"\"\"\",\"\")))","v":null},{"$f":"IF(M84=\"\",\"\",LEN(SUBSTITUTE(SUBSTITUTE(SUBSTITUTE(SUBSTITUTE(SUBSTITUTE(SUBSTITUTE(M84,\"!\",\"\"),\",\",\"\"),\".\",\"\"),\";\",\"\"),\":\",\"\"),\"\"\"\",\"\")))","v":null},"https://likebk.com/","регистрация-сейчас","","","Россия","2,3","","-","Остановлено","Работает везде","Регистрация прямо сейчас||Форум||Новости||Рейтинг персонажей||||||||","Зарегистрируйтесь и вступите в наш бойцовский клуб||Обсудите все ваши достежения и задания с реальными игроками||Узнайте все новости о мире боев||Посмотрите рейтинг реальных персонажей||||||||","https://likebk.com/register||https://forum.likebk.com/||https://likebk.com/news||https://top.likebk.com/exp_raiting.php/||||||||","","","","","https://direct.yandex.ru/images/direct/2799451/bHXmtVENGILep2M2rxPXnA","","","Отлична графика||MMORPG||Передача атмосферы||Увлекательная игра||Отличное качество","","","","","","","","","","",""]
["-","Текстово-графическое","-","4458363192","Группа 2","2","-","26433374991","играть онлайн mmorpg игры","10259215434","Компьютерная игра твоего детства.","Полное погружение в игру БК-2!","БК-2 компьютерная игра прямиком из 2000-х. Отличная графиа и полное погружение!",{"$f":"IF(K85=\"\",\"\",LEN(SUBSTITUTE(SUBSTITUTE(SUBSTITUTE(SUBSTITUTE(SUBSTITUTE(SUBSTITUTE(K85,\"!\",\"\"),\",\",\"\"),\".\",\"\"),\";\",\"\"),\":\",\"\"),\"\"\"\",\"\")))","v":null},{"$f":"IF(L85=\"\",\"\",LEN(SUBSTITUTE(SUBSTITUTE(SUBSTITUTE(SUBSTITUTE(SUBSTITUTE(SUBSTITUTE(L85,\"!\",\"\"),\",\",\"\"),\".\",\"\"),\";\",\"\"),\":\",\"\"),\"\"\"\",\"\")))","v":null},{"$f":"IF(M85=\"\",\"\",LEN(SUBSTITUTE(SUBSTITUTE(SUBSTITUTE(SUBSTITUTE(SUBSTITUTE(SUBSTITUTE(M85,\"!\",\"\"),\",\",\"\"),\".\",\"\"),\";\",\"\"),\":\",\"\"),\"\"\"\",\"\")))","v":null},"https://likebk.com/","регистрация-сейчас","","","Россия","2,3","","-","Остановлено","Работает везде","Регистрация прямо сейчас||Форум||Новости||Рейтинг персонажей||||||||","Зарегистрируйтесь и вступите в наш бойцовский клуб||Обсудите все ваши достежения и задания с реальными игроками||Узнайте все новости о мире боев||Посмотрите рейтинг реальных персонажей||||||||","https://likebk.com/register||https://forum.likebk.com/||https://likebk.com/news||https://top.likebk.com/exp_raiting.php/||||||||","","","","","https://direct.yandex.ru/images/direct/2799451/bHXmtVENGILep2M2rxPXnA","","","Отлична графика||MMORPG||Передача атмосферы||Увлекательная игра||Отличное качество","","","","","","","","","","",""]
["-","Текстово-графическое","-","4458363192","Группа 2","2","-","26433374992","игры онлайн mmorpg 2020","10259215434","Компьютерная игра твоего детства.","Полное погружение в игру БК-2!","БК-2 компьютерная игра прямиком из 2000-х. Отличная графиа и полное погружение!",{"$f":"IF(K86=\"\",\"\",LEN(SUBSTITUTE(SUBSTITUTE(SUBSTITUTE(SUBSTITUTE(SUBSTITUTE(SUBSTITUTE(K86,\"!\",\"\"),\",\",\"\"),\".\",\"\"),\";\",\"\"),\":\",\"\"),\"\"\"\",\"\")))","v":null},{"$f":"IF(L86=\"\",\"\",LEN(SUBSTITUTE(SUBSTITUTE(SUBSTITUTE(SUBSTITUTE(SUBSTITUTE(SUBSTITUTE(L86,\"!\",\"\"),\",\",\"\"),\".\",\"\"),\";\",\"\"),\":\",\"\"),\"\"\"\",\"\")))","v":null},{"$f":"IF(M86=\"\",\"\",LEN(SUBSTITUTE(SUBSTITUTE(SUBSTITUTE(SUBSTITUTE(SUBSTITUTE(SUBSTITUTE(M86,\"!\",\"\"),\",\",\"\"),\".\",\"\"),\";\",\"\"),\":\",\"\"),\"\"\"\",\"\")))","v":null},"https://likebk.com/","регистрация-сейчас","","","Россия","2,3","","-","Остановлено","Работает везде","Регистрация прямо сейчас||Форум||Новости||Рейтинг персонажей||||||||","Зарегистрируйтесь и вступите в наш бойцовский клуб||Обсудите все ваши достежения и задания с реальными игроками||Узнайте все новости о мире боев||Посмотрите рейтинг реальных персонажей||||||||","https://likebk.com/register||https://forum.likebk.com/||https://likebk.com/news||https://top.likebk.com/exp_raiting.php/||||||||","","","","","https://direct.yandex.ru/images/direct/2799451/bHXmtVENGILep2M2rxPXnA","","","Отлична графика||MMORPG||Передача атмосферы||Увлекательная игра||Отличное качество","","","","","","","","","","",""]
["-","Текстово-графическое","-","4458363192","Группа 2","2","-","26433374993","клиентская онлайн mmorpg","10259215434","Компьютерная игра твоего детства.","Полное погружение в игру БК-2!","БК-2 компьютерная игра прямиком из 2000-х. Отличная графиа и полное погружение!",{"$f":"IF(K87=\"\",\"\",LEN(SUBSTITUTE(SUBSTITUTE(SUBSTITUTE(SUBSTITUTE(SUBSTITUTE(SUBSTITUTE(K87,\"!\",\"\"),\",\",\"\"),\".\",\"\"),\";\",\"\"),\":\",\"\"),\"\"\"\",\"\")))","v":null},{"$f":"IF(L87=\"\",\"\",LEN(SUBSTITUTE(SUBSTITUTE(SUBSTITUTE(SUBSTITUTE(SUBSTITUTE(SUBSTITUTE(L87,\"!\",\"\"),\",\",\"\"),\".\",\"\"),\";\",\"\"),\":\",\"\"),\"\"\"\",\"\")))","v":null},{"$f":"IF(M87=\"\",\"\",LEN(SUBSTITUTE(SUBSTITUTE(SUBSTITUTE(SUBSTITUTE(SUBSTITUTE(SUBSTITUTE(M87,\"!\",\"\"),\",\",\"\"),\".\",\"\"),\";\",\"\"),\":\",\"\"),\"\"\"\",\"\")))","v":null},"https://likebk.com/","регистрация-сейчас","","","Россия","2,3","","-","Остановлено","Работает везде","Регистрация прямо сейчас||Форум||Новости||Рейтинг персонажей||||||||","Зарегистрируйтесь и вступите в наш бойцовский клуб||Обсудите все ваши достежения и задания с реальными игроками||Узнайте все новости о мире боев||Посмотрите рейтинг реальных персонажей||||||||","https://likebk.com/register||https://forum.likebk.com/||https://likebk.com/news||https://top.likebk.com/exp_raiting.php/||||||||","","","","","https://direct.yandex.ru/images/direct/2799451/bHXmtVENGILep2M2rxPXnA","","","Отлична графика||MMORPG||Передача атмосферы||Увлекательная игра||Отличное качество","","","","","","","","","","",""]
["-","Текстово-графическое","-","4458363192","Группа 2","2","-","26433374994","лучшие онлайн mmorpg","10259215434","Компьютерная игра твоего детства.","Полное погружение в игру БК-2!","БК-2 компьютерная игра прямиком из 2000-х. Отличная графиа и полное погружение!",{"$f":"IF(K88=\"\",\"\",LEN(SUBSTITUTE(SUBSTITUTE(SUBSTITUTE(SUBSTITUTE(SUBSTITUTE(SUBSTITUTE(K88,\"!\",\"\"),\",\",\"\"),\".\",\"\"),\";\",\"\"),\":\",\"\"),\"\"\"\",\"\")))","v":null},{"$f":"IF(L88=\"\",\"\",LEN(SUBSTITUTE(SUBSTITUTE(SUBSTITUTE(SUBSTITUTE(SUBSTITUTE(SUBSTITUTE(L88,\"!\",\"\"),\",\",\"\"),\".\",\"\"),\";\",\"\"),\":\",\"\"),\"\"\"\",\"\")))","v":null},{"$f":"IF(M88=\"\",\"\",LEN(SUBSTITUTE(SUBSTITUTE(SUBSTITUTE(SUBSTITUTE(SUBSTITUTE(SUBSTITUTE(M88,\"!\",\"\"),\",\",\"\"),\".\",\"\"),\";\",\"\"),\":\",\"\"),\"\"\"\",\"\")))","v":null},"https://likebk.com/","регистрация-сейчас","","","Россия","2,3","","-","Остановлено","Работает везде","Регистрация прямо сейчас||Форум||Новости||Рейтинг персонажей||||||||","Зарегистрируйтесь и вступите в наш бойцовский клуб||Обсудите все ваши достежения и задания с реальными игроками||Узнайте все новости о мире боев||Посмотрите рейтинг реальных персонажей||||||||","https://likebk.com/register||https://forum.likebk.com/||https://likebk.com/news||https://top.likebk.com/exp_raiting.php/||||||||","","","","","https://direct.yandex.ru/images/direct/2799451/bHXmtVENGILep2M2rxPXnA","","","Отлична графика||MMORPG||Передача атмосферы||Увлекательная игра||Отличное качество","","","","","","","","","","",""]
["-","Текстово-графическое","-","4458363192","Группа 2","2","-","26433374995","новые онлайн mmorpg","10259215434","Компьютерная игра твоего детства.","Полное погружение в игру БК-2!","БК-2 компьютерная игра прямиком из 2000-х. Отличная графиа и полное погружение!",{"$f":"IF(K89=\"\",\"\",LEN(SUBSTITUTE(SUBSTITUTE(SUBSTITUTE(SUBSTITUTE(SUBSTITUTE(SUBSTITUTE(K89,\"!\",\"\"),\",\",\"\"),\".\",\"\"),\";\",\"\"),\":\",\"\"),\"\"\"\",\"\")))","v":null},{"$f":"IF(L89=\"\",\"\",LEN(SUBSTITUTE(SUBSTITUTE(SUBSTITUTE(SUBSTITUTE(SUBSTITUTE(SUBSTITUTE(L89,\"!\",\"\"),\",\",\"\"),\".\",\"\"),\";\",\"\"),\":\",\"\"),\"\"\"\",\"\")))","v":null},{"$f":"IF(M89=\"\",\"\",LEN(SUBSTITUTE(SUBSTITUTE(SUBSTITUTE(SUBSTITUTE(SUBSTITUTE(SUBSTITUTE(M89,\"!\",\"\"),\",\",\"\"),\".\",\"\"),\";\",\"\"),\":\",\"\"),\"\"\"\",\"\")))","v":null},"https://likebk.com/","регистрация-сейчас","","","Россия","2,3","","-","Остановлено","Работает везде","Регистрация прямо сейчас||Форум||Новости||Рейтинг персонажей||||||||","Зарегистрируйтесь и вступите в наш бойцовский клуб||Обсудите все ваши достежения и задания с реальными игроками||Узнайте все новости о мире боев||Посмотрите рейтинг реальных персонажей||||||||","https://likebk.com/register||https://forum.likebk.com/||https://likebk.com/news||https://top.likebk.com/exp_raiting.php/||||||||","","","","","https://direct.yandex.ru/images/direct/2799451/bHXmtVENGILep2M2rxPXnA","","","Отлична графика||MMORPG||Передача атмосферы||Увлекательная игра||Отличное качество","","","","","","","","","","",""]
["-","Текстово-графическое","-","4458363192","Группа 2","2","-","26433374996","онлайн игры 2020 года mmorpg новинки","10259215434","Компьютерная игра твоего детства.","Полное погружение в игру БК-2!","БК-2 компьютерная игра прямиком из 2000-х. Отличная графиа и полное погружение!",{"$f":"IF(K90=\"\",\"\",LEN(SUBSTITUTE(SUBSTITUTE(SUBSTITUTE(SUBSTITUTE(SUBSTITUTE(SUBSTITUTE(K90,\"!\",\"\"),\",\",\"\"),\".\",\"\"),\";\",\"\"),\":\",\"\"),\"\"\"\",\"\")))","v":null},{"$f":"IF(L90=\"\",\"\",LEN(SUBSTITUTE(SUBSTITUTE(SUBSTITUTE(SUBSTITUTE(SUBSTITUTE(SUBSTITUTE(L90,\"!\",\"\"),\",\",\"\"),\".\",\"\"),\";\",\"\"),\":\",\"\"),\"\"\"\",\"\")))","v":null},{"$f":"IF(M90=\"\",\"\",LEN(SUBSTITUTE(SUBSTITUTE(SUBSTITUTE(SUBSTITUTE(SUBSTITUTE(SUBSTITUTE(M90,\"!\",\"\"),\",\",\"\"),\".\",\"\"),\";\",\"\"),\":\",\"\"),\"\"\"\",\"\")))","v":null},"https://likebk.com/","регистрация-сейчас","","","Россия","2,3","","-","Остановлено","Работает везде","Регистрация прямо сейчас||Форум||Новости||Рейтинг персонажей||||||||","Зарегистрируйтесь и вступите в наш бойцовский клуб||Обсудите все ваши достежения и задания с реальными игроками||Узнайте все новости о мире боев||Посмотрите рейтинг реальных персонажей||||||||","https://likebk.com/register||https://forum.likebk.com/||https://likebk.com/news||https://top.likebk.com/exp_raiting.php/||||||||","","","","","https://direct.yandex.ru/images/direct/2799451/bHXmtVENGILep2M2rxPXnA","","","Отлична графика||MMORPG||Передача атмосферы||Увлекательная игра||Отличное качество","","","","","","","","","","",""]
["-","Текстово-графическое","-","4458363192","Группа 2","2","-","26433374997","онлайн игры mmorpg","10259215434","Компьютерная игра твоего детства.","Полное погружение в игру БК-2!","БК-2 компьютерная игра прямиком из 2000-х. Отличная графиа и полное погружение!",{"$f":"IF(K91=\"\",\"\",LEN(SUBSTITUTE(SUBSTITUTE(SUBSTITUTE(SUBSTITUTE(SUBSTITUTE(SUBSTITUTE(K91,\"!\",\"\"),\",\",\"\"),\".\",\"\"),\";\",\"\"),\":\",\"\"),\"\"\"\",\"\")))","v":null},{"$f":"IF(L91=\"\",\"\",LEN(SUBSTITUTE(SUBSTITUTE(SUBSTITUTE(SUBSTITUTE(SUBSTITUTE(SUBSTITUTE(L91,\"!\",\"\"),\",\",\"\"),\".\",\"\"),\";\",\"\"),\":\",\"\"),\"\"\"\",\"\")))","v":null},{"$f":"IF(M91=\"\",\"\",LEN(SUBSTITUTE(SUBSTITUTE(SUBSTITUTE(SUBSTITUTE(SUBSTITUTE(SUBSTITUTE(M91,\"!\",\"\"),\",\",\"\"),\".\",\"\"),\";\",\"\"),\":\",\"\"),\"\"\"\",\"\")))","v":null},"https://likebk.com/","регистрация-сейчас","","","Россия","2,3","","-","Остановлено","Работает везде","Регистрация прямо сейчас||Форум||Новости||Рейтинг персонажей||||||||","Зарегистрируйтесь и вступите в наш бойцовский клуб||Обсудите все ваши достежения и задания с реальными игроками||Узнайте все новости о мире боев||Посмотрите рейтинг реальных персонажей||||||||","https://likebk.com/register||https://forum.likebk.com/||https://likebk.com/news||https://top.likebk.com/exp_raiting.php/||||||||","","","","","https://direct.yandex.ru/images/direct/2799451/bHXmtVENGILep2M2rxPXnA","","","Отлична графика||MMORPG||Передача атмосферы||Увлекательная игра||Отличное качество","","","","","","","","","","",""]
["-","Текстово-графическое","-","4458363192","Группа 2","2","-","26433374998","онлайн игры mmorpg клиентские","10259215434","Компьютерная игра твоего детства.","Полное погружение в игру БК-2!","БК-2 компьютерная игра прямиком из 2000-х. Отличная графиа и полное погружение!",{"$f":"IF(K92=\"\",\"\",LEN(SUBSTITUTE(SUBSTITUTE(SUBSTITUTE(SUBSTITUTE(SUBSTITUTE(SUBSTITUTE(K92,\"!\",\"\"),\",\",\"\"),\".\",\"\"),\";\",\"\"),\":\",\"\"),\"\"\"\",\"\")))","v":null},{"$f":"IF(L92=\"\",\"\",LEN(SUBSTITUTE(SUBSTITUTE(SUBSTITUTE(SUBSTITUTE(SUBSTITUTE(SUBSTITUTE(L92,\"!\",\"\"),\",\",\"\"),\".\",\"\"),\";\",\"\"),\":\",\"\"),\"\"\"\",\"\")))","v":null},{"$f":"IF(M92=\"\",\"\",LEN(SUBSTITUTE(SUBSTITUTE(SUBSTITUTE(SUBSTITUTE(SUBSTITUTE(SUBSTITUTE(M92,\"!\",\"\"),\",\",\"\"),\".\",\"\"),\";\",\"\"),\":\",\"\"),\"\"\"\",\"\")))","v":null},"https://likebk.com/","регистрация-сейчас","","","Россия","2,3","","-","Остановлено","Работает везде","Регистрация прямо сейчас||Форум||Новости||Рейтинг персонажей||||||||","Зарегистрируйтесь и вступите в наш бойцовский клуб||Обсудите все ваши достежения и задания с реальными игроками||Узнайте все новости о мире боев||Посмотрите рейтинг реальных персонажей||||||||","https://likebk.com/register||https://forum.likebk.com/||https://likebk.com/news||https://top.likebk.com/exp_raiting.php/||||||||","","","","","https://direct.yandex.ru/images/direct/2799451/bHXmtVENGILep2M2rxPXnA","","","Отлична графика||MMORPG||Передача атмосферы||Увлекательная игра||Отличное качество","","","","","","","","","","",""]
["-","Текстово-графическое","-","4458363192","Группа 2","2","-","26433374999","онлайн игры жанре mmorpg","10259215434","Компьютерная игра твоего детства.","Полное погружение в игру БК-2!","БК-2 компьютерная игра прямиком из 2000-х. Отличная графиа и полное погружение!",{"$f":"IF(K93=\"\",\"\",LEN(SUBSTITUTE(SUBSTITUTE(SUBSTITUTE(SUBSTITUTE(SUBSTITUTE(SUBSTITUTE(K93,\"!\",\"\"),\",\",\"\"),\".\",\"\"),\";\",\"\"),\":\",\"\"),\"\"\"\",\"\")))","v":null},{"$f":"IF(L93=\"\",\"\",LEN(SUBSTITUTE(SUBSTITUTE(SUBSTITUTE(SUBSTITUTE(SUBSTITUTE(SUBSTITUTE(L93,\"!\",\"\"),\",\",\"\"),\".\",\"\"),\";\",\"\"),\":\",\"\"),\"\"\"\",\"\")))","v":null},{"$f":"IF(M93=\"\",\"\",LEN(SUBSTITUTE(SUBSTITUTE(SUBSTITUTE(SUBSTITUTE(SUBSTITUTE(SUBSTITUTE(M93,\"!\",\"\"),\",\",\"\"),\".\",\"\"),\";\",\"\"),\":\",\"\"),\"\"\"\",\"\")))","v":null},"https://likebk.com/","регистрация-сейчас","","","Россия","2,3","","-","Остановлено","Работает везде","Регистрация прямо сейчас||Форум||Новости||Рейтинг персонажей||||||||","Зарегистрируйтесь и вступите в наш бойцовский клуб||Обсудите все ваши достежения и задания с реальными игроками||Узнайте все новости о мире боев||Посмотрите рейтинг реальных персонажей||||||||","https://likebk.com/register||https://forum.likebk.com/||https://likebk.com/news||https://top.likebk.com/exp_raiting.php/||||||||","","","","","https://direct.yandex.ru/images/direct/2799451/bHXmtVENGILep2M2rxPXnA","","","Отлична графика||MMORPG||Передача атмосферы||Увлекательная игра||Отличное качество","","","","","","","","","","",""]
["-","Текстово-графическое","-","4458363192","Группа 2","2","-","26433375000","русские онлайн mmorpg","10259215434","Компьютерная игра твоего детства.","Полное погружение в игру БК-2!","БК-2 компьютерная игра прямиком из 2000-х. Отличная графиа и полное погружение!",{"$f":"IF(K94=\"\",\"\",LEN(SUBSTITUTE(SUBSTITUTE(SUBSTITUTE(SUBSTITUTE(SUBSTITUTE(SUBSTITUTE(K94,\"!\",\"\"),\",\",\"\"),\".\",\"\"),\";\",\"\"),\":\",\"\"),\"\"\"\",\"\")))","v":null},{"$f":"IF(L94=\"\",\"\",LEN(SUBSTITUTE(SUBSTITUTE(SUBSTITUTE(SUBSTITUTE(SUBSTITUTE(SUBSTITUTE(L94,\"!\",\"\"),\",\",\"\"),\".\",\"\"),\";\",\"\"),\":\",\"\"),\"\"\"\",\"\")))","v":null},{"$f":"IF(M94=\"\",\"\",LEN(SUBSTITUTE(SUBSTITUTE(SUBSTITUTE(SUBSTITUTE(SUBSTITUTE(SUBSTITUTE(M94,\"!\",\"\"),\",\",\"\"),\".\",\"\"),\";\",\"\"),\":\",\"\"),\"\"\"\",\"\")))","v":null},"https://likebk.com/","регистрация-сейчас","","","Россия","2,3","","-","Остановлено","Работает везде","Регистрация прямо сейчас||Форум||Новости||Рейтинг персонажей||||||||","Зарегистрируйтесь и вступите в наш бойцовский клуб||Обсудите все ваши достежения и задания с реальными игроками||Узнайте все новости о мире боев||Посмотрите рейтинг реальных персонажей||||||||","https://likebk.com/register||https://forum.likebk.com/||https://likebk.com/news||https://top.likebk.com/exp_raiting.php/||||||||","","","","","https://direct.yandex.ru/images/direct/2799451/bHXmtVENGILep2M2rxPXnA","","","Отлична графика||MMORPG||Передача атмосферы||Увлекательная игра||Отличное качество","","","","","","","","","","",""]
["-","Текстово-графическое","-","4458363192","Группа 2","2","-","26433375001","список онлайн mmorpg","10259215434","Компьютерная игра твоего детства.","Полное погружение в игру БК-2!","БК-2 компьютерная игра прямиком из 2000-х. Отличная графиа и полное погружение!",{"$f":"IF(K95=\"\",\"\",LEN(SUBSTITUTE(SUBSTITUTE(SUBSTITUTE(SUBSTITUTE(SUBSTITUTE(SUBSTITUTE(K95,\"!\",\"\"),\",\",\"\"),\".\",\"\"),\";\",\"\"),\":\",\"\"),\"\"\"\",\"\")))","v":null},{"$f":"IF(L95=\"\",\"\",LEN(SUBSTITUTE(SUBSTITUTE(SUBSTITUTE(SUBSTITUTE(SUBSTITUTE(SUBSTITUTE(L95,\"!\",\"\"),\",\",\"\"),\".\",\"\"),\";\",\"\"),\":\",\"\"),\"\"\"\",\"\")))","v":null},{"$f":"IF(M95=\"\",\"\",LEN(SUBSTITUTE(SUBSTITUTE(SUBSTITUTE(SUBSTITUTE(SUBSTITUTE(SUBSTITUTE(M95,\"!\",\"\"),\",\",\"\"),\".\",\"\"),\";\",\"\"),\":\",\"\"),\"\"\"\",\"\")))","v":null},"https://likebk.com/","регистрация-сейчас","","","Россия","2,3","","-","Остановлено","Работает везде","Регистрация прямо сейчас||Форум||Новости||Рейтинг персонажей||||||||","Зарегистрируйтесь и вступите в наш бойцовский клуб||Обсудите все ваши достежения и задания с реальными игроками||Узнайте все новости о мире боев||Посмотрите рейтинг реальных персонажей||||||||","https://likebk.com/register||https://forum.likebk.com/||https://likebk.com/news||https://top.likebk.com/exp_raiting.php/||||||||","","","","","https://direct.yandex.ru/images/direct/2799451/bHXmtVENGILep2M2rxPXnA","","","Отлична графика||MMORPG||Передача атмосферы||Увлекательная игра||Отличное качество","","","","","","","","","","",""]
["+","Текстово-графическое","-","4458363192","Группа 2","2","-","","","10259215435","Компьютерная игра твоего детства.","Реалистическая графика!","БК-2 компьютерная игра прямиком из 2000-х. Отличная графиа и полное погружение!",{"$f":"IF(K96=\"\",\"\",LEN(SUBSTITUTE(SUBSTITUTE(SUBSTITUTE(SUBSTITUTE(SUBSTITUTE(SUBSTITUTE(K96,\"!\",\"\"),\",\",\"\"),\".\",\"\"),\";\",\"\"),\":\",\"\"),\"\"\"\",\"\")))","v":null},{"$f":"IF(L96=\"\",\"\",LEN(SUBSTITUTE(SUBSTITUTE(SUBSTITUTE(SUBSTITUTE(SUBSTITUTE(SUBSTITUTE(L96,\"!\",\"\"),\",\",\"\"),\".\",\"\"),\";\",\"\"),\":\",\"\"),\"\"\"\",\"\")))","v":null},{"$f":"IF(M96=\"\",\"\",LEN(SUBSTITUTE(SUBSTITUTE(SUBSTITUTE(SUBSTITUTE(SUBSTITUTE(SUBSTITUTE(M96,\"!\",\"\"),\",\",\"\"),\".\",\"\"),\";\",\"\"),\":\",\"\"),\"\"\"\",\"\")))","v":null},"https://likebk.com/","регистрация-сейчас","","","","","","-","Остановлено","","Регистрация прямо сейчас||Форум||Новости||Рейтинг персонажей||||||||","Зарегистрируйтесь и вступите в наш бойцовский клуб||Обсудите все ваши достежения и задания с реальными игроками||Узнайте все новости о мире боев||Посмотрите рейтинг реальных персонажей||||||||","https://likebk.com/register||https://forum.likebk.com/||https://likebk.com/news||https://top.likebk.com/exp_raiting.php/||||||||","","","","","https://direct.yandex.ru/images/direct/2799451/bHXmtVENGILep2M2rxPXnA","","","Отлична графика||MMORPG||Передача атмосферы||Увлекательная игра||Отличное качество","","","","","","","","","","",""]
["+","Текстово-графическое","-","4458363192","Группа 2","2","-","","","10259215437","Компьютерная игра твоего детства.","Уникальный мир с населением!","БК-2 компьютерная игра прямиком из 2000-х. Отличная графиа и полное погружение!",{"$f":"IF(K97=\"\",\"\",LEN(SUBSTITUTE(SUBSTITUTE(SUBSTITUTE(SUBSTITUTE(SUBSTITUTE(SUBSTITUTE(K97,\"!\",\"\"),\",\",\"\"),\".\",\"\"),\";\",\"\"),\":\",\"\"),\"\"\"\",\"\")))","v":null},{"$f":"IF(L97=\"\",\"\",LEN(SUBSTITUTE(SUBSTITUTE(SUBSTITUTE(SUBSTITUTE(SUBSTITUTE(SUBSTITUTE(L97,\"!\",\"\"),\",\",\"\"),\".\",\"\"),\";\",\"\"),\":\",\"\"),\"\"\"\",\"\")))","v":null},{"$f":"IF(M97=\"\",\"\",LEN(SUBSTITUTE(SUBSTITUTE(SUBSTITUTE(SUBSTITUTE(SUBSTITUTE(SUBSTITUTE(M97,\"!\",\"\"),\",\",\"\"),\".\",\"\"),\";\",\"\"),\":\",\"\"),\"\"\"\",\"\")))","v":null},"https://likebk.com/","регистрация-сейчас","","","","","","-","Остановлено","","Регистрация прямо сейчас||Форум||Новости||Рейтинг персонажей||||||||","Зарегистрируйтесь и вступите в наш бойцовский клуб||Обсудите все ваши достежения и задания с реальными игроками||Узнайте все новости о мире боев||Посмотрите рейтинг реальных персонажей||||||||","https://likebk.com/register||https://forum.likebk.com/||https://likebk.com/news||https://top.likebk.com/exp_raiting.php/||||||||","","","","","https://direct.yandex.ru/images/direct/2799451/bHXmtVENGILep2M2rxPXnA","","","Отлична графика||MMORPG||Передача атмосферы||Увлекательная игра||Отличное качество","","","","","","","","","","",""]
["-","Текстово-графическое","-","4458363193","Группа 3","3","-","26433375002","бойцовский клуб игра онлайн","10259215438","Компьютерная игра твоего детства.","Полное погружение в игру БК-2!","БК-2 компьютерная игра прямиком из 2000-х. Отличная графиа и полное погружение!",{"$f":"IF(K98=\"\",\"\",LEN(SUBSTITUTE(SUBSTITUTE(SUBSTITUTE(SUBSTITUTE(SUBSTITUTE(SUBSTITUTE(K98,\"!\",\"\"),\",\",\"\"),\".\",\"\"),\";\",\"\"),\":\",\"\"),\"\"\"\",\"\")))","v":null},{"$f":"IF(L98=\"\",\"\",LEN(SUBSTITUTE(SUBSTITUTE(SUBSTITUTE(SUBSTITUTE(SUBSTITUTE(SUBSTITUTE(L98,\"!\",\"\"),\",\",\"\"),\".\",\"\"),\";\",\"\"),\":\",\"\"),\"\"\"\",\"\")))","v":null},{"$f":"IF(M98=\"\",\"\",LEN(SUBSTITUTE(SUBSTITUTE(SUBSTITUTE(SUBSTITUTE(SUBSTITUTE(SUBSTITUTE(M98,\"!\",\"\"),\",\",\"\"),\".\",\"\"),\";\",\"\"),\":\",\"\"),\"\"\"\",\"\")))","v":null},"https://likebk.com/","регистрация-сейчас","","","Россия","2,3","","-","Остановлено","Работает везде","Регистрация прямо сейчас||Форум||Новости||Рейтинг персонажей||||||||","Зарегистрируйтесь и вступите в наш бойцовский клуб||Обсудите все ваши достежения и задания с реальными игроками||Узнайте все новости о мире боев||Посмотрите рейтинг реальных персонажей||||||||","https://likebk.com/register||https://forum.likebk.com/||https://likebk.com/news||https://top.likebk.com/exp_raiting.php/||||||||","","","","","https://direct.yandex.ru/images/direct/2755869/3IBMyJLgOtEFlufmSO2mXQ","","","Отлична графика||MMORPG||Передача атмосферы||Увлекательная игра||Отличное качество","","","","","","","","","","",""]
["-","Текстово-графическое","-","4458363193","Группа 3","3","-","26433375003","бойцовский клуб играть","10259215438","Компьютерная игра твоего детства.","Полное погружение в игру БК-2!","БК-2 компьютерная игра прямиком из 2000-х. Отличная графиа и полное погружение!",{"$f":"IF(K99=\"\",\"\",LEN(SUBSTITUTE(SUBSTITUTE(SUBSTITUTE(SUBSTITUTE(SUBSTITUTE(SUBSTITUTE(K99,\"!\",\"\"),\",\",\"\"),\".\",\"\"),\";\",\"\"),\":\",\"\"),\"\"\"\",\"\")))","v":null},{"$f":"IF(L99=\"\",\"\",LEN(SUBSTITUTE(SUBSTITUTE(SUBSTITUTE(SUBSTITUTE(SUBSTITUTE(SUBSTITUTE(L99,\"!\",\"\"),\",\",\"\"),\".\",\"\"),\";\",\"\"),\":\",\"\"),\"\"\"\",\"\")))","v":null},{"$f":"IF(M99=\"\",\"\",LEN(SUBSTITUTE(SUBSTITUTE(SUBSTITUTE(SUBSTITUTE(SUBSTITUTE(SUBSTITUTE(M99,\"!\",\"\"),\",\",\"\"),\".\",\"\"),\";\",\"\"),\":\",\"\"),\"\"\"\",\"\")))","v":null},"https://likebk.com/","регистрация-сейчас","","","Россия","2,3","","-","Остановлено","Работает везде","Регистрация прямо сейчас||Форум||Новости||Рейтинг персонажей||||||||","Зарегистрируйтесь и вступите в наш бойцовский клуб||Обсудите все ваши достежения и задания с реальными игроками||Узнайте все новости о мире боев||Посмотрите рейтинг реальных персонажей||||||||","https://likebk.com/register||https://forum.likebk.com/||https://likebk.com/news||https://top.likebk.com/exp_raiting.php/||||||||","","","","","https://direct.yandex.ru/images/direct/2755869/3IBMyJLgOtEFlufmSO2mXQ","","","Отлична графика||MMORPG||Передача атмосферы||Увлекательная игра||Отличное качество","","","","","","","","","","",""]
["-","Текстово-графическое","-","4458363193","Группа 3","3","-","26433375004","онлайн игра детства","10259215438","Компьютерная игра твоего детства.","Полное погружение в игру БК-2!","БК-2 компьютерная игра прямиком из 2000-х. Отличная графиа и полное погружение!",{"$f":"IF(K100=\"\",\"\",LEN(SUBSTITUTE(SUBSTITUTE(SUBSTITUTE(SUBSTITUTE(SUBSTITUTE(SUBSTITUTE(K100,\"!\",\"\"),\",\",\"\"),\".\",\"\"),\";\",\"\"),\":\",\"\"),\"\"\"\",\"\")))","v":null},{"$f":"IF(L100=\"\",\"\",LEN(SUBSTITUTE(SUBSTITUTE(SUBSTITUTE(SUBSTITUTE(SUBSTITUTE(SUBSTITUTE(L100,\"!\",\"\"),\",\",\"\"),\".\",\"\"),\";\",\"\"),\":\",\"\"),\"\"\"\",\"\")))","v":null},{"$f":"IF(M100=\"\",\"\",LEN(SUBSTITUTE(SUBSTITUTE(SUBSTITUTE(SUBSTITUTE(SUBSTITUTE(SUBSTITUTE(M100,\"!\",\"\"),\",\",\"\"),\".\",\"\"),\";\",\"\"),\":\",\"\"),\"\"\"\",\"\")))","v":null},"https://likebk.com/","регистрация-сейчас","","","Россия","2,3","","-","Остановлено","Работает везде","Регистрация прямо сейчас||Форум||Новости||Рейтинг персонажей||||||||","Зарегистрируйтесь и вступите в наш бойцовский клуб||Обсудите все ваши достежения и задания с реальными игроками||Узнайте все новости о мире боев||Посмотрите рейтинг реальных персонажей||||||||","https://likebk.com/register||https://forum.likebk.com/||https://likebk.com/news||https://top.likebk.com/exp_raiting.php/||||||||","","","","","https://direct.yandex.ru/images/direct/2755869/3IBMyJLgOtEFlufmSO2mXQ","","","Отлична графика||MMORPG||Передача атмосферы||Увлекательная игра||Отличное качество","","","","","","","","","","",""]
["-","Текстово-графическое","-","4458363193","Группа 3","3","-","26433375005","игра бойцовский клуб","10259215438","Компьютерная игра твоего детства.","Полное погружение в игру БК-2!","БК-2 компьютерная игра прямиком из 2000-х. Отличная графиа и полное погружение!",{"$f":"IF(K101=\"\",\"\",LEN(SUBSTITUTE(SUBSTITUTE(SUBSTITUTE(SUBSTITUTE(SUBSTITUTE(SUBSTITUTE(K101,\"!\",\"\"),\",\",\"\"),\".\",\"\"),\";\",\"\"),\":\",\"\"),\"\"\"\",\"\")))","v":null},{"$f":"IF(L101=\"\",\"\",LEN(SUBSTITUTE(SUBSTITUTE(SUBSTITUTE(SUBSTITUTE(SUBSTITUTE(SUBSTITUTE(L101,\"!\",\"\"),\",\",\"\"),\".\",\"\"),\";\",\"\"),\":\",\"\"),\"\"\"\",\"\")))","v":null},{"$f":"IF(M101=\"\",\"\",LEN(SUBSTITUTE(SUBSTITUTE(SUBSTITUTE(SUBSTITUTE(SUBSTITUTE(SUBSTITUTE(M101,\"!\",\"\"),\",\",\"\"),\".\",\"\"),\";\",\"\"),\":\",\"\"),\"\"\"\",\"\")))","v":null},"https://likebk.com/","регистрация-сейчас","","","Россия","2,3","","-","Остановлено","Работает везде","Регистрация прямо сейчас||Форум||Новости||Рейтинг персонажей||||||||","Зарегистрируйтесь и вступите в наш бойцовский клуб||Обсудите все ваши достежения и задания с реальными игроками||Узнайте все новости о мире боев||Посмотрите рейтинг реальных персонажей||||||||","https://likebk.com/register||https://forum.likebk.com/||https://likebk.com/news||https://top.likebk.com/exp_raiting.php/||||||||","","","","","https://direct.yandex.ru/images/direct/2755869/3IBMyJLgOtEFlufmSO2mXQ","","","Отлична графика||MMORPG||Передача атмосферы||Увлекательная игра||Отличное качество","","","","","","","","","","",""]
["-","Текстово-графическое","-","4458363193","Группа 3","3","-","26433375006","новый бойцовский клуб онлайн игра","10259215438","Компьютерная игра твоего детства.","Полное погружение в игру БК-2!","БК-2 компьютерная игра прямиком из 2000-х. Отличная графиа и полное погружение!",{"$f":"IF(K102=\"\",\"\",LEN(SUBSTITUTE(SUBSTITUTE(SUBSTITUTE(SUBSTITUTE(SUBSTITUTE(SUBSTITUTE(K102,\"!\",\"\"),\",\",\"\"),\".\",\"\"),\";\",\"\"),\":\",\"\"),\"\"\"\",\"\")))","v":null},{"$f":"IF(L102=\"\",\"\",LEN(SUBSTITUTE(SUBSTITUTE(SUBSTITUTE(SUBSTITUTE(SUBSTITUTE(SUBSTITUTE(L102,\"!\",\"\"),\",\",\"\"),\".\",\"\"),\";\",\"\"),\":\",\"\"),\"\"\"\",\"\")))","v":null},{"$f":"IF(M102=\"\",\"\",LEN(SUBSTITUTE(SUBSTITUTE(SUBSTITUTE(SUBSTITUTE(SUBSTITUTE(SUBSTITUTE(M102,\"!\",\"\"),\",\",\"\"),\".\",\"\"),\";\",\"\"),\":\",\"\"),\"\"\"\",\"\")))","v":null},"https://likebk.com/","регистрация-сейчас","","","Россия","2,3","","-","Остановлено","Работает везде","Регистрация прямо сейчас||Форум||Новости||Рейтинг персонажей||||||||","Зарегистрируйтесь и вступите в наш бойцовский клуб||Обсудите все ваши достежения и задания с реальными игроками||Узнайте все новости о мире боев||Посмотрите рейтинг реальных персонажей||||||||","https://likebk.com/register||https://forum.likebk.com/||https://likebk.com/news||https://top.likebk.com/exp_raiting.php/||||||||","","","","","https://direct.yandex.ru/images/direct/2755869/3IBMyJLgOtEFlufmSO2mXQ","","","Отлична графика||MMORPG||Передача атмосферы||Увлекательная игра||Отличное качество","","","","","","","","","","",""]
["-","Текстово-графическое","-","4458363193","Группа 3","3","-","26433375007","старый бойцовский клуб игра","10259215438","Компьютерная игра твоего детства.","Полное погружение в игру БК-2!","БК-2 компьютерная игра прямиком из 2000-х. Отличная графиа и полное погружение!",{"$f":"IF(K103=\"\",\"\",LEN(SUBSTITUTE(SUBSTITUTE(SUBSTITUTE(SUBSTITUTE(SUBSTITUTE(SUBSTITUTE(K103,\"!\",\"\"),\",\",\"\"),\".\",\"\"),\";\",\"\"),\":\",\"\"),\"\"\"\",\"\")))","v":null},{"$f":"IF(L103=\"\",\"\",LEN(SUBSTITUTE(SUBSTITUTE(SUBSTITUTE(SUBSTITUTE(SUBSTITUTE(SUBSTITUTE(L103,\"!\",\"\"),\",\",\"\"),\".\",\"\"),\";\",\"\"),\":\",\"\"),\"\"\"\",\"\")))","v":null},{"$f":"IF(M103=\"\",\"\",LEN(SUBSTITUTE(SUBSTITUTE(SUBSTITUTE(SUBSTITUTE(SUBSTITUTE(SUBSTITUTE(M103,\"!\",\"\"),\",\",\"\"),\".\",\"\"),\";\",\"\"),\":\",\"\"),\"\"\"\",\"\")))","v":null},"https://likebk.com/","регистрация-сейчас","","","Россия","2,3","","-","Остановлено","Работает везде","Регистрация прямо сейчас||Форум||Новости||Рейтинг персонажей||||||||","Зарегистрируйтесь и вступите в наш бойцовский клуб||Обсудите все ваши достежения и задания с реальными игроками||Узнайте все новости о мире боев||Посмотрите рейтинг реальных персонажей||||||||","https://likebk.com/register||https://forum.likebk.com/||https://likebk.com/news||https://top.likebk.com/exp_raiting.php/||||||||","","","","","https://direct.yandex.ru/images/direct/2755869/3IBMyJLgOtEFlufmSO2mXQ","","","Отлична графика||MMORPG||Передача атмосферы||Увлекательная игра||Отличное качество","","","","","","","","","","",""]
["-","Текстово-графическое","-","4458363193","Группа 3","3","-","26433375008","бойцовский клуб браузерная игра","10259215438","Компьютерная игра твоего детства.","Полное погружение в игру БК-2!","БК-2 компьютерная игра прямиком из 2000-х. Отличная графиа и полное погружение!",{"$f":"IF(K104=\"\",\"\",LEN(SUBSTITUTE(SUBSTITUTE(SUBSTITUTE(SUBSTITUTE(SUBSTITUTE(SUBSTITUTE(K104,\"!\",\"\"),\",\",\"\"),\".\",\"\"),\";\",\"\"),\":\",\"\"),\"\"\"\",\"\")))","v":null},{"$f":"IF(L104=\"\",\"\",LEN(SUBSTITUTE(SUBSTITUTE(SUBSTITUTE(SUBSTITUTE(SUBSTITUTE(SUBSTITUTE(L104,\"!\",\"\"),\",\",\"\"),\".\",\"\"),\";\",\"\"),\":\",\"\"),\"\"\"\",\"\")))","v":null},{"$f":"IF(M104=\"\",\"\",LEN(SUBSTITUTE(SUBSTITUTE(SUBSTITUTE(SUBSTITUTE(SUBSTITUTE(SUBSTITUTE(M104,\"!\",\"\"),\",\",\"\"),\".\",\"\"),\";\",\"\"),\":\",\"\"),\"\"\"\",\"\")))","v":null},"https://likebk.com/","регистрация-сейчас","","","Россия","2,3","","-","Остановлено","Работает везде","Регистрация прямо сейчас||Форум||Новости||Рейтинг персонажей||||||||","Зарегистрируйтесь и вступите в наш бойцовский клуб||Обсудите все ваши достежения и задания с реальными игроками||Узнайте все новости о мире боев||Посмотрите рейтинг реальных персонажей||||||||","https://likebk.com/register||https://forum.likebk.com/||https://likebk.com/news||https://top.likebk.com/exp_raiting.php/||||||||","","","","","https://direct.yandex.ru/images/direct/2755869/3IBMyJLgOtEFlufmSO2mXQ","","","Отлична графика||MMORPG||Передача атмосферы||Увлекательная игра||Отличное качество","","","","","","","","","","",""]
["-","Текстово-графическое","-","4458363193","Группа 3","3","-","26433375009","старый бойцовский клуб онлайн игра","10259215438","Компьютерная игра твоего детства.","Полное погружение в игру БК-2!","БК-2 компьютерная игра прямиком из 2000-х. Отличная графиа и полное погружение!",{"$f":"IF(K105=\"\",\"\",LEN(SUBSTITUTE(SUBSTITUTE(SUBSTITUTE(SUBSTITUTE(SUBSTITUTE(SUBSTITUTE(K105,\"!\",\"\"),\",\",\"\"),\".\",\"\"),\";\",\"\"),\":\",\"\"),\"\"\"\",\"\")))","v":null},{"$f":"IF(L105=\"\",\"\",LEN(SUBSTITUTE(SUBSTITUTE(SUBSTITUTE(SUBSTITUTE(SUBSTITUTE(SUBSTITUTE(L105,\"!\",\"\"),\",\",\"\"),\".\",\"\"),\";\",\"\"),\":\",\"\"),\"\"\"\",\"\")))","v":null},{"$f":"IF(M105=\"\",\"\",LEN(SUBSTITUTE(SUBSTITUTE(SUBSTITUTE(SUBSTITUTE(SUBSTITUTE(SUBSTITUTE(M105,\"!\",\"\"),\",\",\"\"),\".\",\"\"),\";\",\"\"),\":\",\"\"),\"\"\"\",\"\")))","v":null},"https://likebk.com/","регистрация-сейчас","","","Россия","2,3","","-","Остановлено","Работает везде","Регистрация прямо сейчас||Форум||Новости||Рейтинг персонажей||||||||","Зарегистрируйтесь и вступите в наш бойцовский клуб||Обсудите все ваши достежения и задания с реальными игроками||Узнайте все новости о мире боев||Посмотрите рейтинг реальных персонажей||||||||","https://likebk.com/register||https://forum.likebk.com/||https://likebk.com/news||https://top.likebk.com/exp_raiting.php/||||||||","","","","","https://direct.yandex.ru/images/direct/2755869/3IBMyJLgOtEFlufmSO2mXQ","","","Отлична графика||MMORPG||Передача атмосферы||Увлекательная игра||Отличное качество","","","","","","","","","","",""]
["-","Текстово-графическое","-","4458363193","Группа 3","3","-","26433375010","likebk бойцовский клуб","10259215438","Компьютерная игра твоего детства.","Полное погружение в игру БК-2!","БК-2 компьютерная игра прямиком из 2000-х. Отличная графиа и полное погружение!",{"$f":"IF(K106=\"\",\"\",LEN(SUBSTITUTE(SUBSTITUTE(SUBSTITUTE(SUBSTITUTE(SUBSTITUTE(SUBSTITUTE(K106,\"!\",\"\"),\",\",\"\"),\".\",\"\"),\";\",\"\"),\":\",\"\"),\"\"\"\",\"\")))","v":null},{"$f":"IF(L106=\"\",\"\",LEN(SUBSTITUTE(SUBSTITUTE(SUBSTITUTE(SUBSTITUTE(SUBSTITUTE(SUBSTITUTE(L106,\"!\",\"\"),\",\",\"\"),\".\",\"\"),\";\",\"\"),\":\",\"\"),\"\"\"\",\"\")))","v":null},{"$f":"IF(M106=\"\",\"\",LEN(SUBSTITUTE(SUBSTITUTE(SUBSTITUTE(SUBSTITUTE(SUBSTITUTE(SUBSTITUTE(M106,\"!\",\"\"),\",\",\"\"),\".\",\"\"),\";\",\"\"),\":\",\"\"),\"\"\"\",\"\")))","v":null},"https://likebk.com/","регистрация-сейчас","","","Россия","2,3","","-","Остановлено","Работает везде","Регистрация прямо сейчас||Форум||Новости||Рейтинг персонажей||||||||","Зарегистрируйтесь и вступите в наш бойцовский клуб||Обсудите все ваши достежения и задания с реальными игроками||Узнайте все новости о мире боев||Посмотрите рейтинг реальных персонажей||||||||","https://likebk.com/register||https://forum.likebk.com/||https://likebk.com/news||https://top.likebk.com/exp_raiting.php/||||||||","","","","","https://direct.yandex.ru/images/direct/2755869/3IBMyJLgOtEFlufmSO2mXQ","","","Отлична графика||MMORPG||Передача атмосферы||Увлекательная игра||Отличное качество","","","","","","","","","","",""]
["-","Текстово-графическое","-","4458363193","Группа 3","3","-","26433375011","браузерные игры типа бк","10259215438","Компьютерная игра твоего детства.","Полное погружение в игру БК-2!","БК-2 компьютерная игра прямиком из 2000-х. Отличная графиа и полное погружение!",{"$f":"IF(K107=\"\",\"\",LEN(SUBSTITUTE(SUBSTITUTE(SUBSTITUTE(SUBSTITUTE(SUBSTITUTE(SUBSTITUTE(K107,\"!\",\"\"),\",\",\"\"),\".\",\"\"),\";\",\"\"),\":\",\"\"),\"\"\"\",\"\")))","v":null},{"$f":"IF(L107=\"\",\"\",LEN(SUBSTITUTE(SUBSTITUTE(SUBSTITUTE(SUBSTITUTE(SUBSTITUTE(SUBSTITUTE(L107,\"!\",\"\"),\",\",\"\"),\".\",\"\"),\";\",\"\"),\":\",\"\"),\"\"\"\",\"\")))","v":null},{"$f":"IF(M107=\"\",\"\",LEN(SUBSTITUTE(SUBSTITUTE(SUBSTITUTE(SUBSTITUTE(SUBSTITUTE(SUBSTITUTE(M107,\"!\",\"\"),\",\",\"\"),\".\",\"\"),\";\",\"\"),\":\",\"\"),\"\"\"\",\"\")))","v":null},"https://likebk.com/","регистрация-сейчас","","","Россия","2,3","","-","Остановлено","Работает везде","Регистрация прямо сейчас||Форум||Новости||Рейтинг персонажей||||||||","Зарегистрируйтесь и вступите в наш бойцовский клуб||Обсудите все ваши достежения и задания с реальными игроками||Узнайте все новости о мире боев||Посмотрите рейтинг реальных персонажей||||||||","https://likebk.com/register||https://forum.likebk.com/||https://likebk.com/news||https://top.likebk.com/exp_raiting.php/||||||||","","","","","https://direct.yandex.ru/images/direct/2755869/3IBMyJLgOtEFlufmSO2mXQ","","","Отлична графика||MMORPG||Передача атмосферы||Увлекательная игра||Отличное качество","","","","","","","","","","",""]
["-","Текстово-графическое","-","4458363193","Группа 3","3","-","26433375012","бойцовский клуб игра 2018","10259215438","Компьютерная игра твоего детства.","Полное погружение в игру БК-2!","БК-2 компьютерная игра прямиком из 2000-х. Отличная графиа и полное погружение!",{"$f":"IF(K108=\"\",\"\",LEN(SUBSTITUTE(SUBSTITUTE(SUBSTITUTE(SUBSTITUTE(SUBSTITUTE(SUBSTITUTE(K108,\"!\",\"\"),\",\",\"\"),\".\",\"\"),\";\",\"\"),\":\",\"\"),\"\"\"\",\"\")))","v":null},{"$f":"IF(L108=\"\",\"\",LEN(SUBSTITUTE(SUBSTITUTE(SUBSTITUTE(SUBSTITUTE(SUBSTITUTE(SUBSTITUTE(L108,\"!\",\"\"),\",\",\"\"),\".\",\"\"),\";\",\"\"),\":\",\"\"),\"\"\"\",\"\")))","v":null},{"$f":"IF(M108=\"\",\"\",LEN(SUBSTITUTE(SUBSTITUTE(SUBSTITUTE(SUBSTITUTE(SUBSTITUTE(SUBSTITUTE(M108,\"!\",\"\"),\",\",\"\"),\".\",\"\"),\";\",\"\"),\":\",\"\"),\"\"\"\",\"\")))","v":null},"https://likebk.com/","регистрация-сейчас","","","Россия","2,3","","-","Остановлено","Работает везде","Регистрация прямо сейчас||Форум||Новости||Рейтинг персонажей||||||||","Зарегистрируйтесь и вступите в наш бойцовский клуб||Обсудите все ваши достежения и задания с реальными игроками||Узнайте все новости о мире боев||Посмотрите рейтинг реальных персонажей||||||||","https://likebk.com/register||https://forum.likebk.com/||https://likebk.com/news||https://top.likebk.com/exp_raiting.php/||||||||","","","","","https://direct.yandex.ru/images/direct/2755869/3IBMyJLgOtEFlufmSO2mXQ","","","Отлична графика||MMORPG||Передача атмосферы||Увлекательная игра||Отличное качество","","","","","","","","","","",""]
["-","Текстово-графическое","-","4458363193","Группа 3","3","-","26433375013","игра детства из 2000-х","10259215438","Компьютерная игра твоего детства.","Полное погружение в игру БК-2!","БК-2 компьютерная игра прямиком из 2000-х. Отличная графиа и полное погружение!",{"$f":"IF(K109=\"\",\"\",LEN(SUBSTITUTE(SUBSTITUTE(SUBSTITUTE(SUBSTITUTE(SUBSTITUTE(SUBSTITUTE(K109,\"!\",\"\"),\",\",\"\"),\".\",\"\"),\";\",\"\"),\":\",\"\"),\"\"\"\",\"\")))","v":null},{"$f":"IF(L109=\"\",\"\",LEN(SUBSTITUTE(SUBSTITUTE(SUBSTITUTE(SUBSTITUTE(SUBSTITUTE(SUBSTITUTE(L109,\"!\",\"\"),\",\",\"\"),\".\",\"\"),\";\",\"\"),\":\",\"\"),\"\"\"\",\"\")))","v":null},{"$f":"IF(M109=\"\",\"\",LEN(SUBSTITUTE(SUBSTITUTE(SUBSTITUTE(SUBSTITUTE(SUBSTITUTE(SUBSTITUTE(M109,\"!\",\"\"),\",\",\"\"),\".\",\"\"),\";\",\"\"),\":\",\"\"),\"\"\"\",\"\")))","v":null},"https://likebk.com/","регистрация-сейчас","","","Россия","2,3","","-","Остановлено","Работает везде","Регистрация прямо сейчас||Форум||Новости||Рейтинг персонажей||||||||","Зарегистрируйтесь и вступите в наш бойцовский клуб||Обсудите все ваши достежения и задания с реальными игроками||Узнайте все новости о мире боев||Посмотрите рейтинг реальных персонажей||||||||","https://likebk.com/register||https://forum.likebk.com/||https://likebk.com/news||https://top.likebk.com/exp_raiting.php/||||||||","","","","","https://direct.yandex.ru/images/direct/2755869/3IBMyJLgOtEFlufmSO2mXQ","","","Отлична графика||MMORPG||Передача атмосферы||Увлекательная игра||Отличное качество","","","","","","","","","","",""]
["-","Текстово-графическое","-","4458363193","Группа 3","3","-","26433375014","игра бк-2","10259215438","Компьютерная игра твоего детства.","Полное погружение в игру БК-2!","БК-2 компьютерная игра прямиком из 2000-х. Отличная графиа и полное погружение!",{"$f":"IF(K110=\"\",\"\",LEN(SUBSTITUTE(SUBSTITUTE(SUBSTITUTE(SUBSTITUTE(SUBSTITUTE(SUBSTITUTE(K110,\"!\",\"\"),\",\",\"\"),\".\",\"\"),\";\",\"\"),\":\",\"\"),\"\"\"\",\"\")))","v":null},{"$f":"IF(L110=\"\",\"\",LEN(SUBSTITUTE(SUBSTITUTE(SUBSTITUTE(SUBSTITUTE(SUBSTITUTE(SUBSTITUTE(L110,\"!\",\"\"),\",\",\"\"),\".\",\"\"),\";\",\"\"),\":\",\"\"),\"\"\"\",\"\")))","v":null},{"$f":"IF(M110=\"\",\"\",LEN(SUBSTITUTE(SUBSTITUTE(SUBSTITUTE(SUBSTITUTE(SUBSTITUTE(SUBSTITUTE(M110,\"!\",\"\"),\",\",\"\"),\".\",\"\"),\";\",\"\"),\":\",\"\"),\"\"\"\",\"\")))","v":null},"https://likebk.com/","регистрация-сейчас","","","Россия","2,3","","-","Остановлено","Работает везде","Регистрация прямо сейчас||Форум||Новости||Рейтинг персонажей||||||||","Зарегистрируйтесь и вступите в наш бойцовский клуб||Обсудите все ваши достежения и задания с реальными игроками||Узнайте все новости о мире боев||Посмотрите рейтинг реальных персонажей||||||||","https://likebk.com/register||https://forum.likebk.com/||https://likebk.com/news||https://top.likebk.com/exp_raiting.php/||||||||","","","","","https://direct.yandex.ru/images/direct/2755869/3IBMyJLgOtEFlufmSO2mXQ","","","Отлична графика||MMORPG||Передача атмосферы||Увлекательная игра||Отличное качество","","","","","","","","","","",""]
["-","Текстово-графическое","-","4458363193","Группа 3","3","-","26433375015","бк-2 играть онлайн","10259215438","Компьютерная игра твоего детства.","Полное погружение в игру БК-2!","БК-2 компьютерная игра прямиком из 2000-х. Отличная графиа и полное погружение!",{"$f":"IF(K111=\"\",\"\",LEN(SUBSTITUTE(SUBSTITUTE(SUBSTITUTE(SUBSTITUTE(SUBSTITUTE(SUBSTITUTE(K111,\"!\",\"\"),\",\",\"\"),\".\",\"\"),\";\",\"\"),\":\",\"\"),\"\"\"\",\"\")))","v":null},{"$f":"IF(L111=\"\",\"\",LEN(SUBSTITUTE(SUBSTITUTE(SUBSTITUTE(SUBSTITUTE(SUBSTITUTE(SUBSTITUTE(L111,\"!\",\"\"),\",\",\"\"),\".\",\"\"),\";\",\"\"),\":\",\"\"),\"\"\"\",\"\")))","v":null},{"$f":"IF(M111=\"\",\"\",LEN(SUBSTITUTE(SUBSTITUTE(SUBSTITUTE(SUBSTITUTE(SUBSTITUTE(SUBSTITUTE(M111,\"!\",\"\"),\",\",\"\"),\".\",\"\"),\";\",\"\"),\":\",\"\"),\"\"\"\",\"\")))","v":null},"https://likebk.com/","регистрация-сейчас","","","Россия","2,3","","-","Остановлено","Работает везде","Регистрация прямо сейчас||Форум||Новости||Рейтинг персонажей||||||||","Зарегистрируйтесь и вступите в наш бойцовский клуб||Обсудите все ваши достежения и задания с реальными игроками||Узнайте все новости о мире боев||Посмотрите рейтинг реальных персонажей||||||||","https://likebk.com/register||https://forum.likebk.com/||https://likebk.com/news||https://top.likebk.com/exp_raiting.php/||||||||","","","","","https://direct.yandex.ru/images/direct/2755869/3IBMyJLgOtEFlufmSO2mXQ","","","Отлична графика||MMORPG||Передача атмосферы||Увлекательная игра||Отличное качество","","","","","","","","","","",""]
["-","Текстово-графическое","-","4458363193","Группа 3","3","-","26433375016","бк онлайн игра бойцовский клуб","10259215438","Компьютерная игра твоего детства.","Полное погружение в игру БК-2!","БК-2 компьютерная игра прямиком из 2000-х. Отличная графиа и полное погружение!",{"$f":"IF(K112=\"\",\"\",LEN(SUBSTITUTE(SUBSTITUTE(SUBSTITUTE(SUBSTITUTE(SUBSTITUTE(SUBSTITUTE(K112,\"!\",\"\"),\",\",\"\"),\".\",\"\"),\";\",\"\"),\":\",\"\"),\"\"\"\",\"\")))","v":null},{"$f":"IF(L112=\"\",\"\",LEN(SUBSTITUTE(SUBSTITUTE(SUBSTITUTE(SUBSTITUTE(SUBSTITUTE(SUBSTITUTE(L112,\"!\",\"\"),\",\",\"\"),\".\",\"\"),\";\",\"\"),\":\",\"\"),\"\"\"\",\"\")))","v":null},{"$f":"IF(M112=\"\",\"\",LEN(SUBSTITUTE(SUBSTITUTE(SUBSTITUTE(SUBSTITUTE(SUBSTITUTE(SUBSTITUTE(M112,\"!\",\"\"),\",\",\"\"),\".\",\"\"),\";\",\"\"),\":\",\"\"),\"\"\"\",\"\")))","v":null},"https://likebk.com/","регистрация-сейчас","","","Россия","2,3","","-","Остановлено","Работает везде","Регистрация прямо сейчас||Форум||Новости||Рейтинг персонажей||||||||","Зарегистрируйтесь и вступите в наш бойцовский клуб||Обсудите все ваши достежения и задания с реальными игроками||Узнайте все новости о мире боев||Посмотрите рейтинг реальных персонажей||||||||","https://likebk.com/register||https://forum.likebk.com/||https://likebk.com/news||https://top.likebk.com/exp_raiting.php/||||||||","","","","","https://direct.yandex.ru/images/direct/2755869/3IBMyJLgOtEFlufmSO2mXQ","","","Отлична графика||MMORPG||Передача атмосферы||Увлекательная игра||Отличное качество","","","","","","","","","","",""]
["-","Текстово-графическое","-","4458363193","Группа 3","3","-","26433375017","бойцовский клуб браузерная онлайн игра","10259215438","Компьютерная игра твоего детства.","Полное погружение в игру БК-2!","БК-2 компьютерная игра прямиком из 2000-х. Отличная графиа и полное погружение!",{"$f":"IF(K113=\"\",\"\",LEN(SUBSTITUTE(SUBSTITUTE(SUBSTITUTE(SUBSTITUTE(SUBSTITUTE(SUBSTITUTE(K113,\"!\",\"\"),\",\",\"\"),\".\",\"\"),\";\",\"\"),\":\",\"\"),\"\"\"\",\"\")))","v":null},{"$f":"IF(L113=\"\",\"\",LEN(SUBSTITUTE(SUBSTITUTE(SUBSTITUTE(SUBSTITUTE(SUBSTITUTE(SUBSTITUTE(L113,\"!\",\"\"),\",\",\"\"),\".\",\"\"),\";\",\"\"),\":\",\"\"),\"\"\"\",\"\")))","v":null},{"$f":"IF(M113=\"\",\"\",LEN(SUBSTITUTE(SUBSTITUTE(SUBSTITUTE(SUBSTITUTE(SUBSTITUTE(SUBSTITUTE(M113,\"!\",\"\"),\",\",\"\"),\".\",\"\"),\";\",\"\"),\":\",\"\"),\"\"\"\",\"\")))","v":null},"https://likebk.com/","регистрация-сейчас","","","Россия","2,3","","-","Остановлено","Работает везде","Регистрация прямо сейчас||Форум||Новости||Рейтинг персонажей||||||||","Зарегистрируйтесь и вступите в наш бойцовский клуб||Обсудите все ваши достежения и задания с реальными игроками||Узнайте все новости о мире боев||Посмотрите рейтинг реальных персонажей||||||||","https://likebk.com/register||https://forum.likebk.com/||https://likebk.com/news||https://top.likebk.com/exp_raiting.php/||||||||","","","","","https://direct.yandex.ru/images/direct/2755869/3IBMyJLgOtEFlufmSO2mXQ","","","Отлична графика||MMORPG||Передача атмосферы||Увлекательная игра||Отличное качество","","","","","","","","","","",""]
["-","Текстово-графическое","-","4458363193","Группа 3","3","-","26433375018","игра мморпг","10259215438","Компьютерная игра твоего детства.","Полное погружение в игру БК-2!","БК-2 компьютерная игра прямиком из 2000-х. Отличная графиа и полное погружение!",{"$f":"IF(K114=\"\",\"\",LEN(SUBSTITUTE(SUBSTITUTE(SUBSTITUTE(SUBSTITUTE(SUBSTITUTE(SUBSTITUTE(K114,\"!\",\"\"),\",\",\"\"),\".\",\"\"),\";\",\"\"),\":\",\"\"),\"\"\"\",\"\")))","v":null},{"$f":"IF(L114=\"\",\"\",LEN(SUBSTITUTE(SUBSTITUTE(SUBSTITUTE(SUBSTITUTE(SUBSTITUTE(SUBSTITUTE(L114,\"!\",\"\"),\",\",\"\"),\".\",\"\"),\";\",\"\"),\":\",\"\"),\"\"\"\",\"\")))","v":null},{"$f":"IF(M114=\"\",\"\",LEN(SUBSTITUTE(SUBSTITUTE(SUBSTITUTE(SUBSTITUTE(SUBSTITUTE(SUBSTITUTE(M114,\"!\",\"\"),\",\",\"\"),\".\",\"\"),\";\",\"\"),\":\",\"\"),\"\"\"\",\"\")))","v":null},"https://likebk.com/","регистрация-сейчас","","","Россия","2,3","","-","Остановлено","Работает везде","Регистрация прямо сейчас||Форум||Новости||Рейтинг персонажей||||||||","Зарегистрируйтесь и вступите в наш бойцовский клуб||Обсудите все ваши достежения и задания с реальными игроками||Узнайте все новости о мире боев||Посмотрите рейтинг реальных персонажей||||||||","https://likebk.com/register||https://forum.likebk.com/||https://likebk.com/news||https://top.likebk.com/exp_raiting.php/||||||||","","","","","https://direct.yandex.ru/images/direct/2755869/3IBMyJLgOtEFlufmSO2mXQ","","","Отлична графика||MMORPG||Передача атмосферы||Увлекательная игра||Отличное качество","","","","","","","","","","",""]
["-","Текстово-графическое","-","4458363193","Группа 3","3","-","26433375019","образа +для бойцовский клуб игра онлайн","10259215438","Компьютерная игра твоего детства.","Полное погружение в игру БК-2!","БК-2 компьютерная игра прямиком из 2000-х. Отличная графиа и полное погружение!",{"$f":"IF(K115=\"\",\"\",LEN(SUBSTITUTE(SUBSTITUTE(SUBSTITUTE(SUBSTITUTE(SUBSTITUTE(SUBSTITUTE(K115,\"!\",\"\"),\",\",\"\"),\".\",\"\"),\";\",\"\"),\":\",\"\"),\"\"\"\",\"\")))","v":null},{"$f":"IF(L115=\"\",\"\",LEN(SUBSTITUTE(SUBSTITUTE(SUBSTITUTE(SUBSTITUTE(SUBSTITUTE(SUBSTITUTE(L115,\"!\",\"\"),\",\",\"\"),\".\",\"\"),\";\",\"\"),\":\",\"\"),\"\"\"\",\"\")))","v":null},{"$f":"IF(M115=\"\",\"\",LEN(SUBSTITUTE(SUBSTITUTE(SUBSTITUTE(SUBSTITUTE(SUBSTITUTE(SUBSTITUTE(M115,\"!\",\"\"),\",\",\"\"),\".\",\"\"),\";\",\"\"),\":\",\"\"),\"\"\"\",\"\")))","v":null},"https://likebk.com/","регистрация-сейчас","","","Россия","2,3","","-","Остановлено","Работает везде","Регистрация прямо сейчас||Форум||Новости||Рейтинг персонажей||||||||","Зарегистрируйтесь и вступите в наш бойцовский клуб||Обсудите все ваши достежения и задания с реальными игроками||Узнайте все новости о мире боев||Посмотрите рейтинг реальных персонажей||||||||","https://likebk.com/register||https://forum.likebk.com/||https://likebk.com/news||https://top.likebk.com/exp_raiting.php/||||||||","","","","","https://direct.yandex.ru/images/direct/2755869/3IBMyJLgOtEFlufmSO2mXQ","","","Отлична графика||MMORPG||Передача атмосферы||Увлекательная игра||Отличное качество","","","","","","","","","","",""]
["-","Текстово-графическое","-","4458363193","Группа 3","3","-","26433375020","mmorpg +для слабых пк онлайн","10259215438","Компьютерная игра твоего детства.","Полное погружение в игру БК-2!","БК-2 компьютерная игра прямиком из 2000-х. Отличная графиа и полное погружение!",{"$f":"IF(K116=\"\",\"\",LEN(SUBSTITUTE(SUBSTITUTE(SUBSTITUTE(SUBSTITUTE(SUBSTITUTE(SUBSTITUTE(K116,\"!\",\"\"),\",\",\"\"),\".\",\"\"),\";\",\"\"),\":\",\"\"),\"\"\"\",\"\")))","v":null},{"$f":"IF(L116=\"\",\"\",LEN(SUBSTITUTE(SUBSTITUTE(SUBSTITUTE(SUBSTITUTE(SUBSTITUTE(SUBSTITUTE(L116,\"!\",\"\"),\",\",\"\"),\".\",\"\"),\";\",\"\"),\":\",\"\"),\"\"\"\",\"\")))","v":null},{"$f":"IF(M116=\"\",\"\",LEN(SUBSTITUTE(SUBSTITUTE(SUBSTITUTE(SUBSTITUTE(SUBSTITUTE(SUBSTITUTE(M116,\"!\",\"\"),\",\",\"\"),\".\",\"\"),\";\",\"\"),\":\",\"\"),\"\"\"\",\"\")))","v":null},"https://likebk.com/","регистрация-сейчас","","","Россия","2,3","","-","Остановлено","Работает везде","Регистрация прямо сейчас||Форум||Новости||Рейтинг персонажей||||||||","Зарегистрируйтесь и вступите в наш бойцовский клуб||Обсудите все ваши достежения и задания с реальными игроками||Узнайте все новости о мире боев||Посмотрите рейтинг реальных персонажей||||||||","https://likebk.com/register||https://forum.likebk.com/||https://likebk.com/news||https://top.likebk.com/exp_raiting.php/||||||||","","","","","https://direct.yandex.ru/images/direct/2755869/3IBMyJLgOtEFlufmSO2mXQ","","","Отлична графика||MMORPG||Передача атмосферы||Увлекательная игра||Отличное качество","","","","","","","","","","",""]
["-","Текстово-графическое","-","4458363193","Группа 3","3","-","26433375021","mmorpg +на пк онлайн","10259215438","Компьютерная игра твоего детства.","Полное погружение в игру БК-2!","БК-2 компьютерная игра прямиком из 2000-х. Отличная графиа и полное погружение!",{"$f":"IF(K117=\"\",\"\",LEN(SUBSTITUTE(SUBSTITUTE(SUBSTITUTE(SUBSTITUTE(SUBSTITUTE(SUBSTITUTE(K117,\"!\",\"\"),\",\",\"\"),\".\",\"\"),\";\",\"\"),\":\",\"\"),\"\"\"\",\"\")))","v":null},{"$f":"IF(L117=\"\",\"\",LEN(SUBSTITUTE(SUBSTITUTE(SUBSTITUTE(SUBSTITUTE(SUBSTITUTE(SUBSTITUTE(L117,\"!\",\"\"),\",\",\"\"),\".\",\"\"),\";\",\"\"),\":\",\"\"),\"\"\"\",\"\")))","v":null},{"$f":"IF(M117=\"\",\"\",LEN(SUBSTITUTE(SUBSTITUTE(SUBSTITUTE(SUBSTITUTE(SUBSTITUTE(SUBSTITUTE(M117,\"!\",\"\"),\",\",\"\"),\".\",\"\"),\";\",\"\"),\":\",\"\"),\"\"\"\",\"\")))","v":null},"https://likebk.com/","регистрация-сейчас","","","Россия","2,3","","-","Остановлено","Работает везде","Регистрация прямо сейчас||Форум||Новости||Рейтинг персонажей||||||||","Зарегистрируйтесь и вступите в наш бойцовский клуб||Обсудите все ваши достежения и задания с реальными игроками||Узнайте все новости о мире боев||Посмотрите рейтинг реальных персонажей||||||||","https://likebk.com/register||https://forum.likebk.com/||https://likebk.com/news||https://top.likebk.com/exp_raiting.php/||||||||","","","","","https://direct.yandex.ru/images/direct/2755869/3IBMyJLgOtEFlufmSO2mXQ","","","Отлична графика||MMORPG||Передача атмосферы||Увлекательная игра||Отличное качество","","","","","","","","","","",""]
["-","Текстово-графическое","-","4458363193","Группа 3","3","-","26433375022","mmorpg +на пк онлайн топ","10259215438","Компьютерная игра твоего детства.","Полное погружение в игру БК-2!","БК-2 компьютерная игра прямиком из 2000-х. Отличная графиа и полное погружение!",{"$f":"IF(K118=\"\",\"\",LEN(SUBSTITUTE(SUBSTITUTE(SUBSTITUTE(SUBSTITUTE(SUBSTITUTE(SUBSTITUTE(K118,\"!\",\"\"),\",\",\"\"),\".\",\"\"),\";\",\"\"),\":\",\"\"),\"\"\"\",\"\")))","v":null},{"$f":"IF(L118=\"\",\"\",LEN(SUBSTITUTE(SUBSTITUTE(SUBSTITUTE(SUBSTITUTE(SUBSTITUTE(SUBSTITUTE(L118,\"!\",\"\"),\",\",\"\"),\".\",\"\"),\";\",\"\"),\":\",\"\"),\"\"\"\",\"\")))","v":null},{"$f":"IF(M118=\"\",\"\",LEN(SUBSTITUTE(SUBSTITUTE(SUBSTITUTE(SUBSTITUTE(SUBSTITUTE(SUBSTITUTE(M118,\"!\",\"\"),\",\",\"\"),\".\",\"\"),\";\",\"\"),\":\",\"\"),\"\"\"\",\"\")))","v":null},"https://likebk.com/","регистрация-сейчас","","","Россия","2,3","","-","Остановлено","Работает везде","Регистрация прямо сейчас||Форум||Новости||Рейтинг персонажей||||||||","Зарегистрируйтесь и вступите в наш бойцовский клуб||Обсудите все ваши достежения и задания с реальными игроками||Узнайте все новости о мире боев||Посмотрите рейтинг реальных персонажей||||||||","https://likebk.com/register||https://forum.likebk.com/||https://likebk.com/news||https://top.likebk.com/exp_raiting.php/||||||||","","","","","https://direct.yandex.ru/images/direct/2755869/3IBMyJLgOtEFlufmSO2mXQ","","","Отлична графика||MMORPG||Передача атмосферы||Увлекательная игра||Отличное качество","","","","","","","","","","",""]
["-","Текстово-графическое","-","4458363193","Группа 3","3","-","26433375023","mmorpg +с большим онлайном","10259215438","Компьютерная игра твоего детства.","Полное погружение в игру БК-2!","БК-2 компьютерная игра прямиком из 2000-х. Отличная графиа и полное погружение!",{"$f":"IF(K119=\"\",\"\",LEN(SUBSTITUTE(SUBSTITUTE(SUBSTITUTE(SUBSTITUTE(SUBSTITUTE(SUBSTITUTE(K119,\"!\",\"\"),\",\",\"\"),\".\",\"\"),\";\",\"\"),\":\",\"\"),\"\"\"\",\"\")))","v":null},{"$f":"IF(L119=\"\",\"\",LEN(SUBSTITUTE(SUBSTITUTE(SUBSTITUTE(SUBSTITUTE(SUBSTITUTE(SUBSTITUTE(L119,\"!\",\"\"),\",\",\"\"),\".\",\"\"),\";\",\"\"),\":\",\"\"),\"\"\"\",\"\")))","v":null},{"$f":"IF(M119=\"\",\"\",LEN(SUBSTITUTE(SUBSTITUTE(SUBSTITUTE(SUBSTITUTE(SUBSTITUTE(SUBSTITUTE(M119,\"!\",\"\"),\",\",\"\"),\".\",\"\"),\";\",\"\"),\":\",\"\"),\"\"\"\",\"\")))","v":null},"https://likebk.com/","регистрация-сейчас","","","Россия","2,3","","-","Остановлено","Работает везде","Регистрация прямо сейчас||Форум||Новости||Рейтинг персонажей||||||||","Зарегистрируйтесь и вступите в наш бойцовский клуб||Обсудите все ваши достежения и задания с реальными игроками||Узнайте все новости о мире боев||Посмотрите рейтинг реальных персонажей||||||||","https://likebk.com/register||https://forum.likebk.com/||https://likebk.com/news||https://top.likebk.com/exp_raiting.php/||||||||","","","","","https://direct.yandex.ru/images/direct/2755869/3IBMyJLgOtEFlufmSO2mXQ","","","Отлична графика||MMORPG||Передача атмосферы||Увлекательная игра||Отличное качество","","","","","","","","","","",""]
["-","Текстово-графическое","-","4458363193","Группа 3","3","-","26433375024","mmorpg +с открытым миром онлайн","10259215438","Компьютерная игра твоего детства.","Полное погружение в игру БК-2!","БК-2 компьютерная игра прямиком из 2000-х. Отличная графиа и полное погружение!",{"$f":"IF(K120=\"\",\"\",LEN(SUBSTITUTE(SUBSTITUTE(SUBSTITUTE(SUBSTITUTE(SUBSTITUTE(SUBSTITUTE(K120,\"!\",\"\"),\",\",\"\"),\".\",\"\"),\";\",\"\"),\":\",\"\"),\"\"\"\",\"\")))","v":null},{"$f":"IF(L120=\"\",\"\",LEN(SUBSTITUTE(SUBSTITUTE(SUBSTITUTE(SUBSTITUTE(SUBSTITUTE(SUBSTITUTE(L120,\"!\",\"\"),\",\",\"\"),\".\",\"\"),\";\",\"\"),\":\",\"\"),\"\"\"\",\"\")))","v":null},{"$f":"IF(M120=\"\",\"\",LEN(SUBSTITUTE(SUBSTITUTE(SUBSTITUTE(SUBSTITUTE(SUBSTITUTE(SUBSTITUTE(M120,\"!\",\"\"),\",\",\"\"),\".\",\"\"),\";\",\"\"),\":\",\"\"),\"\"\"\",\"\")))","v":null},"https://likebk.com/","регистрация-сейчас","","","Россия","2,3","","-","Остановлено","Работает везде","Регистрация прямо сейчас||Форум||Новости||Рейтинг персонажей||||||||","Зарегистрируйтесь и вступите в наш бойцовский клуб||Обсудите все ваши достежения и задания с реальными игроками||Узнайте все новости о мире боев||Посмотрите рейтинг реальных персонажей||||||||","https://likebk.com/register||https://forum.likebk.com/||https://likebk.com/news||https://top.likebk.com/exp_raiting.php/||||||||","","","","","https://direct.yandex.ru/images/direct/2755869/3IBMyJLgOtEFlufmSO2mXQ","","","Отлична графика||MMORPG||Передача атмосферы||Увлекательная игра||Отличное качество","","","","","","","","","","",""]
["-","Текстово-графическое","-","4458363193","Группа 3","3","-","26433375025","mmorpg онлайн","10259215438","Компьютерная игра твоего детства.","Полное погружение в игру БК-2!","БК-2 компьютерная игра прямиком из 2000-х. Отличная графиа и полное погружение!",{"$f":"IF(K121=\"\",\"\",LEN(SUBSTITUTE(SUBSTITUTE(SUBSTITUTE(SUBSTITUTE(SUBSTITUTE(SUBSTITUTE(K121,\"!\",\"\"),\",\",\"\"),\".\",\"\"),\";\",\"\"),\":\",\"\"),\"\"\"\",\"\")))","v":null},{"$f":"IF(L121=\"\",\"\",LEN(SUBSTITUTE(SUBSTITUTE(SUBSTITUTE(SUBSTITUTE(SUBSTITUTE(SUBSTITUTE(L121,\"!\",\"\"),\",\",\"\"),\".\",\"\"),\";\",\"\"),\":\",\"\"),\"\"\"\",\"\")))","v":null},{"$f":"IF(M121=\"\",\"\",LEN(SUBSTITUTE(SUBSTITUTE(SUBSTITUTE(SUBSTITUTE(SUBSTITUTE(SUBSTITUTE(M121,\"!\",\"\"),\",\",\"\"),\".\",\"\"),\";\",\"\"),\":\",\"\"),\"\"\"\",\"\")))","v":null},"https://likebk.com/","регистрация-сейчас","","","Россия","2,3","","-","Остановлено","Работает везде","Регистрация прямо сейчас||Форум||Новости||Рейтинг персонажей||||||||","Зарегистрируйтесь и вступите в наш бойцовский клуб||Обсудите все ваши достежения и задания с реальными игроками||Узнайте все новости о мире боев||Посмотрите рейтинг реальных персонажей||||||||","https://likebk.com/register||https://forum.likebk.com/||https://likebk.com/news||https://top.likebk.com/exp_raiting.php/||||||||","","","","","https://direct.yandex.ru/images/direct/2755869/3IBMyJLgOtEFlufmSO2mXQ","","","Отлична графика||MMORPG||Передача атмосферы||Увлекательная игра||Отличное качество","","","","","","","","","","",""]
["-","Текстово-графическое","-","4458363193","Группа 3","3","-","26433375026","mmorpg онлайн игры +на пк","10259215438","Компьютерная игра твоего детства.","Полное погружение в игру БК-2!","БК-2 компьютерная игра прямиком из 2000-х. Отличная графиа и полное погружение!",{"$f":"IF(K122=\"\",\"\",LEN(SUBSTITUTE(SUBSTITUTE(SUBSTITUTE(SUBSTITUTE(SUBSTITUTE(SUBSTITUTE(K122,\"!\",\"\"),\",\",\"\"),\".\",\"\"),\";\",\"\"),\":\",\"\"),\"\"\"\",\"\")))","v":null},{"$f":"IF(L122=\"\",\"\",LEN(SUBSTITUTE(SUBSTITUTE(SUBSTITUTE(SUBSTITUTE(SUBSTITUTE(SUBSTITUTE(L122,\"!\",\"\"),\",\",\"\"),\".\",\"\"),\";\",\"\"),\":\",\"\"),\"\"\"\",\"\")))","v":null},{"$f":"IF(M122=\"\",\"\",LEN(SUBSTITUTE(SUBSTITUTE(SUBSTITUTE(SUBSTITUTE(SUBSTITUTE(SUBSTITUTE(M122,\"!\",\"\"),\",\",\"\"),\".\",\"\"),\";\",\"\"),\":\",\"\"),\"\"\"\",\"\")))","v":null},"https://likebk.com/","регистрация-сейчас","","","Россия","2,3","","-","Остановлено","Работает везде","Регистрация прямо сейчас||Форум||Новости||Рейтинг персонажей||||||||","Зарегистрируйтесь и вступите в наш бойцовский клуб||Обсудите все ваши достежения и задания с реальными игроками||Узнайте все новости о мире боев||Посмотрите рейтинг реальных персонажей||||||||","https://likebk.com/register||https://forum.likebk.com/||https://likebk.com/news||https://top.likebk.com/exp_raiting.php/||||||||","","","","","https://direct.yandex.ru/images/direct/2755869/3IBMyJLgOtEFlufmSO2mXQ","","","Отлична графика||MMORPG||Передача атмосферы||Увлекательная игра||Отличное качество","","","","","","","","","","",""]
["-","Текстово-графическое","-","4458363193","Группа 3","3","-","26433375027","mmorpg онлайн игры браузерные","10259215438","Компьютерная игра твоего детства.","Полное погружение в игру БК-2!","БК-2 компьютерная игра прямиком из 2000-х. Отличная графиа и полное погружение!",{"$f":"IF(K123=\"\",\"\",LEN(SUBSTITUTE(SUBSTITUTE(SUBSTITUTE(SUBSTITUTE(SUBSTITUTE(SUBSTITUTE(K123,\"!\",\"\"),\",\",\"\"),\".\",\"\"),\";\",\"\"),\":\",\"\"),\"\"\"\",\"\")))","v":null},{"$f":"IF(L123=\"\",\"\",LEN(SUBSTITUTE(SUBSTITUTE(SUBSTITUTE(SUBSTITUTE(SUBSTITUTE(SUBSTITUTE(L123,\"!\",\"\"),\",\",\"\"),\".\",\"\"),\";\",\"\"),\":\",\"\"),\"\"\"\",\"\")))","v":null},{"$f":"IF(M123=\"\",\"\",LEN(SUBSTITUTE(SUBSTITUTE(SUBSTITUTE(SUBSTITUTE(SUBSTITUTE(SUBSTITUTE(M123,\"!\",\"\"),\",\",\"\"),\".\",\"\"),\";\",\"\"),\":\",\"\"),\"\"\"\",\"\")))","v":null},"https://likebk.com/","регистрация-сейчас","","","Россия","2,3","","-","Остановлено","Работает везде","Регистрация прямо сейчас||Форум||Новости||Рейтинг персонажей||||||||","Зарегистрируйтесь и вступите в наш бойцовский клуб||Обсудите все ваши достежения и задания с реальными игроками||Узнайте все новости о мире боев||Посмотрите рейтинг реальных персонажей||||||||","https://likebk.com/register||https://forum.likebk.com/||https://likebk.com/news||https://top.likebk.com/exp_raiting.php/||||||||","","","","","https://direct.yandex.ru/images/direct/2755869/3IBMyJLgOtEFlufmSO2mXQ","","","Отлична графика||MMORPG||Передача атмосферы||Увлекательная игра||Отличное качество","","","","","","","","","","",""]
["-","Текстово-графическое","-","4458363193","Группа 3","3","-","26433375028","бойцовский клуб игра онлайн олдбк 2","10259215438","Компьютерная игра твоего детства.","Полное погружение в игру БК-2!","БК-2 компьютерная игра прямиком из 2000-х. Отличная графиа и полное погружение!",{"$f":"IF(K124=\"\",\"\",LEN(SUBSTITUTE(SUBSTITUTE(SUBSTITUTE(SUBSTITUTE(SUBSTITUTE(SUBSTITUTE(K124,\"!\",\"\"),\",\",\"\"),\".\",\"\"),\";\",\"\"),\":\",\"\"),\"\"\"\",\"\")))","v":null},{"$f":"IF(L124=\"\",\"\",LEN(SUBSTITUTE(SUBSTITUTE(SUBSTITUTE(SUBSTITUTE(SUBSTITUTE(SUBSTITUTE(L124,\"!\",\"\"),\",\",\"\"),\".\",\"\"),\";\",\"\"),\":\",\"\"),\"\"\"\",\"\")))","v":null},{"$f":"IF(M124=\"\",\"\",LEN(SUBSTITUTE(SUBSTITUTE(SUBSTITUTE(SUBSTITUTE(SUBSTITUTE(SUBSTITUTE(M124,\"!\",\"\"),\",\",\"\"),\".\",\"\"),\";\",\"\"),\":\",\"\"),\"\"\"\",\"\")))","v":null},"https://likebk.com/","регистрация-сейчас","","","Россия","2,3","","-","Остановлено","Работает везде","Регистрация прямо сейчас||Форум||Новости||Рейтинг персонажей||||||||","Зарегистрируйтесь и вступите в наш бойцовский клуб||Обсудите все ваши достежения и задания с реальными игроками||Узнайте все новости о мире боев||Посмотрите рейтинг реальных персонажей||||||||","https://likebk.com/register||https://forum.likebk.com/||https://likebk.com/news||https://top.likebk.com/exp_raiting.php/||||||||","","","","","https://direct.yandex.ru/images/direct/2755869/3IBMyJLgOtEFlufmSO2mXQ","","","Отлична графика||MMORPG||Передача атмосферы||Увлекательная игра||Отличное качество","","","","","","","","","","",""]
["-","Текстово-графическое","-","4458363193","Группа 3","3","-","26433375029","бойцовский клуб игра онлайн официальный сайт","10259215438","Компьютерная игра твоего детства.","Полное погружение в игру БК-2!","БК-2 компьютерная игра прямиком из 2000-х. Отличная графиа и полное погружение!",{"$f":"IF(K125=\"\",\"\",LEN(SUBSTITUTE(SUBSTITUTE(SUBSTITUTE(SUBSTITUTE(SUBSTITUTE(SUBSTITUTE(K125,\"!\",\"\"),\",\",\"\"),\".\",\"\"),\";\",\"\"),\":\",\"\"),\"\"\"\",\"\")))","v":null},{"$f":"IF(L125=\"\",\"\",LEN(SUBSTITUTE(SUBSTITUTE(SUBSTITUTE(SUBSTITUTE(SUBSTITUTE(SUBSTITUTE(L125,\"!\",\"\"),\",\",\"\"),\".\",\"\"),\";\",\"\"),\":\",\"\"),\"\"\"\",\"\")))","v":null},{"$f":"IF(M125=\"\",\"\",LEN(SUBSTITUTE(SUBSTITUTE(SUBSTITUTE(SUBSTITUTE(SUBSTITUTE(SUBSTITUTE(M125,\"!\",\"\"),\",\",\"\"),\".\",\"\"),\";\",\"\"),\":\",\"\"),\"\"\"\",\"\")))","v":null},"https://likebk.com/","регистрация-сейчас","","","Россия","2,3","","-","Остановлено","Работает везде","Регистрация прямо сейчас||Форум||Новости||Рейтинг персонажей||||||||","Зарегистрируйтесь и вступите в наш бойцовский клуб||Обсудите все ваши достежения и задания с реальными игроками||Узнайте все новости о мире боев||Посмотрите рейтинг реальных персонажей||||||||","https://likebk.com/register||https://forum.likebk.com/||https://likebk.com/news||https://top.likebk.com/exp_raiting.php/||||||||","","","","","https://direct.yandex.ru/images/direct/2755869/3IBMyJLgOtEFlufmSO2mXQ","","","Отлична графика||MMORPG||Передача атмосферы||Увлекательная игра||Отличное качество","","","","","","","","","","",""]
["-","Текстово-графическое","-","4458363193","Группа 3","3","-","26433375030","браузерная онлайн mmorpg","10259215438","Компьютерная игра твоего детства.","Полное погружение в игру БК-2!","БК-2 компьютерная игра прямиком из 2000-х. Отличная графиа и полное погружение!",{"$f":"IF(K126=\"\",\"\",LEN(SUBSTITUTE(SUBSTITUTE(SUBSTITUTE(SUBSTITUTE(SUBSTITUTE(SUBSTITUTE(K126,\"!\",\"\"),\",\",\"\"),\".\",\"\"),\";\",\"\"),\":\",\"\"),\"\"\"\",\"\")))","v":null},{"$f":"IF(L126=\"\",\"\",LEN(SUBSTITUTE(SUBSTITUTE(SUBSTITUTE(SUBSTITUTE(SUBSTITUTE(SUBSTITUTE(L126,\"!\",\"\"),\",\",\"\"),\".\",\"\"),\";\",\"\"),\":\",\"\"),\"\"\"\",\"\")))","v":null},{"$f":"IF(M126=\"\",\"\",LEN(SUBSTITUTE(SUBSTITUTE(SUBSTITUTE(SUBSTITUTE(SUBSTITUTE(SUBSTITUTE(M126,\"!\",\"\"),\",\",\"\"),\".\",\"\"),\";\",\"\"),\":\",\"\"),\"\"\"\",\"\")))","v":null},"https://likebk.com/","регистрация-сейчас","","","Россия","2,3","","-","Остановлено","Работает везде","Регистрация прямо сейчас||Форум||Новости||Рейтинг персонажей||||||||","Зарегистрируйтесь и вступите в наш бойцовский клуб||Обсудите все ваши достежения и задания с реальными игроками||Узнайте все новости о мире боев||Посмотрите рейтинг реальных персонажей||||||||","https://likebk.com/register||https://forum.likebk.com/||https://likebk.com/news||https://top.likebk.com/exp_raiting.php/||||||||","","","","","https://direct.yandex.ru/images/direct/2755869/3IBMyJLgOtEFlufmSO2mXQ","","","Отлична графика||MMORPG||Передача атмосферы||Увлекательная игра||Отличное качество","","","","","","","","","","",""]
["-","Текстово-графическое","-","4458363193","Группа 3","3","-","26433375031","игра mmorpg","10259215438","Компьютерная игра твоего детства.","Полное погружение в игру БК-2!","БК-2 компьютерная игра прямиком из 2000-х. Отличная графиа и полное погружение!",{"$f":"IF(K127=\"\",\"\",LEN(SUBSTITUTE(SUBSTITUTE(SUBSTITUTE(SUBSTITUTE(SUBSTITUTE(SUBSTITUTE(K127,\"!\",\"\"),\",\",\"\"),\".\",\"\"),\";\",\"\"),\":\",\"\"),\"\"\"\",\"\")))","v":null},{"$f":"IF(L127=\"\",\"\",LEN(SUBSTITUTE(SUBSTITUTE(SUBSTITUTE(SUBSTITUTE(SUBSTITUTE(SUBSTITUTE(L127,\"!\",\"\"),\",\",\"\"),\".\",\"\"),\";\",\"\"),\":\",\"\"),\"\"\"\",\"\")))","v":null},{"$f":"IF(M127=\"\",\"\",LEN(SUBSTITUTE(SUBSTITUTE(SUBSTITUTE(SUBSTITUTE(SUBSTITUTE(SUBSTITUTE(M127,\"!\",\"\"),\",\",\"\"),\".\",\"\"),\";\",\"\"),\":\",\"\"),\"\"\"\",\"\")))","v":null},"https://likebk.com/","регистрация-сейчас","","","Россия","2,3","","-","Остановлено","Работает везде","Регистрация прямо сейчас||Форум||Новости||Рейтинг персонажей||||||||","Зарегистрируйтесь и вступите в наш бойцовский клуб||Обсудите все ваши достежения и задания с реальными игроками||Узнайте все новости о мире боев||Посмотрите рейтинг реальных персонажей||||||||","https://likebk.com/register||https://forum.likebk.com/||https://likebk.com/news||https://top.likebk.com/exp_raiting.php/||||||||","","","","","https://direct.yandex.ru/images/direct/2755869/3IBMyJLgOtEFlufmSO2mXQ","","","Отлична графика||MMORPG||Передача атмосферы||Увлекательная игра||Отличное качество","","","","","","","","","","",""]
["-","Текстово-графическое","-","4458363193","Группа 3","3","-","26433375032","играть онлайн mmorpg игры","10259215438","Компьютерная игра твоего детства.","Полное погружение в игру БК-2!","БК-2 компьютерная игра прямиком из 2000-х. Отличная графиа и полное погружение!",{"$f":"IF(K128=\"\",\"\",LEN(SUBSTITUTE(SUBSTITUTE(SUBSTITUTE(SUBSTITUTE(SUBSTITUTE(SUBSTITUTE(K128,\"!\",\"\"),\",\",\"\"),\".\",\"\"),\";\",\"\"),\":\",\"\"),\"\"\"\",\"\")))","v":null},{"$f":"IF(L128=\"\",\"\",LEN(SUBSTITUTE(SUBSTITUTE(SUBSTITUTE(SUBSTITUTE(SUBSTITUTE(SUBSTITUTE(L128,\"!\",\"\"),\",\",\"\"),\".\",\"\"),\";\",\"\"),\":\",\"\"),\"\"\"\",\"\")))","v":null},{"$f":"IF(M128=\"\",\"\",LEN(SUBSTITUTE(SUBSTITUTE(SUBSTITUTE(SUBSTITUTE(SUBSTITUTE(SUBSTITUTE(M128,\"!\",\"\"),\",\",\"\"),\".\",\"\"),\";\",\"\"),\":\",\"\"),\"\"\"\",\"\")))","v":null},"https://likebk.com/","регистрация-сейчас","","","Россия","2,3","","-","Остановлено","Работает везде","Регистрация прямо сейчас||Форум||Новости||Рейтинг персонажей||||||||","Зарегистрируйтесь и вступите в наш бойцовский клуб||Обсудите все ваши достежения и задания с реальными игроками||Узнайте все новости о мире боев||Посмотрите рейтинг реальных персонажей||||||||","https://likebk.com/register||https://forum.likebk.com/||https://likebk.com/news||https://top.likebk.com/exp_raiting.php/||||||||","","","","","https://direct.yandex.ru/images/direct/2755869/3IBMyJLgOtEFlufmSO2mXQ","","","Отлична графика||MMORPG||Передача атмосферы||Увлекательная игра||Отличное качество","","","","","","","","","","",""]
["-","Текстово-графическое","-","4458363193","Группа 3","3","-","26433375033","игры онлайн mmorpg 2020","10259215438","Компьютерная игра твоего детства.","Полное погружение в игру БК-2!","БК-2 компьютерная игра прямиком из 2000-х. Отличная графиа и полное погружение!",{"$f":"IF(K129=\"\",\"\",LEN(SUBSTITUTE(SUBSTITUTE(SUBSTITUTE(SUBSTITUTE(SUBSTITUTE(SUBSTITUTE(K129,\"!\",\"\"),\",\",\"\"),\".\",\"\"),\";\",\"\"),\":\",\"\"),\"\"\"\",\"\")))","v":null},{"$f":"IF(L129=\"\",\"\",LEN(SUBSTITUTE(SUBSTITUTE(SUBSTITUTE(SUBSTITUTE(SUBSTITUTE(SUBSTITUTE(L129,\"!\",\"\"),\",\",\"\"),\".\",\"\"),\";\",\"\"),\":\",\"\"),\"\"\"\",\"\")))","v":null},{"$f":"IF(M129=\"\",\"\",LEN(SUBSTITUTE(SUBSTITUTE(SUBSTITUTE(SUBSTITUTE(SUBSTITUTE(SUBSTITUTE(M129,\"!\",\"\"),\",\",\"\"),\".\",\"\"),\";\",\"\"),\":\",\"\"),\"\"\"\",\"\")))","v":null},"https://likebk.com/","регистрация-сейчас","","","Россия","2,3","","-","Остановлено","Работает везде","Регистрация прямо сейчас||Форум||Новости||Рейтинг персонажей||||||||","Зарегистрируйтесь и вступите в наш бойцовский клуб||Обсудите все ваши достежения и задания с реальными игроками||Узнайте все новости о мире боев||Посмотрите рейтинг реальных персонажей||||||||","https://likebk.com/register||https://forum.likebk.com/||https://likebk.com/news||https://top.likebk.com/exp_raiting.php/||||||||","","","","","https://direct.yandex.ru/images/direct/2755869/3IBMyJLgOtEFlufmSO2mXQ","","","Отлична графика||MMORPG||Передача атмосферы||Увлекательная игра||Отличное качество","","","","","","","","","","",""]
["-","Текстово-графическое","-","4458363193","Группа 3","3","-","26433375034","клиентская онлайн mmorpg","10259215438","Компьютерная игра твоего детства.","Полное погружение в игру БК-2!","БК-2 компьютерная игра прямиком из 2000-х. Отличная графиа и полное погружение!",{"$f":"IF(K130=\"\",\"\",LEN(SUBSTITUTE(SUBSTITUTE(SUBSTITUTE(SUBSTITUTE(SUBSTITUTE(SUBSTITUTE(K130,\"!\",\"\"),\",\",\"\"),\".\",\"\"),\";\",\"\"),\":\",\"\"),\"\"\"\",\"\")))","v":null},{"$f":"IF(L130=\"\",\"\",LEN(SUBSTITUTE(SUBSTITUTE(SUBSTITUTE(SUBSTITUTE(SUBSTITUTE(SUBSTITUTE(L130,\"!\",\"\"),\",\",\"\"),\".\",\"\"),\";\",\"\"),\":\",\"\"),\"\"\"\",\"\")))","v":null},{"$f":"IF(M130=\"\",\"\",LEN(SUBSTITUTE(SUBSTITUTE(SUBSTITUTE(SUBSTITUTE(SUBSTITUTE(SUBSTITUTE(M130,\"!\",\"\"),\",\",\"\"),\".\",\"\"),\";\",\"\"),\":\",\"\"),\"\"\"\",\"\")))","v":null},"https://likebk.com/","регистрация-сейчас","","","Россия","2,3","","-","Остановлено","Работает везде","Регистрация прямо сейчас||Форум||Новости||Рейтинг персонажей||||||||","Зарегистрируйтесь и вступите в наш бойцовский клуб||Обсудите все ваши достежения и задания с реальными игроками||Узнайте все новости о мире боев||Посмотрите рейтинг реальных персонажей||||||||","https://likebk.com/register||https://forum.likebk.com/||https://likebk.com/news||https://top.likebk.com/exp_raiting.php/||||||||","","","","","https://direct.yandex.ru/images/direct/2755869/3IBMyJLgOtEFlufmSO2mXQ","","","Отлична графика||MMORPG||Передача атмосферы||Увлекательная игра||Отличное качество","","","","","","","","","","",""]
["-","Текстово-графическое","-","4458363193","Группа 3","3","-","26433375035","лучшие онлайн mmorpg","10259215438","Компьютерная игра твоего детства.","Полное погружение в игру БК-2!","БК-2 компьютерная игра прямиком из 2000-х. Отличная графиа и полное погружение!",{"$f":"IF(K131=\"\",\"\",LEN(SUBSTITUTE(SUBSTITUTE(SUBSTITUTE(SUBSTITUTE(SUBSTITUTE(SUBSTITUTE(K131,\"!\",\"\"),\",\",\"\"),\".\",\"\"),\";\",\"\"),\":\",\"\"),\"\"\"\",\"\")))","v":null},{"$f":"IF(L131=\"\",\"\",LEN(SUBSTITUTE(SUBSTITUTE(SUBSTITUTE(SUBSTITUTE(SUBSTITUTE(SUBSTITUTE(L131,\"!\",\"\"),\",\",\"\"),\".\",\"\"),\";\",\"\"),\":\",\"\"),\"\"\"\",\"\")))","v":null},{"$f":"IF(M131=\"\",\"\",LEN(SUBSTITUTE(SUBSTITUTE(SUBSTITUTE(SUBSTITUTE(SUBSTITUTE(SUBSTITUTE(M131,\"!\",\"\"),\",\",\"\"),\".\",\"\"),\";\",\"\"),\":\",\"\"),\"\"\"\",\"\")))","v":null},"https://likebk.com/","регистрация-сейчас","","","Россия","2,3","","-","Остановлено","Работает везде","Регистрация прямо сейчас||Форум||Новости||Рейтинг персонажей||||||||","Зарегистрируйтесь и вступите в наш бойцовский клуб||Обсудите все ваши достежения и задания с реальными игроками||Узнайте все новости о мире боев||Посмотрите рейтинг реальных персонажей||||||||","https://likebk.com/register||https://forum.likebk.com/||https://likebk.com/news||https://top.likebk.com/exp_raiting.php/||||||||","","","","","https://direct.yandex.ru/images/direct/2755869/3IBMyJLgOtEFlufmSO2mXQ","","","Отлична графика||MMORPG||Передача атмосферы||Увлекательная игра||Отличное качество","","","","","","","","","","",""]
["-","Текстово-графическое","-","4458363193","Группа 3","3","-","26433375036","новые онлайн mmorpg","10259215438","Компьютерная игра твоего детства.","Полное погружение в игру БК-2!","БК-2 компьютерная игра прямиком из 2000-х. Отличная графиа и полное погружение!",{"$f":"IF(K132=\"\",\"\",LEN(SUBSTITUTE(SUBSTITUTE(SUBSTITUTE(SUBSTITUTE(SUBSTITUTE(SUBSTITUTE(K132,\"!\",\"\"),\",\",\"\"),\".\",\"\"),\";\",\"\"),\":\",\"\"),\"\"\"\",\"\")))","v":null},{"$f":"IF(L132=\"\",\"\",LEN(SUBSTITUTE(SUBSTITUTE(SUBSTITUTE(SUBSTITUTE(SUBSTITUTE(SUBSTITUTE(L132,\"!\",\"\"),\",\",\"\"),\".\",\"\"),\";\",\"\"),\":\",\"\"),\"\"\"\",\"\")))","v":null},{"$f":"IF(M132=\"\",\"\",LEN(SUBSTITUTE(SUBSTITUTE(SUBSTITUTE(SUBSTITUTE(SUBSTITUTE(SUBSTITUTE(M132,\"!\",\"\"),\",\",\"\"),\".\",\"\"),\";\",\"\"),\":\",\"\"),\"\"\"\",\"\")))","v":null},"https://likebk.com/","регистрация-сейчас","","","Россия","2,3","","-","Остановлено","Работает везде","Регистрация прямо сейчас||Форум||Новости||Рейтинг персонажей||||||||","Зарегистрируйтесь и вступите в наш бойцовский клуб||Обсудите все ваши достежения и задания с реальными игроками||Узнайте все новости о мире боев||Посмотрите рейтинг реальных персонажей||||||||","https://likebk.com/register||https://forum.likebk.com/||https://likebk.com/news||https://top.likebk.com/exp_raiting.php/||||||||","","","","","https://direct.yandex.ru/images/direct/2755869/3IBMyJLgOtEFlufmSO2mXQ","","","Отлична графика||MMORPG||Передача атмосферы||Увлекательная игра||Отличное качество","","","","","","","","","","",""]
["-","Текстово-графическое","-","4458363193","Группа 3","3","-","26433375037","онлайн игры 2020 года mmorpg новинки","10259215438","Компьютерная игра твоего детства.","Полное погружение в игру БК-2!","БК-2 компьютерная игра прямиком из 2000-х. Отличная графиа и полное погружение!",{"$f":"IF(K133=\"\",\"\",LEN(SUBSTITUTE(SUBSTITUTE(SUBSTITUTE(SUBSTITUTE(SUBSTITUTE(SUBSTITUTE(K133,\"!\",\"\"),\",\",\"\"),\".\",\"\"),\";\",\"\"),\":\",\"\"),\"\"\"\",\"\")))","v":null},{"$f":"IF(L133=\"\",\"\",LEN(SUBSTITUTE(SUBSTITUTE(SUBSTITUTE(SUBSTITUTE(SUBSTITUTE(SUBSTITUTE(L133,\"!\",\"\"),\",\",\"\"),\".\",\"\"),\";\",\"\"),\":\",\"\"),\"\"\"\",\"\")))","v":null},{"$f":"IF(M133=\"\",\"\",LEN(SUBSTITUTE(SUBSTITUTE(SUBSTITUTE(SUBSTITUTE(SUBSTITUTE(SUBSTITUTE(M133,\"!\",\"\"),\",\",\"\"),\".\",\"\"),\";\",\"\"),\":\",\"\"),\"\"\"\",\"\")))","v":null},"https://likebk.com/","регистрация-сейчас","","","Россия","2,3","","-","Остановлено","Работает везде","Регистрация прямо сейчас||Форум||Новости||Рейтинг персонажей||||||||","Зарегистрируйтесь и вступите в наш бойцовский клуб||Обсудите все ваши достежения и задания с реальными игроками||Узнайте все новости о мире боев||Посмотрите рейтинг реальных персонажей||||||||","https://likebk.com/register||https://forum.likebk.com/||https://likebk.com/news||https://top.likebk.com/exp_raiting.php/||||||||","","","","","https://direct.yandex.ru/images/direct/2755869/3IBMyJLgOtEFlufmSO2mXQ","","","Отлична графика||MMORPG||Передача атмосферы||Увлекательная игра||Отличное качество","","","","","","","","","","",""]
["-","Текстово-графическое","-","4458363193","Группа 3","3","-","26433375038","онлайн игры mmorpg","10259215438","Компьютерная игра твоего детства.","Полное погружение в игру БК-2!","БК-2 компьютерная игра прямиком из 2000-х. Отличная графиа и полное погружение!",{"$f":"IF(K134=\"\",\"\",LEN(SUBSTITUTE(SUBSTITUTE(SUBSTITUTE(SUBSTITUTE(SUBSTITUTE(SUBSTITUTE(K134,\"!\",\"\"),\",\",\"\"),\".\",\"\"),\";\",\"\"),\":\",\"\"),\"\"\"\",\"\")))","v":null},{"$f":"IF(L134=\"\",\"\",LEN(SUBSTITUTE(SUBSTITUTE(SUBSTITUTE(SUBSTITUTE(SUBSTITUTE(SUBSTITUTE(L134,\"!\",\"\"),\",\",\"\"),\".\",\"\"),\";\",\"\"),\":\",\"\"),\"\"\"\",\"\")))","v":null},{"$f":"IF(M134=\"\",\"\",LEN(SUBSTITUTE(SUBSTITUTE(SUBSTITUTE(SUBSTITUTE(SUBSTITUTE(SUBSTITUTE(M134,\"!\",\"\"),\",\",\"\"),\".\",\"\"),\";\",\"\"),\":\",\"\"),\"\"\"\",\"\")))","v":null},"https://likebk.com/","регистрация-сейчас","","","Россия","2,3","","-","Остановлено","Работает везде","Регистрация прямо сейчас||Форум||Новости||Рейтинг персонажей||||||||","Зарегистрируйтесь и вступите в наш бойцовский клуб||Обсудите все ваши достежения и задания с реальными игроками||Узнайте все новости о мире боев||Посмотрите рейтинг реальных персонажей||||||||","https://likebk.com/register||https://forum.likebk.com/||https://likebk.com/news||https://top.likebk.com/exp_raiting.php/||||||||","","","","","https://direct.yandex.ru/images/direct/2755869/3IBMyJLgOtEFlufmSO2mXQ","","","Отлична графика||MMORPG||Передача атмосферы||Увлекательная игра||Отличное качество","","","","","","","","","","",""]
["-","Текстово-графическое","-","4458363193","Группа 3","3","-","26433375039","онлайн игры mmorpg клиентские","10259215438","Компьютерная игра твоего детства.","Полное погружение в игру БК-2!","БК-2 компьютерная игра прямиком из 2000-х. Отличная графиа и полное погружение!",{"$f":"IF(K135=\"\",\"\",LEN(SUBSTITUTE(SUBSTITUTE(SUBSTITUTE(SUBSTITUTE(SUBSTITUTE(SUBSTITUTE(K135,\"!\",\"\"),\",\",\"\"),\".\",\"\"),\";\",\"\"),\":\",\"\"),\"\"\"\",\"\")))","v":null},{"$f":"IF(L135=\"\",\"\",LEN(SUBSTITUTE(SUBSTITUTE(SUBSTITUTE(SUBSTITUTE(SUBSTITUTE(SUBSTITUTE(L135,\"!\",\"\"),\",\",\"\"),\".\",\"\"),\";\",\"\"),\":\",\"\"),\"\"\"\",\"\")))","v":null},{"$f":"IF(M135=\"\",\"\",LEN(SUBSTITUTE(SUBSTITUTE(SUBSTITUTE(SUBSTITUTE(SUBSTITUTE(SUBSTITUTE(M135,\"!\",\"\"),\",\",\"\"),\".\",\"\"),\";\",\"\"),\":\",\"\"),\"\"\"\",\"\")))","v":null},"https://likebk.com/","регистрация-сейчас","","","Россия","2,3","","-","Остановлено","Работает везде","Регистрация прямо сейчас||Форум||Новости||Рейтинг персонажей||||||||","Зарегистрируйтесь и вступите в наш бойцовский клуб||Обсудите все ваши достежения и задания с реальными игроками||Узнайте все новости о мире боев||Посмотрите рейтинг реальных персонажей||||||||","https://likebk.com/register||https://forum.likebk.com/||https://likebk.com/news||https://top.likebk.com/exp_raiting.php/||||||||","","","","","https://direct.yandex.ru/images/direct/2755869/3IBMyJLgOtEFlufmSO2mXQ","","","Отлична графика||MMORPG||Передача атмосферы||Увлекательная игра||Отличное качество","","","","","","","","","","",""]
["-","Текстово-графическое","-","4458363193","Группа 3","3","-","26433375040","онлайн игры жанре mmorpg","10259215438","Компьютерная игра твоего детства.","Полное погружение в игру БК-2!","БК-2 компьютерная игра прямиком из 2000-х. Отличная графиа и полное погружение!",{"$f":"IF(K136=\"\",\"\",LEN(SUBSTITUTE(SUBSTITUTE(SUBSTITUTE(SUBSTITUTE(SUBSTITUTE(SUBSTITUTE(K136,\"!\",\"\"),\",\",\"\"),\".\",\"\"),\";\",\"\"),\":\",\"\"),\"\"\"\",\"\")))","v":null},{"$f":"IF(L136=\"\",\"\",LEN(SUBSTITUTE(SUBSTITUTE(SUBSTITUTE(SUBSTITUTE(SUBSTITUTE(SUBSTITUTE(L136,\"!\",\"\"),\",\",\"\"),\".\",\"\"),\";\",\"\"),\":\",\"\"),\"\"\"\",\"\")))","v":null},{"$f":"IF(M136=\"\",\"\",LEN(SUBSTITUTE(SUBSTITUTE(SUBSTITUTE(SUBSTITUTE(SUBSTITUTE(SUBSTITUTE(M136,\"!\",\"\"),\",\",\"\"),\".\",\"\"),\";\",\"\"),\":\",\"\"),\"\"\"\",\"\")))","v":null},"https://likebk.com/","регистрация-сейчас","","","Россия","2,3","","-","Остановлено","Работает везде","Регистрация прямо сейчас||Форум||Новости||Рейтинг персонажей||||||||","Зарегистрируйтесь и вступите в наш бойцовский клуб||Обсудите все ваши достежения и задания с реальными игроками||Узнайте все новости о мире боев||Посмотрите рейтинг реальных персонажей||||||||","https://likebk.com/register||https://forum.likebk.com/||https://likebk.com/news||https://top.likebk.com/exp_raiting.php/||||||||","","","","","https://direct.yandex.ru/images/direct/2755869/3IBMyJLgOtEFlufmSO2mXQ","","","Отлична графика||MMORPG||Передача атмосферы||Увлекательная игра||Отличное качество","","","","","","","","","","",""]
["-","Текстово-графическое","-","4458363193","Группа 3","3","-","26433375041","русские онлайн mmorpg","10259215438","Компьютерная игра твоего детства.","Полное погружение в игру БК-2!","БК-2 компьютерная игра прямиком из 2000-х. Отличная графиа и полное погружение!",{"$f":"IF(K137=\"\",\"\",LEN(SUBSTITUTE(SUBSTITUTE(SUBSTITUTE(SUBSTITUTE(SUBSTITUTE(SUBSTITUTE(K137,\"!\",\"\"),\",\",\"\"),\".\",\"\"),\";\",\"\"),\":\",\"\"),\"\"\"\",\"\")))","v":null},{"$f":"IF(L137=\"\",\"\",LEN(SUBSTITUTE(SUBSTITUTE(SUBSTITUTE(SUBSTITUTE(SUBSTITUTE(SUBSTITUTE(L137,\"!\",\"\"),\",\",\"\"),\".\",\"\"),\";\",\"\"),\":\",\"\"),\"\"\"\",\"\")))","v":null},{"$f":"IF(M137=\"\",\"\",LEN(SUBSTITUTE(SUBSTITUTE(SUBSTITUTE(SUBSTITUTE(SUBSTITUTE(SUBSTITUTE(M137,\"!\",\"\"),\",\",\"\"),\".\",\"\"),\";\",\"\"),\":\",\"\"),\"\"\"\",\"\")))","v":null},"https://likebk.com/","регистрация-сейчас","","","Россия","2,3","","-","Остановлено","Работает везде","Регистрация прямо сейчас||Форум||Новости||Рейтинг персонажей||||||||","Зарегистрируйтесь и вступите в наш бойцовский клуб||Обсудите все ваши достежения и задания с реальными игроками||Узнайте все новости о мире боев||Посмотрите рейтинг реальных персонажей||||||||","https://likebk.com/register||https://forum.likebk.com/||https://likebk.com/news||https://top.likebk.com/exp_raiting.php/||||||||","","","","","https://direct.yandex.ru/images/direct/2755869/3IBMyJLgOtEFlufmSO2mXQ","","","Отлична графика||MMORPG||Передача атмосферы||Увлекательная игра||Отличное качество","","","","","","","","","","",""]
["-","Текстово-графическое","-","4458363193","Группа 3","3","-","26433375042","список онлайн mmorpg","10259215438","Компьютерная игра твоего детства.","Полное погружение в игру БК-2!","БК-2 компьютерная игра прямиком из 2000-х. Отличная графиа и полное погружение!",{"$f":"IF(K138=\"\",\"\",LEN(SUBSTITUTE(SUBSTITUTE(SUBSTITUTE(SUBSTITUTE(SUBSTITUTE(SUBSTITUTE(K138,\"!\",\"\"),\",\",\"\"),\".\",\"\"),\";\",\"\"),\":\",\"\"),\"\"\"\",\"\")))","v":null},{"$f":"IF(L138=\"\",\"\",LEN(SUBSTITUTE(SUBSTITUTE(SUBSTITUTE(SUBSTITUTE(SUBSTITUTE(SUBSTITUTE(L138,\"!\",\"\"),\",\",\"\"),\".\",\"\"),\";\",\"\"),\":\",\"\"),\"\"\"\",\"\")))","v":null},{"$f":"IF(M138=\"\",\"\",LEN(SUBSTITUTE(SUBSTITUTE(SUBSTITUTE(SUBSTITUTE(SUBSTITUTE(SUBSTITUTE(M138,\"!\",\"\"),\",\",\"\"),\".\",\"\"),\";\",\"\"),\":\",\"\"),\"\"\"\",\"\")))","v":null},"https://likebk.com/","регистрация-сейчас","","","Россия","2,3","","-","Остановлено","Работает везде","Регистрация прямо сейчас||Форум||Новости||Рейтинг персонажей||||||||","Зарегистрируйтесь и вступите в наш бойцовский клуб||Обсудите все ваши достежения и задания с реальными игроками||Узнайте все новости о мире боев||Посмотрите рейтинг реальных персонажей||||||||","https://likebk.com/register||https://forum.likebk.com/||https://likebk.com/news||https://top.likebk.com/exp_raiting.php/||||||||","","","","","https://direct.yandex.ru/images/direct/2755869/3IBMyJLgOtEFlufmSO2mXQ","","","Отлична графика||MMORPG||Передача атмосферы||Увлекательная игра||Отличное качество","","","","","","","","","","",""]
["+","Текстово-графическое","-","4458363193","Группа 3","3","-","","","10259215439","Компьютерная игра твоего детства.","Реалистическая графика!","БК-2 компьютерная игра прямиком из 2000-х. Отличная графиа и полное погружение!",{"$f":"IF(K139=\"\",\"\",LEN(SUBSTITUTE(SUBSTITUTE(SUBSTITUTE(SUBSTITUTE(SUBSTITUTE(SUBSTITUTE(K139,\"!\",\"\"),\",\",\"\"),\".\",\"\"),\";\",\"\"),\":\",\"\"),\"\"\"\",\"\")))","v":null},{"$f":"IF(L139=\"\",\"\",LEN(SUBSTITUTE(SUBSTITUTE(SUBSTITUTE(SUBSTITUTE(SUBSTITUTE(SUBSTITUTE(L139,\"!\",\"\"),\",\",\"\"),\".\",\"\"),\";\",\"\"),\":\",\"\"),\"\"\"\",\"\")))","v":null},{"$f":"IF(M139=\"\",\"\",LEN(SUBSTITUTE(SUBSTITUTE(SUBSTITUTE(SUBSTITUTE(SUBSTITUTE(SUBSTITUTE(M139,\"!\",\"\"),\",\",\"\"),\".\",\"\"),\";\",\"\"),\":\",\"\"),\"\"\"\",\"\")))","v":null},"https://likebk.com/","регистрация-сейчас","","","","","","-","Остановлено","","Регистрация прямо сейчас||Форум||Новости||Рейтинг персонажей||||||||","Зарегистрируйтесь и вступите в наш бойцовский клуб||Обсудите все ваши достежения и задания с реальными игроками||Узнайте все новости о мире боев||Посмотрите рейтинг реальных персонажей||||||||","https://likebk.com/register||https://forum.likebk.com/||https://likebk.com/news||https://top.likebk.com/exp_raiting.php/||||||||","","","","","https://direct.yandex.ru/images/direct/2755869/3IBMyJLgOtEFlufmSO2mXQ","","","Отлична графика||MMORPG||Передача атмосферы||Увлекательная игра||Отличное качество","","","","","","","","","","",""]
["+","Текстово-графическое","-","4458363193","Группа 3","3","-","","","10259215441","Компьютерная игра твоего детства.","Уникальный мир с населением!","БК-2 компьютерная игра прямиком из 2000-х. Отличная графиа и полное погружение!",{"$f":"IF(K140=\"\",\"\",LEN(SUBSTITUTE(SUBSTITUTE(SUBSTITUTE(SUBSTITUTE(SUBSTITUTE(SUBSTITUTE(K140,\"!\",\"\"),\",\",\"\"),\".\",\"\"),\";\",\"\"),\":\",\"\"),\"\"\"\",\"\")))","v":null},{"$f":"IF(L140=\"\",\"\",LEN(SUBSTITUTE(SUBSTITUTE(SUBSTITUTE(SUBSTITUTE(SUBSTITUTE(SUBSTITUTE(L140,\"!\",\"\"),\",\",\"\"),\".\",\"\"),\";\",\"\"),\":\",\"\"),\"\"\"\",\"\")))","v":null},{"$f":"IF(M140=\"\",\"\",LEN(SUBSTITUTE(SUBSTITUTE(SUBSTITUTE(SUBSTITUTE(SUBSTITUTE(SUBSTITUTE(M140,\"!\",\"\"),\",\",\"\"),\".\",\"\"),\";\",\"\"),\":\",\"\"),\"\"\"\",\"\")))","v":null},"https://likebk.com/","регистрация-сейчас","","","","","","-","Остановлено","","Регистрация прямо сейчас||Форум||Новости||Рейтинг персонажей||||||||","Зарегистрируйтесь и вступите в наш бойцовский клуб||Обсудите все ваши достежения и задания с реальными игроками||Узнайте все новости о мире боев||Посмотрите рейтинг реальных персонажей||||||||","https://likebk.com/register||https://forum.likebk.com/||https://likebk.com/news||https://top.likebk.com/exp_raiting.php/||||||||","","","","","https://direct.yandex.ru/images/direct/2755869/3IBMyJLgOtEFlufmSO2mXQ","","","Отлична графика||MMORPG||Передача атмосферы||Увлекательная игра||Отличное качество","","","","","","","","","","",""]
["-","Текстово-графическое","-","4458363194","Группа 4","4","-","26433375043","бойцовский клуб игра онлайн","10259215442","Компьютерная игра твоего детства.","Полное погружение в игру БК-2!","БК-2 компьютерная игра прямиком из 2000-х. Отличная графиа и полное погружение!",{"$f":"IF(K141=\"\",\"\",LEN(SUBSTITUTE(SUBSTITUTE(SUBSTITUTE(SUBSTITUTE(SUBSTITUTE(SUBSTITUTE(K141,\"!\",\"\"),\",\",\"\"),\".\",\"\"),\";\",\"\"),\":\",\"\"),\"\"\"\",\"\")))","v":null},{"$f":"IF(L141=\"\",\"\",LEN(SUBSTITUTE(SUBSTITUTE(SUBSTITUTE(SUBSTITUTE(SUBSTITUTE(SUBSTITUTE(L141,\"!\",\"\"),\",\",\"\"),\".\",\"\"),\";\",\"\"),\":\",\"\"),\"\"\"\",\"\")))","v":null},{"$f":"IF(M141=\"\",\"\",LEN(SUBSTITUTE(SUBSTITUTE(SUBSTITUTE(SUBSTITUTE(SUBSTITUTE(SUBSTITUTE(M141,\"!\",\"\"),\",\",\"\"),\".\",\"\"),\";\",\"\"),\":\",\"\"),\"\"\"\",\"\")))","v":null},"https://likebk.com/","регистрация-сейчас","","","Россия","2,3","","-","Остановлено","Работает везде","Регистрация прямо сейчас||Форум||Новости||Рейтинг персонажей||||||||","Зарегистрируйтесь и вступите в наш бойцовский клуб||Обсудите все ваши достежения и задания с реальными игроками||Узнайте все новости о мире боев||Посмотрите рейтинг реальных персонажей||||||||","https://likebk.com/register||https://forum.likebk.com/||https://likebk.com/news||https://top.likebk.com/exp_raiting.php/||||||||","","","","","https://direct.yandex.ru/images/direct/2713883/2Tn8r0GsCf55Nw7gxbXQ5g","","","Отлична графика||MMORPG||Передача атмосферы||Увлекательная игра||Отличное качество","","","","","","","","","","",""]
["-","Текстово-графическое","-","4458363194","Группа 4","4","-","26433375044","бойцовский клуб играть","10259215442","Компьютерная игра твоего детства.","Полное погружение в игру БК-2!","БК-2 компьютерная игра прямиком из 2000-х. Отличная графиа и полное погружение!",{"$f":"IF(K142=\"\",\"\",LEN(SUBSTITUTE(SUBSTITUTE(SUBSTITUTE(SUBSTITUTE(SUBSTITUTE(SUBSTITUTE(K142,\"!\",\"\"),\",\",\"\"),\".\",\"\"),\";\",\"\"),\":\",\"\"),\"\"\"\",\"\")))","v":null},{"$f":"IF(L142=\"\",\"\",LEN(SUBSTITUTE(SUBSTITUTE(SUBSTITUTE(SUBSTITUTE(SUBSTITUTE(SUBSTITUTE(L142,\"!\",\"\"),\",\",\"\"),\".\",\"\"),\";\",\"\"),\":\",\"\"),\"\"\"\",\"\")))","v":null},{"$f":"IF(M142=\"\",\"\",LEN(SUBSTITUTE(SUBSTITUTE(SUBSTITUTE(SUBSTITUTE(SUBSTITUTE(SUBSTITUTE(M142,\"!\",\"\"),\",\",\"\"),\".\",\"\"),\";\",\"\"),\":\",\"\"),\"\"\"\",\"\")))","v":null},"https://likebk.com/","регистрация-сейчас","","","Россия","2,3","","-","Остановлено","Работает везде","Регистрация прямо сейчас||Форум||Новости||Рейтинг персонажей||||||||","Зарегистрируйтесь и вступите в наш бойцовский клуб||Обсудите все ваши достежения и задания с реальными игроками||Узнайте все новости о мире боев||Посмотрите рейтинг реальных персонажей||||||||","https://likebk.com/register||https://forum.likebk.com/||https://likebk.com/news||https://top.likebk.com/exp_raiting.php/||||||||","","","","","https://direct.yandex.ru/images/direct/2713883/2Tn8r0GsCf55Nw7gxbXQ5g","","","Отлична графика||MMORPG||Передача атмосферы||Увлекательная игра||Отличное качество","","","","","","","","","","",""]
["-","Текстово-графическое","-","4458363194","Группа 4","4","-","26433375045","онлайн игра детства","10259215442","Компьютерная игра твоего детства.","Полное погружение в игру БК-2!","БК-2 компьютерная игра прямиком из 2000-х. Отличная графиа и полное погружение!",{"$f":"IF(K143=\"\",\"\",LEN(SUBSTITUTE(SUBSTITUTE(SUBSTITUTE(SUBSTITUTE(SUBSTITUTE(SUBSTITUTE(K143,\"!\",\"\"),\",\",\"\"),\".\",\"\"),\";\",\"\"),\":\",\"\"),\"\"\"\",\"\")))","v":null},{"$f":"IF(L143=\"\",\"\",LEN(SUBSTITUTE(SUBSTITUTE(SUBSTITUTE(SUBSTITUTE(SUBSTITUTE(SUBSTITUTE(L143,\"!\",\"\"),\",\",\"\"),\".\",\"\"),\";\",\"\"),\":\",\"\"),\"\"\"\",\"\")))","v":null},{"$f":"IF(M143=\"\",\"\",LEN(SUBSTITUTE(SUBSTITUTE(SUBSTITUTE(SUBSTITUTE(SUBSTITUTE(SUBSTITUTE(M143,\"!\",\"\"),\",\",\"\"),\".\",\"\"),\";\",\"\"),\":\",\"\"),\"\"\"\",\"\")))","v":null},"https://likebk.com/","регистрация-сейчас","","","Россия","2,3","","-","Остановлено","Работает везде","Регистрация прямо сейчас||Форум||Новости||Рейтинг персонажей||||||||","Зарегистрируйтесь и вступите в наш бойцовский клуб||Обсудите все ваши достежения и задания с реальными игроками||Узнайте все новости о мире боев||Посмотрите рейтинг реальных персонажей||||||||","https://likebk.com/register||https://forum.likebk.com/||https://likebk.com/news||https://top.likebk.com/exp_raiting.php/||||||||","","","","","https://direct.yandex.ru/images/direct/2713883/2Tn8r0GsCf55Nw7gxbXQ5g","","","Отлична графика||MMORPG||Передача атмосферы||Увлекательная игра||Отличное качество","","","","","","","","","","",""]
["-","Текстово-графическое","-","4458363194","Группа 4","4","-","26433375046","игра бойцовский клуб","10259215442","Компьютерная игра твоего детства.","Полное погружение в игру БК-2!","БК-2 компьютерная игра прямиком из 2000-х. Отличная графиа и полное погружение!",{"$f":"IF(K144=\"\",\"\",LEN(SUBSTITUTE(SUBSTITUTE(SUBSTITUTE(SUBSTITUTE(SUBSTITUTE(SUBSTITUTE(K144,\"!\",\"\"),\",\",\"\"),\".\",\"\"),\";\",\"\"),\":\",\"\"),\"\"\"\",\"\")))","v":null},{"$f":"IF(L144=\"\",\"\",LEN(SUBSTITUTE(SUBSTITUTE(SUBSTITUTE(SUBSTITUTE(SUBSTITUTE(SUBSTITUTE(L144,\"!\",\"\"),\",\",\"\"),\".\",\"\"),\";\",\"\"),\":\",\"\"),\"\"\"\",\"\")))","v":null},{"$f":"IF(M144=\"\",\"\",LEN(SUBSTITUTE(SUBSTITUTE(SUBSTITUTE(SUBSTITUTE(SUBSTITUTE(SUBSTITUTE(M144,\"!\",\"\"),\",\",\"\"),\".\",\"\"),\";\",\"\"),\":\",\"\"),\"\"\"\",\"\")))","v":null},"https://likebk.com/","регистрация-сейчас","","","Россия","2,3","","-","Остановлено","Работает везде","Регистрация прямо сейчас||Форум||Новости||Рейтинг персонажей||||||||","Зарегистрируйтесь и вступите в наш бойцовский клуб||Обсудите все ваши достежения и задания с реальными игроками||Узнайте все новости о мире боев||Посмотрите рейтинг реальных персонажей||||||||","https://likebk.com/register||https://forum.likebk.com/||https://likebk.com/news||https://top.likebk.com/exp_raiting.php/||||||||","","","","","https://direct.yandex.ru/images/direct/2713883/2Tn8r0GsCf55Nw7gxbXQ5g","","","Отлична графика||MMORPG||Передача атмосферы||Увлекательная игра||Отличное качество","","","","","","","","","","",""]
["-","Текстово-графическое","-","4458363194","Группа 4","4","-","26433375047","новый бойцовский клуб онлайн игра","10259215442","Компьютерная игра твоего детства.","Полное погружение в игру БК-2!","БК-2 компьютерная игра прямиком из 2000-х. Отличная графиа и полное погружение!",{"$f":"IF(K145=\"\",\"\",LEN(SUBSTITUTE(SUBSTITUTE(SUBSTITUTE(SUBSTITUTE(SUBSTITUTE(SUBSTITUTE(K145,\"!\",\"\"),\",\",\"\"),\".\",\"\"),\";\",\"\"),\":\",\"\"),\"\"\"\",\"\")))","v":null},{"$f":"IF(L145=\"\",\"\",LEN(SUBSTITUTE(SUBSTITUTE(SUBSTITUTE(SUBSTITUTE(SUBSTITUTE(SUBSTITUTE(L145,\"!\",\"\"),\",\",\"\"),\".\",\"\"),\";\",\"\"),\":\",\"\"),\"\"\"\",\"\")))","v":null},{"$f":"IF(M145=\"\",\"\",LEN(SUBSTITUTE(SUBSTITUTE(SUBSTITUTE(SUBSTITUTE(SUBSTITUTE(SUBSTITUTE(M145,\"!\",\"\"),\",\",\"\"),\".\",\"\"),\";\",\"\"),\":\",\"\"),\"\"\"\",\"\")))","v":null},"https://likebk.com/","регистрация-сейчас","","","Россия","2,3","","-","Остановлено","Работает везде","Регистрация прямо сейчас||Форум||Новости||Рейтинг персонажей||||||||","Зарегистрируйтесь и вступите в наш бойцовский клуб||Обсудите все ваши достежения и задания с реальными игроками||Узнайте все новости о мире боев||Посмотрите рейтинг реальных персонажей||||||||","https://likebk.com/register||https://forum.likebk.com/||https://likebk.com/news||https://top.likebk.com/exp_raiting.php/||||||||","","","","","https://direct.yandex.ru/images/direct/2713883/2Tn8r0GsCf55Nw7gxbXQ5g","","","Отлична графика||MMORPG||Передача атмосферы||Увлекательная игра||Отличное качество","","","","","","","","","","",""]
["-","Текстово-графическое","-","4458363194","Группа 4","4","-","26433375048","старый бойцовский клуб игра","10259215442","Компьютерная игра твоего детства.","Полное погружение в игру БК-2!","БК-2 компьютерная игра прямиком из 2000-х. Отличная графиа и полное погружение!",{"$f":"IF(K146=\"\",\"\",LEN(SUBSTITUTE(SUBSTITUTE(SUBSTITUTE(SUBSTITUTE(SUBSTITUTE(SUBSTITUTE(K146,\"!\",\"\"),\",\",\"\"),\".\",\"\"),\";\",\"\"),\":\",\"\"),\"\"\"\",\"\")))","v":null},{"$f":"IF(L146=\"\",\"\",LEN(SUBSTITUTE(SUBSTITUTE(SUBSTITUTE(SUBSTITUTE(SUBSTITUTE(SUBSTITUTE(L146,\"!\",\"\"),\",\",\"\"),\".\",\"\"),\";\",\"\"),\":\",\"\"),\"\"\"\",\"\")))","v":null},{"$f":"IF(M146=\"\",\"\",LEN(SUBSTITUTE(SUBSTITUTE(SUBSTITUTE(SUBSTITUTE(SUBSTITUTE(SUBSTITUTE(M146,\"!\",\"\"),\",\",\"\"),\".\",\"\"),\";\",\"\"),\":\",\"\"),\"\"\"\",\"\")))","v":null},"https://likebk.com/","регистрация-сейчас","","","Россия","2,3","","-","Остановлено","Работает везде","Регистрация прямо сейчас||Форум||Новости||Рейтинг персонажей||||||||","Зарегистрируйтесь и вступите в наш бойцовский клуб||Обсудите все ваши достежения и задания с реальными игроками||Узнайте все новости о мире боев||Посмотрите рейтинг реальных персонажей||||||||","https://likebk.com/register||https://forum.likebk.com/||https://likebk.com/news||https://top.likebk.com/exp_raiting.php/||||||||","","","","","https://direct.yandex.ru/images/direct/2713883/2Tn8r0GsCf55Nw7gxbXQ5g","","","Отлична графика||MMORPG||Передача атмосферы||Увлекательная игра||Отличное качество","","","","","","","","","","",""]
["-","Текстово-графическое","-","4458363194","Группа 4","4","-","26433375049","бойцовский клуб браузерная игра","10259215442","Компьютерная игра твоего детства.","Полное погружение в игру БК-2!","БК-2 компьютерная игра прямиком из 2000-х. Отличная графиа и полное погружение!",{"$f":"IF(K147=\"\",\"\",LEN(SUBSTITUTE(SUBSTITUTE(SUBSTITUTE(SUBSTITUTE(SUBSTITUTE(SUBSTITUTE(K147,\"!\",\"\"),\",\",\"\"),\".\",\"\"),\";\",\"\"),\":\",\"\"),\"\"\"\",\"\")))","v":null},{"$f":"IF(L147=\"\",\"\",LEN(SUBSTITUTE(SUBSTITUTE(SUBSTITUTE(SUBSTITUTE(SUBSTITUTE(SUBSTITUTE(L147,\"!\",\"\"),\",\",\"\"),\".\",\"\"),\";\",\"\"),\":\",\"\"),\"\"\"\",\"\")))","v":null},{"$f":"IF(M147=\"\",\"\",LEN(SUBSTITUTE(SUBSTITUTE(SUBSTITUTE(SUBSTITUTE(SUBSTITUTE(SUBSTITUTE(M147,\"!\",\"\"),\",\",\"\"),\".\",\"\"),\";\",\"\"),\":\",\"\"),\"\"\"\",\"\")))","v":null},"https://likebk.com/","регистрация-сейчас","","","Россия","2,3","","-","Остановлено","Работает везде","Регистрация прямо сейчас||Форум||Новости||Рейтинг персонажей||||||||","Зарегистрируйтесь и вступите в наш бойцовский клуб||Обсудите все ваши достежения и задания с реальными игроками||Узнайте все новости о мире боев||Посмотрите рейтинг реальных персонажей||||||||","https://likebk.com/register||https://forum.likebk.com/||https://likebk.com/news||https://top.likebk.com/exp_raiting.php/||||||||","","","","","https://direct.yandex.ru/images/direct/2713883/2Tn8r0GsCf55Nw7gxbXQ5g","","","Отлична графика||MMORPG||Передача атмосферы||Увлекательная игра||Отличное качество","","","","","","","","","","",""]
["-","Текстово-графическое","-","4458363194","Группа 4","4","-","26433375050","старый бойцовский клуб онлайн игра","10259215442","Компьютерная игра твоего детства.","Полное погружение в игру БК-2!","БК-2 компьютерная игра прямиком из 2000-х. Отличная графиа и полное погружение!",{"$f":"IF(K148=\"\",\"\",LEN(SUBSTITUTE(SUBSTITUTE(SUBSTITUTE(SUBSTITUTE(SUBSTITUTE(SUBSTITUTE(K148,\"!\",\"\"),\",\",\"\"),\".\",\"\"),\";\",\"\"),\":\",\"\"),\"\"\"\",\"\")))","v":null},{"$f":"IF(L148=\"\",\"\",LEN(SUBSTITUTE(SUBSTITUTE(SUBSTITUTE(SUBSTITUTE(SUBSTITUTE(SUBSTITUTE(L148,\"!\",\"\"),\",\",\"\"),\".\",\"\"),\";\",\"\"),\":\",\"\"),\"\"\"\",\"\")))","v":null},{"$f":"IF(M148=\"\",\"\",LEN(SUBSTITUTE(SUBSTITUTE(SUBSTITUTE(SUBSTITUTE(SUBSTITUTE(SUBSTITUTE(M148,\"!\",\"\"),\",\",\"\"),\".\",\"\"),\";\",\"\"),\":\",\"\"),\"\"\"\",\"\")))","v":null},"https://likebk.com/","регистрация-сейчас","","","Россия","2,3","","-","Остановлено","Работает везде","Регистрация прямо сейчас||Форум||Новости||Рейтинг персонажей||||||||","Зарегистрируйтесь и вступите в наш бойцовский клуб||Обсудите все ваши достежения и задания с реальными игроками||Узнайте все новости о мире боев||Посмотрите рейтинг реальных персонажей||||||||","https://likebk.com/register||https://forum.likebk.com/||https://likebk.com/news||https://top.likebk.com/exp_raiting.php/||||||||","","","","","https://direct.yandex.ru/images/direct/2713883/2Tn8r0GsCf55Nw7gxbXQ5g","","","Отлична графика||MMORPG||Передача атмосферы||Увлекательная игра||Отличное качество","","","","","","","","","","",""]
["-","Текстово-графическое","-","4458363194","Группа 4","4","-","26433375051","likebk бойцовский клуб","10259215442","Компьютерная игра твоего детства.","Полное погружение в игру БК-2!","БК-2 компьютерная игра прямиком из 2000-х. Отличная графиа и полное погружение!",{"$f":"IF(K149=\"\",\"\",LEN(SUBSTITUTE(SUBSTITUTE(SUBSTITUTE(SUBSTITUTE(SUBSTITUTE(SUBSTITUTE(K149,\"!\",\"\"),\",\",\"\"),\".\",\"\"),\";\",\"\"),\":\",\"\"),\"\"\"\",\"\")))","v":null},{"$f":"IF(L149=\"\",\"\",LEN(SUBSTITUTE(SUBSTITUTE(SUBSTITUTE(SUBSTITUTE(SUBSTITUTE(SUBSTITUTE(L149,\"!\",\"\"),\",\",\"\"),\".\",\"\"),\";\",\"\"),\":\",\"\"),\"\"\"\",\"\")))","v":null},{"$f":"IF(M149=\"\",\"\",LEN(SUBSTITUTE(SUBSTITUTE(SUBSTITUTE(SUBSTITUTE(SUBSTITUTE(SUBSTITUTE(M149,\"!\",\"\"),\",\",\"\"),\".\",\"\"),\";\",\"\"),\":\",\"\"),\"\"\"\",\"\")))","v":null},"https://likebk.com/","регистрация-сейчас","","","Россия","2,3","","-","Остановлено","Работает везде","Регистрация прямо сейчас||Форум||Новости||Рейтинг персонажей||||||||","Зарегистрируйтесь и вступите в наш бойцовский клуб||Обсудите все ваши достежения и задания с реальными игроками||Узнайте все новости о мире боев||Посмотрите рейтинг реальных персонажей||||||||","https://likebk.com/register||https://forum.likebk.com/||https://likebk.com/news||https://top.likebk.com/exp_raiting.php/||||||||","","","","","https://direct.yandex.ru/images/direct/2713883/2Tn8r0GsCf55Nw7gxbXQ5g","","","Отлична графика||MMORPG||Передача атмосферы||Увлекательная игра||Отличное качество","","","","","","","","","","",""]
["-","Текстово-графическое","-","4458363194","Группа 4","4","-","26433375052","браузерные игры типа бк","10259215442","Компьютерная игра твоего детства.","Полное погружение в игру БК-2!","БК-2 компьютерная игра прямиком из 2000-х. Отличная графиа и полное погружение!",{"$f":"IF(K150=\"\",\"\",LEN(SUBSTITUTE(SUBSTITUTE(SUBSTITUTE(SUBSTITUTE(SUBSTITUTE(SUBSTITUTE(K150,\"!\",\"\"),\",\",\"\"),\".\",\"\"),\";\",\"\"),\":\",\"\"),\"\"\"\",\"\")))","v":null},{"$f":"IF(L150=\"\",\"\",LEN(SUBSTITUTE(SUBSTITUTE(SUBSTITUTE(SUBSTITUTE(SUBSTITUTE(SUBSTITUTE(L150,\"!\",\"\"),\",\",\"\"),\".\",\"\"),\";\",\"\"),\":\",\"\"),\"\"\"\",\"\")))","v":null},{"$f":"IF(M150=\"\",\"\",LEN(SUBSTITUTE(SUBSTITUTE(SUBSTITUTE(SUBSTITUTE(SUBSTITUTE(SUBSTITUTE(M150,\"!\",\"\"),\",\",\"\"),\".\",\"\"),\";\",\"\"),\":\",\"\"),\"\"\"\",\"\")))","v":null},"https://likebk.com/","регистрация-сейчас","","","Россия","2,3","","-","Остановлено","Работает везде","Регистрация прямо сейчас||Форум||Новости||Рейтинг персонажей||||||||","Зарегистрируйтесь и вступите в наш бойцовский клуб||Обсудите все ваши достежения и задания с реальными игроками||Узнайте все новости о мире боев||Посмотрите рейтинг реальных персонажей||||||||","https://likebk.com/register||https://forum.likebk.com/||https://likebk.com/news||https://top.likebk.com/exp_raiting.php/||||||||","","","","","https://direct.yandex.ru/images/direct/2713883/2Tn8r0GsCf55Nw7gxbXQ5g","","","Отлична графика||MMORPG||Передача атмосферы||Увлекательная игра||Отличное качество","","","","","","","","","","",""]
["-","Текстово-графическое","-","4458363194","Группа 4","4","-","26433375053","бойцовский клуб игра 2018","10259215442","Компьютерная игра твоего детства.","Полное погружение в игру БК-2!","БК-2 компьютерная игра прямиком из 2000-х. Отличная графиа и полное погружение!",{"$f":"IF(K151=\"\",\"\",LEN(SUBSTITUTE(SUBSTITUTE(SUBSTITUTE(SUBSTITUTE(SUBSTITUTE(SUBSTITUTE(K151,\"!\",\"\"),\",\",\"\"),\".\",\"\"),\";\",\"\"),\":\",\"\"),\"\"\"\",\"\")))","v":null},{"$f":"IF(L151=\"\",\"\",LEN(SUBSTITUTE(SUBSTITUTE(SUBSTITUTE(SUBSTITUTE(SUBSTITUTE(SUBSTITUTE(L151,\"!\",\"\"),\",\",\"\"),\".\",\"\"),\";\",\"\"),\":\",\"\"),\"\"\"\",\"\")))","v":null},{"$f":"IF(M151=\"\",\"\",LEN(SUBSTITUTE(SUBSTITUTE(SUBSTITUTE(SUBSTITUTE(SUBSTITUTE(SUBSTITUTE(M151,\"!\",\"\"),\",\",\"\"),\".\",\"\"),\";\",\"\"),\":\",\"\"),\"\"\"\",\"\")))","v":null},"https://likebk.com/","регистрация-сейчас","","","Россия","2,3","","-","Остановлено","Работает везде","Регистрация прямо сейчас||Форум||Новости||Рейтинг персонажей||||||||","Зарегистрируйтесь и вступите в наш бойцовский клуб||Обсудите все ваши достежения и задания с реальными игроками||Узнайте все новости о мире боев||Посмотрите рейтинг реальных персонажей||||||||","https://likebk.com/register||https://forum.likebk.com/||https://likebk.com/news||https://top.likebk.com/exp_raiting.php/||||||||","","","","","https://direct.yandex.ru/images/direct/2713883/2Tn8r0GsCf55Nw7gxbXQ5g","","","Отлична графика||MMORPG||Передача атмосферы||Увлекательная игра||Отличное качество","","","","","","","","","","",""]
["-","Текстово-графическое","-","4458363194","Группа 4","4","-","26433375054","игра детства из 2000-х","10259215442","Компьютерная игра твоего детства.","Полное погружение в игру БК-2!","БК-2 компьютерная игра прямиком из 2000-х. Отличная графиа и полное погружение!",{"$f":"IF(K152=\"\",\"\",LEN(SUBSTITUTE(SUBSTITUTE(SUBSTITUTE(SUBSTITUTE(SUBSTITUTE(SUBSTITUTE(K152,\"!\",\"\"),\",\",\"\"),\".\",\"\"),\";\",\"\"),\":\",\"\"),\"\"\"\",\"\")))","v":null},{"$f":"IF(L152=\"\",\"\",LEN(SUBSTITUTE(SUBSTITUTE(SUBSTITUTE(SUBSTITUTE(SUBSTITUTE(SUBSTITUTE(L152,\"!\",\"\"),\",\",\"\"),\".\",\"\"),\";\",\"\"),\":\",\"\"),\"\"\"\",\"\")))","v":null},{"$f":"IF(M152=\"\",\"\",LEN(SUBSTITUTE(SUBSTITUTE(SUBSTITUTE(SUBSTITUTE(SUBSTITUTE(SUBSTITUTE(M152,\"!\",\"\"),\",\",\"\"),\".\",\"\"),\";\",\"\"),\":\",\"\"),\"\"\"\",\"\")))","v":null},"https://likebk.com/","регистрация-сейчас","","","Россия","2,3","","-","Остановлено","Работает везде","Регистрация прямо сейчас||Форум||Новости||Рейтинг персонажей||||||||","Зарегистрируйтесь и вступите в наш бойцовский клуб||Обсудите все ваши достежения и задания с реальными игроками||Узнайте все новости о мире боев||Посмотрите рейтинг реальных персонажей||||||||","https://likebk.com/register||https://forum.likebk.com/||https://likebk.com/news||https://top.likebk.com/exp_raiting.php/||||||||","","","","","https://direct.yandex.ru/images/direct/2713883/2Tn8r0GsCf55Nw7gxbXQ5g","","","Отлична графика||MMORPG||Передача атмосферы||Увлекательная игра||Отличное качество","","","","","","","","","","",""]
["-","Текстово-графическое","-","4458363194","Группа 4","4","-","26433375055","игра бк-2","10259215442","Компьютерная игра твоего детства.","Полное погружение в игру БК-2!","БК-2 компьютерная игра прямиком из 2000-х. Отличная графиа и полное погружение!",{"$f":"IF(K153=\"\",\"\",LEN(SUBSTITUTE(SUBSTITUTE(SUBSTITUTE(SUBSTITUTE(SUBSTITUTE(SUBSTITUTE(K153,\"!\",\"\"),\",\",\"\"),\".\",\"\"),\";\",\"\"),\":\",\"\"),\"\"\"\",\"\")))","v":null},{"$f":"IF(L153=\"\",\"\",LEN(SUBSTITUTE(SUBSTITUTE(SUBSTITUTE(SUBSTITUTE(SUBSTITUTE(SUBSTITUTE(L153,\"!\",\"\"),\",\",\"\"),\".\",\"\"),\";\",\"\"),\":\",\"\"),\"\"\"\",\"\")))","v":null},{"$f":"IF(M153=\"\",\"\",LEN(SUBSTITUTE(SUBSTITUTE(SUBSTITUTE(SUBSTITUTE(SUBSTITUTE(SUBSTITUTE(M153,\"!\",\"\"),\",\",\"\"),\".\",\"\"),\";\",\"\"),\":\",\"\"),\"\"\"\",\"\")))","v":null},"https://likebk.com/","регистрация-сейчас","","","Россия","2,3","","-","Остановлено","Работает везде","Регистрация прямо сейчас||Форум||Новости||Рейтинг персонажей||||||||","Зарегистрируйтесь и вступите в наш бойцовский клуб||Обсудите все ваши достежения и задания с реальными игроками||Узнайте все новости о мире боев||Посмотрите рейтинг реальных персонажей||||||||","https://likebk.com/register||https://forum.likebk.com/||https://likebk.com/news||https://top.likebk.com/exp_raiting.php/||||||||","","","","","https://direct.yandex.ru/images/direct/2713883/2Tn8r0GsCf55Nw7gxbXQ5g","","","Отлична графика||MMORPG||Передача атмосферы||Увлекательная игра||Отличное качество","","","","","","","","","","",""]
["-","Текстово-графическое","-","4458363194","Группа 4","4","-","26433375056","бк-2 играть онлайн","10259215442","Компьютерная игра твоего детства.","Полное погружение в игру БК-2!","БК-2 компьютерная игра прямиком из 2000-х. Отличная графиа и полное погружение!",{"$f":"IF(K154=\"\",\"\",LEN(SUBSTITUTE(SUBSTITUTE(SUBSTITUTE(SUBSTITUTE(SUBSTITUTE(SUBSTITUTE(K154,\"!\",\"\"),\",\",\"\"),\".\",\"\"),\";\",\"\"),\":\",\"\"),\"\"\"\",\"\")))","v":null},{"$f":"IF(L154=\"\",\"\",LEN(SUBSTITUTE(SUBSTITUTE(SUBSTITUTE(SUBSTITUTE(SUBSTITUTE(SUBSTITUTE(L154,\"!\",\"\"),\",\",\"\"),\".\",\"\"),\";\",\"\"),\":\",\"\"),\"\"\"\",\"\")))","v":null},{"$f":"IF(M154=\"\",\"\",LEN(SUBSTITUTE(SUBSTITUTE(SUBSTITUTE(SUBSTITUTE(SUBSTITUTE(SUBSTITUTE(M154,\"!\",\"\"),\",\",\"\"),\".\",\"\"),\";\",\"\"),\":\",\"\"),\"\"\"\",\"\")))","v":null},"https://likebk.com/","регистрация-сейчас","","","Россия","2,3","","-","Остановлено","Работает везде","Регистрация прямо сейчас||Форум||Новости||Рейтинг персонажей||||||||","Зарегистрируйтесь и вступите в наш бойцовский клуб||Обсудите все ваши достежения и задания с реальными игроками||Узнайте все новости о мире боев||Посмотрите рейтинг реальных персонажей||||||||","https://likebk.com/register||https://forum.likebk.com/||https://likebk.com/news||https://top.likebk.com/exp_raiting.php/||||||||","","","","","https://direct.yandex.ru/images/direct/2713883/2Tn8r0GsCf55Nw7gxbXQ5g","","","Отлична графика||MMORPG||Передача атмосферы||Увлекательная игра||Отличное качество","","","","","","","","","","",""]
["-","Текстово-графическое","-","4458363194","Группа 4","4","-","26433375057","бк онлайн игра бойцовский клуб","10259215442","Компьютерная игра твоего детства.","Полное погружение в игру БК-2!","БК-2 компьютерная игра прямиком из 2000-х. Отличная графиа и полное погружение!",{"$f":"IF(K155=\"\",\"\",LEN(SUBSTITUTE(SUBSTITUTE(SUBSTITUTE(SUBSTITUTE(SUBSTITUTE(SUBSTITUTE(K155,\"!\",\"\"),\",\",\"\"),\".\",\"\"),\";\",\"\"),\":\",\"\"),\"\"\"\",\"\")))","v":null},{"$f":"IF(L155=\"\",\"\",LEN(SUBSTITUTE(SUBSTITUTE(SUBSTITUTE(SUBSTITUTE(SUBSTITUTE(SUBSTITUTE(L155,\"!\",\"\"),\",\",\"\"),\".\",\"\"),\";\",\"\"),\":\",\"\"),\"\"\"\",\"\")))","v":null},{"$f":"IF(M155=\"\",\"\",LEN(SUBSTITUTE(SUBSTITUTE(SUBSTITUTE(SUBSTITUTE(SUBSTITUTE(SUBSTITUTE(M155,\"!\",\"\"),\",\",\"\"),\".\",\"\"),\";\",\"\"),\":\",\"\"),\"\"\"\",\"\")))","v":null},"https://likebk.com/","регистрация-сейчас","","","Россия","2,3","","-","Остановлено","Работает везде","Регистрация прямо сейчас||Форум||Новости||Рейтинг персонажей||||||||","Зарегистрируйтесь и вступите в наш бойцовский клуб||Обсудите все ваши достежения и задания с реальными игроками||Узнайте все новости о мире боев||Посмотрите рейтинг реальных персонажей||||||||","https://likebk.com/register||https://forum.likebk.com/||https://likebk.com/news||https://top.likebk.com/exp_raiting.php/||||||||","","","","","https://direct.yandex.ru/images/direct/2713883/2Tn8r0GsCf55Nw7gxbXQ5g","","","Отлична графика||MMORPG||Передача атмосферы||Увлекательная игра||Отличное качество","","","","","","","","","","",""]
["-","Текстово-графическое","-","4458363194","Группа 4","4","-","26433375058","бойцовский клуб браузерная онлайн игра","10259215442","Компьютерная игра твоего детства.","Полное погружение в игру БК-2!","БК-2 компьютерная игра прямиком из 2000-х. Отличная графиа и полное погружение!",{"$f":"IF(K156=\"\",\"\",LEN(SUBSTITUTE(SUBSTITUTE(SUBSTITUTE(SUBSTITUTE(SUBSTITUTE(SUBSTITUTE(K156,\"!\",\"\"),\",\",\"\"),\".\",\"\"),\";\",\"\"),\":\",\"\"),\"\"\"\",\"\")))","v":null},{"$f":"IF(L156=\"\",\"\",LEN(SUBSTITUTE(SUBSTITUTE(SUBSTITUTE(SUBSTITUTE(SUBSTITUTE(SUBSTITUTE(L156,\"!\",\"\"),\",\",\"\"),\".\",\"\"),\";\",\"\"),\":\",\"\"),\"\"\"\",\"\")))","v":null},{"$f":"IF(M156=\"\",\"\",LEN(SUBSTITUTE(SUBSTITUTE(SUBSTITUTE(SUBSTITUTE(SUBSTITUTE(SUBSTITUTE(M156,\"!\",\"\"),\",\",\"\"),\".\",\"\"),\";\",\"\"),\":\",\"\"),\"\"\"\",\"\")))","v":null},"https://likebk.com/","регистрация-сейчас","","","Россия","2,3","","-","Остановлено","Работает везде","Регистрация прямо сейчас||Форум||Новости||Рейтинг персонажей||||||||","Зарегистрируйтесь и вступите в наш бойцовский клуб||Обсудите все ваши достежения и задания с реальными игроками||Узнайте все новости о мире боев||Посмотрите рейтинг реальных персонажей||||||||","https://likebk.com/register||https://forum.likebk.com/||https://likebk.com/news||https://top.likebk.com/exp_raiting.php/||||||||","","","","","https://direct.yandex.ru/images/direct/2713883/2Tn8r0GsCf55Nw7gxbXQ5g","","","Отлична графика||MMORPG||Передача атмосферы||Увлекательная игра||Отличное качество","","","","","","","","","","",""]
["-","Текстово-графическое","-","4458363194","Группа 4","4","-","26433375059","игра мморпг","10259215442","Компьютерная игра твоего детства.","Полное погружение в игру БК-2!","БК-2 компьютерная игра прямиком из 2000-х. Отличная графиа и полное погружение!",{"$f":"IF(K157=\"\",\"\",LEN(SUBSTITUTE(SUBSTITUTE(SUBSTITUTE(SUBSTITUTE(SUBSTITUTE(SUBSTITUTE(K157,\"!\",\"\"),\",\",\"\"),\".\",\"\"),\";\",\"\"),\":\",\"\"),\"\"\"\",\"\")))","v":null},{"$f":"IF(L157=\"\",\"\",LEN(SUBSTITUTE(SUBSTITUTE(SUBSTITUTE(SUBSTITUTE(SUBSTITUTE(SUBSTITUTE(L157,\"!\",\"\"),\",\",\"\"),\".\",\"\"),\";\",\"\"),\":\",\"\"),\"\"\"\",\"\")))","v":null},{"$f":"IF(M157=\"\",\"\",LEN(SUBSTITUTE(SUBSTITUTE(SUBSTITUTE(SUBSTITUTE(SUBSTITUTE(SUBSTITUTE(M157,\"!\",\"\"),\",\",\"\"),\".\",\"\"),\";\",\"\"),\":\",\"\"),\"\"\"\",\"\")))","v":null},"https://likebk.com/","регистрация-сейчас","","","Россия","2,3","","-","Остановлено","Работает везде","Регистрация прямо сейчас||Форум||Новости||Рейтинг персонажей||||||||","Зарегистрируйтесь и вступите в наш бойцовский клуб||Обсудите все ваши достежения и задания с реальными игроками||Узнайте все новости о мире боев||Посмотрите рейтинг реальных персонажей||||||||","https://likebk.com/register||https://forum.likebk.com/||https://likebk.com/news||https://top.likebk.com/exp_raiting.php/||||||||","","","","","https://direct.yandex.ru/images/direct/2713883/2Tn8r0GsCf55Nw7gxbXQ5g","","","Отлична графика||MMORPG||Передача атмосферы||Увлекательная игра||Отличное качество","","","","","","","","","","",""]
["-","Текстово-графическое","-","4458363194","Группа 4","4","-","26433375060","образа +для бойцовский клуб игра онлайн","10259215442","Компьютерная игра твоего детства.","Полное погружение в игру БК-2!","БК-2 компьютерная игра прямиком из 2000-х. Отличная графиа и полное погружение!",{"$f":"IF(K158=\"\",\"\",LEN(SUBSTITUTE(SUBSTITUTE(SUBSTITUTE(SUBSTITUTE(SUBSTITUTE(SUBSTITUTE(K158,\"!\",\"\"),\",\",\"\"),\".\",\"\"),\";\",\"\"),\":\",\"\"),\"\"\"\",\"\")))","v":null},{"$f":"IF(L158=\"\",\"\",LEN(SUBSTITUTE(SUBSTITUTE(SUBSTITUTE(SUBSTITUTE(SUBSTITUTE(SUBSTITUTE(L158,\"!\",\"\"),\",\",\"\"),\".\",\"\"),\";\",\"\"),\":\",\"\"),\"\"\"\",\"\")))","v":null},{"$f":"IF(M158=\"\",\"\",LEN(SUBSTITUTE(SUBSTITUTE(SUBSTITUTE(SUBSTITUTE(SUBSTITUTE(SUBSTITUTE(M158,\"!\",\"\"),\",\",\"\"),\".\",\"\"),\";\",\"\"),\":\",\"\"),\"\"\"\",\"\")))","v":null},"https://likebk.com/","регистрация-сейчас","","","Россия","2,3","","-","Остановлено","Работает везде","Регистрация прямо сейчас||Форум||Новости||Рейтинг персонажей||||||||","Зарегистрируйтесь и вступите в наш бойцовский клуб||Обсудите все ваши достежения и задания с реальными игроками||Узнайте все новости о мире боев||Посмотрите рейтинг реальных персонажей||||||||","https://likebk.com/register||https://forum.likebk.com/||https://likebk.com/news||https://top.likebk.com/exp_raiting.php/||||||||","","","","","https://direct.yandex.ru/images/direct/2713883/2Tn8r0GsCf55Nw7gxbXQ5g","","","Отлична графика||MMORPG||Передача атмосферы||Увлекательная игра||Отличное качество","","","","","","","","","","",""]
["-","Текстово-графическое","-","4458363194","Группа 4","4","-","26433375061","mmorpg +для слабых пк онлайн","10259215442","Компьютерная игра твоего детства.","Полное погружение в игру БК-2!","БК-2 компьютерная игра прямиком из 2000-х. Отличная графиа и полное погружение!",{"$f":"IF(K159=\"\",\"\",LEN(SUBSTITUTE(SUBSTITUTE(SUBSTITUTE(SUBSTITUTE(SUBSTITUTE(SUBSTITUTE(K159,\"!\",\"\"),\",\",\"\"),\".\",\"\"),\";\",\"\"),\":\",\"\"),\"\"\"\",\"\")))","v":null},{"$f":"IF(L159=\"\",\"\",LEN(SUBSTITUTE(SUBSTITUTE(SUBSTITUTE(SUBSTITUTE(SUBSTITUTE(SUBSTITUTE(L159,\"!\",\"\"),\",\",\"\"),\".\",\"\"),\";\",\"\"),\":\",\"\"),\"\"\"\",\"\")))","v":null},{"$f":"IF(M159=\"\",\"\",LEN(SUBSTITUTE(SUBSTITUTE(SUBSTITUTE(SUBSTITUTE(SUBSTITUTE(SUBSTITUTE(M159,\"!\",\"\"),\",\",\"\"),\".\",\"\"),\";\",\"\"),\":\",\"\"),\"\"\"\",\"\")))","v":null},"https://likebk.com/","регистрация-сейчас","","","Россия","2,3","","-","Остановлено","Работает везде","Регистрация прямо сейчас||Форум||Новости||Рейтинг персонажей||||||||","Зарегистрируйтесь и вступите в наш бойцовский клуб||Обсудите все ваши достежения и задания с реальными игроками||Узнайте все новости о мире боев||Посмотрите рейтинг реальных персонажей||||||||","https://likebk.com/register||https://forum.likebk.com/||https://likebk.com/news||https://top.likebk.com/exp_raiting.php/||||||||","","","","","https://direct.yandex.ru/images/direct/2713883/2Tn8r0GsCf55Nw7gxbXQ5g","","","Отлична графика||MMORPG||Передача атмосферы||Увлекательная игра||Отличное качество","","","","","","","","","","",""]
["-","Текстово-графическое","-","4458363194","Группа 4","4","-","26433375062","mmorpg +на пк онлайн","10259215442","Компьютерная игра твоего детства.","Полное погружение в игру БК-2!","БК-2 компьютерная игра прямиком из 2000-х. Отличная графиа и полное погружение!",{"$f":"IF(K160=\"\",\"\",LEN(SUBSTITUTE(SUBSTITUTE(SUBSTITUTE(SUBSTITUTE(SUBSTITUTE(SUBSTITUTE(K160,\"!\",\"\"),\",\",\"\"),\".\",\"\"),\";\",\"\"),\":\",\"\"),\"\"\"\",\"\")))","v":null},{"$f":"IF(L160=\"\",\"\",LEN(SUBSTITUTE(SUBSTITUTE(SUBSTITUTE(SUBSTITUTE(SUBSTITUTE(SUBSTITUTE(L160,\"!\",\"\"),\",\",\"\"),\".\",\"\"),\";\",\"\"),\":\",\"\"),\"\"\"\",\"\")))","v":null},{"$f":"IF(M160=\"\",\"\",LEN(SUBSTITUTE(SUBSTITUTE(SUBSTITUTE(SUBSTITUTE(SUBSTITUTE(SUBSTITUTE(M160,\"!\",\"\"),\",\",\"\"),\".\",\"\"),\";\",\"\"),\":\",\"\"),\"\"\"\",\"\")))","v":null},"https://likebk.com/","регистрация-сейчас","","","Россия","2,3","","-","Остановлено","Работает везде","Регистрация прямо сейчас||Форум||Новости||Рейтинг персонажей||||||||","Зарегистрируйтесь и вступите в наш бойцовский клуб||Обсудите все ваши достежения и задания с реальными игроками||Узнайте все новости о мире боев||Посмотрите рейтинг реальных персонажей||||||||","https://likebk.com/register||https://forum.likebk.com/||https://likebk.com/news||https://top.likebk.com/exp_raiting.php/||||||||","","","","","https://direct.yandex.ru/images/direct/2713883/2Tn8r0GsCf55Nw7gxbXQ5g","","","Отлична графика||MMORPG||Передача атмосферы||Увлекательная игра||Отличное качество","","","","","","","","","","",""]
["-","Текстово-графическое","-","4458363194","Группа 4","4","-","26433375063","mmorpg +на пк онлайн топ","10259215442","Компьютерная игра твоего детства.","Полное погружение в игру БК-2!","БК-2 компьютерная игра прямиком из 2000-х. Отличная графиа и полное погружение!",{"$f":"IF(K161=\"\",\"\",LEN(SUBSTITUTE(SUBSTITUTE(SUBSTITUTE(SUBSTITUTE(SUBSTITUTE(SUBSTITUTE(K161,\"!\",\"\"),\",\",\"\"),\".\",\"\"),\";\",\"\"),\":\",\"\"),\"\"\"\",\"\")))","v":null},{"$f":"IF(L161=\"\",\"\",LEN(SUBSTITUTE(SUBSTITUTE(SUBSTITUTE(SUBSTITUTE(SUBSTITUTE(SUBSTITUTE(L161,\"!\",\"\"),\",\",\"\"),\".\",\"\"),\";\",\"\"),\":\",\"\"),\"\"\"\",\"\")))","v":null},{"$f":"IF(M161=\"\",\"\",LEN(SUBSTITUTE(SUBSTITUTE(SUBSTITUTE(SUBSTITUTE(SUBSTITUTE(SUBSTITUTE(M161,\"!\",\"\"),\",\",\"\"),\".\",\"\"),\";\",\"\"),\":\",\"\"),\"\"\"\",\"\")))","v":null},"https://likebk.com/","регистрация-сейчас","","","Россия","2,3","","-","Остановлено","Работает везде","Регистрация прямо сейчас||Форум||Новости||Рейтинг персонажей||||||||","Зарегистрируйтесь и вступите в наш бойцовский клуб||Обсудите все ваши достежения и задания с реальными игроками||Узнайте все новости о мире боев||Посмотрите рейтинг реальных персонажей||||||||","https://likebk.com/register||https://forum.likebk.com/||https://likebk.com/news||https://top.likebk.com/exp_raiting.php/||||||||","","","","","https://direct.yandex.ru/images/direct/2713883/2Tn8r0GsCf55Nw7gxbXQ5g","","","Отлична графика||MMORPG||Передача атмосферы||Увлекательная игра||Отличное качество","","","","","","","","","","",""]
["-","Текстово-графическое","-","4458363194","Группа 4","4","-","26433375064","mmorpg +с большим онлайном","10259215442","Компьютерная игра твоего детства.","Полное погружение в игру БК-2!","БК-2 компьютерная игра прямиком из 2000-х. Отличная графиа и полное погружение!",{"$f":"IF(K162=\"\",\"\",LEN(SUBSTITUTE(SUBSTITUTE(SUBSTITUTE(SUBSTITUTE(SUBSTITUTE(SUBSTITUTE(K162,\"!\",\"\"),\",\",\"\"),\".\",\"\"),\";\",\"\"),\":\",\"\"),\"\"\"\",\"\")))","v":null},{"$f":"IF(L162=\"\",\"\",LEN(SUBSTITUTE(SUBSTITUTE(SUBSTITUTE(SUBSTITUTE(SUBSTITUTE(SUBSTITUTE(L162,\"!\",\"\"),\",\",\"\"),\".\",\"\"),\";\",\"\"),\":\",\"\"),\"\"\"\",\"\")))","v":null},{"$f":"IF(M162=\"\",\"\",LEN(SUBSTITUTE(SUBSTITUTE(SUBSTITUTE(SUBSTITUTE(SUBSTITUTE(SUBSTITUTE(M162,\"!\",\"\"),\",\",\"\"),\".\",\"\"),\";\",\"\"),\":\",\"\"),\"\"\"\",\"\")))","v":null},"https://likebk.com/","регистрация-сейчас","","","Россия","2,3","","-","Остановлено","Работает везде","Регистрация прямо сейчас||Форум||Новости||Рейтинг персонажей||||||||","Зарегистрируйтесь и вступите в наш бойцовский клуб||Обсудите все ваши достежения и задания с реальными игроками||Узнайте все новости о мире боев||Посмотрите рейтинг реальных персонажей||||||||","https://likebk.com/register||https://forum.likebk.com/||https://likebk.com/news||https://top.likebk.com/exp_raiting.php/||||||||","","","","","https://direct.yandex.ru/images/direct/2713883/2Tn8r0GsCf55Nw7gxbXQ5g","","","Отлична графика||MMORPG||Передача атмосферы||Увлекательная игра||Отличное качество","","","","","","","","","","",""]
["-","Текстово-графическое","-","4458363194","Группа 4","4","-","26433375065","mmorpg +с открытым миром онлайн","10259215442","Компьютерная игра твоего детства.","Полное погружение в игру БК-2!","БК-2 компьютерная игра прямиком из 2000-х. Отличная графиа и полное погружение!",{"$f":"IF(K163=\"\",\"\",LEN(SUBSTITUTE(SUBSTITUTE(SUBSTITUTE(SUBSTITUTE(SUBSTITUTE(SUBSTITUTE(K163,\"!\",\"\"),\",\",\"\"),\".\",\"\"),\";\",\"\"),\":\",\"\"),\"\"\"\",\"\")))","v":null},{"$f":"IF(L163=\"\",\"\",LEN(SUBSTITUTE(SUBSTITUTE(SUBSTITUTE(SUBSTITUTE(SUBSTITUTE(SUBSTITUTE(L163,\"!\",\"\"),\",\",\"\"),\".\",\"\"),\";\",\"\"),\":\",\"\"),\"\"\"\",\"\")))","v":null},{"$f":"IF(M163=\"\",\"\",LEN(SUBSTITUTE(SUBSTITUTE(SUBSTITUTE(SUBSTITUTE(SUBSTITUTE(SUBSTITUTE(M163,\"!\",\"\"),\",\",\"\"),\".\",\"\"),\";\",\"\"),\":\",\"\"),\"\"\"\",\"\")))","v":null},"https://likebk.com/","регистрация-сейчас","","","Россия","2,3","","-","Остановлено","Работает везде","Регистрация прямо сейчас||Форум||Новости||Рейтинг персонажей||||||||","Зарегистрируйтесь и вступите в наш бойцовский клуб||Обсудите все ваши достежения и задания с реальными игроками||Узнайте все новости о мире боев||Посмотрите рейтинг реальных персонажей||||||||","https://likebk.com/register||https://forum.likebk.com/||https://likebk.com/news||https://top.likebk.com/exp_raiting.php/||||||||","","","","","https://direct.yandex.ru/images/direct/2713883/2Tn8r0GsCf55Nw7gxbXQ5g","","","Отлична графика||MMORPG||Передача атмосферы||Увлекательная игра||Отличное качество","","","","","","","","","","",""]
["-","Текстово-графическое","-","4458363194","Группа 4","4","-","26433375066","mmorpg онлайн","10259215442","Компьютерная игра твоего детства.","Полное погружение в игру БК-2!","БК-2 компьютерная игра прямиком из 2000-х. Отличная графиа и полное погружение!",{"$f":"IF(K164=\"\",\"\",LEN(SUBSTITUTE(SUBSTITUTE(SUBSTITUTE(SUBSTITUTE(SUBSTITUTE(SUBSTITUTE(K164,\"!\",\"\"),\",\",\"\"),\".\",\"\"),\";\",\"\"),\":\",\"\"),\"\"\"\",\"\")))","v":null},{"$f":"IF(L164=\"\",\"\",LEN(SUBSTITUTE(SUBSTITUTE(SUBSTITUTE(SUBSTITUTE(SUBSTITUTE(SUBSTITUTE(L164,\"!\",\"\"),\",\",\"\"),\".\",\"\"),\";\",\"\"),\":\",\"\"),\"\"\"\",\"\")))","v":null},{"$f":"IF(M164=\"\",\"\",LEN(SUBSTITUTE(SUBSTITUTE(SUBSTITUTE(SUBSTITUTE(SUBSTITUTE(SUBSTITUTE(M164,\"!\",\"\"),\",\",\"\"),\".\",\"\"),\";\",\"\"),\":\",\"\"),\"\"\"\",\"\")))","v":null},"https://likebk.com/","регистрация-сейчас","","","Россия","2,3","","-","Остановлено","Работает везде","Регистрация прямо сейчас||Форум||Новости||Рейтинг персонажей||||||||","Зарегистрируйтесь и вступите в наш бойцовский клуб||Обсудите все ваши достежения и задания с реальными игроками||Узнайте все новости о мире боев||Посмотрите рейтинг реальных персонажей||||||||","https://likebk.com/register||https://forum.likebk.com/||https://likebk.com/news||https://top.likebk.com/exp_raiting.php/||||||||","","","","","https://direct.yandex.ru/images/direct/2713883/2Tn8r0GsCf55Nw7gxbXQ5g","","","Отлична графика||MMORPG||Передача атмосферы||Увлекательная игра||Отличное качество","","","","","","","","","","",""]
["-","Текстово-графическое","-","4458363194","Группа 4","4","-","26433375067","mmorpg онлайн игры +на пк","10259215442","Компьютерная игра твоего детства.","Полное погружение в игру БК-2!","БК-2 компьютерная игра прямиком из 2000-х. Отличная графиа и полное погружение!",{"$f":"IF(K165=\"\",\"\",LEN(SUBSTITUTE(SUBSTITUTE(SUBSTITUTE(SUBSTITUTE(SUBSTITUTE(SUBSTITUTE(K165,\"!\",\"\"),\",\",\"\"),\".\",\"\"),\";\",\"\"),\":\",\"\"),\"\"\"\",\"\")))","v":null},{"$f":"IF(L165=\"\",\"\",LEN(SUBSTITUTE(SUBSTITUTE(SUBSTITUTE(SUBSTITUTE(SUBSTITUTE(SUBSTITUTE(L165,\"!\",\"\"),\",\",\"\"),\".\",\"\"),\";\",\"\"),\":\",\"\"),\"\"\"\",\"\")))","v":null},{"$f":"IF(M165=\"\",\"\",LEN(SUBSTITUTE(SUBSTITUTE(SUBSTITUTE(SUBSTITUTE(SUBSTITUTE(SUBSTITUTE(M165,\"!\",\"\"),\",\",\"\"),\".\",\"\"),\";\",\"\"),\":\",\"\"),\"\"\"\",\"\")))","v":null},"https://likebk.com/","регистрация-сейчас","","","Россия","2,3","","-","Остановлено","Работает везде","Регистрация прямо сейчас||Форум||Новости||Рейтинг персонажей||||||||","Зарегистрируйтесь и вступите в наш бойцовский клуб||Обсудите все ваши достежения и задания с реальными игроками||Узнайте все новости о мире боев||Посмотрите рейтинг реальных персонажей||||||||","https://likebk.com/register||https://forum.likebk.com/||https://likebk.com/news||https://top.likebk.com/exp_raiting.php/||||||||","","","","","https://direct.yandex.ru/images/direct/2713883/2Tn8r0GsCf55Nw7gxbXQ5g","","","Отлична графика||MMORPG||Передача атмосферы||Увлекательная игра||Отличное качество","","","","","","","","","","",""]
["-","Текстово-графическое","-","4458363194","Группа 4","4","-","26433375068","mmorpg онлайн игры браузерные","10259215442","Компьютерная игра твоего детства.","Полное погружение в игру БК-2!","БК-2 компьютерная игра прямиком из 2000-х. Отличная графиа и полное погружение!",{"$f":"IF(K166=\"\",\"\",LEN(SUBSTITUTE(SUBSTITUTE(SUBSTITUTE(SUBSTITUTE(SUBSTITUTE(SUBSTITUTE(K166,\"!\",\"\"),\",\",\"\"),\".\",\"\"),\";\",\"\"),\":\",\"\"),\"\"\"\",\"\")))","v":null},{"$f":"IF(L166=\"\",\"\",LEN(SUBSTITUTE(SUBSTITUTE(SUBSTITUTE(SUBSTITUTE(SUBSTITUTE(SUBSTITUTE(L166,\"!\",\"\"),\",\",\"\"),\".\",\"\"),\";\",\"\"),\":\",\"\"),\"\"\"\",\"\")))","v":null},{"$f":"IF(M166=\"\",\"\",LEN(SUBSTITUTE(SUBSTITUTE(SUBSTITUTE(SUBSTITUTE(SUBSTITUTE(SUBSTITUTE(M166,\"!\",\"\"),\",\",\"\"),\".\",\"\"),\";\",\"\"),\":\",\"\"),\"\"\"\",\"\")))","v":null},"https://likebk.com/","регистрация-сейчас","","","Россия","2,3","","-","Остановлено","Работает везде","Регистрация прямо сейчас||Форум||Новости||Рейтинг персонажей||||||||","Зарегистрируйтесь и вступите в наш бойцовский клуб||Обсудите все ваши достежения и задания с реальными игроками||Узнайте все новости о мире боев||Посмотрите рейтинг реальных персонажей||||||||","https://likebk.com/register||https://forum.likebk.com/||https://likebk.com/news||https://top.likebk.com/exp_raiting.php/||||||||","","","","","https://direct.yandex.ru/images/direct/2713883/2Tn8r0GsCf55Nw7gxbXQ5g","","","Отлична графика||MMORPG||Передача атмосферы||Увлекательная игра||Отличное качество","","","","","","","","","","",""]
["-","Текстово-графическое","-","4458363194","Группа 4","4","-","26433375069","бойцовский клуб игра онлайн олдбк 2","10259215442","Компьютерная игра твоего детства.","Полное погружение в игру БК-2!","БК-2 компьютерная игра прямиком из 2000-х. Отличная графиа и полное погружение!",{"$f":"IF(K167=\"\",\"\",LEN(SUBSTITUTE(SUBSTITUTE(SUBSTITUTE(SUBSTITUTE(SUBSTITUTE(SUBSTITUTE(K167,\"!\",\"\"),\",\",\"\"),\".\",\"\"),\";\",\"\"),\":\",\"\"),\"\"\"\",\"\")))","v":null},{"$f":"IF(L167=\"\",\"\",LEN(SUBSTITUTE(SUBSTITUTE(SUBSTITUTE(SUBSTITUTE(SUBSTITUTE(SUBSTITUTE(L167,\"!\",\"\"),\",\",\"\"),\".\",\"\"),\";\",\"\"),\":\",\"\"),\"\"\"\",\"\")))","v":null},{"$f":"IF(M167=\"\",\"\",LEN(SUBSTITUTE(SUBSTITUTE(SUBSTITUTE(SUBSTITUTE(SUBSTITUTE(SUBSTITUTE(M167,\"!\",\"\"),\",\",\"\"),\".\",\"\"),\";\",\"\"),\":\",\"\"),\"\"\"\",\"\")))","v":null},"https://likebk.com/","регистрация-сейчас","","","Россия","2,3","","-","Остановлено","Работает везде","Регистрация прямо сейчас||Форум||Новости||Рейтинг персонажей||||||||","Зарегистрируйтесь и вступите в наш бойцовский клуб||Обсудите все ваши достежения и задания с реальными игроками||Узнайте все новости о мире боев||Посмотрите рейтинг реальных персонажей||||||||","https://likebk.com/register||https://forum.likebk.com/||https://likebk.com/news||https://top.likebk.com/exp_raiting.php/||||||||","","","","","https://direct.yandex.ru/images/direct/2713883/2Tn8r0GsCf55Nw7gxbXQ5g","","","Отлична графика||MMORPG||Передача атмосферы||Увлекательная игра||Отличное качество","","","","","","","","","","",""]
["-","Текстово-графическое","-","4458363194","Группа 4","4","-","26433375070","бойцовский клуб игра онлайн официальный сайт","10259215442","Компьютерная игра твоего детства.","Полное погружение в игру БК-2!","БК-2 компьютерная игра прямиком из 2000-х. Отличная графиа и полное погружение!",{"$f":"IF(K168=\"\",\"\",LEN(SUBSTITUTE(SUBSTITUTE(SUBSTITUTE(SUBSTITUTE(SUBSTITUTE(SUBSTITUTE(K168,\"!\",\"\"),\",\",\"\"),\".\",\"\"),\";\",\"\"),\":\",\"\"),\"\"\"\",\"\")))","v":null},{"$f":"IF(L168=\"\",\"\",LEN(SUBSTITUTE(SUBSTITUTE(SUBSTITUTE(SUBSTITUTE(SUBSTITUTE(SUBSTITUTE(L168,\"!\",\"\"),\",\",\"\"),\".\",\"\"),\";\",\"\"),\":\",\"\"),\"\"\"\",\"\")))","v":null},{"$f":"IF(M168=\"\",\"\",LEN(SUBSTITUTE(SUBSTITUTE(SUBSTITUTE(SUBSTITUTE(SUBSTITUTE(SUBSTITUTE(M168,\"!\",\"\"),\",\",\"\"),\".\",\"\"),\";\",\"\"),\":\",\"\"),\"\"\"\",\"\")))","v":null},"https://likebk.com/","регистрация-сейчас","","","Россия","2,3","","-","Остановлено","Работает везде","Регистрация прямо сейчас||Форум||Новости||Рейтинг персонажей||||||||","Зарегистрируйтесь и вступите в наш бойцовский клуб||Обсудите все ваши достежения и задания с реальными игроками||Узнайте все новости о мире боев||Посмотрите рейтинг реальных персонажей||||||||","https://likebk.com/register||https://forum.likebk.com/||https://likebk.com/news||https://top.likebk.com/exp_raiting.php/||||||||","","","","","https://direct.yandex.ru/images/direct/2713883/2Tn8r0GsCf55Nw7gxbXQ5g","","","Отлична графика||MMORPG||Передача атмосферы||Увлекательная игра||Отличное качество","","","","","","","","","","",""]
["-","Текстово-графическое","-","4458363194","Группа 4","4","-","26433375071","браузерная онлайн mmorpg","10259215442","Компьютерная игра твоего детства.","Полное погружение в игру БК-2!","БК-2 компьютерная игра прямиком из 2000-х. Отличная графиа и полное погружение!",{"$f":"IF(K169=\"\",\"\",LEN(SUBSTITUTE(SUBSTITUTE(SUBSTITUTE(SUBSTITUTE(SUBSTITUTE(SUBSTITUTE(K169,\"!\",\"\"),\",\",\"\"),\".\",\"\"),\";\",\"\"),\":\",\"\"),\"\"\"\",\"\")))","v":null},{"$f":"IF(L169=\"\",\"\",LEN(SUBSTITUTE(SUBSTITUTE(SUBSTITUTE(SUBSTITUTE(SUBSTITUTE(SUBSTITUTE(L169,\"!\",\"\"),\",\",\"\"),\".\",\"\"),\";\",\"\"),\":\",\"\"),\"\"\"\",\"\")))","v":null},{"$f":"IF(M169=\"\",\"\",LEN(SUBSTITUTE(SUBSTITUTE(SUBSTITUTE(SUBSTITUTE(SUBSTITUTE(SUBSTITUTE(M169,\"!\",\"\"),\",\",\"\"),\".\",\"\"),\";\",\"\"),\":\",\"\"),\"\"\"\",\"\")))","v":null},"https://likebk.com/","регистрация-сейчас","","","Россия","2,3","","-","Остановлено","Работает везде","Регистрация прямо сейчас||Форум||Новости||Рейтинг персонажей||||||||","Зарегистрируйтесь и вступите в наш бойцовский клуб||Обсудите все ваши достежения и задания с реальными игроками||Узнайте все новости о мире боев||Посмотрите рейтинг реальных персонажей||||||||","https://likebk.com/register||https://forum.likebk.com/||https://likebk.com/news||https://top.likebk.com/exp_raiting.php/||||||||","","","","","https://direct.yandex.ru/images/direct/2713883/2Tn8r0GsCf55Nw7gxbXQ5g","","","Отлична графика||MMORPG||Передача атмосферы||Увлекательная игра||Отличное качество","","","","","","","","","","",""]
["-","Текстово-графическое","-","4458363194","Группа 4","4","-","26433375072","игра mmorpg","10259215442","Компьютерная игра твоего детства.","Полное погружение в игру БК-2!","БК-2 компьютерная игра прямиком из 2000-х. Отличная графиа и полное погружение!",{"$f":"IF(K170=\"\",\"\",LEN(SUBSTITUTE(SUBSTITUTE(SUBSTITUTE(SUBSTITUTE(SUBSTITUTE(SUBSTITUTE(K170,\"!\",\"\"),\",\",\"\"),\".\",\"\"),\";\",\"\"),\":\",\"\"),\"\"\"\",\"\")))","v":null},{"$f":"IF(L170=\"\",\"\",LEN(SUBSTITUTE(SUBSTITUTE(SUBSTITUTE(SUBSTITUTE(SUBSTITUTE(SUBSTITUTE(L170,\"!\",\"\"),\",\",\"\"),\".\",\"\"),\";\",\"\"),\":\",\"\"),\"\"\"\",\"\")))","v":null},{"$f":"IF(M170=\"\",\"\",LEN(SUBSTITUTE(SUBSTITUTE(SUBSTITUTE(SUBSTITUTE(SUBSTITUTE(SUBSTITUTE(M170,\"!\",\"\"),\",\",\"\"),\".\",\"\"),\";\",\"\"),\":\",\"\"),\"\"\"\",\"\")))","v":null},"https://likebk.com/","регистрация-сейчас","","","Россия","2,3","","-","Остановлено","Работает везде","Регистрация прямо сейчас||Форум||Новости||Рейтинг персонажей||||||||","Зарегистрируйтесь и вступите в наш бойцовский клуб||Обсудите все ваши достежения и задания с реальными игроками||Узнайте все новости о мире боев||Посмотрите рейтинг реальных персонажей||||||||","https://likebk.com/register||https://forum.likebk.com/||https://likebk.com/news||https://top.likebk.com/exp_raiting.php/||||||||","","","","","https://direct.yandex.ru/images/direct/2713883/2Tn8r0GsCf55Nw7gxbXQ5g","","","Отлична графика||MMORPG||Передача атмосферы||Увлекательная игра||Отличное качество","","","","","","","","","","",""]
["-","Текстово-графическое","-","4458363194","Группа 4","4","-","26433375073","играть онлайн mmorpg игры","10259215442","Компьютерная игра твоего детства.","Полное погружение в игру БК-2!","БК-2 компьютерная игра прямиком из 2000-х. Отличная графиа и полное погружение!",{"$f":"IF(K171=\"\",\"\",LEN(SUBSTITUTE(SUBSTITUTE(SUBSTITUTE(SUBSTITUTE(SUBSTITUTE(SUBSTITUTE(K171,\"!\",\"\"),\",\",\"\"),\".\",\"\"),\";\",\"\"),\":\",\"\"),\"\"\"\",\"\")))","v":null},{"$f":"IF(L171=\"\",\"\",LEN(SUBSTITUTE(SUBSTITUTE(SUBSTITUTE(SUBSTITUTE(SUBSTITUTE(SUBSTITUTE(L171,\"!\",\"\"),\",\",\"\"),\".\",\"\"),\";\",\"\"),\":\",\"\"),\"\"\"\",\"\")))","v":null},{"$f":"IF(M171=\"\",\"\",LEN(SUBSTITUTE(SUBSTITUTE(SUBSTITUTE(SUBSTITUTE(SUBSTITUTE(SUBSTITUTE(M171,\"!\",\"\"),\",\",\"\"),\".\",\"\"),\";\",\"\"),\":\",\"\"),\"\"\"\",\"\")))","v":null},"https://likebk.com/","регистрация-сейчас","","","Россия","2,3","","-","Остановлено","Работает везде","Регистрация прямо сейчас||Форум||Новости||Рейтинг персонажей||||||||","Зарегистрируйтесь и вступите в наш бойцовский клуб||Обсудите все ваши достежения и задания с реальными игроками||Узнайте все новости о мире боев||Посмотрите рейтинг реальных персонажей||||||||","https://likebk.com/register||https://forum.likebk.com/||https://likebk.com/news||https://top.likebk.com/exp_raiting.php/||||||||","","","","","https://direct.yandex.ru/images/direct/2713883/2Tn8r0GsCf55Nw7gxbXQ5g","","","Отлична графика||MMORPG||Передача атмосферы||Увлекательная игра||Отличное качество","","","","","","","","","","",""]
["-","Текстово-графическое","-","4458363194","Группа 4","4","-","26433375074","игры онлайн mmorpg 2020","10259215442","Компьютерная игра твоего детства.","Полное погружение в игру БК-2!","БК-2 компьютерная игра прямиком из 2000-х. Отличная графиа и полное погружение!",{"$f":"IF(K172=\"\",\"\",LEN(SUBSTITUTE(SUBSTITUTE(SUBSTITUTE(SUBSTITUTE(SUBSTITUTE(SUBSTITUTE(K172,\"!\",\"\"),\",\",\"\"),\".\",\"\"),\";\",\"\"),\":\",\"\"),\"\"\"\",\"\")))","v":null},{"$f":"IF(L172=\"\",\"\",LEN(SUBSTITUTE(SUBSTITUTE(SUBSTITUTE(SUBSTITUTE(SUBSTITUTE(SUBSTITUTE(L172,\"!\",\"\"),\",\",\"\"),\".\",\"\"),\";\",\"\"),\":\",\"\"),\"\"\"\",\"\")))","v":null},{"$f":"IF(M172=\"\",\"\",LEN(SUBSTITUTE(SUBSTITUTE(SUBSTITUTE(SUBSTITUTE(SUBSTITUTE(SUBSTITUTE(M172,\"!\",\"\"),\",\",\"\"),\".\",\"\"),\";\",\"\"),\":\",\"\"),\"\"\"\",\"\")))","v":null},"https://likebk.com/","регистрация-сейчас","","","Россия","2,3","","-","Остановлено","Работает везде","Регистрация прямо сейчас||Форум||Новости||Рейтинг персонажей||||||||","Зарегистрируйтесь и вступите в наш бойцовский клуб||Обсудите все ваши достежения и задания с реальными игроками||Узнайте все новости о мире боев||Посмотрите рейтинг реальных персонажей||||||||","https://likebk.com/register||https://forum.likebk.com/||https://likebk.com/news||https://top.likebk.com/exp_raiting.php/||||||||","","","","","https://direct.yandex.ru/images/direct/2713883/2Tn8r0GsCf55Nw7gxbXQ5g","","","Отлична графика||MMORPG||Передача атмосферы||Увлекательная игра||Отличное качество","","","","","","","","","","",""]
["-","Текстово-графическое","-","4458363194","Группа 4","4","-","26433375075","клиентская онлайн mmorpg","10259215442","Компьютерная игра твоего детства.","Полное погружение в игру БК-2!","БК-2 компьютерная игра прямиком из 2000-х. Отличная графиа и полное погружение!",{"$f":"IF(K173=\"\",\"\",LEN(SUBSTITUTE(SUBSTITUTE(SUBSTITUTE(SUBSTITUTE(SUBSTITUTE(SUBSTITUTE(K173,\"!\",\"\"),\",\",\"\"),\".\",\"\"),\";\",\"\"),\":\",\"\"),\"\"\"\",\"\")))","v":null},{"$f":"IF(L173=\"\",\"\",LEN(SUBSTITUTE(SUBSTITUTE(SUBSTITUTE(SUBSTITUTE(SUBSTITUTE(SUBSTITUTE(L173,\"!\",\"\"),\",\",\"\"),\".\",\"\"),\";\",\"\"),\":\",\"\"),\"\"\"\",\"\")))","v":null},{"$f":"IF(M173=\"\",\"\",LEN(SUBSTITUTE(SUBSTITUTE(SUBSTITUTE(SUBSTITUTE(SUBSTITUTE(SUBSTITUTE(M173,\"!\",\"\"),\",\",\"\"),\".\",\"\"),\";\",\"\"),\":\",\"\"),\"\"\"\",\"\")))","v":null},"https://likebk.com/","регистрация-сейчас","","","Россия","2,3","","-","Остановлено","Работает везде","Регистрация прямо сейчас||Форум||Новости||Рейтинг персонажей||||||||","Зарегистрируйтесь и вступите в наш бойцовский клуб||Обсудите все ваши достежения и задания с реальными игроками||Узнайте все новости о мире боев||Посмотрите рейтинг реальных персонажей||||||||","https://likebk.com/register||https://forum.likebk.com/||https://likebk.com/news||https://top.likebk.com/exp_raiting.php/||||||||","","","","","https://direct.yandex.ru/images/direct/2713883/2Tn8r0GsCf55Nw7gxbXQ5g","","","Отлична графика||MMORPG||Передача атмосферы||Увлекательная игра||Отличное качество","","","","","","","","","","",""]
["-","Текстово-графическое","-","4458363194","Группа 4","4","-","26433375076","лучшие онлайн mmorpg","10259215442","Компьютерная игра твоего детства.","Полное погружение в игру БК-2!","БК-2 компьютерная игра прямиком из 2000-х. Отличная графиа и полное погружение!",{"$f":"IF(K174=\"\",\"\",LEN(SUBSTITUTE(SUBSTITUTE(SUBSTITUTE(SUBSTITUTE(SUBSTITUTE(SUBSTITUTE(K174,\"!\",\"\"),\",\",\"\"),\".\",\"\"),\";\",\"\"),\":\",\"\"),\"\"\"\",\"\")))","v":null},{"$f":"IF(L174=\"\",\"\",LEN(SUBSTITUTE(SUBSTITUTE(SUBSTITUTE(SUBSTITUTE(SUBSTITUTE(SUBSTITUTE(L174,\"!\",\"\"),\",\",\"\"),\".\",\"\"),\";\",\"\"),\":\",\"\"),\"\"\"\",\"\")))","v":null},{"$f":"IF(M174=\"\",\"\",LEN(SUBSTITUTE(SUBSTITUTE(SUBSTITUTE(SUBSTITUTE(SUBSTITUTE(SUBSTITUTE(M174,\"!\",\"\"),\",\",\"\"),\".\",\"\"),\";\",\"\"),\":\",\"\"),\"\"\"\",\"\")))","v":null},"https://likebk.com/","регистрация-сейчас","","","Россия","2,3","","-","Остановлено","Работает везде","Регистрация прямо сейчас||Форум||Новости||Рейтинг персонажей||||||||","Зарегистрируйтесь и вступите в наш бойцовский клуб||Обсудите все ваши достежения и задания с реальными игроками||Узнайте все новости о мире боев||Посмотрите рейтинг реальных персонажей||||||||","https://likebk.com/register||https://forum.likebk.com/||https://likebk.com/news||https://top.likebk.com/exp_raiting.php/||||||||","","","","","https://direct.yandex.ru/images/direct/2713883/2Tn8r0GsCf55Nw7gxbXQ5g","","","Отлична графика||MMORPG||Передача атмосферы||Увлекательная игра||Отличное качество","","","","","","","","","","",""]
["-","Текстово-графическое","-","4458363194","Группа 4","4","-","26433375077","новые онлайн mmorpg","10259215442","Компьютерная игра твоего детства.","Полное погружение в игру БК-2!","БК-2 компьютерная игра прямиком из 2000-х. Отличная графиа и полное погружение!",{"$f":"IF(K175=\"\",\"\",LEN(SUBSTITUTE(SUBSTITUTE(SUBSTITUTE(SUBSTITUTE(SUBSTITUTE(SUBSTITUTE(K175,\"!\",\"\"),\",\",\"\"),\".\",\"\"),\";\",\"\"),\":\",\"\"),\"\"\"\",\"\")))","v":null},{"$f":"IF(L175=\"\",\"\",LEN(SUBSTITUTE(SUBSTITUTE(SUBSTITUTE(SUBSTITUTE(SUBSTITUTE(SUBSTITUTE(L175,\"!\",\"\"),\",\",\"\"),\".\",\"\"),\";\",\"\"),\":\",\"\"),\"\"\"\",\"\")))","v":null},{"$f":"IF(M175=\"\",\"\",LEN(SUBSTITUTE(SUBSTITUTE(SUBSTITUTE(SUBSTITUTE(SUBSTITUTE(SUBSTITUTE(M175,\"!\",\"\"),\",\",\"\"),\".\",\"\"),\";\",\"\"),\":\",\"\"),\"\"\"\",\"\")))","v":null},"https://likebk.com/","регистрация-сейчас","","","Россия","2,3","","-","Остановлено","Работает везде","Регистрация прямо сейчас||Форум||Новости||Рейтинг персонажей||||||||","Зарегистрируйтесь и вступите в наш бойцовский клуб||Обсудите все ваши достежения и задания с реальными игроками||Узнайте все новости о мире боев||Посмотрите рейтинг реальных персонажей||||||||","https://likebk.com/register||https://forum.likebk.com/||https://likebk.com/news||https://top.likebk.com/exp_raiting.php/||||||||","","","","","https://direct.yandex.ru/images/direct/2713883/2Tn8r0GsCf55Nw7gxbXQ5g","","","Отлична графика||MMORPG||Передача атмосферы||Увлекательная игра||Отличное качество","","","","","","","","","","",""]
["-","Текстово-графическое","-","4458363194","Группа 4","4","-","26433375078","онлайн игры 2020 года mmorpg новинки","10259215442","Компьютерная игра твоего детства.","Полное погружение в игру БК-2!","БК-2 компьютерная игра прямиком из 2000-х. Отличная графиа и полное погружение!",{"$f":"IF(K176=\"\",\"\",LEN(SUBSTITUTE(SUBSTITUTE(SUBSTITUTE(SUBSTITUTE(SUBSTITUTE(SUBSTITUTE(K176,\"!\",\"\"),\",\",\"\"),\".\",\"\"),\";\",\"\"),\":\",\"\"),\"\"\"\",\"\")))","v":null},{"$f":"IF(L176=\"\",\"\",LEN(SUBSTITUTE(SUBSTITUTE(SUBSTITUTE(SUBSTITUTE(SUBSTITUTE(SUBSTITUTE(L176,\"!\",\"\"),\",\",\"\"),\".\",\"\"),\";\",\"\"),\":\",\"\"),\"\"\"\",\"\")))","v":null},{"$f":"IF(M176=\"\",\"\",LEN(SUBSTITUTE(SUBSTITUTE(SUBSTITUTE(SUBSTITUTE(SUBSTITUTE(SUBSTITUTE(M176,\"!\",\"\"),\",\",\"\"),\".\",\"\"),\";\",\"\"),\":\",\"\"),\"\"\"\",\"\")))","v":null},"https://likebk.com/","регистрация-сейчас","","","Россия","2,3","","-","Остановлено","Работает везде","Регистрация прямо сейчас||Форум||Новости||Рейтинг персонажей||||||||","Зарегистрируйтесь и вступите в наш бойцовский клуб||Обсудите все ваши достежения и задания с реальными игроками||Узнайте все новости о мире боев||Посмотрите рейтинг реальных персонажей||||||||","https://likebk.com/register||https://forum.likebk.com/||https://likebk.com/news||https://top.likebk.com/exp_raiting.php/||||||||","","","","","https://direct.yandex.ru/images/direct/2713883/2Tn8r0GsCf55Nw7gxbXQ5g","","","Отлична графика||MMORPG||Передача атмосферы||Увлекательная игра||Отличное качество","","","","","","","","","","",""]
["-","Текстово-графическое","-","4458363194","Группа 4","4","-","26433375079","онлайн игры mmorpg","10259215442","Компьютерная игра твоего детства.","Полное погружение в игру БК-2!","БК-2 компьютерная игра прямиком из 2000-х. Отличная графиа и полное погружение!",{"$f":"IF(K177=\"\",\"\",LEN(SUBSTITUTE(SUBSTITUTE(SUBSTITUTE(SUBSTITUTE(SUBSTITUTE(SUBSTITUTE(K177,\"!\",\"\"),\",\",\"\"),\".\",\"\"),\";\",\"\"),\":\",\"\"),\"\"\"\",\"\")))","v":null},{"$f":"IF(L177=\"\",\"\",LEN(SUBSTITUTE(SUBSTITUTE(SUBSTITUTE(SUBSTITUTE(SUBSTITUTE(SUBSTITUTE(L177,\"!\",\"\"),\",\",\"\"),\".\",\"\"),\";\",\"\"),\":\",\"\"),\"\"\"\",\"\")))","v":null},{"$f":"IF(M177=\"\",\"\",LEN(SUBSTITUTE(SUBSTITUTE(SUBSTITUTE(SUBSTITUTE(SUBSTITUTE(SUBSTITUTE(M177,\"!\",\"\"),\",\",\"\"),\".\",\"\"),\";\",\"\"),\":\",\"\"),\"\"\"\",\"\")))","v":null},"https://likebk.com/","регистрация-сейчас","","","Россия","2,3","","-","Остановлено","Работает везде","Регистрация прямо сейчас||Форум||Новости||Рейтинг персонажей||||||||","Зарегистрируйтесь и вступите в наш бойцовский клуб||Обсудите все ваши достежения и задания с реальными игроками||Узнайте все новости о мире боев||Посмотрите рейтинг реальных персонажей||||||||","https://likebk.com/register||https://forum.likebk.com/||https://likebk.com/news||https://top.likebk.com/exp_raiting.php/||||||||","","","","","https://direct.yandex.ru/images/direct/2713883/2Tn8r0GsCf55Nw7gxbXQ5g","","","Отлична графика||MMORPG||Передача атмосферы||Увлекательная игра||Отличное качество","","","","","","","","","","",""]
["-","Текстово-графическое","-","4458363194","Группа 4","4","-","26433375080","онлайн игры mmorpg клиентские","10259215442","Компьютерная игра твоего детства.","Полное погружение в игру БК-2!","БК-2 компьютерная игра прямиком из 2000-х. Отличная графиа и полное погружение!",{"$f":"IF(K178=\"\",\"\",LEN(SUBSTITUTE(SUBSTITUTE(SUBSTITUTE(SUBSTITUTE(SUBSTITUTE(SUBSTITUTE(K178,\"!\",\"\"),\",\",\"\"),\".\",\"\"),\";\",\"\"),\":\",\"\"),\"\"\"\",\"\")))","v":null},{"$f":"IF(L178=\"\",\"\",LEN(SUBSTITUTE(SUBSTITUTE(SUBSTITUTE(SUBSTITUTE(SUBSTITUTE(SUBSTITUTE(L178,\"!\",\"\"),\",\",\"\"),\".\",\"\"),\";\",\"\"),\":\",\"\"),\"\"\"\",\"\")))","v":null},{"$f":"IF(M178=\"\",\"\",LEN(SUBSTITUTE(SUBSTITUTE(SUBSTITUTE(SUBSTITUTE(SUBSTITUTE(SUBSTITUTE(M178,\"!\",\"\"),\",\",\"\"),\".\",\"\"),\";\",\"\"),\":\",\"\"),\"\"\"\",\"\")))","v":null},"https://likebk.com/","регистрация-сейчас","","","Россия","2,3","","-","Остановлено","Работает везде","Регистрация прямо сейчас||Форум||Новости||Рейтинг персонажей||||||||","Зарегистрируйтесь и вступите в наш бойцовский клуб||Обсудите все ваши достежения и задания с реальными игроками||Узнайте все новости о мире боев||Посмотрите рейтинг реальных персонажей||||||||","https://likebk.com/register||https://forum.likebk.com/||https://likebk.com/news||https://top.likebk.com/exp_raiting.php/||||||||","","","","","https://direct.yandex.ru/images/direct/2713883/2Tn8r0GsCf55Nw7gxbXQ5g","","","Отлична графика||MMORPG||Передача атмосферы||Увлекательная игра||Отличное качество","","","","","","","","","","",""]
["-","Текстово-графическое","-","4458363194","Группа 4","4","-","26433375081","онлайн игры жанре mmorpg","10259215442","Компьютерная игра твоего детства.","Полное погружение в игру БК-2!","БК-2 компьютерная игра прямиком из 2000-х. Отличная графиа и полное погружение!",{"$f":"IF(K179=\"\",\"\",LEN(SUBSTITUTE(SUBSTITUTE(SUBSTITUTE(SUBSTITUTE(SUBSTITUTE(SUBSTITUTE(K179,\"!\",\"\"),\",\",\"\"),\".\",\"\"),\";\",\"\"),\":\",\"\"),\"\"\"\",\"\")))","v":null},{"$f":"IF(L179=\"\",\"\",LEN(SUBSTITUTE(SUBSTITUTE(SUBSTITUTE(SUBSTITUTE(SUBSTITUTE(SUBSTITUTE(L179,\"!\",\"\"),\",\",\"\"),\".\",\"\"),\";\",\"\"),\":\",\"\"),\"\"\"\",\"\")))","v":null},{"$f":"IF(M179=\"\",\"\",LEN(SUBSTITUTE(SUBSTITUTE(SUBSTITUTE(SUBSTITUTE(SUBSTITUTE(SUBSTITUTE(M179,\"!\",\"\"),\",\",\"\"),\".\",\"\"),\";\",\"\"),\":\",\"\"),\"\"\"\",\"\")))","v":null},"https://likebk.com/","регистрация-сейчас","","","Россия","2,3","","-","Остановлено","Работает везде","Регистрация прямо сейчас||Форум||Новости||Рейтинг персонажей||||||||","Зарегистрируйтесь и вступите в наш бойцовский клуб||Обсудите все ваши достежения и задания с реальными игроками||Узнайте все новости о мире боев||Посмотрите рейтинг реальных персонажей||||||||","https://likebk.com/register||https://forum.likebk.com/||https://likebk.com/news||https://top.likebk.com/exp_raiting.php/||||||||","","","","","https://direct.yandex.ru/images/direct/2713883/2Tn8r0GsCf55Nw7gxbXQ5g","","","Отлична графика||MMORPG||Передача атмосферы||Увлекательная игра||Отличное качество","","","","","","","","","","",""]
["-","Текстово-графическое","-","4458363194","Группа 4","4","-","26433375082","русские онлайн mmorpg","10259215442","Компьютерная игра твоего детства.","Полное погружение в игру БК-2!","БК-2 компьютерная игра прямиком из 2000-х. Отличная графиа и полное погружение!",{"$f":"IF(K180=\"\",\"\",LEN(SUBSTITUTE(SUBSTITUTE(SUBSTITUTE(SUBSTITUTE(SUBSTITUTE(SUBSTITUTE(K180,\"!\",\"\"),\",\",\"\"),\".\",\"\"),\";\",\"\"),\":\",\"\"),\"\"\"\",\"\")))","v":null},{"$f":"IF(L180=\"\",\"\",LEN(SUBSTITUTE(SUBSTITUTE(SUBSTITUTE(SUBSTITUTE(SUBSTITUTE(SUBSTITUTE(L180,\"!\",\"\"),\",\",\"\"),\".\",\"\"),\";\",\"\"),\":\",\"\"),\"\"\"\",\"\")))","v":null},{"$f":"IF(M180=\"\",\"\",LEN(SUBSTITUTE(SUBSTITUTE(SUBSTITUTE(SUBSTITUTE(SUBSTITUTE(SUBSTITUTE(M180,\"!\",\"\"),\",\",\"\"),\".\",\"\"),\";\",\"\"),\":\",\"\"),\"\"\"\",\"\")))","v":null},"https://likebk.com/","регистрация-сейчас","","","Россия","2,3","","-","Остановлено","Работает везде","Регистрация прямо сейчас||Форум||Новости||Рейтинг персонажей||||||||","Зарегистрируйтесь и вступите в наш бойцовский клуб||Обсудите все ваши достежения и задания с реальными игроками||Узнайте все новости о мире боев||Посмотрите рейтинг реальных персонажей||||||||","https://likebk.com/register||https://forum.likebk.com/||https://likebk.com/news||https://top.likebk.com/exp_raiting.php/||||||||","","","","","https://direct.yandex.ru/images/direct/2713883/2Tn8r0GsCf55Nw7gxbXQ5g","","","Отлична графика||MMORPG||Передача атмосферы||Увлекательная игра||Отличное качество","","","","","","","","","","",""]
["-","Текстово-графическое","-","4458363194","Группа 4","4","-","26433375083","список онлайн mmorpg","10259215442","Компьютерная игра твоего детства.","Полное погружение в игру БК-2!","БК-2 компьютерная игра прямиком из 2000-х. Отличная графиа и полное погружение!",{"$f":"IF(K181=\"\",\"\",LEN(SUBSTITUTE(SUBSTITUTE(SUBSTITUTE(SUBSTITUTE(SUBSTITUTE(SUBSTITUTE(K181,\"!\",\"\"),\",\",\"\"),\".\",\"\"),\";\",\"\"),\":\",\"\"),\"\"\"\",\"\")))","v":null},{"$f":"IF(L181=\"\",\"\",LEN(SUBSTITUTE(SUBSTITUTE(SUBSTITUTE(SUBSTITUTE(SUBSTITUTE(SUBSTITUTE(L181,\"!\",\"\"),\",\",\"\"),\".\",\"\"),\";\",\"\"),\":\",\"\"),\"\"\"\",\"\")))","v":null},{"$f":"IF(M181=\"\",\"\",LEN(SUBSTITUTE(SUBSTITUTE(SUBSTITUTE(SUBSTITUTE(SUBSTITUTE(SUBSTITUTE(M181,\"!\",\"\"),\",\",\"\"),\".\",\"\"),\";\",\"\"),\":\",\"\"),\"\"\"\",\"\")))","v":null},"https://likebk.com/","регистрация-сейчас","","","Россия","2,3","","-","Остановлено","Работает везде","Регистрация прямо сейчас||Форум||Новости||Рейтинг персонажей||||||||","Зарегистрируйтесь и вступите в наш бойцовский клуб||Обсудите все ваши достежения и задания с реальными игроками||Узнайте все новости о мире боев||Посмотрите рейтинг реальных персонажей||||||||","https://likebk.com/register||https://forum.likebk.com/||https://likebk.com/news||https://top.likebk.com/exp_raiting.php/||||||||","","","","","https://direct.yandex.ru/images/direct/2713883/2Tn8r0GsCf55Nw7gxbXQ5g","","","Отлична графика||MMORPG||Передача атмосферы||Увлекательная игра||Отличное качество","","","","","","","","","","",""]
["+","Текстово-графическое","-","4458363194","Группа 4","4","-","","","10259215443","Компьютерная игра твоего детства.","Реалистическая графика!","БК-2 компьютерная игра прямиком из 2000-х. Отличная графиа и полное погружение!",{"$f":"IF(K182=\"\",\"\",LEN(SUBSTITUTE(SUBSTITUTE(SUBSTITUTE(SUBSTITUTE(SUBSTITUTE(SUBSTITUTE(K182,\"!\",\"\"),\",\",\"\"),\".\",\"\"),\";\",\"\"),\":\",\"\"),\"\"\"\",\"\")))","v":null},{"$f":"IF(L182=\"\",\"\",LEN(SUBSTITUTE(SUBSTITUTE(SUBSTITUTE(SUBSTITUTE(SUBSTITUTE(SUBSTITUTE(L182,\"!\",\"\"),\",\",\"\"),\".\",\"\"),\";\",\"\"),\":\",\"\"),\"\"\"\",\"\")))","v":null},{"$f":"IF(M182=\"\",\"\",LEN(SUBSTITUTE(SUBSTITUTE(SUBSTITUTE(SUBSTITUTE(SUBSTITUTE(SUBSTITUTE(M182,\"!\",\"\"),\",\",\"\"),\".\",\"\"),\";\",\"\"),\":\",\"\"),\"\"\"\",\"\")))","v":null},"https://likebk.com/","регистрация-сейчас","","","","","","-","Остановлено","","Регистрация прямо сейчас||Форум||Новости||Рейтинг персонажей||||||||","Зарегистрируйтесь и вступите в наш бойцовский клуб||Обсудите все ваши достежения и задания с реальными игроками||Узнайте все новости о мире боев||Посмотрите рейтинг реальных персонажей||||||||","https://likebk.com/register||https://forum.likebk.com/||https://likebk.com/news||https://top.likebk.com/exp_raiting.php/||||||||","","","","","https://direct.yandex.ru/images/direct/2713883/2Tn8r0GsCf55Nw7gxbXQ5g","","","Отлична графика||MMORPG||Передача атмосферы||Увлекательная игра||Отличное качество","","","","","","","","","","",""]
["+","Текстово-графическое","-","4458363194","Группа 4","4","-","","","10259215445","Компьютерная игра твоего детства.","Уникальный мир с населением!","БК-2 компьютерная игра прямиком из 2000-х. Отличная графиа и полное погружение!",{"$f":"IF(K183=\"\",\"\",LEN(SUBSTITUTE(SUBSTITUTE(SUBSTITUTE(SUBSTITUTE(SUBSTITUTE(SUBSTITUTE(K183,\"!\",\"\"),\",\",\"\"),\".\",\"\"),\";\",\"\"),\":\",\"\"),\"\"\"\",\"\")))","v":null},{"$f":"IF(L183=\"\",\"\",LEN(SUBSTITUTE(SUBSTITUTE(SUBSTITUTE(SUBSTITUTE(SUBSTITUTE(SUBSTITUTE(L183,\"!\",\"\"),\",\",\"\"),\".\",\"\"),\";\",\"\"),\":\",\"\"),\"\"\"\",\"\")))","v":null},{"$f":"IF(M183=\"\",\"\",LEN(SUBSTITUTE(SUBSTITUTE(SUBSTITUTE(SUBSTITUTE(SUBSTITUTE(SUBSTITUTE(M183,\"!\",\"\"),\",\",\"\"),\".\",\"\"),\";\",\"\"),\":\",\"\"),\"\"\"\",\"\")))","v":null},"https://likebk.com/","регистрация-сейчас","","","","","","-","Остановлено","","Регистрация прямо сейчас||Форум||Новости||Рейтинг персонажей||||||||","Зарегистрируйтесь и вступите в наш бойцовский клуб||Обсудите все ваши достежения и задания с реальными игроками||Узнайте все новости о мире боев||Посмотрите рейтинг реальных персонажей||||||||","https://likebk.com/register||https://forum.likebk.com/||https://likebk.com/news||https://top.likebk.com/exp_raiting.php/||||||||","","","","","https://direct.yandex.ru/images/direct/2713883/2Tn8r0GsCf55Nw7gxbXQ5g","","","Отлична графика||MMORPG||Передача атмосферы||Увлекательная игра||Отличное качество","","","","","","","","","","",""]
["-","Текстово-графическое","-","4458363195","Группа 5","5","-","26433375084","бойцовский клуб игра онлайн","10259215446","Компьютерная игра твоего детства.","Полное погружение в игру БК-2!","БК-2 компьютерная игра прямиком из 2000-х. Отличная графика и полное погружение!",{"$f":"IF(K184=\"\",\"\",LEN(SUBSTITUTE(SUBSTITUTE(SUBSTITUTE(SUBSTITUTE(SUBSTITUTE(SUBSTITUTE(K184,\"!\",\"\"),\",\",\"\"),\".\",\"\"),\";\",\"\"),\":\",\"\"),\"\"\"\",\"\")))","v":null},{"$f":"IF(L184=\"\",\"\",LEN(SUBSTITUTE(SUBSTITUTE(SUBSTITUTE(SUBSTITUTE(SUBSTITUTE(SUBSTITUTE(L184,\"!\",\"\"),\",\",\"\"),\".\",\"\"),\";\",\"\"),\":\",\"\"),\"\"\"\",\"\")))","v":null},{"$f":"IF(M184=\"\",\"\",LEN(SUBSTITUTE(SUBSTITUTE(SUBSTITUTE(SUBSTITUTE(SUBSTITUTE(SUBSTITUTE(M184,\"!\",\"\"),\",\",\"\"),\".\",\"\"),\";\",\"\"),\":\",\"\"),\"\"\"\",\"\")))","v":null},"https://likebk.com/","регистрация-сейчас","","","Россия","2,3","","-","Остановлено","Работает везде","Регистрация прямо сейчас||Форум||Новости||Рейтинг персонажей||||||||","Зарегистрируйтесь и вступите в наш клуб||Обсудите все ваши достежения и задания с реальными игроками||Узнайте все новости о мире нашего клуба||Посмотрите рейтинг реальных персонажей||||||||","https://likebk.com/register||https://forum.likebk.com/||https://likebk.com/news||https://top.likebk.com/exp_raiting.php/||||||||","","","","","https://direct.yandex.ru/images/direct/2265742/5RlaWqlLzcSOfLJRw4xsqQ","","","Отлична графика||MMORPG||Передача атмосферы||Увлекательная игра||Отличное качество","","","","","","","","","","",""]
["-","Текстово-графическое","-","4458363195","Группа 5","5","-","26433375085","бойцовский клуб играть","10259215446","Компьютерная игра твоего детства.","Полное погружение в игру БК-2!","БК-2 компьютерная игра прямиком из 2000-х. Отличная графика и полное погружение!",{"$f":"IF(K185=\"\",\"\",LEN(SUBSTITUTE(SUBSTITUTE(SUBSTITUTE(SUBSTITUTE(SUBSTITUTE(SUBSTITUTE(K185,\"!\",\"\"),\",\",\"\"),\".\",\"\"),\";\",\"\"),\":\",\"\"),\"\"\"\",\"\")))","v":null},{"$f":"IF(L185=\"\",\"\",LEN(SUBSTITUTE(SUBSTITUTE(SUBSTITUTE(SUBSTITUTE(SUBSTITUTE(SUBSTITUTE(L185,\"!\",\"\"),\",\",\"\"),\".\",\"\"),\";\",\"\"),\":\",\"\"),\"\"\"\",\"\")))","v":null},{"$f":"IF(M185=\"\",\"\",LEN(SUBSTITUTE(SUBSTITUTE(SUBSTITUTE(SUBSTITUTE(SUBSTITUTE(SUBSTITUTE(M185,\"!\",\"\"),\",\",\"\"),\".\",\"\"),\";\",\"\"),\":\",\"\"),\"\"\"\",\"\")))","v":null},"https://likebk.com/","регистрация-сейчас","","","Россия","2,3","","-","Остановлено","Работает везде","Регистрация прямо сейчас||Форум||Новости||Рейтинг персонажей||||||||","Зарегистрируйтесь и вступите в наш клуб||Обсудите все ваши достежения и задания с реальными игроками||Узнайте все новости о мире нашего клуба||Посмотрите рейтинг реальных персонажей||||||||","https://likebk.com/register||https://forum.likebk.com/||https://likebk.com/news||https://top.likebk.com/exp_raiting.php/||||||||","","","","","https://direct.yandex.ru/images/direct/2265742/5RlaWqlLzcSOfLJRw4xsqQ","","","Отлична графика||MMORPG||Передача атмосферы||Увлекательная игра||Отличное качество","","","","","","","","","","",""]
["-","Текстово-графическое","-","4458363195","Группа 5","5","-","26433375086","онлайн игра детства","10259215446","Компьютерная игра твоего детства.","Полное погружение в игру БК-2!","БК-2 компьютерная игра прямиком из 2000-х. Отличная графика и полное погружение!",{"$f":"IF(K186=\"\",\"\",LEN(SUBSTITUTE(SUBSTITUTE(SUBSTITUTE(SUBSTITUTE(SUBSTITUTE(SUBSTITUTE(K186,\"!\",\"\"),\",\",\"\"),\".\",\"\"),\";\",\"\"),\":\",\"\"),\"\"\"\",\"\")))","v":null},{"$f":"IF(L186=\"\",\"\",LEN(SUBSTITUTE(SUBSTITUTE(SUBSTITUTE(SUBSTITUTE(SUBSTITUTE(SUBSTITUTE(L186,\"!\",\"\"),\",\",\"\"),\".\",\"\"),\";\",\"\"),\":\",\"\"),\"\"\"\",\"\")))","v":null},{"$f":"IF(M186=\"\",\"\",LEN(SUBSTITUTE(SUBSTITUTE(SUBSTITUTE(SUBSTITUTE(SUBSTITUTE(SUBSTITUTE(M186,\"!\",\"\"),\",\",\"\"),\".\",\"\"),\";\",\"\"),\":\",\"\"),\"\"\"\",\"\")))","v":null},"https://likebk.com/","регистрация-сейчас","","","Россия","2,3","","-","Остановлено","Работает везде","Регистрация прямо сейчас||Форум||Новости||Рейтинг персонажей||||||||","Зарегистрируйтесь и вступите в наш клуб||Обсудите все ваши достежения и задания с реальными игроками||Узнайте все новости о мире нашего клуба||Посмотрите рейтинг реальных персонажей||||||||","https://likebk.com/register||https://forum.likebk.com/||https://likebk.com/news||https://top.likebk.com/exp_raiting.php/||||||||","","","","","https://direct.yandex.ru/images/direct/2265742/5RlaWqlLzcSOfLJRw4xsqQ","","","Отлична графика||MMORPG||Передача атмосферы||Увлекательная игра||Отличное качество","","","","","","","","","","",""]
["-","Текстово-графическое","-","4458363195","Группа 5","5","-","26433375087","игра бойцовский клуб","10259215446","Компьютерная игра твоего детства.","Полное погружение в игру БК-2!","БК-2 компьютерная игра прямиком из 2000-х. Отличная графика и полное погружение!",{"$f":"IF(K187=\"\",\"\",LEN(SUBSTITUTE(SUBSTITUTE(SUBSTITUTE(SUBSTITUTE(SUBSTITUTE(SUBSTITUTE(K187,\"!\",\"\"),\",\",\"\"),\".\",\"\"),\";\",\"\"),\":\",\"\"),\"\"\"\",\"\")))","v":null},{"$f":"IF(L187=\"\",\"\",LEN(SUBSTITUTE(SUBSTITUTE(SUBSTITUTE(SUBSTITUTE(SUBSTITUTE(SUBSTITUTE(L187,\"!\",\"\"),\",\",\"\"),\".\",\"\"),\";\",\"\"),\":\",\"\"),\"\"\"\",\"\")))","v":null},{"$f":"IF(M187=\"\",\"\",LEN(SUBSTITUTE(SUBSTITUTE(SUBSTITUTE(SUBSTITUTE(SUBSTITUTE(SUBSTITUTE(M187,\"!\",\"\"),\",\",\"\"),\".\",\"\"),\";\",\"\"),\":\",\"\"),\"\"\"\",\"\")))","v":null},"https://likebk.com/","регистрация-сейчас","","","Россия","2,3","","-","Остановлено","Работает везде","Регистрация прямо сейчас||Форум||Новости||Рейтинг персонажей||||||||","Зарегистрируйтесь и вступите в наш клуб||Обсудите все ваши достежения и задания с реальными игроками||Узнайте все новости о мире нашего клуба||Посмотрите рейтинг реальных персонажей||||||||","https://likebk.com/register||https://forum.likebk.com/||https://likebk.com/news||https://top.likebk.com/exp_raiting.php/||||||||","","","","","https://direct.yandex.ru/images/direct/2265742/5RlaWqlLzcSOfLJRw4xsqQ","","","Отлична графика||MMORPG||Передача атмосферы||Увлекательная игра||Отличное качество","","","","","","","","","","",""]
["-","Текстово-графическое","-","4458363195","Группа 5","5","-","26433375088","новый бойцовский клуб онлайн игра","10259215446","Компьютерная игра твоего детства.","Полное погружение в игру БК-2!","БК-2 компьютерная игра прямиком из 2000-х. Отличная графика и полное погружение!",{"$f":"IF(K188=\"\",\"\",LEN(SUBSTITUTE(SUBSTITUTE(SUBSTITUTE(SUBSTITUTE(SUBSTITUTE(SUBSTITUTE(K188,\"!\",\"\"),\",\",\"\"),\".\",\"\"),\";\",\"\"),\":\",\"\"),\"\"\"\",\"\")))","v":null},{"$f":"IF(L188=\"\",\"\",LEN(SUBSTITUTE(SUBSTITUTE(SUBSTITUTE(SUBSTITUTE(SUBSTITUTE(SUBSTITUTE(L188,\"!\",\"\"),\",\",\"\"),\".\",\"\"),\";\",\"\"),\":\",\"\"),\"\"\"\",\"\")))","v":null},{"$f":"IF(M188=\"\",\"\",LEN(SUBSTITUTE(SUBSTITUTE(SUBSTITUTE(SUBSTITUTE(SUBSTITUTE(SUBSTITUTE(M188,\"!\",\"\"),\",\",\"\"),\".\",\"\"),\";\",\"\"),\":\",\"\"),\"\"\"\",\"\")))","v":null},"https://likebk.com/","регистрация-сейчас","","","Россия","2,3","","-","Остановлено","Работает везде","Регистрация прямо сейчас||Форум||Новости||Рейтинг персонажей||||||||","Зарегистрируйтесь и вступите в наш клуб||Обсудите все ваши достежения и задания с реальными игроками||Узнайте все новости о мире нашего клуба||Посмотрите рейтинг реальных персонажей||||||||","https://likebk.com/register||https://forum.likebk.com/||https://likebk.com/news||https://top.likebk.com/exp_raiting.php/||||||||","","","","","https://direct.yandex.ru/images/direct/2265742/5RlaWqlLzcSOfLJRw4xsqQ","","","Отлична графика||MMORPG||Передача атмосферы||Увлекательная игра||Отличное качество","","","","","","","","","","",""]
["-","Текстово-графическое","-","4458363195","Группа 5","5","-","26433375089","старый бойцовский клуб игра","10259215446","Компьютерная игра твоего детства.","Полное погружение в игру БК-2!","БК-2 компьютерная игра прямиком из 2000-х. Отличная графика и полное погружение!",{"$f":"IF(K189=\"\",\"\",LEN(SUBSTITUTE(SUBSTITUTE(SUBSTITUTE(SUBSTITUTE(SUBSTITUTE(SUBSTITUTE(K189,\"!\",\"\"),\",\",\"\"),\".\",\"\"),\";\",\"\"),\":\",\"\"),\"\"\"\",\"\")))","v":null},{"$f":"IF(L189=\"\",\"\",LEN(SUBSTITUTE(SUBSTITUTE(SUBSTITUTE(SUBSTITUTE(SUBSTITUTE(SUBSTITUTE(L189,\"!\",\"\"),\",\",\"\"),\".\",\"\"),\";\",\"\"),\":\",\"\"),\"\"\"\",\"\")))","v":null},{"$f":"IF(M189=\"\",\"\",LEN(SUBSTITUTE(SUBSTITUTE(SUBSTITUTE(SUBSTITUTE(SUBSTITUTE(SUBSTITUTE(M189,\"!\",\"\"),\",\",\"\"),\".\",\"\"),\";\",\"\"),\":\",\"\"),\"\"\"\",\"\")))","v":null},"https://likebk.com/","регистрация-сейчас","","","Россия","2,3","","-","Остановлено","Работает везде","Регистрация прямо сейчас||Форум||Новости||Рейтинг персонажей||||||||","Зарегистрируйтесь и вступите в наш клуб||Обсудите все ваши достежения и задания с реальными игроками||Узнайте все новости о мире нашего клуба||Посмотрите рейтинг реальных персонажей||||||||","https://likebk.com/register||https://forum.likebk.com/||https://likebk.com/news||https://top.likebk.com/exp_raiting.php/||||||||","","","","","https://direct.yandex.ru/images/direct/2265742/5RlaWqlLzcSOfLJRw4xsqQ","","","Отлична графика||MMORPG||Передача атмосферы||Увлекательная игра||Отличное качество","","","","","","","","","","",""]
["-","Текстово-графическое","-","4458363195","Группа 5","5","-","26433375090","бойцовский клуб браузерная игра","10259215446","Компьютерная игра твоего детства.","Полное погружение в игру БК-2!","БК-2 компьютерная игра прямиком из 2000-х. Отличная графика и полное погружение!",{"$f":"IF(K190=\"\",\"\",LEN(SUBSTITUTE(SUBSTITUTE(SUBSTITUTE(SUBSTITUTE(SUBSTITUTE(SUBSTITUTE(K190,\"!\",\"\"),\",\",\"\"),\".\",\"\"),\";\",\"\"),\":\",\"\"),\"\"\"\",\"\")))","v":null},{"$f":"IF(L190=\"\",\"\",LEN(SUBSTITUTE(SUBSTITUTE(SUBSTITUTE(SUBSTITUTE(SUBSTITUTE(SUBSTITUTE(L190,\"!\",\"\"),\",\",\"\"),\".\",\"\"),\";\",\"\"),\":\",\"\"),\"\"\"\",\"\")))","v":null},{"$f":"IF(M190=\"\",\"\",LEN(SUBSTITUTE(SUBSTITUTE(SUBSTITUTE(SUBSTITUTE(SUBSTITUTE(SUBSTITUTE(M190,\"!\",\"\"),\",\",\"\"),\".\",\"\"),\";\",\"\"),\":\",\"\"),\"\"\"\",\"\")))","v":null},"https://likebk.com/","регистрация-сейчас","","","Россия","2,3","","-","Остановлено","Работает везде","Регистрация прямо сейчас||Форум||Новости||Рейтинг персонажей||||||||","Зарегистрируйтесь и вступите в наш клуб||Обсудите все ваши достежения и задания с реальными игроками||Узнайте все новости о мире нашего клуба||Посмотрите рейтинг реальных персонажей||||||||","https://likebk.com/register||https://forum.likebk.com/||https://likebk.com/news||https://top.likebk.com/exp_raiting.php/||||||||","","","","","https://direct.yandex.ru/images/direct/2265742/5RlaWqlLzcSOfLJRw4xsqQ","","","Отлична графика||MMORPG||Передача атмосферы||Увлекательная игра||Отличное качество","","","","","","","","","","",""]
["-","Текстово-графическое","-","4458363195","Группа 5","5","-","26433375091","likebk бойцовский клуб","10259215446","Компьютерная игра твоего детства.","Полное погружение в игру БК-2!","БК-2 компьютерная игра прямиком из 2000-х. Отличная графика и полное погружение!",{"$f":"IF(K191=\"\",\"\",LEN(SUBSTITUTE(SUBSTITUTE(SUBSTITUTE(SUBSTITUTE(SUBSTITUTE(SUBSTITUTE(K191,\"!\",\"\"),\",\",\"\"),\".\",\"\"),\";\",\"\"),\":\",\"\"),\"\"\"\",\"\")))","v":null},{"$f":"IF(L191=\"\",\"\",LEN(SUBSTITUTE(SUBSTITUTE(SUBSTITUTE(SUBSTITUTE(SUBSTITUTE(SUBSTITUTE(L191,\"!\",\"\"),\",\",\"\"),\".\",\"\"),\";\",\"\"),\":\",\"\"),\"\"\"\",\"\")))","v":null},{"$f":"IF(M191=\"\",\"\",LEN(SUBSTITUTE(SUBSTITUTE(SUBSTITUTE(SUBSTITUTE(SUBSTITUTE(SUBSTITUTE(M191,\"!\",\"\"),\",\",\"\"),\".\",\"\"),\";\",\"\"),\":\",\"\"),\"\"\"\",\"\")))","v":null},"https://likebk.com/","регистрация-сейчас","","","Россия","2,3","","-","Остановлено","Работает везде","Регистрация прямо сейчас||Форум||Новости||Рейтинг персонажей||||||||","Зарегистрируйтесь и вступите в наш клуб||Обсудите все ваши достежения и задания с реальными игроками||Узнайте все новости о мире нашего клуба||Посмотрите рейтинг реальных персонажей||||||||","https://likebk.com/register||https://forum.likebk.com/||https://likebk.com/news||https://top.likebk.com/exp_raiting.php/||||||||","","","","","https://direct.yandex.ru/images/direct/2265742/5RlaWqlLzcSOfLJRw4xsqQ","","","Отлична графика||MMORPG||Передача атмосферы||Увлекательная игра||Отличное качество","","","","","","","","","","",""]
["-","Текстово-графическое","-","4458363195","Группа 5","5","-","26433375092","браузерные игры типа бк","10259215446","Компьютерная игра твоего детства.","Полное погружение в игру БК-2!","БК-2 компьютерная игра прямиком из 2000-х. Отличная графика и полное погружение!",{"$f":"IF(K192=\"\",\"\",LEN(SUBSTITUTE(SUBSTITUTE(SUBSTITUTE(SUBSTITUTE(SUBSTITUTE(SUBSTITUTE(K192,\"!\",\"\"),\",\",\"\"),\".\",\"\"),\";\",\"\"),\":\",\"\"),\"\"\"\",\"\")))","v":null},{"$f":"IF(L192=\"\",\"\",LEN(SUBSTITUTE(SUBSTITUTE(SUBSTITUTE(SUBSTITUTE(SUBSTITUTE(SUBSTITUTE(L192,\"!\",\"\"),\",\",\"\"),\".\",\"\"),\";\",\"\"),\":\",\"\"),\"\"\"\",\"\")))","v":null},{"$f":"IF(M192=\"\",\"\",LEN(SUBSTITUTE(SUBSTITUTE(SUBSTITUTE(SUBSTITUTE(SUBSTITUTE(SUBSTITUTE(M192,\"!\",\"\"),\",\",\"\"),\".\",\"\"),\";\",\"\"),\":\",\"\"),\"\"\"\",\"\")))","v":null},"https://likebk.com/","регистрация-сейчас","","","Россия","2,3","","-","Остановлено","Работает везде","Регистрация прямо сейчас||Форум||Новости||Рейтинг персонажей||||||||","Зарегистрируйтесь и вступите в наш клуб||Обсудите все ваши достежения и задания с реальными игроками||Узнайте все новости о мире нашего клуба||Посмотрите рейтинг реальных персонажей||||||||","https://likebk.com/register||https://forum.likebk.com/||https://likebk.com/news||https://top.likebk.com/exp_raiting.php/||||||||","","","","","https://direct.yandex.ru/images/direct/2265742/5RlaWqlLzcSOfLJRw4xsqQ","","","Отлична графика||MMORPG||Передача атмосферы||Увлекательная игра||Отличное качество","","","","","","","","","","",""]
["-","Текстово-графическое","-","4458363195","Группа 5","5","-","26433375093","бойцовский клуб игра 2018","10259215446","Компьютерная игра твоего детства.","Полное погружение в игру БК-2!","БК-2 компьютерная игра прямиком из 2000-х. Отличная графика и полное погружение!",{"$f":"IF(K193=\"\",\"\",LEN(SUBSTITUTE(SUBSTITUTE(SUBSTITUTE(SUBSTITUTE(SUBSTITUTE(SUBSTITUTE(K193,\"!\",\"\"),\",\",\"\"),\".\",\"\"),\";\",\"\"),\":\",\"\"),\"\"\"\",\"\")))","v":null},{"$f":"IF(L193=\"\",\"\",LEN(SUBSTITUTE(SUBSTITUTE(SUBSTITUTE(SUBSTITUTE(SUBSTITUTE(SUBSTITUTE(L193,\"!\",\"\"),\",\",\"\"),\".\",\"\"),\";\",\"\"),\":\",\"\"),\"\"\"\",\"\")))","v":null},{"$f":"IF(M193=\"\",\"\",LEN(SUBSTITUTE(SUBSTITUTE(SUBSTITUTE(SUBSTITUTE(SUBSTITUTE(SUBSTITUTE(M193,\"!\",\"\"),\",\",\"\"),\".\",\"\"),\";\",\"\"),\":\",\"\"),\"\"\"\",\"\")))","v":null},"https://likebk.com/","регистрация-сейчас","","","Россия","2,3","","-","Остановлено","Работает везде","Регистрация прямо сейчас||Форум||Новости||Рейтинг персонажей||||||||","Зарегистрируйтесь и вступите в наш клуб||Обсудите все ваши достежения и задания с реальными игроками||Узнайте все новости о мире нашего клуба||Посмотрите рейтинг реальных персонажей||||||||","https://likebk.com/register||https://forum.likebk.com/||https://likebk.com/news||https://top.likebk.com/exp_raiting.php/||||||||","","","","","https://direct.yandex.ru/images/direct/2265742/5RlaWqlLzcSOfLJRw4xsqQ","","","Отлична графика||MMORPG||Передача атмосферы||Увлекательная игра||Отличное качество","","","","","","","","","","",""]
["-","Текстово-графическое","-","4458363195","Группа 5","5","-","26433375094","игра детства из 2000-х","10259215446","Компьютерная игра твоего детства.","Полное погружение в игру БК-2!","БК-2 компьютерная игра прямиком из 2000-х. Отличная графика и полное погружение!",{"$f":"IF(K194=\"\",\"\",LEN(SUBSTITUTE(SUBSTITUTE(SUBSTITUTE(SUBSTITUTE(SUBSTITUTE(SUBSTITUTE(K194,\"!\",\"\"),\",\",\"\"),\".\",\"\"),\";\",\"\"),\":\",\"\"),\"\"\"\",\"\")))","v":null},{"$f":"IF(L194=\"\",\"\",LEN(SUBSTITUTE(SUBSTITUTE(SUBSTITUTE(SUBSTITUTE(SUBSTITUTE(SUBSTITUTE(L194,\"!\",\"\"),\",\",\"\"),\".\",\"\"),\";\",\"\"),\":\",\"\"),\"\"\"\",\"\")))","v":null},{"$f":"IF(M194=\"\",\"\",LEN(SUBSTITUTE(SUBSTITUTE(SUBSTITUTE(SUBSTITUTE(SUBSTITUTE(SUBSTITUTE(M194,\"!\",\"\"),\",\",\"\"),\".\",\"\"),\";\",\"\"),\":\",\"\"),\"\"\"\",\"\")))","v":null},"https://likebk.com/","регистрация-сейчас","","","Россия","2,3","","-","Остановлено","Работает везде","Регистрация прямо сейчас||Форум||Новости||Рейтинг персонажей||||||||","Зарегистрируйтесь и вступите в наш клуб||Обсудите все ваши достежения и задания с реальными игроками||Узнайте все новости о мире нашего клуба||Посмотрите рейтинг реальных персонажей||||||||","https://likebk.com/register||https://forum.likebk.com/||https://likebk.com/news||https://top.likebk.com/exp_raiting.php/||||||||","","","","","https://direct.yandex.ru/images/direct/2265742/5RlaWqlLzcSOfLJRw4xsqQ","","","Отлична графика||MMORPG||Передача атмосферы||Увлекательная игра||Отличное качество","","","","","","","","","","",""]
["-","Текстово-графическое","-","4458363195","Группа 5","5","-","26433375095","игра бк-2","10259215446","Компьютерная игра твоего детства.","Полное погружение в игру БК-2!","БК-2 компьютерная игра прямиком из 2000-х. Отличная графика и полное погружение!",{"$f":"IF(K195=\"\",\"\",LEN(SUBSTITUTE(SUBSTITUTE(SUBSTITUTE(SUBSTITUTE(SUBSTITUTE(SUBSTITUTE(K195,\"!\",\"\"),\",\",\"\"),\".\",\"\"),\";\",\"\"),\":\",\"\"),\"\"\"\",\"\")))","v":null},{"$f":"IF(L195=\"\",\"\",LEN(SUBSTITUTE(SUBSTITUTE(SUBSTITUTE(SUBSTITUTE(SUBSTITUTE(SUBSTITUTE(L195,\"!\",\"\"),\",\",\"\"),\".\",\"\"),\";\",\"\"),\":\",\"\"),\"\"\"\",\"\")))","v":null},{"$f":"IF(M195=\"\",\"\",LEN(SUBSTITUTE(SUBSTITUTE(SUBSTITUTE(SUBSTITUTE(SUBSTITUTE(SUBSTITUTE(M195,\"!\",\"\"),\",\",\"\"),\".\",\"\"),\";\",\"\"),\":\",\"\"),\"\"\"\",\"\")))","v":null},"https://likebk.com/","регистрация-сейчас","","","Россия","2,3","","-","Остановлено","Работает везде","Регистрация прямо сейчас||Форум||Новости||Рейтинг персонажей||||||||","Зарегистрируйтесь и вступите в наш клуб||Обсудите все ваши достежения и задания с реальными игроками||Узнайте все новости о мире нашего клуба||Посмотрите рейтинг реальных персонажей||||||||","https://likebk.com/register||https://forum.likebk.com/||https://likebk.com/news||https://top.likebk.com/exp_raiting.php/||||||||","","","","","https://direct.yandex.ru/images/direct/2265742/5RlaWqlLzcSOfLJRw4xsqQ","","","Отлична графика||MMORPG||Передача атмосферы||Увлекательная игра||Отличное качество","","","","","","","","","","",""]
["-","Текстово-графическое","-","4458363195","Группа 5","5","-","26433375096","бк-2 играть онлайн","10259215446","Компьютерная игра твоего детства.","Полное погружение в игру БК-2!","БК-2 компьютерная игра прямиком из 2000-х. Отличная графика и полное погружение!",{"$f":"IF(K196=\"\",\"\",LEN(SUBSTITUTE(SUBSTITUTE(SUBSTITUTE(SUBSTITUTE(SUBSTITUTE(SUBSTITUTE(K196,\"!\",\"\"),\",\",\"\"),\".\",\"\"),\";\",\"\"),\":\",\"\"),\"\"\"\",\"\")))","v":null},{"$f":"IF(L196=\"\",\"\",LEN(SUBSTITUTE(SUBSTITUTE(SUBSTITUTE(SUBSTITUTE(SUBSTITUTE(SUBSTITUTE(L196,\"!\",\"\"),\",\",\"\"),\".\",\"\"),\";\",\"\"),\":\",\"\"),\"\"\"\",\"\")))","v":null},{"$f":"IF(M196=\"\",\"\",LEN(SUBSTITUTE(SUBSTITUTE(SUBSTITUTE(SUBSTITUTE(SUBSTITUTE(SUBSTITUTE(M196,\"!\",\"\"),\",\",\"\"),\".\",\"\"),\";\",\"\"),\":\",\"\"),\"\"\"\",\"\")))","v":null},"https://likebk.com/","регистрация-сейчас","","","Россия","2,3","","-","Остановлено","Работает везде","Регистрация прямо сейчас||Форум||Новости||Рейтинг персонажей||||||||","Зарегистрируйтесь и вступите в наш клуб||Обсудите все ваши достежения и задания с реальными игроками||Узнайте все новости о мире нашего клуба||Посмотрите рейтинг реальных персонажей||||||||","https://likebk.com/register||https://forum.likebk.com/||https://likebk.com/news||https://top.likebk.com/exp_raiting.php/||||||||","","","","","https://direct.yandex.ru/images/direct/2265742/5RlaWqlLzcSOfLJRw4xsqQ","","","Отлична графика||MMORPG||Передача атмосферы||Увлекательная игра||Отличное качество","","","","","","","","","","",""]
["-","Текстово-графическое","-","4458363195","Группа 5","5","-","26433375097","бк онлайн игра бойцовский клуб","10259215446","Компьютерная игра твоего детства.","Полное погружение в игру БК-2!","БК-2 компьютерная игра прямиком из 2000-х. Отличная графика и полное погружение!",{"$f":"IF(K197=\"\",\"\",LEN(SUBSTITUTE(SUBSTITUTE(SUBSTITUTE(SUBSTITUTE(SUBSTITUTE(SUBSTITUTE(K197,\"!\",\"\"),\",\",\"\"),\".\",\"\"),\";\",\"\"),\":\",\"\"),\"\"\"\",\"\")))","v":null},{"$f":"IF(L197=\"\",\"\",LEN(SUBSTITUTE(SUBSTITUTE(SUBSTITUTE(SUBSTITUTE(SUBSTITUTE(SUBSTITUTE(L197,\"!\",\"\"),\",\",\"\"),\".\",\"\"),\";\",\"\"),\":\",\"\"),\"\"\"\",\"\")))","v":null},{"$f":"IF(M197=\"\",\"\",LEN(SUBSTITUTE(SUBSTITUTE(SUBSTITUTE(SUBSTITUTE(SUBSTITUTE(SUBSTITUTE(M197,\"!\",\"\"),\",\",\"\"),\".\",\"\"),\";\",\"\"),\":\",\"\"),\"\"\"\",\"\")))","v":null},"https://likebk.com/","регистрация-сейчас","","","Россия","2,3","","-","Остановлено","Работает везде","Регистрация прямо сейчас||Форум||Новости||Рейтинг персонажей||||||||","Зарегистрируйтесь и вступите в наш клуб||Обсудите все ваши достежения и задания с реальными игроками||Узнайте все новости о мире нашего клуба||Посмотрите рейтинг реальных персонажей||||||||","https://likebk.com/register||https://forum.likebk.com/||https://likebk.com/news||https://top.likebk.com/exp_raiting.php/||||||||","","","","","https://direct.yandex.ru/images/direct/2265742/5RlaWqlLzcSOfLJRw4xsqQ","","","Отлична графика||MMORPG||Передача атмосферы||Увлекательная игра||Отличное качество","","","","","","","","","","",""]
["-","Текстово-графическое","-","4458363195","Группа 5","5","-","26433375098","бойцовский клуб браузерная онлайн игра","10259215446","Компьютерная игра твоего детства.","Полное погружение в игру БК-2!","БК-2 компьютерная игра прямиком из 2000-х. Отличная графика и полное погружение!",{"$f":"IF(K198=\"\",\"\",LEN(SUBSTITUTE(SUBSTITUTE(SUBSTITUTE(SUBSTITUTE(SUBSTITUTE(SUBSTITUTE(K198,\"!\",\"\"),\",\",\"\"),\".\",\"\"),\";\",\"\"),\":\",\"\"),\"\"\"\",\"\")))","v":null},{"$f":"IF(L198=\"\",\"\",LEN(SUBSTITUTE(SUBSTITUTE(SUBSTITUTE(SUBSTITUTE(SUBSTITUTE(SUBSTITUTE(L198,\"!\",\"\"),\",\",\"\"),\".\",\"\"),\";\",\"\"),\":\",\"\"),\"\"\"\",\"\")))","v":null},{"$f":"IF(M198=\"\",\"\",LEN(SUBSTITUTE(SUBSTITUTE(SUBSTITUTE(SUBSTITUTE(SUBSTITUTE(SUBSTITUTE(M198,\"!\",\"\"),\",\",\"\"),\".\",\"\"),\";\",\"\"),\":\",\"\"),\"\"\"\",\"\")))","v":null},"https://likebk.com/","регистрация-сейчас","","","Россия","2,3","","-","Остановлено","Работает везде","Регистрация прямо сейчас||Форум||Новости||Рейтинг персонажей||||||||","Зарегистрируйтесь и вступите в наш клуб||Обсудите все ваши достежения и задания с реальными игроками||Узнайте все новости о мире нашего клуба||Посмотрите рейтинг реальных персонажей||||||||","https://likebk.com/register||https://forum.likebk.com/||https://likebk.com/news||https://top.likebk.com/exp_raiting.php/||||||||","","","","","https://direct.yandex.ru/images/direct/2265742/5RlaWqlLzcSOfLJRw4xsqQ","","","Отлична графика||MMORPG||Передача атмосферы||Увлекательная игра||Отличное качество","","","","","","","","","","",""]
["-","Текстово-графическое","-","4458363195","Группа 5","5","-","26433375099","игра мморпг","10259215446","Компьютерная игра твоего детства.","Полное погружение в игру БК-2!","БК-2 компьютерная игра прямиком из 2000-х. Отличная графика и полное погружение!",{"$f":"IF(K199=\"\",\"\",LEN(SUBSTITUTE(SUBSTITUTE(SUBSTITUTE(SUBSTITUTE(SUBSTITUTE(SUBSTITUTE(K199,\"!\",\"\"),\",\",\"\"),\".\",\"\"),\";\",\"\"),\":\",\"\"),\"\"\"\",\"\")))","v":null},{"$f":"IF(L199=\"\",\"\",LEN(SUBSTITUTE(SUBSTITUTE(SUBSTITUTE(SUBSTITUTE(SUBSTITUTE(SUBSTITUTE(L199,\"!\",\"\"),\",\",\"\"),\".\",\"\"),\";\",\"\"),\":\",\"\"),\"\"\"\",\"\")))","v":null},{"$f":"IF(M199=\"\",\"\",LEN(SUBSTITUTE(SUBSTITUTE(SUBSTITUTE(SUBSTITUTE(SUBSTITUTE(SUBSTITUTE(M199,\"!\",\"\"),\",\",\"\"),\".\",\"\"),\";\",\"\"),\":\",\"\"),\"\"\"\",\"\")))","v":null},"https://likebk.com/","регистрация-сейчас","","","Россия","2,3","","-","Остановлено","Работает везде","Регистрация прямо сейчас||Форум||Новости||Рейтинг персонажей||||||||","Зарегистрируйтесь и вступите в наш клуб||Обсудите все ваши достежения и задания с реальными игроками||Узнайте все новости о мире нашего клуба||Посмотрите рейтинг реальных персонажей||||||||","https://likebk.com/register||https://forum.likebk.com/||https://likebk.com/news||https://top.likebk.com/exp_raiting.php/||||||||","","","","","https://direct.yandex.ru/images/direct/2265742/5RlaWqlLzcSOfLJRw4xsqQ","","","Отлична графика||MMORPG||Передача атмосферы||Увлекательная игра||Отличное качество","","","","","","","","","","",""]
["-","Текстово-графическое","-","4458363195","Группа 5","5","-","26433375100","mmorpg +для слабых пк онлайн","10259215446","Компьютерная игра твоего детства.","Полное погружение в игру БК-2!","БК-2 компьютерная игра прямиком из 2000-х. Отличная графика и полное погружение!",{"$f":"IF(K200=\"\",\"\",LEN(SUBSTITUTE(SUBSTITUTE(SUBSTITUTE(SUBSTITUTE(SUBSTITUTE(SUBSTITUTE(K200,\"!\",\"\"),\",\",\"\"),\".\",\"\"),\";\",\"\"),\":\",\"\"),\"\"\"\",\"\")))","v":null},{"$f":"IF(L200=\"\",\"\",LEN(SUBSTITUTE(SUBSTITUTE(SUBSTITUTE(SUBSTITUTE(SUBSTITUTE(SUBSTITUTE(L200,\"!\",\"\"),\",\",\"\"),\".\",\"\"),\";\",\"\"),\":\",\"\"),\"\"\"\",\"\")))","v":null},{"$f":"IF(M200=\"\",\"\",LEN(SUBSTITUTE(SUBSTITUTE(SUBSTITUTE(SUBSTITUTE(SUBSTITUTE(SUBSTITUTE(M200,\"!\",\"\"),\",\",\"\"),\".\",\"\"),\";\",\"\"),\":\",\"\"),\"\"\"\",\"\")))","v":null},"https://likebk.com/","регистрация-сейчас","","","Россия","2,3","","-","Остановлено","Работает везде","Регистрация прямо сейчас||Форум||Новости||Рейтинг персонажей||||||||","Зарегистрируйтесь и вступите в наш клуб||Обсудите все ваши достежения и задания с реальными игроками||Узнайте все новости о мире нашего клуба||Посмотрите рейтинг реальных персонажей||||||||","https://likebk.com/register||https://forum.likebk.com/||https://likebk.com/news||https://top.likebk.com/exp_raiting.php/||||||||","","","","","https://direct.yandex.ru/images/direct/2265742/5RlaWqlLzcSOfLJRw4xsqQ","","","Отлична графика||MMORPG||Передача атмосферы||Увлекательная игра||Отличное качество","","","","","","","","","","",""]
["-","Текстово-графическое","-","4458363195","Группа 5","5","-","26433375101","mmorpg +на пк онлайн","10259215446","Компьютерная игра твоего детства.","Полное погружение в игру БК-2!","БК-2 компьютерная игра прямиком из 2000-х. Отличная графика и полное погружение!",{"$f":"IF(K201=\"\",\"\",LEN(SUBSTITUTE(SUBSTITUTE(SUBSTITUTE(SUBSTITUTE(SUBSTITUTE(SUBSTITUTE(K201,\"!\",\"\"),\",\",\"\"),\".\",\"\"),\";\",\"\"),\":\",\"\"),\"\"\"\",\"\")))","v":null},{"$f":"IF(L201=\"\",\"\",LEN(SUBSTITUTE(SUBSTITUTE(SUBSTITUTE(SUBSTITUTE(SUBSTITUTE(SUBSTITUTE(L201,\"!\",\"\"),\",\",\"\"),\".\",\"\"),\";\",\"\"),\":\",\"\"),\"\"\"\",\"\")))","v":null},{"$f":"IF(M201=\"\",\"\",LEN(SUBSTITUTE(SUBSTITUTE(SUBSTITUTE(SUBSTITUTE(SUBSTITUTE(SUBSTITUTE(M201,\"!\",\"\"),\",\",\"\"),\".\",\"\"),\";\",\"\"),\":\",\"\"),\"\"\"\",\"\")))","v":null},"https://likebk.com/","регистрация-сейчас","","","Россия","2,3","","-","Остановлено","Работает везде","Регистрация прямо сейчас||Форум||Новости||Рейтинг персонажей||||||||","Зарегистрируйтесь и вступите в наш клуб||Обсудите все ваши достежения и задания с реальными игроками||Узнайте все новости о мире нашего клуба||Посмотрите рейтинг реальных персонажей||||||||","https://likebk.com/register||https://forum.likebk.com/||https://likebk.com/news||https://top.likebk.com/exp_raiting.php/||||||||","","","","","https://direct.yandex.ru/images/direct/2265742/5RlaWqlLzcSOfLJRw4xsqQ","","","Отлична графика||MMORPG||Передача атмосферы||Увлекательная игра||Отличное качество","","","","","","","","","","",""]
["-","Текстово-графическое","-","4458363195","Группа 5","5","-","26433375102","mmorpg +на пк онлайн топ","10259215446","Компьютерная игра твоего детства.","Полное погружение в игру БК-2!","БК-2 компьютерная игра прямиком из 2000-х. Отличная графика и полное погружение!",{"$f":"IF(K202=\"\",\"\",LEN(SUBSTITUTE(SUBSTITUTE(SUBSTITUTE(SUBSTITUTE(SUBSTITUTE(SUBSTITUTE(K202,\"!\",\"\"),\",\",\"\"),\".\",\"\"),\";\",\"\"),\":\",\"\"),\"\"\"\",\"\")))","v":null},{"$f":"IF(L202=\"\",\"\",LEN(SUBSTITUTE(SUBSTITUTE(SUBSTITUTE(SUBSTITUTE(SUBSTITUTE(SUBSTITUTE(L202,\"!\",\"\"),\",\",\"\"),\".\",\"\"),\";\",\"\"),\":\",\"\"),\"\"\"\",\"\")))","v":null},{"$f":"IF(M202=\"\",\"\",LEN(SUBSTITUTE(SUBSTITUTE(SUBSTITUTE(SUBSTITUTE(SUBSTITUTE(SUBSTITUTE(M202,\"!\",\"\"),\",\",\"\"),\".\",\"\"),\";\",\"\"),\":\",\"\"),\"\"\"\",\"\")))","v":null},"https://likebk.com/","регистрация-сейчас","","","Россия","2,3","","-","Остановлено","Работает везде","Регистрация прямо сейчас||Форум||Новости||Рейтинг персонажей||||||||","Зарегистрируйтесь и вступите в наш клуб||Обсудите все ваши достежения и задания с реальными игроками||Узнайте все новости о мире нашего клуба||Посмотрите рейтинг реальных персонажей||||||||","https://likebk.com/register||https://forum.likebk.com/||https://likebk.com/news||https://top.likebk.com/exp_raiting.php/||||||||","","","","","https://direct.yandex.ru/images/direct/2265742/5RlaWqlLzcSOfLJRw4xsqQ","","","Отлична графика||MMORPG||Передача атмосферы||Увлекательная игра||Отличное качество","","","","","","","","","","",""]
["-","Текстово-графическое","-","4458363195","Группа 5","5","-","26433375103","mmorpg +с большим онлайном","10259215446","Компьютерная игра твоего детства.","Полное погружение в игру БК-2!","БК-2 компьютерная игра прямиком из 2000-х. Отличная графика и полное погружение!",{"$f":"IF(K203=\"\",\"\",LEN(SUBSTITUTE(SUBSTITUTE(SUBSTITUTE(SUBSTITUTE(SUBSTITUTE(SUBSTITUTE(K203,\"!\",\"\"),\",\",\"\"),\".\",\"\"),\";\",\"\"),\":\",\"\"),\"\"\"\",\"\")))","v":null},{"$f":"IF(L203=\"\",\"\",LEN(SUBSTITUTE(SUBSTITUTE(SUBSTITUTE(SUBSTITUTE(SUBSTITUTE(SUBSTITUTE(L203,\"!\",\"\"),\",\",\"\"),\".\",\"\"),\";\",\"\"),\":\",\"\"),\"\"\"\",\"\")))","v":null},{"$f":"IF(M203=\"\",\"\",LEN(SUBSTITUTE(SUBSTITUTE(SUBSTITUTE(SUBSTITUTE(SUBSTITUTE(SUBSTITUTE(M203,\"!\",\"\"),\",\",\"\"),\".\",\"\"),\";\",\"\"),\":\",\"\"),\"\"\"\",\"\")))","v":null},"https://likebk.com/","регистрация-сейчас","","","Россия","2,3","","-","Остановлено","Работает везде","Регистрация прямо сейчас||Форум||Новости||Рейтинг персонажей||||||||","Зарегистрируйтесь и вступите в наш клуб||Обсудите все ваши достежения и задания с реальными игроками||Узнайте все новости о мире нашего клуба||Посмотрите рейтинг реальных персонажей||||||||","https://likebk.com/register||https://forum.likebk.com/||https://likebk.com/news||https://top.likebk.com/exp_raiting.php/||||||||","","","","","https://direct.yandex.ru/images/direct/2265742/5RlaWqlLzcSOfLJRw4xsqQ","","","Отлична графика||MMORPG||Передача атмосферы||Увлекательная игра||Отличное качество","","","","","","","","","","",""]
["-","Текстово-графическое","-","4458363195","Группа 5","5","-","26433375104","mmorpg +с открытым миром онлайн","10259215446","Компьютерная игра твоего детства.","Полное погружение в игру БК-2!","БК-2 компьютерная игра прямиком из 2000-х. Отличная графика и полное погружение!",{"$f":"IF(K204=\"\",\"\",LEN(SUBSTITUTE(SUBSTITUTE(SUBSTITUTE(SUBSTITUTE(SUBSTITUTE(SUBSTITUTE(K204,\"!\",\"\"),\",\",\"\"),\".\",\"\"),\";\",\"\"),\":\",\"\"),\"\"\"\",\"\")))","v":null},{"$f":"IF(L204=\"\",\"\",LEN(SUBSTITUTE(SUBSTITUTE(SUBSTITUTE(SUBSTITUTE(SUBSTITUTE(SUBSTITUTE(L204,\"!\",\"\"),\",\",\"\"),\".\",\"\"),\";\",\"\"),\":\",\"\"),\"\"\"\",\"\")))","v":null},{"$f":"IF(M204=\"\",\"\",LEN(SUBSTITUTE(SUBSTITUTE(SUBSTITUTE(SUBSTITUTE(SUBSTITUTE(SUBSTITUTE(M204,\"!\",\"\"),\",\",\"\"),\".\",\"\"),\";\",\"\"),\":\",\"\"),\"\"\"\",\"\")))","v":null},"https://likebk.com/","регистрация-сейчас","","","Россия","2,3","","-","Остановлено","Работает везде","Регистрация прямо сейчас||Форум||Новости||Рейтинг персонажей||||||||","Зарегистрируйтесь и вступите в наш клуб||Обсудите все ваши достежения и задания с реальными игроками||Узнайте все новости о мире нашего клуба||Посмотрите рейтинг реальных персонажей||||||||","https://likebk.com/register||https://forum.likebk.com/||https://likebk.com/news||https://top.likebk.com/exp_raiting.php/||||||||","","","","","https://direct.yandex.ru/images/direct/2265742/5RlaWqlLzcSOfLJRw4xsqQ","","","Отлична графика||MMORPG||Передача атмосферы||Увлекательная игра||Отличное качество","","","","","","","","","","",""]
["-","Текстово-графическое","-","4458363195","Группа 5","5","-","26433375105","mmorpg онлайн","10259215446","Компьютерная игра твоего детства.","Полное погружение в игру БК-2!","БК-2 компьютерная игра прямиком из 2000-х. Отличная графика и полное погружение!",{"$f":"IF(K205=\"\",\"\",LEN(SUBSTITUTE(SUBSTITUTE(SUBSTITUTE(SUBSTITUTE(SUBSTITUTE(SUBSTITUTE(K205,\"!\",\"\"),\",\",\"\"),\".\",\"\"),\";\",\"\"),\":\",\"\"),\"\"\"\",\"\")))","v":null},{"$f":"IF(L205=\"\",\"\",LEN(SUBSTITUTE(SUBSTITUTE(SUBSTITUTE(SUBSTITUTE(SUBSTITUTE(SUBSTITUTE(L205,\"!\",\"\"),\",\",\"\"),\".\",\"\"),\";\",\"\"),\":\",\"\"),\"\"\"\",\"\")))","v":null},{"$f":"IF(M205=\"\",\"\",LEN(SUBSTITUTE(SUBSTITUTE(SUBSTITUTE(SUBSTITUTE(SUBSTITUTE(SUBSTITUTE(M205,\"!\",\"\"),\",\",\"\"),\".\",\"\"),\";\",\"\"),\":\",\"\"),\"\"\"\",\"\")))","v":null},"https://likebk.com/","регистрация-сейчас","","","Россия","2,3","","-","Остановлено","Работает везде","Регистрация прямо сейчас||Форум||Новости||Рейтинг персонажей||||||||","Зарегистрируйтесь и вступите в наш клуб||Обсудите все ваши достежения и задания с реальными игроками||Узнайте все новости о мире нашего клуба||Посмотрите рейтинг реальных персонажей||||||||","https://likebk.com/register||https://forum.likebk.com/||https://likebk.com/news||https://top.likebk.com/exp_raiting.php/||||||||","","","","","https://direct.yandex.ru/images/direct/2265742/5RlaWqlLzcSOfLJRw4xsqQ","","","Отлична графика||MMORPG||Передача атмосферы||Увлекательная игра||Отличное качество","","","","","","","","","","",""]
["-","Текстово-графическое","-","4458363195","Группа 5","5","-","26433375106","mmorpg онлайн игры +на пк","10259215446","Компьютерная игра твоего детства.","Полное погружение в игру БК-2!","БК-2 компьютерная игра прямиком из 2000-х. Отличная графика и полное погружение!",{"$f":"IF(K206=\"\",\"\",LEN(SUBSTITUTE(SUBSTITUTE(SUBSTITUTE(SUBSTITUTE(SUBSTITUTE(SUBSTITUTE(K206,\"!\",\"\"),\",\",\"\"),\".\",\"\"),\";\",\"\"),\":\",\"\"),\"\"\"\",\"\")))","v":null},{"$f":"IF(L206=\"\",\"\",LEN(SUBSTITUTE(SUBSTITUTE(SUBSTITUTE(SUBSTITUTE(SUBSTITUTE(SUBSTITUTE(L206,\"!\",\"\"),\",\",\"\"),\".\",\"\"),\";\",\"\"),\":\",\"\"),\"\"\"\",\"\")))","v":null},{"$f":"IF(M206=\"\",\"\",LEN(SUBSTITUTE(SUBSTITUTE(SUBSTITUTE(SUBSTITUTE(SUBSTITUTE(SUBSTITUTE(M206,\"!\",\"\"),\",\",\"\"),\".\",\"\"),\";\",\"\"),\":\",\"\"),\"\"\"\",\"\")))","v":null},"https://likebk.com/","регистрация-сейчас","","","Россия","2,3","","-","Остановлено","Работает везде","Регистрация прямо сейчас||Форум||Новости||Рейтинг персонажей||||||||","Зарегистрируйтесь и вступите в наш клуб||Обсудите все ваши достежения и задания с реальными игроками||Узнайте все новости о мире нашего клуба||Посмотрите рейтинг реальных персонажей||||||||","https://likebk.com/register||https://forum.likebk.com/||https://likebk.com/news||https://top.likebk.com/exp_raiting.php/||||||||","","","","","https://direct.yandex.ru/images/direct/2265742/5RlaWqlLzcSOfLJRw4xsqQ","","","Отлична графика||MMORPG||Передача атмосферы||Увлекательная игра||Отличное качество","","","","","","","","","","",""]
["-","Текстово-графическое","-","4458363195","Группа 5","5","-","26433375107","mmorpg онлайн игры браузерные","10259215446","Компьютерная игра твоего детства.","Полное погружение в игру БК-2!","БК-2 компьютерная игра прямиком из 2000-х. Отличная графика и полное погружение!",{"$f":"IF(K207=\"\",\"\",LEN(SUBSTITUTE(SUBSTITUTE(SUBSTITUTE(SUBSTITUTE(SUBSTITUTE(SUBSTITUTE(K207,\"!\",\"\"),\",\",\"\"),\".\",\"\"),\";\",\"\"),\":\",\"\"),\"\"\"\",\"\")))","v":null},{"$f":"IF(L207=\"\",\"\",LEN(SUBSTITUTE(SUBSTITUTE(SUBSTITUTE(SUBSTITUTE(SUBSTITUTE(SUBSTITUTE(L207,\"!\",\"\"),\",\",\"\"),\".\",\"\"),\";\",\"\"),\":\",\"\"),\"\"\"\",\"\")))","v":null},{"$f":"IF(M207=\"\",\"\",LEN(SUBSTITUTE(SUBSTITUTE(SUBSTITUTE(SUBSTITUTE(SUBSTITUTE(SUBSTITUTE(M207,\"!\",\"\"),\",\",\"\"),\".\",\"\"),\";\",\"\"),\":\",\"\"),\"\"\"\",\"\")))","v":null},"https://likebk.com/","регистрация-сейчас","","","Россия","2,3","","-","Остановлено","Работает везде","Регистрация прямо сейчас||Форум||Новости||Рейтинг персонажей||||||||","Зарегистрируйтесь и вступите в наш клуб||Обсудите все ваши достежения и задания с реальными игроками||Узнайте все новости о мире нашего клуба||Посмотрите рейтинг реальных персонажей||||||||","https://likebk.com/register||https://forum.likebk.com/||https://likebk.com/news||https://top.likebk.com/exp_raiting.php/||||||||","","","","","https://direct.yandex.ru/images/direct/2265742/5RlaWqlLzcSOfLJRw4xsqQ","","","Отлична графика||MMORPG||Передача атмосферы||Увлекательная игра||Отличное качество","","","","","","","","","","",""]
["-","Текстово-графическое","-","4458363195","Группа 5","5","-","26433375108","бойцовский клуб игра онлайн олдбк 2","10259215446","Компьютерная игра твоего детства.","Полное погружение в игру БК-2!","БК-2 компьютерная игра прямиком из 2000-х. Отличная графика и полное погружение!",{"$f":"IF(K208=\"\",\"\",LEN(SUBSTITUTE(SUBSTITUTE(SUBSTITUTE(SUBSTITUTE(SUBSTITUTE(SUBSTITUTE(K208,\"!\",\"\"),\",\",\"\"),\".\",\"\"),\";\",\"\"),\":\",\"\"),\"\"\"\",\"\")))","v":null},{"$f":"IF(L208=\"\",\"\",LEN(SUBSTITUTE(SUBSTITUTE(SUBSTITUTE(SUBSTITUTE(SUBSTITUTE(SUBSTITUTE(L208,\"!\",\"\"),\",\",\"\"),\".\",\"\"),\";\",\"\"),\":\",\"\"),\"\"\"\",\"\")))","v":null},{"$f":"IF(M208=\"\",\"\",LEN(SUBSTITUTE(SUBSTITUTE(SUBSTITUTE(SUBSTITUTE(SUBSTITUTE(SUBSTITUTE(M208,\"!\",\"\"),\",\",\"\"),\".\",\"\"),\";\",\"\"),\":\",\"\"),\"\"\"\",\"\")))","v":null},"https://likebk.com/","регистрация-сейчас","","","Россия","2,3","","-","Остановлено","Работает везде","Регистрация прямо сейчас||Форум||Новости||Рейтинг персонажей||||||||","Зарегистрируйтесь и вступите в наш клуб||Обсудите все ваши достежения и задания с реальными игроками||Узнайте все новости о мире нашего клуба||Посмотрите рейтинг реальных персонажей||||||||","https://likebk.com/register||https://forum.likebk.com/||https://likebk.com/news||https://top.likebk.com/exp_raiting.php/||||||||","","","","","https://direct.yandex.ru/images/direct/2265742/5RlaWqlLzcSOfLJRw4xsqQ","","","Отлична графика||MMORPG||Передача атмосферы||Увлекательная игра||Отличное качество","","","","","","","","","","",""]
["-","Текстово-графическое","-","4458363195","Группа 5","5","-","26433375109","бойцовский клуб игра онлайн официальный сайт","10259215446","Компьютерная игра твоего детства.","Полное погружение в игру БК-2!","БК-2 компьютерная игра прямиком из 2000-х. Отличная графика и полное погружение!",{"$f":"IF(K209=\"\",\"\",LEN(SUBSTITUTE(SUBSTITUTE(SUBSTITUTE(SUBSTITUTE(SUBSTITUTE(SUBSTITUTE(K209,\"!\",\"\"),\",\",\"\"),\".\",\"\"),\";\",\"\"),\":\",\"\"),\"\"\"\",\"\")))","v":null},{"$f":"IF(L209=\"\",\"\",LEN(SUBSTITUTE(SUBSTITUTE(SUBSTITUTE(SUBSTITUTE(SUBSTITUTE(SUBSTITUTE(L209,\"!\",\"\"),\",\",\"\"),\".\",\"\"),\";\",\"\"),\":\",\"\"),\"\"\"\",\"\")))","v":null},{"$f":"IF(M209=\"\",\"\",LEN(SUBSTITUTE(SUBSTITUTE(SUBSTITUTE(SUBSTITUTE(SUBSTITUTE(SUBSTITUTE(M209,\"!\",\"\"),\",\",\"\"),\".\",\"\"),\";\",\"\"),\":\",\"\"),\"\"\"\",\"\")))","v":null},"https://likebk.com/","регистрация-сейчас","","","Россия","2,3","","-","Остановлено","Работает везде","Регистрация прямо сейчас||Форум||Новости||Рейтинг персонажей||||||||","Зарегистрируйтесь и вступите в наш клуб||Обсудите все ваши достежения и задания с реальными игроками||Узнайте все новости о мире нашего клуба||Посмотрите рейтинг реальных персонажей||||||||","https://likebk.com/register||https://forum.likebk.com/||https://likebk.com/news||https://top.likebk.com/exp_raiting.php/||||||||","","","","","https://direct.yandex.ru/images/direct/2265742/5RlaWqlLzcSOfLJRw4xsqQ","","","Отлична графика||MMORPG||Передача атмосферы||Увлекательная игра||Отличное качество","","","","","","","","","","",""]
["-","Текстово-графическое","-","4458363195","Группа 5","5","-","26433375110","браузерная онлайн mmorpg","10259215446","Компьютерная игра твоего детства.","Полное погружение в игру БК-2!","БК-2 компьютерная игра прямиком из 2000-х. Отличная графика и полное погружение!",{"$f":"IF(K210=\"\",\"\",LEN(SUBSTITUTE(SUBSTITUTE(SUBSTITUTE(SUBSTITUTE(SUBSTITUTE(SUBSTITUTE(K210,\"!\",\"\"),\",\",\"\"),\".\",\"\"),\";\",\"\"),\":\",\"\"),\"\"\"\",\"\")))","v":null},{"$f":"IF(L210=\"\",\"\",LEN(SUBSTITUTE(SUBSTITUTE(SUBSTITUTE(SUBSTITUTE(SUBSTITUTE(SUBSTITUTE(L210,\"!\",\"\"),\",\",\"\"),\".\",\"\"),\";\",\"\"),\":\",\"\"),\"\"\"\",\"\")))","v":null},{"$f":"IF(M210=\"\",\"\",LEN(SUBSTITUTE(SUBSTITUTE(SUBSTITUTE(SUBSTITUTE(SUBSTITUTE(SUBSTITUTE(M210,\"!\",\"\"),\",\",\"\"),\".\",\"\"),\";\",\"\"),\":\",\"\"),\"\"\"\",\"\")))","v":null},"https://likebk.com/","регистрация-сейчас","","","Россия","2,3","","-","Остановлено","Работает везде","Регистрация прямо сейчас||Форум||Новости||Рейтинг персонажей||||||||","Зарегистрируйтесь и вступите в наш клуб||Обсудите все ваши достежения и задания с реальными игроками||Узнайте все новости о мире нашего клуба||Посмотрите рейтинг реальных персонажей||||||||","https://likebk.com/register||https://forum.likebk.com/||https://likebk.com/news||https://top.likebk.com/exp_raiting.php/||||||||","","","","","https://direct.yandex.ru/images/direct/2265742/5RlaWqlLzcSOfLJRw4xsqQ","","","Отлична графика||MMORPG||Передача атмосферы||Увлекательная игра||Отличное качество","","","","","","","","","","",""]
["-","Текстово-графическое","-","4458363195","Группа 5","5","-","26433375111","игра mmorpg","10259215446","Компьютерная игра твоего детства.","Полное погружение в игру БК-2!","БК-2 компьютерная игра прямиком из 2000-х. Отличная графика и полное погружение!",{"$f":"IF(K211=\"\",\"\",LEN(SUBSTITUTE(SUBSTITUTE(SUBSTITUTE(SUBSTITUTE(SUBSTITUTE(SUBSTITUTE(K211,\"!\",\"\"),\",\",\"\"),\".\",\"\"),\";\",\"\"),\":\",\"\"),\"\"\"\",\"\")))","v":null},{"$f":"IF(L211=\"\",\"\",LEN(SUBSTITUTE(SUBSTITUTE(SUBSTITUTE(SUBSTITUTE(SUBSTITUTE(SUBSTITUTE(L211,\"!\",\"\"),\",\",\"\"),\".\",\"\"),\";\",\"\"),\":\",\"\"),\"\"\"\",\"\")))","v":null},{"$f":"IF(M211=\"\",\"\",LEN(SUBSTITUTE(SUBSTITUTE(SUBSTITUTE(SUBSTITUTE(SUBSTITUTE(SUBSTITUTE(M211,\"!\",\"\"),\",\",\"\"),\".\",\"\"),\";\",\"\"),\":\",\"\"),\"\"\"\",\"\")))","v":null},"https://likebk.com/","регистрация-сейчас","","","Россия","2,3","","-","Остановлено","Работает везде","Регистрация прямо сейчас||Форум||Новости||Рейтинг персонажей||||||||","Зарегистрируйтесь и вступите в наш клуб||Обсудите все ваши достежения и задания с реальными игроками||Узнайте все новости о мире нашего клуба||Посмотрите рейтинг реальных персонажей||||||||","https://likebk.com/register||https://forum.likebk.com/||https://likebk.com/news||https://top.likebk.com/exp_raiting.php/||||||||","","","","","https://direct.yandex.ru/images/direct/2265742/5RlaWqlLzcSOfLJRw4xsqQ","","","Отлична графика||MMORPG||Передача атмосферы||Увлекательная игра||Отличное качество","","","","","","","","","","",""]
["-","Текстово-графическое","-","4458363195","Группа 5","5","-","26433375112","играть онлайн mmorpg игры","10259215446","Компьютерная игра твоего детства.","Полное погружение в игру БК-2!","БК-2 компьютерная игра прямиком из 2000-х. Отличная графика и полное погружение!",{"$f":"IF(K212=\"\",\"\",LEN(SUBSTITUTE(SUBSTITUTE(SUBSTITUTE(SUBSTITUTE(SUBSTITUTE(SUBSTITUTE(K212,\"!\",\"\"),\",\",\"\"),\".\",\"\"),\";\",\"\"),\":\",\"\"),\"\"\"\",\"\")))","v":null},{"$f":"IF(L212=\"\",\"\",LEN(SUBSTITUTE(SUBSTITUTE(SUBSTITUTE(SUBSTITUTE(SUBSTITUTE(SUBSTITUTE(L212,\"!\",\"\"),\",\",\"\"),\".\",\"\"),\";\",\"\"),\":\",\"\"),\"\"\"\",\"\")))","v":null},{"$f":"IF(M212=\"\",\"\",LEN(SUBSTITUTE(SUBSTITUTE(SUBSTITUTE(SUBSTITUTE(SUBSTITUTE(SUBSTITUTE(M212,\"!\",\"\"),\",\",\"\"),\".\",\"\"),\";\",\"\"),\":\",\"\"),\"\"\"\",\"\")))","v":null},"https://likebk.com/","регистрация-сейчас","","","Россия","2,3","","-","Остановлено","Работает везде","Регистрация прямо сейчас||Форум||Новости||Рейтинг персонажей||||||||","Зарегистрируйтесь и вступите в наш клуб||Обсудите все ваши достежения и задания с реальными игроками||Узнайте все новости о мире нашего клуба||Посмотрите рейтинг реальных персонажей||||||||","https://likebk.com/register||https://forum.likebk.com/||https://likebk.com/news||https://top.likebk.com/exp_raiting.php/||||||||","","","","","https://direct.yandex.ru/images/direct/2265742/5RlaWqlLzcSOfLJRw4xsqQ","","","Отлична графика||MMORPG||Передача атмосферы||Увлекательная игра||Отличное качество","","","","","","","","","","",""]
["-","Текстово-графическое","-","4458363195","Группа 5","5","-","26433375113","игры онлайн mmorpg 2020","10259215446","Компьютерная игра твоего детства.","Полное погружение в игру БК-2!","БК-2 компьютерная игра прямиком из 2000-х. Отличная графика и полное погружение!",{"$f":"IF(K213=\"\",\"\",LEN(SUBSTITUTE(SUBSTITUTE(SUBSTITUTE(SUBSTITUTE(SUBSTITUTE(SUBSTITUTE(K213,\"!\",\"\"),\",\",\"\"),\".\",\"\"),\";\",\"\"),\":\",\"\"),\"\"\"\",\"\")))","v":null},{"$f":"IF(L213=\"\",\"\",LEN(SUBSTITUTE(SUBSTITUTE(SUBSTITUTE(SUBSTITUTE(SUBSTITUTE(SUBSTITUTE(L213,\"!\",\"\"),\",\",\"\"),\".\",\"\"),\";\",\"\"),\":\",\"\"),\"\"\"\",\"\")))","v":null},{"$f":"IF(M213=\"\",\"\",LEN(SUBSTITUTE(SUBSTITUTE(SUBSTITUTE(SUBSTITUTE(SUBSTITUTE(SUBSTITUTE(M213,\"!\",\"\"),\",\",\"\"),\".\",\"\"),\";\",\"\"),\":\",\"\"),\"\"\"\",\"\")))","v":null},"https://likebk.com/","регистрация-сейчас","","","Россия","2,3","","-","Остановлено","Работает везде","Регистрация прямо сейчас||Форум||Новости||Рейтинг персонажей||||||||","Зарегистрируйтесь и вступите в наш клуб||Обсудите все ваши достежения и задания с реальными игроками||Узнайте все новости о мире нашего клуба||Посмотрите рейтинг реальных персонажей||||||||","https://likebk.com/register||https://forum.likebk.com/||https://likebk.com/news||https://top.likebk.com/exp_raiting.php/||||||||","","","","","https://direct.yandex.ru/images/direct/2265742/5RlaWqlLzcSOfLJRw4xsqQ","","","Отлична графика||MMORPG||Передача атмосферы||Увлекательная игра||Отличное качество","","","","","","","","","","",""]
["-","Текстово-графическое","-","4458363195","Группа 5","5","-","26433375114","клиентская онлайн mmorpg","10259215446","Компьютерная игра твоего детства.","Полное погружение в игру БК-2!","БК-2 компьютерная игра прямиком из 2000-х. Отличная графика и полное погружение!",{"$f":"IF(K214=\"\",\"\",LEN(SUBSTITUTE(SUBSTITUTE(SUBSTITUTE(SUBSTITUTE(SUBSTITUTE(SUBSTITUTE(K214,\"!\",\"\"),\",\",\"\"),\".\",\"\"),\";\",\"\"),\":\",\"\"),\"\"\"\",\"\")))","v":null},{"$f":"IF(L214=\"\",\"\",LEN(SUBSTITUTE(SUBSTITUTE(SUBSTITUTE(SUBSTITUTE(SUBSTITUTE(SUBSTITUTE(L214,\"!\",\"\"),\",\",\"\"),\".\",\"\"),\";\",\"\"),\":\",\"\"),\"\"\"\",\"\")))","v":null},{"$f":"IF(M214=\"\",\"\",LEN(SUBSTITUTE(SUBSTITUTE(SUBSTITUTE(SUBSTITUTE(SUBSTITUTE(SUBSTITUTE(M214,\"!\",\"\"),\",\",\"\"),\".\",\"\"),\";\",\"\"),\":\",\"\"),\"\"\"\",\"\")))","v":null},"https://likebk.com/","регистрация-сейчас","","","Россия","2,3","","-","Остановлено","Работает везде","Регистрация прямо сейчас||Форум||Новости||Рейтинг персонажей||||||||","Зарегистрируйтесь и вступите в наш клуб||Обсудите все ваши достежения и задания с реальными игроками||Узнайте все новости о мире нашего клуба||Посмотрите рейтинг реальных персонажей||||||||","https://likebk.com/register||https://forum.likebk.com/||https://likebk.com/news||https://top.likebk.com/exp_raiting.php/||||||||","","","","","https://direct.yandex.ru/images/direct/2265742/5RlaWqlLzcSOfLJRw4xsqQ","","","Отлична графика||MMORPG||Передача атмосферы||Увлекательная игра||Отличное качество","","","","","","","","","","",""]
["-","Текстово-графическое","-","4458363195","Группа 5","5","-","26433375115","лучшие онлайн mmorpg","10259215446","Компьютерная игра твоего детства.","Полное погружение в игру БК-2!","БК-2 компьютерная игра прямиком из 2000-х. Отличная графика и полное погружение!",{"$f":"IF(K215=\"\",\"\",LEN(SUBSTITUTE(SUBSTITUTE(SUBSTITUTE(SUBSTITUTE(SUBSTITUTE(SUBSTITUTE(K215,\"!\",\"\"),\",\",\"\"),\".\",\"\"),\";\",\"\"),\":\",\"\"),\"\"\"\",\"\")))","v":null},{"$f":"IF(L215=\"\",\"\",LEN(SUBSTITUTE(SUBSTITUTE(SUBSTITUTE(SUBSTITUTE(SUBSTITUTE(SUBSTITUTE(L215,\"!\",\"\"),\",\",\"\"),\".\",\"\"),\";\",\"\"),\":\",\"\"),\"\"\"\",\"\")))","v":null},{"$f":"IF(M215=\"\",\"\",LEN(SUBSTITUTE(SUBSTITUTE(SUBSTITUTE(SUBSTITUTE(SUBSTITUTE(SUBSTITUTE(M215,\"!\",\"\"),\",\",\"\"),\".\",\"\"),\";\",\"\"),\":\",\"\"),\"\"\"\",\"\")))","v":null},"https://likebk.com/","регистрация-сейчас","","","Россия","2,3","","-","Остановлено","Работает везде","Регистрация прямо сейчас||Форум||Новости||Рейтинг персонажей||||||||","Зарегистрируйтесь и вступите в наш клуб||Обсудите все ваши достежения и задания с реальными игроками||Узнайте все новости о мире нашего клуба||Посмотрите рейтинг реальных персонажей||||||||","https://likebk.com/register||https://forum.likebk.com/||https://likebk.com/news||https://top.likebk.com/exp_raiting.php/||||||||","","","","","https://direct.yandex.ru/images/direct/2265742/5RlaWqlLzcSOfLJRw4xsqQ","","","Отлична графика||MMORPG||Передача атмосферы||Увлекательная игра||Отличное качество","","","","","","","","","","",""]
["-","Текстово-графическое","-","4458363195","Группа 5","5","-","26433375116","новые онлайн mmorpg","10259215446","Компьютерная игра твоего детства.","Полное погружение в игру БК-2!","БК-2 компьютерная игра прямиком из 2000-х. Отличная графика и полное погружение!",{"$f":"IF(K216=\"\",\"\",LEN(SUBSTITUTE(SUBSTITUTE(SUBSTITUTE(SUBSTITUTE(SUBSTITUTE(SUBSTITUTE(K216,\"!\",\"\"),\",\",\"\"),\".\",\"\"),\";\",\"\"),\":\",\"\"),\"\"\"\",\"\")))","v":null},{"$f":"IF(L216=\"\",\"\",LEN(SUBSTITUTE(SUBSTITUTE(SUBSTITUTE(SUBSTITUTE(SUBSTITUTE(SUBSTITUTE(L216,\"!\",\"\"),\",\",\"\"),\".\",\"\"),\";\",\"\"),\":\",\"\"),\"\"\"\",\"\")))","v":null},{"$f":"IF(M216=\"\",\"\",LEN(SUBSTITUTE(SUBSTITUTE(SUBSTITUTE(SUBSTITUTE(SUBSTITUTE(SUBSTITUTE(M216,\"!\",\"\"),\",\",\"\"),\".\",\"\"),\";\",\"\"),\":\",\"\"),\"\"\"\",\"\")))","v":null},"https://likebk.com/","регистрация-сейчас","","","Россия","2,3","","-","Остановлено","Работает везде","Регистрация прямо сейчас||Форум||Новости||Рейтинг персонажей||||||||","Зарегистрируйтесь и вступите в наш клуб||Обсудите все ваши достежения и задания с реальными игроками||Узнайте все новости о мире нашего клуба||Посмотрите рейтинг реальных персонажей||||||||","https://likebk.com/register||https://forum.likebk.com/||https://likebk.com/news||https://top.likebk.com/exp_raiting.php/||||||||","","","","","https://direct.yandex.ru/images/direct/2265742/5RlaWqlLzcSOfLJRw4xsqQ","","","Отлична графика||MMORPG||Передача атмосферы||Увлекательная игра||Отличное качество","","","","","","","","","","",""]
["-","Текстово-графическое","-","4458363195","Группа 5","5","-","26433375117","образа +для бойцовский клуб игра онлайн","10259215446","Компьютерная игра твоего детства.","Полное погружение в игру БК-2!","БК-2 компьютерная игра прямиком из 2000-х. Отличная графика и полное погружение!",{"$f":"IF(K217=\"\",\"\",LEN(SUBSTITUTE(SUBSTITUTE(SUBSTITUTE(SUBSTITUTE(SUBSTITUTE(SUBSTITUTE(K217,\"!\",\"\"),\",\",\"\"),\".\",\"\"),\";\",\"\"),\":\",\"\"),\"\"\"\",\"\")))","v":null},{"$f":"IF(L217=\"\",\"\",LEN(SUBSTITUTE(SUBSTITUTE(SUBSTITUTE(SUBSTITUTE(SUBSTITUTE(SUBSTITUTE(L217,\"!\",\"\"),\",\",\"\"),\".\",\"\"),\";\",\"\"),\":\",\"\"),\"\"\"\",\"\")))","v":null},{"$f":"IF(M217=\"\",\"\",LEN(SUBSTITUTE(SUBSTITUTE(SUBSTITUTE(SUBSTITUTE(SUBSTITUTE(SUBSTITUTE(M217,\"!\",\"\"),\",\",\"\"),\".\",\"\"),\";\",\"\"),\":\",\"\"),\"\"\"\",\"\")))","v":null},"https://likebk.com/","регистрация-сейчас","","","Россия","2,3","","-","Остановлено","Работает везде","Регистрация прямо сейчас||Форум||Новости||Рейтинг персонажей||||||||","Зарегистрируйтесь и вступите в наш клуб||Обсудите все ваши достежения и задания с реальными игроками||Узнайте все новости о мире нашего клуба||Посмотрите рейтинг реальных персонажей||||||||","https://likebk.com/register||https://forum.likebk.com/||https://likebk.com/news||https://top.likebk.com/exp_raiting.php/||||||||","","","","","https://direct.yandex.ru/images/direct/2265742/5RlaWqlLzcSOfLJRw4xsqQ","","","Отлична графика||MMORPG||Передача атмосферы||Увлекательная игра||Отличное качество","","","","","","","","","","",""]
["-","Текстово-графическое","-","4458363195","Группа 5","5","-","26433375118","онлайн игры 2020 года mmorpg новинки","10259215446","Компьютерная игра твоего детства.","Полное погружение в игру БК-2!","БК-2 компьютерная игра прямиком из 2000-х. Отличная графика и полное погружение!",{"$f":"IF(K218=\"\",\"\",LEN(SUBSTITUTE(SUBSTITUTE(SUBSTITUTE(SUBSTITUTE(SUBSTITUTE(SUBSTITUTE(K218,\"!\",\"\"),\",\",\"\"),\".\",\"\"),\";\",\"\"),\":\",\"\"),\"\"\"\",\"\")))","v":null},{"$f":"IF(L218=\"\",\"\",LEN(SUBSTITUTE(SUBSTITUTE(SUBSTITUTE(SUBSTITUTE(SUBSTITUTE(SUBSTITUTE(L218,\"!\",\"\"),\",\",\"\"),\".\",\"\"),\";\",\"\"),\":\",\"\"),\"\"\"\",\"\")))","v":null},{"$f":"IF(M218=\"\",\"\",LEN(SUBSTITUTE(SUBSTITUTE(SUBSTITUTE(SUBSTITUTE(SUBSTITUTE(SUBSTITUTE(M218,\"!\",\"\"),\",\",\"\"),\".\",\"\"),\";\",\"\"),\":\",\"\"),\"\"\"\",\"\")))","v":null},"https://likebk.com/","регистрация-сейчас","","","Россия","2,3","","-","Остановлено","Работает везде","Регистрация прямо сейчас||Форум||Новости||Рейтинг персонажей||||||||","Зарегистрируйтесь и вступите в наш клуб||Обсудите все ваши достежения и задания с реальными игроками||Узнайте все новости о мире нашего клуба||Посмотрите рейтинг реальных персонажей||||||||","https://likebk.com/register||https://forum.likebk.com/||https://likebk.com/news||https://top.likebk.com/exp_raiting.php/||||||||","","","","","https://direct.yandex.ru/images/direct/2265742/5RlaWqlLzcSOfLJRw4xsqQ","","","Отлична графика||MMORPG||Передача атмосферы||Увлекательная игра||Отличное качество","","","","","","","","","","",""]
["-","Текстово-графическое","-","4458363195","Группа 5","5","-","26433375119","онлайн игры mmorpg","10259215446","Компьютерная игра твоего детства.","Полное погружение в игру БК-2!","БК-2 компьютерная игра прямиком из 2000-х. Отличная графика и полное погружение!",{"$f":"IF(K219=\"\",\"\",LEN(SUBSTITUTE(SUBSTITUTE(SUBSTITUTE(SUBSTITUTE(SUBSTITUTE(SUBSTITUTE(K219,\"!\",\"\"),\",\",\"\"),\".\",\"\"),\";\",\"\"),\":\",\"\"),\"\"\"\",\"\")))","v":null},{"$f":"IF(L219=\"\",\"\",LEN(SUBSTITUTE(SUBSTITUTE(SUBSTITUTE(SUBSTITUTE(SUBSTITUTE(SUBSTITUTE(L219,\"!\",\"\"),\",\",\"\"),\".\",\"\"),\";\",\"\"),\":\",\"\"),\"\"\"\",\"\")))","v":null},{"$f":"IF(M219=\"\",\"\",LEN(SUBSTITUTE(SUBSTITUTE(SUBSTITUTE(SUBSTITUTE(SUBSTITUTE(SUBSTITUTE(M219,\"!\",\"\"),\",\",\"\"),\".\",\"\"),\";\",\"\"),\":\",\"\"),\"\"\"\",\"\")))","v":null},"https://likebk.com/","регистрация-сейчас","","","Россия","2,3","","-","Остановлено","Работает везде","Регистрация прямо сейчас||Форум||Новости||Рейтинг персонажей||||||||","Зарегистрируйтесь и вступите в наш клуб||Обсудите все ваши достежения и задания с реальными игроками||Узнайте все новости о мире нашего клуба||Посмотрите рейтинг реальных персонажей||||||||","https://likebk.com/register||https://forum.likebk.com/||https://likebk.com/news||https://top.likebk.com/exp_raiting.php/||||||||","","","","","https://direct.yandex.ru/images/direct/2265742/5RlaWqlLzcSOfLJRw4xsqQ","","","Отлична графика||MMORPG||Передача атмосферы||Увлекательная игра||Отличное качество","","","","","","","","","","",""]
["-","Текстово-графическое","-","4458363195","Группа 5","5","-","26433375120","онлайн игры mmorpg клиентские","10259215446","Компьютерная игра твоего детства.","Полное погружение в игру БК-2!","БК-2 компьютерная игра прямиком из 2000-х. Отличная графика и полное погружение!",{"$f":"IF(K220=\"\",\"\",LEN(SUBSTITUTE(SUBSTITUTE(SUBSTITUTE(SUBSTITUTE(SUBSTITUTE(SUBSTITUTE(K220,\"!\",\"\"),\",\",\"\"),\".\",\"\"),\";\",\"\"),\":\",\"\"),\"\"\"\",\"\")))","v":null},{"$f":"IF(L220=\"\",\"\",LEN(SUBSTITUTE(SUBSTITUTE(SUBSTITUTE(SUBSTITUTE(SUBSTITUTE(SUBSTITUTE(L220,\"!\",\"\"),\",\",\"\"),\".\",\"\"),\";\",\"\"),\":\",\"\"),\"\"\"\",\"\")))","v":null},{"$f":"IF(M220=\"\",\"\",LEN(SUBSTITUTE(SUBSTITUTE(SUBSTITUTE(SUBSTITUTE(SUBSTITUTE(SUBSTITUTE(M220,\"!\",\"\"),\",\",\"\"),\".\",\"\"),\";\",\"\"),\":\",\"\"),\"\"\"\",\"\")))","v":null},"https://likebk.com/","регистрация-сейчас","","","Россия","2,3","","-","Остановлено","Работает везде","Регистрация прямо сейчас||Форум||Новости||Рейтинг персонажей||||||||","Зарегистрируйтесь и вступите в наш клуб||Обсудите все ваши достежения и задания с реальными игроками||Узнайте все новости о мире нашего клуба||Посмотрите рейтинг реальных персонажей||||||||","https://likebk.com/register||https://forum.likebk.com/||https://likebk.com/news||https://top.likebk.com/exp_raiting.php/||||||||","","","","","https://direct.yandex.ru/images/direct/2265742/5RlaWqlLzcSOfLJRw4xsqQ","","","Отлична графика||MMORPG||Передача атмосферы||Увлекательная игра||Отличное качество","","","","","","","","","","",""]
["-","Текстово-графическое","-","4458363195","Группа 5","5","-","26433375121","онлайн игры жанре mmorpg","10259215446","Компьютерная игра твоего детства.","Полное погружение в игру БК-2!","БК-2 компьютерная игра прямиком из 2000-х. Отличная графика и полное погружение!",{"$f":"IF(K221=\"\",\"\",LEN(SUBSTITUTE(SUBSTITUTE(SUBSTITUTE(SUBSTITUTE(SUBSTITUTE(SUBSTITUTE(K221,\"!\",\"\"),\",\",\"\"),\".\",\"\"),\";\",\"\"),\":\",\"\"),\"\"\"\",\"\")))","v":null},{"$f":"IF(L221=\"\",\"\",LEN(SUBSTITUTE(SUBSTITUTE(SUBSTITUTE(SUBSTITUTE(SUBSTITUTE(SUBSTITUTE(L221,\"!\",\"\"),\",\",\"\"),\".\",\"\"),\";\",\"\"),\":\",\"\"),\"\"\"\",\"\")))","v":null},{"$f":"IF(M221=\"\",\"\",LEN(SUBSTITUTE(SUBSTITUTE(SUBSTITUTE(SUBSTITUTE(SUBSTITUTE(SUBSTITUTE(M221,\"!\",\"\"),\",\",\"\"),\".\",\"\"),\";\",\"\"),\":\",\"\"),\"\"\"\",\"\")))","v":null},"https://likebk.com/","регистрация-сейчас","","","Россия","2,3","","-","Остановлено","Работает везде","Регистрация прямо сейчас||Форум||Новости||Рейтинг персонажей||||||||","Зарегистрируйтесь и вступите в наш клуб||Обсудите все ваши достежения и задания с реальными игроками||Узнайте все новости о мире нашего клуба||Посмотрите рейтинг реальных персонажей||||||||","https://likebk.com/register||https://forum.likebk.com/||https://likebk.com/news||https://top.likebk.com/exp_raiting.php/||||||||","","","","","https://direct.yandex.ru/images/direct/2265742/5RlaWqlLzcSOfLJRw4xsqQ","","","Отлична графика||MMORPG||Передача атмосферы||Увлекательная игра||Отличное качество","","","","","","","","","","",""]
["-","Текстово-графическое","-","4458363195","Группа 5","5","-","26433375122","русские онлайн mmorpg","10259215446","Компьютерная игра твоего детства.","Полное погружение в игру БК-2!","БК-2 компьютерная игра прямиком из 2000-х. Отличная графика и полное погружение!",{"$f":"IF(K222=\"\",\"\",LEN(SUBSTITUTE(SUBSTITUTE(SUBSTITUTE(SUBSTITUTE(SUBSTITUTE(SUBSTITUTE(K222,\"!\",\"\"),\",\",\"\"),\".\",\"\"),\";\",\"\"),\":\",\"\"),\"\"\"\",\"\")))","v":null},{"$f":"IF(L222=\"\",\"\",LEN(SUBSTITUTE(SUBSTITUTE(SUBSTITUTE(SUBSTITUTE(SUBSTITUTE(SUBSTITUTE(L222,\"!\",\"\"),\",\",\"\"),\".\",\"\"),\";\",\"\"),\":\",\"\"),\"\"\"\",\"\")))","v":null},{"$f":"IF(M222=\"\",\"\",LEN(SUBSTITUTE(SUBSTITUTE(SUBSTITUTE(SUBSTITUTE(SUBSTITUTE(SUBSTITUTE(M222,\"!\",\"\"),\",\",\"\"),\".\",\"\"),\";\",\"\"),\":\",\"\"),\"\"\"\",\"\")))","v":null},"https://likebk.com/","регистрация-сейчас","","","Россия","2,3","","-","Остановлено","Работает везде","Регистрация прямо сейчас||Форум||Новости||Рейтинг персонажей||||||||","Зарегистрируйтесь и вступите в наш клуб||Обсудите все ваши достежения и задания с реальными игроками||Узнайте все новости о мире нашего клуба||Посмотрите рейтинг реальных персонажей||||||||","https://likebk.com/register||https://forum.likebk.com/||https://likebk.com/news||https://top.likebk.com/exp_raiting.php/||||||||","","","","","https://direct.yandex.ru/images/direct/2265742/5RlaWqlLzcSOfLJRw4xsqQ","","","Отлична графика||MMORPG||Передача атмосферы||Увлекательная игра||Отличное качество","","","","","","","","","","",""]
["-","Текстово-графическое","-","4458363195","Группа 5","5","-","26433375123","список онлайн mmorpg","10259215446","Компьютерная игра твоего детства.","Полное погружение в игру БК-2!","БК-2 компьютерная игра прямиком из 2000-х. Отличная графика и полное погружение!",{"$f":"IF(K223=\"\",\"\",LEN(SUBSTITUTE(SUBSTITUTE(SUBSTITUTE(SUBSTITUTE(SUBSTITUTE(SUBSTITUTE(K223,\"!\",\"\"),\",\",\"\"),\".\",\"\"),\";\",\"\"),\":\",\"\"),\"\"\"\",\"\")))","v":null},{"$f":"IF(L223=\"\",\"\",LEN(SUBSTITUTE(SUBSTITUTE(SUBSTITUTE(SUBSTITUTE(SUBSTITUTE(SUBSTITUTE(L223,\"!\",\"\"),\",\",\"\"),\".\",\"\"),\";\",\"\"),\":\",\"\"),\"\"\"\",\"\")))","v":null},{"$f":"IF(M223=\"\",\"\",LEN(SUBSTITUTE(SUBSTITUTE(SUBSTITUTE(SUBSTITUTE(SUBSTITUTE(SUBSTITUTE(M223,\"!\",\"\"),\",\",\"\"),\".\",\"\"),\";\",\"\"),\":\",\"\"),\"\"\"\",\"\")))","v":null},"https://likebk.com/","регистрация-сейчас","","","Россия","2,3","","-","Остановлено","Работает везде","Регистрация прямо сейчас||Форум||Новости||Рейтинг персонажей||||||||","Зарегистрируйтесь и вступите в наш клуб||Обсудите все ваши достежения и задания с реальными игроками||Узнайте все новости о мире нашего клуба||Посмотрите рейтинг реальных персонажей||||||||","https://likebk.com/register||https://forum.likebk.com/||https://likebk.com/news||https://top.likebk.com/exp_raiting.php/||||||||","","","","","https://direct.yandex.ru/images/direct/2265742/5RlaWqlLzcSOfLJRw4xsqQ","","","Отлична графика||MMORPG||Передача атмосферы||Увлекательная игра||Отличное качество","","","","","","","","","","",""]
["-","Текстово-графическое","-","4458363195","Группа 5","5","-","26433375124","старый бойцовский клуб онлайн игра","10259215446","Компьютерная игра твоего детства.","Полное погружение в игру БК-2!","БК-2 компьютерная игра прямиком из 2000-х. Отличная графика и полное погружение!",{"$f":"IF(K224=\"\",\"\",LEN(SUBSTITUTE(SUBSTITUTE(SUBSTITUTE(SUBSTITUTE(SUBSTITUTE(SUBSTITUTE(K224,\"!\",\"\"),\",\",\"\"),\".\",\"\"),\";\",\"\"),\":\",\"\"),\"\"\"\",\"\")))","v":null},{"$f":"IF(L224=\"\",\"\",LEN(SUBSTITUTE(SUBSTITUTE(SUBSTITUTE(SUBSTITUTE(SUBSTITUTE(SUBSTITUTE(L224,\"!\",\"\"),\",\",\"\"),\".\",\"\"),\";\",\"\"),\":\",\"\"),\"\"\"\",\"\")))","v":null},{"$f":"IF(M224=\"\",\"\",LEN(SUBSTITUTE(SUBSTITUTE(SUBSTITUTE(SUBSTITUTE(SUBSTITUTE(SUBSTITUTE(M224,\"!\",\"\"),\",\",\"\"),\".\",\"\"),\";\",\"\"),\":\",\"\"),\"\"\"\",\"\")))","v":null},"https://likebk.com/","регистрация-сейчас","","","Россия","2,3","","-","Остановлено","Работает везде","Регистрация прямо сейчас||Форум||Новости||Рейтинг персонажей||||||||","Зарегистрируйтесь и вступите в наш клуб||Обсудите все ваши достежения и задания с реальными игроками||Узнайте все новости о мире нашего клуба||Посмотрите рейтинг реальных персонажей||||||||","https://likebk.com/register||https://forum.likebk.com/||https://likebk.com/news||https://top.likebk.com/exp_raiting.php/||||||||","","","","","https://direct.yandex.ru/images/direct/2265742/5RlaWqlLzcSOfLJRw4xsqQ","","","Отлична графика||MMORPG||Передача атмосферы||Увлекательная игра||Отличное качество","","","","","","","","","","",""]
["+","Текстово-графическое","-","4458363195","Группа 5","5","-","","","10259215447","Компьютерная игра твоего детства.","Реалистическая графика!","БК-2 компьютерная игра прямиком из 2000-х. Отличная графика и полное погружение!",{"$f":"IF(K225=\"\",\"\",LEN(SUBSTITUTE(SUBSTITUTE(SUBSTITUTE(SUBSTITUTE(SUBSTITUTE(SUBSTITUTE(K225,\"!\",\"\"),\",\",\"\"),\".\",\"\"),\";\",\"\"),\":\",\"\"),\"\"\"\",\"\")))","v":null},{"$f":"IF(L225=\"\",\"\",LEN(SUBSTITUTE(SUBSTITUTE(SUBSTITUTE(SUBSTITUTE(SUBSTITUTE(SUBSTITUTE(L225,\"!\",\"\"),\",\",\"\"),\".\",\"\"),\";\",\"\"),\":\",\"\"),\"\"\"\",\"\")))","v":null},{"$f":"IF(M225=\"\",\"\",LEN(SUBSTITUTE(SUBSTITUTE(SUBSTITUTE(SUBSTITUTE(SUBSTITUTE(SUBSTITUTE(M225,\"!\",\"\"),\",\",\"\"),\".\",\"\"),\";\",\"\"),\":\",\"\"),\"\"\"\",\"\")))","v":null},"https://likebk.com/","регистрация-сейчас","","","","","","-","Остановлено","","Регистрация прямо сейчас||Форум||Новости||Рейтинг персонажей||||||||","Зарегистрируйтесь и вступите в наш клуб||Обсудите все ваши достежения и задания с реальными игроками||Узнайте все новости о мире БК-2||Посмотрите рейтинг реальных персонажей||||||||","https://likebk.com/register||https://forum.likebk.com/||https://likebk.com/news||https://top.likebk.com/exp_raiting.php/||||||||","","","","","https://direct.yandex.ru/images/direct/2265742/5RlaWqlLzcSOfLJRw4xsqQ","","","Отлична графика||MMORPG||Передача атмосферы||Увлекательная игра||Отличное качество","","","","","","","","","","",""]
["+","Текстово-графическое","-","4458363195","Группа 5","5","-","","","10259215449","Компьютерная игра твоего детства.","Уникальный мир с населением!","БК-2 компьютерная игра прямиком из 2000-х. Отличная графика и полное погружение!",{"$f":"IF(K226=\"\",\"\",LEN(SUBSTITUTE(SUBSTITUTE(SUBSTITUTE(SUBSTITUTE(SUBSTITUTE(SUBSTITUTE(K226,\"!\",\"\"),\",\",\"\"),\".\",\"\"),\";\",\"\"),\":\",\"\"),\"\"\"\",\"\")))","v":null},{"$f":"IF(L226=\"\",\"\",LEN(SUBSTITUTE(SUBSTITUTE(SUBSTITUTE(SUBSTITUTE(SUBSTITUTE(SUBSTITUTE(L226,\"!\",\"\"),\",\",\"\"),\".\",\"\"),\";\",\"\"),\":\",\"\"),\"\"\"\",\"\")))","v":null},{"$f":"IF(M226=\"\",\"\",LEN(SUBSTITUTE(SUBSTITUTE(SUBSTITUTE(SUBSTITUTE(SUBSTITUTE(SUBSTITUTE(M226,\"!\",\"\"),\",\",\"\"),\".\",\"\"),\";\",\"\"),\":\",\"\"),\"\"\"\",\"\")))","v":null},"https://likebk.com/","регистрация-сейчас","","","","","","-","Остановлено","","Регистрация прямо сейчас||Форум||Новости||Рейтинг персонажей||||||||","Зарегистрируйтесь и вступите в наш клуб||Обсудите все ваши достежения и задания с реальными игроками||Узнайте все новости о мире нашего клуба||Посмотрите рейтинг реальных персонажей||||||||","https://likebk.com/register||https://forum.likebk.com/||https://likebk.com/news||https://top.likebk.com/exp_raiting.php/||||||||","","","","","https://direct.yandex.ru/images/direct/2265742/5RlaWqlLzcSOfLJRw4xsqQ","","","Отлична графика||MMORPG||Передача атмосферы||Увлекательная игра||Отличное качество","","","","","","","","","","",""]
["-","Текстово-графическое","-","4458363196","Группа 6","6","-","26433375125","бойцовский клуб игра онлайн","10259215450","Компьютерная игра твоего детства.","Полное погружение в игру БК-2!","БК-2 компьютерная игра прямиком из 2000-х. Отличная графика и полное погружение!",{"$f":"IF(K227=\"\",\"\",LEN(SUBSTITUTE(SUBSTITUTE(SUBSTITUTE(SUBSTITUTE(SUBSTITUTE(SUBSTITUTE(K227,\"!\",\"\"),\",\",\"\"),\".\",\"\"),\";\",\"\"),\":\",\"\"),\"\"\"\",\"\")))","v":null},{"$f":"IF(L227=\"\",\"\",LEN(SUBSTITUTE(SUBSTITUTE(SUBSTITUTE(SUBSTITUTE(SUBSTITUTE(SUBSTITUTE(L227,\"!\",\"\"),\",\",\"\"),\".\",\"\"),\";\",\"\"),\":\",\"\"),\"\"\"\",\"\")))","v":null},{"$f":"IF(M227=\"\",\"\",LEN(SUBSTITUTE(SUBSTITUTE(SUBSTITUTE(SUBSTITUTE(SUBSTITUTE(SUBSTITUTE(M227,\"!\",\"\"),\",\",\"\"),\".\",\"\"),\";\",\"\"),\":\",\"\"),\"\"\"\",\"\")))","v":null},"https://likebk.com/","регистрация-сейчас","","","Россия","2,3","","-","Остановлено","Работает везде","Регистрация прямо сейчас||Форум||Новости||Рейтинг персонажей||||||||","Зарегистрируйтесь и вступите в наш клуб||Обсудите все ваши достежения и задания с реальными игроками||Узнайте все новости о мире нашего клуба||Посмотрите рейтинг реальных персонажей||||||||","https://likebk.com/register||https://forum.likebk.com/||https://likebk.com/news||https://top.likebk.com/exp_raiting.php/||||||||","","","","","https://direct.yandex.ru/images/direct/2433298/2VVXefm9f2GZMtv9PK8GyQ","","","Отлична графика||MMORPG||Передача атмосферы||Увлекательная игра||Отличное качество","","","","","","","","","","",""]
["-","Текстово-графическое","-","4458363196","Группа 6","6","-","26433375126","бойцовский клуб играть","10259215450","Компьютерная игра твоего детства.","Полное погружение в игру БК-2!","БК-2 компьютерная игра прямиком из 2000-х. Отличная графика и полное погружение!",{"$f":"IF(K228=\"\",\"\",LEN(SUBSTITUTE(SUBSTITUTE(SUBSTITUTE(SUBSTITUTE(SUBSTITUTE(SUBSTITUTE(K228,\"!\",\"\"),\",\",\"\"),\".\",\"\"),\";\",\"\"),\":\",\"\"),\"\"\"\",\"\")))","v":null},{"$f":"IF(L228=\"\",\"\",LEN(SUBSTITUTE(SUBSTITUTE(SUBSTITUTE(SUBSTITUTE(SUBSTITUTE(SUBSTITUTE(L228,\"!\",\"\"),\",\",\"\"),\".\",\"\"),\";\",\"\"),\":\",\"\"),\"\"\"\",\"\")))","v":null},{"$f":"IF(M228=\"\",\"\",LEN(SUBSTITUTE(SUBSTITUTE(SUBSTITUTE(SUBSTITUTE(SUBSTITUTE(SUBSTITUTE(M228,\"!\",\"\"),\",\",\"\"),\".\",\"\"),\";\",\"\"),\":\",\"\"),\"\"\"\",\"\")))","v":null},"https://likebk.com/","регистрация-сейчас","","","Россия","2,3","","-","Остановлено","Работает везде","Регистрация прямо сейчас||Форум||Новости||Рейтинг персонажей||||||||","Зарегистрируйтесь и вступите в наш клуб||Обсудите все ваши достежения и задания с реальными игроками||Узнайте все новости о мире нашего клуба||Посмотрите рейтинг реальных персонажей||||||||","https://likebk.com/register||https://forum.likebk.com/||https://likebk.com/news||https://top.likebk.com/exp_raiting.php/||||||||","","","","","https://direct.yandex.ru/images/direct/2433298/2VVXefm9f2GZMtv9PK8GyQ","","","Отлична графика||MMORPG||Передача атмосферы||Увлекательная игра||Отличное качество","","","","","","","","","","",""]
["-","Текстово-графическое","-","4458363196","Группа 6","6","-","26433375127","онлайн игра детства","10259215450","Компьютерная игра твоего детства.","Полное погружение в игру БК-2!","БК-2 компьютерная игра прямиком из 2000-х. Отличная графика и полное погружение!",{"$f":"IF(K229=\"\",\"\",LEN(SUBSTITUTE(SUBSTITUTE(SUBSTITUTE(SUBSTITUTE(SUBSTITUTE(SUBSTITUTE(K229,\"!\",\"\"),\",\",\"\"),\".\",\"\"),\";\",\"\"),\":\",\"\"),\"\"\"\",\"\")))","v":null},{"$f":"IF(L229=\"\",\"\",LEN(SUBSTITUTE(SUBSTITUTE(SUBSTITUTE(SUBSTITUTE(SUBSTITUTE(SUBSTITUTE(L229,\"!\",\"\"),\",\",\"\"),\".\",\"\"),\";\",\"\"),\":\",\"\"),\"\"\"\",\"\")))","v":null},{"$f":"IF(M229=\"\",\"\",LEN(SUBSTITUTE(SUBSTITUTE(SUBSTITUTE(SUBSTITUTE(SUBSTITUTE(SUBSTITUTE(M229,\"!\",\"\"),\",\",\"\"),\".\",\"\"),\";\",\"\"),\":\",\"\"),\"\"\"\",\"\")))","v":null},"https://likebk.com/","регистрация-сейчас","","","Россия","2,3","","-","Остановлено","Работает везде","Регистрация прямо сейчас||Форум||Новости||Рейтинг персонажей||||||||","Зарегистрируйтесь и вступите в наш клуб||Обсудите все ваши достежения и задания с реальными игроками||Узнайте все новости о мире нашего клуба||Посмотрите рейтинг реальных персонажей||||||||","https://likebk.com/register||https://forum.likebk.com/||https://likebk.com/news||https://top.likebk.com/exp_raiting.php/||||||||","","","","","https://direct.yandex.ru/images/direct/2433298/2VVXefm9f2GZMtv9PK8GyQ","","","Отлична графика||MMORPG||Передача атмосферы||Увлекательная игра||Отличное качество","","","","","","","","","","",""]
["-","Текстово-графическое","-","4458363196","Группа 6","6","-","26433375128","игра бойцовский клуб","10259215450","Компьютерная игра твоего детства.","Полное погружение в игру БК-2!","БК-2 компьютерная игра прямиком из 2000-х. Отличная графика и полное погружение!",{"$f":"IF(K230=\"\",\"\",LEN(SUBSTITUTE(SUBSTITUTE(SUBSTITUTE(SUBSTITUTE(SUBSTITUTE(SUBSTITUTE(K230,\"!\",\"\"),\",\",\"\"),\".\",\"\"),\";\",\"\"),\":\",\"\"),\"\"\"\",\"\")))","v":null},{"$f":"IF(L230=\"\",\"\",LEN(SUBSTITUTE(SUBSTITUTE(SUBSTITUTE(SUBSTITUTE(SUBSTITUTE(SUBSTITUTE(L230,\"!\",\"\"),\",\",\"\"),\".\",\"\"),\";\",\"\"),\":\",\"\"),\"\"\"\",\"\")))","v":null},{"$f":"IF(M230=\"\",\"\",LEN(SUBSTITUTE(SUBSTITUTE(SUBSTITUTE(SUBSTITUTE(SUBSTITUTE(SUBSTITUTE(M230,\"!\",\"\"),\",\",\"\"),\".\",\"\"),\";\",\"\"),\":\",\"\"),\"\"\"\",\"\")))","v":null},"https://likebk.com/","регистрация-сейчас","","","Россия","2,3","","-","Остановлено","Работает везде","Регистрация прямо сейчас||Форум||Новости||Рейтинг персонажей||||||||","Зарегистрируйтесь и вступите в наш клуб||Обсудите все ваши достежения и задания с реальными игроками||Узнайте все новости о мире нашего клуба||Посмотрите рейтинг реальных персонажей||||||||","https://likebk.com/register||https://forum.likebk.com/||https://likebk.com/news||https://top.likebk.com/exp_raiting.php/||||||||","","","","","https://direct.yandex.ru/images/direct/2433298/2VVXefm9f2GZMtv9PK8GyQ","","","Отлична графика||MMORPG||Передача атмосферы||Увлекательная игра||Отличное качество","","","","","","","","","","",""]
["-","Текстово-графическое","-","4458363196","Группа 6","6","-","26433375129","новый бойцовский клуб онлайн игра","10259215450","Компьютерная игра твоего детства.","Полное погружение в игру БК-2!","БК-2 компьютерная игра прямиком из 2000-х. Отличная графика и полное погружение!",{"$f":"IF(K231=\"\",\"\",LEN(SUBSTITUTE(SUBSTITUTE(SUBSTITUTE(SUBSTITUTE(SUBSTITUTE(SUBSTITUTE(K231,\"!\",\"\"),\",\",\"\"),\".\",\"\"),\";\",\"\"),\":\",\"\"),\"\"\"\",\"\")))","v":null},{"$f":"IF(L231=\"\",\"\",LEN(SUBSTITUTE(SUBSTITUTE(SUBSTITUTE(SUBSTITUTE(SUBSTITUTE(SUBSTITUTE(L231,\"!\",\"\"),\",\",\"\"),\".\",\"\"),\";\",\"\"),\":\",\"\"),\"\"\"\",\"\")))","v":null},{"$f":"IF(M231=\"\",\"\",LEN(SUBSTITUTE(SUBSTITUTE(SUBSTITUTE(SUBSTITUTE(SUBSTITUTE(SUBSTITUTE(M231,\"!\",\"\"),\",\",\"\"),\".\",\"\"),\";\",\"\"),\":\",\"\"),\"\"\"\",\"\")))","v":null},"https://likebk.com/","регистрация-сейчас","","","Россия","2,3","","-","Остановлено","Работает везде","Регистрация прямо сейчас||Форум||Новости||Рейтинг персонажей||||||||","Зарегистрируйтесь и вступите в наш клуб||Обсудите все ваши достежения и задания с реальными игроками||Узнайте все новости о мире нашего клуба||Посмотрите рейтинг реальных персонажей||||||||","https://likebk.com/register||https://forum.likebk.com/||https://likebk.com/news||https://top.likebk.com/exp_raiting.php/||||||||","","","","","https://direct.yandex.ru/images/direct/2433298/2VVXefm9f2GZMtv9PK8GyQ","","","Отлична графика||MMORPG||Передача атмосферы||Увлекательная игра||Отличное качество","","","","","","","","","","",""]
["-","Текстово-графическое","-","4458363196","Группа 6","6","-","26433375130","старый бойцовский клуб игра","10259215450","Компьютерная игра твоего детства.","Полное погружение в игру БК-2!","БК-2 компьютерная игра прямиком из 2000-х. Отличная графика и полное погружение!",{"$f":"IF(K232=\"\",\"\",LEN(SUBSTITUTE(SUBSTITUTE(SUBSTITUTE(SUBSTITUTE(SUBSTITUTE(SUBSTITUTE(K232,\"!\",\"\"),\",\",\"\"),\".\",\"\"),\";\",\"\"),\":\",\"\"),\"\"\"\",\"\")))","v":null},{"$f":"IF(L232=\"\",\"\",LEN(SUBSTITUTE(SUBSTITUTE(SUBSTITUTE(SUBSTITUTE(SUBSTITUTE(SUBSTITUTE(L232,\"!\",\"\"),\",\",\"\"),\".\",\"\"),\";\",\"\"),\":\",\"\"),\"\"\"\",\"\")))","v":null},{"$f":"IF(M232=\"\",\"\",LEN(SUBSTITUTE(SUBSTITUTE(SUBSTITUTE(SUBSTITUTE(SUBSTITUTE(SUBSTITUTE(M232,\"!\",\"\"),\",\",\"\"),\".\",\"\"),\";\",\"\"),\":\",\"\"),\"\"\"\",\"\")))","v":null},"https://likebk.com/","регистрация-сейчас","","","Россия","2,3","","-","Остановлено","Работает везде","Регистрация прямо сейчас||Форум||Новости||Рейтинг персонажей||||||||","Зарегистрируйтесь и вступите в наш клуб||Обсудите все ваши достежения и задания с реальными игроками||Узнайте все новости о мире нашего клуба||Посмотрите рейтинг реальных персонажей||||||||","https://likebk.com/register||https://forum.likebk.com/||https://likebk.com/news||https://top.likebk.com/exp_raiting.php/||||||||","","","","","https://direct.yandex.ru/images/direct/2433298/2VVXefm9f2GZMtv9PK8GyQ","","","Отлична графика||MMORPG||Передача атмосферы||Увлекательная игра||Отличное качество","","","","","","","","","","",""]
["-","Текстово-графическое","-","4458363196","Группа 6","6","-","26433375131","бойцовский клуб браузерная игра","10259215450","Компьютерная игра твоего детства.","Полное погружение в игру БК-2!","БК-2 компьютерная игра прямиком из 2000-х. Отличная графика и полное погружение!",{"$f":"IF(K233=\"\",\"\",LEN(SUBSTITUTE(SUBSTITUTE(SUBSTITUTE(SUBSTITUTE(SUBSTITUTE(SUBSTITUTE(K233,\"!\",\"\"),\",\",\"\"),\".\",\"\"),\";\",\"\"),\":\",\"\"),\"\"\"\",\"\")))","v":null},{"$f":"IF(L233=\"\",\"\",LEN(SUBSTITUTE(SUBSTITUTE(SUBSTITUTE(SUBSTITUTE(SUBSTITUTE(SUBSTITUTE(L233,\"!\",\"\"),\",\",\"\"),\".\",\"\"),\";\",\"\"),\":\",\"\"),\"\"\"\",\"\")))","v":null},{"$f":"IF(M233=\"\",\"\",LEN(SUBSTITUTE(SUBSTITUTE(SUBSTITUTE(SUBSTITUTE(SUBSTITUTE(SUBSTITUTE(M233,\"!\",\"\"),\",\",\"\"),\".\",\"\"),\";\",\"\"),\":\",\"\"),\"\"\"\",\"\")))","v":null},"https://likebk.com/","регистрация-сейчас","","","Россия","2,3","","-","Остановлено","Работает везде","Регистрация прямо сейчас||Форум||Новости||Рейтинг персонажей||||||||","Зарегистрируйтесь и вступите в наш клуб||Обсудите все ваши достежения и задания с реальными игроками||Узнайте все новости о мире нашего клуба||Посмотрите рейтинг реальных персонажей||||||||","https://likebk.com/register||https://forum.likebk.com/||https://likebk.com/news||https://top.likebk.com/exp_raiting.php/||||||||","","","","","https://direct.yandex.ru/images/direct/2433298/2VVXefm9f2GZMtv9PK8GyQ","","","Отлична графика||MMORPG||Передача атмосферы||Увлекательная игра||Отличное качество","","","","","","","","","","",""]
["-","Текстово-графическое","-","4458363196","Группа 6","6","-","26433375132","старый бойцовский клуб онлайн игра","10259215450","Компьютерная игра твоего детства.","Полное погружение в игру БК-2!","БК-2 компьютерная игра прямиком из 2000-х. Отличная графика и полное погружение!",{"$f":"IF(K234=\"\",\"\",LEN(SUBSTITUTE(SUBSTITUTE(SUBSTITUTE(SUBSTITUTE(SUBSTITUTE(SUBSTITUTE(K234,\"!\",\"\"),\",\",\"\"),\".\",\"\"),\";\",\"\"),\":\",\"\"),\"\"\"\",\"\")))","v":null},{"$f":"IF(L234=\"\",\"\",LEN(SUBSTITUTE(SUBSTITUTE(SUBSTITUTE(SUBSTITUTE(SUBSTITUTE(SUBSTITUTE(L234,\"!\",\"\"),\",\",\"\"),\".\",\"\"),\";\",\"\"),\":\",\"\"),\"\"\"\",\"\")))","v":null},{"$f":"IF(M234=\"\",\"\",LEN(SUBSTITUTE(SUBSTITUTE(SUBSTITUTE(SUBSTITUTE(SUBSTITUTE(SUBSTITUTE(M234,\"!\",\"\"),\",\",\"\"),\".\",\"\"),\";\",\"\"),\":\",\"\"),\"\"\"\",\"\")))","v":null},"https://likebk.com/","регистрация-сейчас","","","Россия","2,3","","-","Остановлено","Работает везде","Регистрация прямо сейчас||Форум||Новости||Рейтинг персонажей||||||||","Зарегистрируйтесь и вступите в наш клуб||Обсудите все ваши достежения и задания с реальными игроками||Узнайте все новости о мире нашего клуба||Посмотрите рейтинг реальных персонажей||||||||","https://likebk.com/register||https://forum.likebk.com/||https://likebk.com/news||https://top.likebk.com/exp_raiting.php/||||||||","","","","","https://direct.yandex.ru/images/direct/2433298/2VVXefm9f2GZMtv9PK8GyQ","","","Отлична графика||MMORPG||Передача атмосферы||Увлекательная игра||Отличное качество","","","","","","","","","","",""]
["-","Текстово-графическое","-","4458363196","Группа 6","6","-","26433375133","likebk бойцовский клуб","10259215450","Компьютерная игра твоего детства.","Полное погружение в игру БК-2!","БК-2 компьютерная игра прямиком из 2000-х. Отличная графика и полное погружение!",{"$f":"IF(K235=\"\",\"\",LEN(SUBSTITUTE(SUBSTITUTE(SUBSTITUTE(SUBSTITUTE(SUBSTITUTE(SUBSTITUTE(K235,\"!\",\"\"),\",\",\"\"),\".\",\"\"),\";\",\"\"),\":\",\"\"),\"\"\"\",\"\")))","v":null},{"$f":"IF(L235=\"\",\"\",LEN(SUBSTITUTE(SUBSTITUTE(SUBSTITUTE(SUBSTITUTE(SUBSTITUTE(SUBSTITUTE(L235,\"!\",\"\"),\",\",\"\"),\".\",\"\"),\";\",\"\"),\":\",\"\"),\"\"\"\",\"\")))","v":null},{"$f":"IF(M235=\"\",\"\",LEN(SUBSTITUTE(SUBSTITUTE(SUBSTITUTE(SUBSTITUTE(SUBSTITUTE(SUBSTITUTE(M235,\"!\",\"\"),\",\",\"\"),\".\",\"\"),\";\",\"\"),\":\",\"\"),\"\"\"\",\"\")))","v":null},"https://likebk.com/","регистрация-сейчас","","","Россия","2,3","","-","Остановлено","Работает везде","Регистрация прямо сейчас||Форум||Новости||Рейтинг персонажей||||||||","Зарегистрируйтесь и вступите в наш клуб||Обсудите все ваши достежения и задания с реальными игроками||Узнайте все новости о мире нашего клуба||Посмотрите рейтинг реальных персонажей||||||||","https://likebk.com/register||https://forum.likebk.com/||https://likebk.com/news||https://top.likebk.com/exp_raiting.php/||||||||","","","","","https://direct.yandex.ru/images/direct/2433298/2VVXefm9f2GZMtv9PK8GyQ","","","Отлична графика||MMORPG||Передача атмосферы||Увлекательная игра||Отличное качество","","","","","","","","","","",""]
["-","Текстово-графическое","-","4458363196","Группа 6","6","-","26433375134","браузерные игры типа бк","10259215450","Компьютерная игра твоего детства.","Полное погружение в игру БК-2!","БК-2 компьютерная игра прямиком из 2000-х. Отличная графика и полное погружение!",{"$f":"IF(K236=\"\",\"\",LEN(SUBSTITUTE(SUBSTITUTE(SUBSTITUTE(SUBSTITUTE(SUBSTITUTE(SUBSTITUTE(K236,\"!\",\"\"),\",\",\"\"),\".\",\"\"),\";\",\"\"),\":\",\"\"),\"\"\"\",\"\")))","v":null},{"$f":"IF(L236=\"\",\"\",LEN(SUBSTITUTE(SUBSTITUTE(SUBSTITUTE(SUBSTITUTE(SUBSTITUTE(SUBSTITUTE(L236,\"!\",\"\"),\",\",\"\"),\".\",\"\"),\";\",\"\"),\":\",\"\"),\"\"\"\",\"\")))","v":null},{"$f":"IF(M236=\"\",\"\",LEN(SUBSTITUTE(SUBSTITUTE(SUBSTITUTE(SUBSTITUTE(SUBSTITUTE(SUBSTITUTE(M236,\"!\",\"\"),\",\",\"\"),\".\",\"\"),\";\",\"\"),\":\",\"\"),\"\"\"\",\"\")))","v":null},"https://likebk.com/","регистрация-сейчас","","","Россия","2,3","","-","Остановлено","Работает везде","Регистрация прямо сейчас||Форум||Новости||Рейтинг персонажей||||||||","Зарегистрируйтесь и вступите в наш клуб||Обсудите все ваши достежения и задания с реальными игроками||Узнайте все новости о мире нашего клуба||Посмотрите рейтинг реальных персонажей||||||||","https://likebk.com/register||https://forum.likebk.com/||https://likebk.com/news||https://top.likebk.com/exp_raiting.php/||||||||","","","","","https://direct.yandex.ru/images/direct/2433298/2VVXefm9f2GZMtv9PK8GyQ","","","Отлична графика||MMORPG||Передача атмосферы||Увлекательная игра||Отличное качество","","","","","","","","","","",""]
["-","Текстово-графическое","-","4458363196","Группа 6","6","-","26433375135","бойцовский клуб игра 2018","10259215450","Компьютерная игра твоего детства.","Полное погружение в игру БК-2!","БК-2 компьютерная игра прямиком из 2000-х. Отличная графика и полное погружение!",{"$f":"IF(K237=\"\",\"\",LEN(SUBSTITUTE(SUBSTITUTE(SUBSTITUTE(SUBSTITUTE(SUBSTITUTE(SUBSTITUTE(K237,\"!\",\"\"),\",\",\"\"),\".\",\"\"),\";\",\"\"),\":\",\"\"),\"\"\"\",\"\")))","v":null},{"$f":"IF(L237=\"\",\"\",LEN(SUBSTITUTE(SUBSTITUTE(SUBSTITUTE(SUBSTITUTE(SUBSTITUTE(SUBSTITUTE(L237,\"!\",\"\"),\",\",\"\"),\".\",\"\"),\";\",\"\"),\":\",\"\"),\"\"\"\",\"\")))","v":null},{"$f":"IF(M237=\"\",\"\",LEN(SUBSTITUTE(SUBSTITUTE(SUBSTITUTE(SUBSTITUTE(SUBSTITUTE(SUBSTITUTE(M237,\"!\",\"\"),\",\",\"\"),\".\",\"\"),\";\",\"\"),\":\",\"\"),\"\"\"\",\"\")))","v":null},"https://likebk.com/","регистрация-сейчас","","","Россия","2,3","","-","Остановлено","Работает везде","Регистрация прямо сейчас||Форум||Новости||Рейтинг персонажей||||||||","Зарегистрируйтесь и вступите в наш клуб||Обсудите все ваши достежения и задания с реальными игроками||Узнайте все новости о мире нашего клуба||Посмотрите рейтинг реальных персонажей||||||||","https://likebk.com/register||https://forum.likebk.com/||https://likebk.com/news||https://top.likebk.com/exp_raiting.php/||||||||","","","","","https://direct.yandex.ru/images/direct/2433298/2VVXefm9f2GZMtv9PK8GyQ","","","Отлична графика||MMORPG||Передача атмосферы||Увлекательная игра||Отличное качество","","","","","","","","","","",""]
["-","Текстово-графическое","-","4458363196","Группа 6","6","-","26433375136","игра детства из 2000-х","10259215450","Компьютерная игра твоего детства.","Полное погружение в игру БК-2!","БК-2 компьютерная игра прямиком из 2000-х. Отличная графика и полное погружение!",{"$f":"IF(K238=\"\",\"\",LEN(SUBSTITUTE(SUBSTITUTE(SUBSTITUTE(SUBSTITUTE(SUBSTITUTE(SUBSTITUTE(K238,\"!\",\"\"),\",\",\"\"),\".\",\"\"),\";\",\"\"),\":\",\"\"),\"\"\"\",\"\")))","v":null},{"$f":"IF(L238=\"\",\"\",LEN(SUBSTITUTE(SUBSTITUTE(SUBSTITUTE(SUBSTITUTE(SUBSTITUTE(SUBSTITUTE(L238,\"!\",\"\"),\",\",\"\"),\".\",\"\"),\";\",\"\"),\":\",\"\"),\"\"\"\",\"\")))","v":null},{"$f":"IF(M238=\"\",\"\",LEN(SUBSTITUTE(SUBSTITUTE(SUBSTITUTE(SUBSTITUTE(SUBSTITUTE(SUBSTITUTE(M238,\"!\",\"\"),\",\",\"\"),\".\",\"\"),\";\",\"\"),\":\",\"\"),\"\"\"\",\"\")))","v":null},"https://likebk.com/","регистрация-сейчас","","","Россия","2,3","","-","Остановлено","Работает везде","Регистрация прямо сейчас||Форум||Новости||Рейтинг персонажей||||||||","Зарегистрируйтесь и вступите в наш клуб||Обсудите все ваши достежения и задания с реальными игроками||Узнайте все новости о мире нашего клуба||Посмотрите рейтинг реальных персонажей||||||||","https://likebk.com/register||https://forum.likebk.com/||https://likebk.com/news||https://top.likebk.com/exp_raiting.php/||||||||","","","","","https://direct.yandex.ru/images/direct/2433298/2VVXefm9f2GZMtv9PK8GyQ","","","Отлична графика||MMORPG||Передача атмосферы||Увлекательная игра||Отличное качество","","","","","","","","","","",""]
["-","Текстово-графическое","-","4458363196","Группа 6","6","-","26433375137","игра бк-2","10259215450","Компьютерная игра твоего детства.","Полное погружение в игру БК-2!","БК-2 компьютерная игра прямиком из 2000-х. Отличная графика и полное погружение!",{"$f":"IF(K239=\"\",\"\",LEN(SUBSTITUTE(SUBSTITUTE(SUBSTITUTE(SUBSTITUTE(SUBSTITUTE(SUBSTITUTE(K239,\"!\",\"\"),\",\",\"\"),\".\",\"\"),\";\",\"\"),\":\",\"\"),\"\"\"\",\"\")))","v":null},{"$f":"IF(L239=\"\",\"\",LEN(SUBSTITUTE(SUBSTITUTE(SUBSTITUTE(SUBSTITUTE(SUBSTITUTE(SUBSTITUTE(L239,\"!\",\"\"),\",\",\"\"),\".\",\"\"),\";\",\"\"),\":\",\"\"),\"\"\"\",\"\")))","v":null},{"$f":"IF(M239=\"\",\"\",LEN(SUBSTITUTE(SUBSTITUTE(SUBSTITUTE(SUBSTITUTE(SUBSTITUTE(SUBSTITUTE(M239,\"!\",\"\"),\",\",\"\"),\".\",\"\"),\";\",\"\"),\":\",\"\"),\"\"\"\",\"\")))","v":null},"https://likebk.com/","регистрация-сейчас","","","Россия","2,3","","-","Остановлено","Работает везде","Регистрация прямо сейчас||Форум||Новости||Рейтинг персонажей||||||||","Зарегистрируйтесь и вступите в наш клуб||Обсудите все ваши достежения и задания с реальными игроками||Узнайте все новости о мире нашего клуба||Посмотрите рейтинг реальных персонажей||||||||","https://likebk.com/register||https://forum.likebk.com/||https://likebk.com/news||https://top.likebk.com/exp_raiting.php/||||||||","","","","","https://direct.yandex.ru/images/direct/2433298/2VVXefm9f2GZMtv9PK8GyQ","","","Отлична графика||MMORPG||Передача атмосферы||Увлекательная игра||Отличное качество","","","","","","","","","","",""]
["-","Текстово-графическое","-","4458363196","Группа 6","6","-","26433375138","бк-2 играть онлайн","10259215450","Компьютерная игра твоего детства.","Полное погружение в игру БК-2!","БК-2 компьютерная игра прямиком из 2000-х. Отличная графика и полное погружение!",{"$f":"IF(K240=\"\",\"\",LEN(SUBSTITUTE(SUBSTITUTE(SUBSTITUTE(SUBSTITUTE(SUBSTITUTE(SUBSTITUTE(K240,\"!\",\"\"),\",\",\"\"),\".\",\"\"),\";\",\"\"),\":\",\"\"),\"\"\"\",\"\")))","v":null},{"$f":"IF(L240=\"\",\"\",LEN(SUBSTITUTE(SUBSTITUTE(SUBSTITUTE(SUBSTITUTE(SUBSTITUTE(SUBSTITUTE(L240,\"!\",\"\"),\",\",\"\"),\".\",\"\"),\";\",\"\"),\":\",\"\"),\"\"\"\",\"\")))","v":null},{"$f":"IF(M240=\"\",\"\",LEN(SUBSTITUTE(SUBSTITUTE(SUBSTITUTE(SUBSTITUTE(SUBSTITUTE(SUBSTITUTE(M240,\"!\",\"\"),\",\",\"\"),\".\",\"\"),\";\",\"\"),\":\",\"\"),\"\"\"\",\"\")))","v":null},"https://likebk.com/","регистрация-сейчас","","","Россия","2,3","","-","Остановлено","Работает везде","Регистрация прямо сейчас||Форум||Новости||Рейтинг персонажей||||||||","Зарегистрируйтесь и вступите в наш клуб||Обсудите все ваши достежения и задания с реальными игроками||Узнайте все новости о мире нашего клуба||Посмотрите рейтинг реальных персонажей||||||||","https://likebk.com/register||https://forum.likebk.com/||https://likebk.com/news||https://top.likebk.com/exp_raiting.php/||||||||","","","","","https://direct.yandex.ru/images/direct/2433298/2VVXefm9f2GZMtv9PK8GyQ","","","Отлична графика||MMORPG||Передача атмосферы||Увлекательная игра||Отличное качество","","","","","","","","","","",""]
["-","Текстово-графическое","-","4458363196","Группа 6","6","-","26433375139","бк онлайн игра бойцовский клуб","10259215450","Компьютерная игра твоего детства.","Полное погружение в игру БК-2!","БК-2 компьютерная игра прямиком из 2000-х. Отличная графика и полное погружение!",{"$f":"IF(K241=\"\",\"\",LEN(SUBSTITUTE(SUBSTITUTE(SUBSTITUTE(SUBSTITUTE(SUBSTITUTE(SUBSTITUTE(K241,\"!\",\"\"),\",\",\"\"),\".\",\"\"),\";\",\"\"),\":\",\"\"),\"\"\"\",\"\")))","v":null},{"$f":"IF(L241=\"\",\"\",LEN(SUBSTITUTE(SUBSTITUTE(SUBSTITUTE(SUBSTITUTE(SUBSTITUTE(SUBSTITUTE(L241,\"!\",\"\"),\",\",\"\"),\".\",\"\"),\";\",\"\"),\":\",\"\"),\"\"\"\",\"\")))","v":null},{"$f":"IF(M241=\"\",\"\",LEN(SUBSTITUTE(SUBSTITUTE(SUBSTITUTE(SUBSTITUTE(SUBSTITUTE(SUBSTITUTE(M241,\"!\",\"\"),\",\",\"\"),\".\",\"\"),\";\",\"\"),\":\",\"\"),\"\"\"\",\"\")))","v":null},"https://likebk.com/","регистрация-сейчас","","","Россия","2,3","","-","Остановлено","Работает везде","Регистрация прямо сейчас||Форум||Новости||Рейтинг персонажей||||||||","Зарегистрируйтесь и вступите в наш клуб||Обсудите все ваши достежения и задания с реальными игроками||Узнайте все новости о мире нашего клуба||Посмотрите рейтинг реальных персонажей||||||||","https://likebk.com/register||https://forum.likebk.com/||https://likebk.com/news||https://top.likebk.com/exp_raiting.php/||||||||","","","","","https://direct.yandex.ru/images/direct/2433298/2VVXefm9f2GZMtv9PK8GyQ","","","Отлична графика||MMORPG||Передача атмосферы||Увлекательная игра||Отличное качество","","","","","","","","","","",""]
["-","Текстово-графическое","-","4458363196","Группа 6","6","-","26433375140","бойцовский клуб браузерная онлайн игра","10259215450","Компьютерная игра твоего детства.","Полное погружение в игру БК-2!","БК-2 компьютерная игра прямиком из 2000-х. Отличная графика и полное погружение!",{"$f":"IF(K242=\"\",\"\",LEN(SUBSTITUTE(SUBSTITUTE(SUBSTITUTE(SUBSTITUTE(SUBSTITUTE(SUBSTITUTE(K242,\"!\",\"\"),\",\",\"\"),\".\",\"\"),\";\",\"\"),\":\",\"\"),\"\"\"\",\"\")))","v":null},{"$f":"IF(L242=\"\",\"\",LEN(SUBSTITUTE(SUBSTITUTE(SUBSTITUTE(SUBSTITUTE(SUBSTITUTE(SUBSTITUTE(L242,\"!\",\"\"),\",\",\"\"),\".\",\"\"),\";\",\"\"),\":\",\"\"),\"\"\"\",\"\")))","v":null},{"$f":"IF(M242=\"\",\"\",LEN(SUBSTITUTE(SUBSTITUTE(SUBSTITUTE(SUBSTITUTE(SUBSTITUTE(SUBSTITUTE(M242,\"!\",\"\"),\",\",\"\"),\".\",\"\"),\";\",\"\"),\":\",\"\"),\"\"\"\",\"\")))","v":null},"https://likebk.com/","регистрация-сейчас","","","Россия","2,3","","-","Остановлено","Работает везде","Регистрация прямо сейчас||Форум||Новости||Рейтинг персонажей||||||||","Зарегистрируйтесь и вступите в наш клуб||Обсудите все ваши достежения и задания с реальными игроками||Узнайте все новости о мире нашего клуба||Посмотрите рейтинг реальных персонажей||||||||","https://likebk.com/register||https://forum.likebk.com/||https://likebk.com/news||https://top.likebk.com/exp_raiting.php/||||||||","","","","","https://direct.yandex.ru/images/direct/2433298/2VVXefm9f2GZMtv9PK8GyQ","","","Отлична графика||MMORPG||Передача атмосферы||Увлекательная игра||Отличное качество","","","","","","","","","","",""]
["-","Текстово-графическое","-","4458363196","Группа 6","6","-","26433375141","игра мморпг","10259215450","Компьютерная игра твоего детства.","Полное погружение в игру БК-2!","БК-2 компьютерная игра прямиком из 2000-х. Отличная графика и полное погружение!",{"$f":"IF(K243=\"\",\"\",LEN(SUBSTITUTE(SUBSTITUTE(SUBSTITUTE(SUBSTITUTE(SUBSTITUTE(SUBSTITUTE(K243,\"!\",\"\"),\",\",\"\"),\".\",\"\"),\";\",\"\"),\":\",\"\"),\"\"\"\",\"\")))","v":null},{"$f":"IF(L243=\"\",\"\",LEN(SUBSTITUTE(SUBSTITUTE(SUBSTITUTE(SUBSTITUTE(SUBSTITUTE(SUBSTITUTE(L243,\"!\",\"\"),\",\",\"\"),\".\",\"\"),\";\",\"\"),\":\",\"\"),\"\"\"\",\"\")))","v":null},{"$f":"IF(M243=\"\",\"\",LEN(SUBSTITUTE(SUBSTITUTE(SUBSTITUTE(SUBSTITUTE(SUBSTITUTE(SUBSTITUTE(M243,\"!\",\"\"),\",\",\"\"),\".\",\"\"),\";\",\"\"),\":\",\"\"),\"\"\"\",\"\")))","v":null},"https://likebk.com/","регистрация-сейчас","","","Россия","2,3","","-","Остановлено","Работает везде","Регистрация прямо сейчас||Форум||Новости||Рейтинг персонажей||||||||","Зарегистрируйтесь и вступите в наш клуб||Обсудите все ваши достежения и задания с реальными игроками||Узнайте все новости о мире нашего клуба||Посмотрите рейтинг реальных персонажей||||||||","https://likebk.com/register||https://forum.likebk.com/||https://likebk.com/news||https://top.likebk.com/exp_raiting.php/||||||||","","","","","https://direct.yandex.ru/images/direct/2433298/2VVXefm9f2GZMtv9PK8GyQ","","","Отлична графика||MMORPG||Передача атмосферы||Увлекательная игра||Отличное качество","","","","","","","","","","",""]
["-","Текстово-графическое","-","4458363196","Группа 6","6","-","26433375142","образа +для бойцовский клуб игра онлайн","10259215450","Компьютерная игра твоего детства.","Полное погружение в игру БК-2!","БК-2 компьютерная игра прямиком из 2000-х. Отличная графика и полное погружение!",{"$f":"IF(K244=\"\",\"\",LEN(SUBSTITUTE(SUBSTITUTE(SUBSTITUTE(SUBSTITUTE(SUBSTITUTE(SUBSTITUTE(K244,\"!\",\"\"),\",\",\"\"),\".\",\"\"),\";\",\"\"),\":\",\"\"),\"\"\"\",\"\")))","v":null},{"$f":"IF(L244=\"\",\"\",LEN(SUBSTITUTE(SUBSTITUTE(SUBSTITUTE(SUBSTITUTE(SUBSTITUTE(SUBSTITUTE(L244,\"!\",\"\"),\",\",\"\"),\".\",\"\"),\";\",\"\"),\":\",\"\"),\"\"\"\",\"\")))","v":null},{"$f":"IF(M244=\"\",\"\",LEN(SUBSTITUTE(SUBSTITUTE(SUBSTITUTE(SUBSTITUTE(SUBSTITUTE(SUBSTITUTE(M244,\"!\",\"\"),\",\",\"\"),\".\",\"\"),\";\",\"\"),\":\",\"\"),\"\"\"\",\"\")))","v":null},"https://likebk.com/","регистрация-сейчас","","","Россия","2,3","","-","Остановлено","Работает везде","Регистрация прямо сейчас||Форум||Новости||Рейтинг персонажей||||||||","Зарегистрируйтесь и вступите в наш клуб||Обсудите все ваши достежения и задания с реальными игроками||Узнайте все новости о мире нашего клуба||Посмотрите рейтинг реальных персонажей||||||||","https://likebk.com/register||https://forum.likebk.com/||https://likebk.com/news||https://top.likebk.com/exp_raiting.php/||||||||","","","","","https://direct.yandex.ru/images/direct/2433298/2VVXefm9f2GZMtv9PK8GyQ","","","Отлична графика||MMORPG||Передача атмосферы||Увлекательная игра||Отличное качество","","","","","","","","","","",""]
["-","Текстово-графическое","-","4458363196","Группа 6","6","-","26433375143","mmorpg +для слабых пк онлайн","10259215450","Компьютерная игра твоего детства.","Полное погружение в игру БК-2!","БК-2 компьютерная игра прямиком из 2000-х. Отличная графика и полное погружение!",{"$f":"IF(K245=\"\",\"\",LEN(SUBSTITUTE(SUBSTITUTE(SUBSTITUTE(SUBSTITUTE(SUBSTITUTE(SUBSTITUTE(K245,\"!\",\"\"),\",\",\"\"),\".\",\"\"),\";\",\"\"),\":\",\"\"),\"\"\"\",\"\")))","v":null},{"$f":"IF(L245=\"\",\"\",LEN(SUBSTITUTE(SUBSTITUTE(SUBSTITUTE(SUBSTITUTE(SUBSTITUTE(SUBSTITUTE(L245,\"!\",\"\"),\",\",\"\"),\".\",\"\"),\";\",\"\"),\":\",\"\"),\"\"\"\",\"\")))","v":null},{"$f":"IF(M245=\"\",\"\",LEN(SUBSTITUTE(SUBSTITUTE(SUBSTITUTE(SUBSTITUTE(SUBSTITUTE(SUBSTITUTE(M245,\"!\",\"\"),\",\",\"\"),\".\",\"\"),\";\",\"\"),\":\",\"\"),\"\"\"\",\"\")))","v":null},"https://likebk.com/","регистрация-сейчас","","","Россия","2,3","","-","Остановлено","Работает везде","Регистрация прямо сейчас||Форум||Новости||Рейтинг персонажей||||||||","Зарегистрируйтесь и вступите в наш клуб||Обсудите все ваши достежения и задания с реальными игроками||Узнайте все новости о мире нашего клуба||Посмотрите рейтинг реальных персонажей||||||||","https://likebk.com/register||https://forum.likebk.com/||https://likebk.com/news||https://top.likebk.com/exp_raiting.php/||||||||","","","","","https://direct.yandex.ru/images/direct/2433298/2VVXefm9f2GZMtv9PK8GyQ","","","Отлична графика||MMORPG||Передача атмосферы||Увлекательная игра||Отличное качество","","","","","","","","","","",""]
["-","Текстово-графическое","-","4458363196","Группа 6","6","-","26433375144","mmorpg +на пк онлайн","10259215450","Компьютерная игра твоего детства.","Полное погружение в игру БК-2!","БК-2 компьютерная игра прямиком из 2000-х. Отличная графика и полное погружение!",{"$f":"IF(K246=\"\",\"\",LEN(SUBSTITUTE(SUBSTITUTE(SUBSTITUTE(SUBSTITUTE(SUBSTITUTE(SUBSTITUTE(K246,\"!\",\"\"),\",\",\"\"),\".\",\"\"),\";\",\"\"),\":\",\"\"),\"\"\"\",\"\")))","v":null},{"$f":"IF(L246=\"\",\"\",LEN(SUBSTITUTE(SUBSTITUTE(SUBSTITUTE(SUBSTITUTE(SUBSTITUTE(SUBSTITUTE(L246,\"!\",\"\"),\",\",\"\"),\".\",\"\"),\";\",\"\"),\":\",\"\"),\"\"\"\",\"\")))","v":null},{"$f":"IF(M246=\"\",\"\",LEN(SUBSTITUTE(SUBSTITUTE(SUBSTITUTE(SUBSTITUTE(SUBSTITUTE(SUBSTITUTE(M246,\"!\",\"\"),\",\",\"\"),\".\",\"\"),\";\",\"\"),\":\",\"\"),\"\"\"\",\"\")))","v":null},"https://likebk.com/","регистрация-сейчас","","","Россия","2,3","","-","Остановлено","Работает везде","Регистрация прямо сейчас||Форум||Новости||Рейтинг персонажей||||||||","Зарегистрируйтесь и вступите в наш клуб||Обсудите все ваши достежения и задания с реальными игроками||Узнайте все новости о мире нашего клуба||Посмотрите рейтинг реальных персонажей||||||||","https://likebk.com/register||https://forum.likebk.com/||https://likebk.com/news||https://top.likebk.com/exp_raiting.php/||||||||","","","","","https://direct.yandex.ru/images/direct/2433298/2VVXefm9f2GZMtv9PK8GyQ","","","Отлична графика||MMORPG||Передача атмосферы||Увлекательная игра||Отличное качество","","","","","","","","","","",""]
["-","Текстово-графическое","-","4458363196","Группа 6","6","-","26433375145","mmorpg +на пк онлайн топ","10259215450","Компьютерная игра твоего детства.","Полное погружение в игру БК-2!","БК-2 компьютерная игра прямиком из 2000-х. Отличная графика и полное погружение!",{"$f":"IF(K247=\"\",\"\",LEN(SUBSTITUTE(SUBSTITUTE(SUBSTITUTE(SUBSTITUTE(SUBSTITUTE(SUBSTITUTE(K247,\"!\",\"\"),\",\",\"\"),\".\",\"\"),\";\",\"\"),\":\",\"\"),\"\"\"\",\"\")))","v":null},{"$f":"IF(L247=\"\",\"\",LEN(SUBSTITUTE(SUBSTITUTE(SUBSTITUTE(SUBSTITUTE(SUBSTITUTE(SUBSTITUTE(L247,\"!\",\"\"),\",\",\"\"),\".\",\"\"),\";\",\"\"),\":\",\"\"),\"\"\"\",\"\")))","v":null},{"$f":"IF(M247=\"\",\"\",LEN(SUBSTITUTE(SUBSTITUTE(SUBSTITUTE(SUBSTITUTE(SUBSTITUTE(SUBSTITUTE(M247,\"!\",\"\"),\",\",\"\"),\".\",\"\"),\";\",\"\"),\":\",\"\"),\"\"\"\",\"\")))","v":null},"https://likebk.com/","регистрация-сейчас","","","Россия","2,3","","-","Остановлено","Работает везде","Регистрация прямо сейчас||Форум||Новости||Рейтинг персонажей||||||||","Зарегистрируйтесь и вступите в наш клуб||Обсудите все ваши достежения и задания с реальными игроками||Узнайте все новости о мире нашего клуба||Посмотрите рейтинг реальных персонажей||||||||","https://likebk.com/register||https://forum.likebk.com/||https://likebk.com/news||https://top.likebk.com/exp_raiting.php/||||||||","","","","","https://direct.yandex.ru/images/direct/2433298/2VVXefm9f2GZMtv9PK8GyQ","","","Отлична графика||MMORPG||Передача атмосферы||Увлекательная игра||Отличное качество","","","","","","","","","","",""]
["-","Текстово-графическое","-","4458363196","Группа 6","6","-","26433375146","mmorpg +с большим онлайном","10259215450","Компьютерная игра твоего детства.","Полное погружение в игру БК-2!","БК-2 компьютерная игра прямиком из 2000-х. Отличная графика и полное погружение!",{"$f":"IF(K248=\"\",\"\",LEN(SUBSTITUTE(SUBSTITUTE(SUBSTITUTE(SUBSTITUTE(SUBSTITUTE(SUBSTITUTE(K248,\"!\",\"\"),\",\",\"\"),\".\",\"\"),\";\",\"\"),\":\",\"\"),\"\"\"\",\"\")))","v":null},{"$f":"IF(L248=\"\",\"\",LEN(SUBSTITUTE(SUBSTITUTE(SUBSTITUTE(SUBSTITUTE(SUBSTITUTE(SUBSTITUTE(L248,\"!\",\"\"),\",\",\"\"),\".\",\"\"),\";\",\"\"),\":\",\"\"),\"\"\"\",\"\")))","v":null},{"$f":"IF(M248=\"\",\"\",LEN(SUBSTITUTE(SUBSTITUTE(SUBSTITUTE(SUBSTITUTE(SUBSTITUTE(SUBSTITUTE(M248,\"!\",\"\"),\",\",\"\"),\".\",\"\"),\";\",\"\"),\":\",\"\"),\"\"\"\",\"\")))","v":null},"https://likebk.com/","регистрация-сейчас","","","Россия","2,3","","-","Остановлено","Работает везде","Регистрация прямо сейчас||Форум||Новости||Рейтинг персонажей||||||||","Зарегистрируйтесь и вступите в наш клуб||Обсудите все ваши достежения и задания с реальными игроками||Узнайте все новости о мире нашего клуба||Посмотрите рейтинг реальных персонажей||||||||","https://likebk.com/register||https://forum.likebk.com/||https://likebk.com/news||https://top.likebk.com/exp_raiting.php/||||||||","","","","","https://direct.yandex.ru/images/direct/2433298/2VVXefm9f2GZMtv9PK8GyQ","","","Отлична графика||MMORPG||Передача атмосферы||Увлекательная игра||Отличное качество","","","","","","","","","","",""]
["-","Текстово-графическое","-","4458363196","Группа 6","6","-","26433375147","mmorpg +с открытым миром онлайн","10259215450","Компьютерная игра твоего детства.","Полное погружение в игру БК-2!","БК-2 компьютерная игра прямиком из 2000-х. Отличная графика и полное погружение!",{"$f":"IF(K249=\"\",\"\",LEN(SUBSTITUTE(SUBSTITUTE(SUBSTITUTE(SUBSTITUTE(SUBSTITUTE(SUBSTITUTE(K249,\"!\",\"\"),\",\",\"\"),\".\",\"\"),\";\",\"\"),\":\",\"\"),\"\"\"\",\"\")))","v":null},{"$f":"IF(L249=\"\",\"\",LEN(SUBSTITUTE(SUBSTITUTE(SUBSTITUTE(SUBSTITUTE(SUBSTITUTE(SUBSTITUTE(L249,\"!\",\"\"),\",\",\"\"),\".\",\"\"),\";\",\"\"),\":\",\"\"),\"\"\"\",\"\")))","v":null},{"$f":"IF(M249=\"\",\"\",LEN(SUBSTITUTE(SUBSTITUTE(SUBSTITUTE(SUBSTITUTE(SUBSTITUTE(SUBSTITUTE(M249,\"!\",\"\"),\",\",\"\"),\".\",\"\"),\";\",\"\"),\":\",\"\"),\"\"\"\",\"\")))","v":null},"https://likebk.com/","регистрация-сейчас","","","Россия","2,3","","-","Остановлено","Работает везде","Регистрация прямо сейчас||Форум||Новости||Рейтинг персонажей||||||||","Зарегистрируйтесь и вступите в наш клуб||Обсудите все ваши достежения и задания с реальными игроками||Узнайте все новости о мире нашего клуба||Посмотрите рейтинг реальных персонажей||||||||","https://likebk.com/register||https://forum.likebk.com/||https://likebk.com/news||https://top.likebk.com/exp_raiting.php/||||||||","","","","","https://direct.yandex.ru/images/direct/2433298/2VVXefm9f2GZMtv9PK8GyQ","","","Отлична графика||MMORPG||Передача атмосферы||Увлекательная игра||Отличное качество","","","","","","","","","","",""]
["-","Текстово-графическое","-","4458363196","Группа 6","6","-","26433375148","mmorpg онлайн","10259215450","Компьютерная игра твоего детства.","Полное погружение в игру БК-2!","БК-2 компьютерная игра прямиком из 2000-х. Отличная графика и полное погружение!",{"$f":"IF(K250=\"\",\"\",LEN(SUBSTITUTE(SUBSTITUTE(SUBSTITUTE(SUBSTITUTE(SUBSTITUTE(SUBSTITUTE(K250,\"!\",\"\"),\",\",\"\"),\".\",\"\"),\";\",\"\"),\":\",\"\"),\"\"\"\",\"\")))","v":null},{"$f":"IF(L250=\"\",\"\",LEN(SUBSTITUTE(SUBSTITUTE(SUBSTITUTE(SUBSTITUTE(SUBSTITUTE(SUBSTITUTE(L250,\"!\",\"\"),\",\",\"\"),\".\",\"\"),\";\",\"\"),\":\",\"\"),\"\"\"\",\"\")))","v":null},{"$f":"IF(M250=\"\",\"\",LEN(SUBSTITUTE(SUBSTITUTE(SUBSTITUTE(SUBSTITUTE(SUBSTITUTE(SUBSTITUTE(M250,\"!\",\"\"),\",\",\"\"),\".\",\"\"),\";\",\"\"),\":\",\"\"),\"\"\"\",\"\")))","v":null},"https://likebk.com/","регистрация-сейчас","","","Россия","2,3","","-","Остановлено","Работает везде","Регистрация прямо сейчас||Форум||Новости||Рейтинг персонажей||||||||","Зарегистрируйтесь и вступите в наш клуб||Обсудите все ваши достежения и задания с реальными игроками||Узнайте все новости о мире нашего клуба||Посмотрите рейтинг реальных персонажей||||||||","https://likebk.com/register||https://forum.likebk.com/||https://likebk.com/news||https://top.likebk.com/exp_raiting.php/||||||||","","","","","https://direct.yandex.ru/images/direct/2433298/2VVXefm9f2GZMtv9PK8GyQ","","","Отлична графика||MMORPG||Передача атмосферы||Увлекательная игра||Отличное качество","","","","","","","","","","",""]
["-","Текстово-графическое","-","4458363196","Группа 6","6","-","26433375149","mmorpg онлайн игры +на пк","10259215450","Компьютерная игра твоего детства.","Полное погружение в игру БК-2!","БК-2 компьютерная игра прямиком из 2000-х. Отличная графика и полное погружение!",{"$f":"IF(K251=\"\",\"\",LEN(SUBSTITUTE(SUBSTITUTE(SUBSTITUTE(SUBSTITUTE(SUBSTITUTE(SUBSTITUTE(K251,\"!\",\"\"),\",\",\"\"),\".\",\"\"),\";\",\"\"),\":\",\"\"),\"\"\"\",\"\")))","v":null},{"$f":"IF(L251=\"\",\"\",LEN(SUBSTITUTE(SUBSTITUTE(SUBSTITUTE(SUBSTITUTE(SUBSTITUTE(SUBSTITUTE(L251,\"!\",\"\"),\",\",\"\"),\".\",\"\"),\";\",\"\"),\":\",\"\"),\"\"\"\",\"\")))","v":null},{"$f":"IF(M251=\"\",\"\",LEN(SUBSTITUTE(SUBSTITUTE(SUBSTITUTE(SUBSTITUTE(SUBSTITUTE(SUBSTITUTE(M251,\"!\",\"\"),\",\",\"\"),\".\",\"\"),\";\",\"\"),\":\",\"\"),\"\"\"\",\"\")))","v":null},"https://likebk.com/","регистрация-сейчас","","","Россия","2,3","","-","Остановлено","Работает везде","Регистрация прямо сейчас||Форум||Новости||Рейтинг персонажей||||||||","Зарегистрируйтесь и вступите в наш клуб||Обсудите все ваши достежения и задания с реальными игроками||Узнайте все новости о мире нашего клуба||Посмотрите рейтинг реальных персонажей||||||||","https://likebk.com/register||https://forum.likebk.com/||https://likebk.com/news||https://top.likebk.com/exp_raiting.php/||||||||","","","","","https://direct.yandex.ru/images/direct/2433298/2VVXefm9f2GZMtv9PK8GyQ","","","Отлична графика||MMORPG||Передача атмосферы||Увлекательная игра||Отличное качество","","","","","","","","","","",""]
["-","Текстово-графическое","-","4458363196","Группа 6","6","-","26433375150","mmorpg онлайн игры браузерные","10259215450","Компьютерная игра твоего детства.","Полное погружение в игру БК-2!","БК-2 компьютерная игра прямиком из 2000-х. Отличная графика и полное погружение!",{"$f":"IF(K252=\"\",\"\",LEN(SUBSTITUTE(SUBSTITUTE(SUBSTITUTE(SUBSTITUTE(SUBSTITUTE(SUBSTITUTE(K252,\"!\",\"\"),\",\",\"\"),\".\",\"\"),\";\",\"\"),\":\",\"\"),\"\"\"\",\"\")))","v":null},{"$f":"IF(L252=\"\",\"\",LEN(SUBSTITUTE(SUBSTITUTE(SUBSTITUTE(SUBSTITUTE(SUBSTITUTE(SUBSTITUTE(L252,\"!\",\"\"),\",\",\"\"),\".\",\"\"),\";\",\"\"),\":\",\"\"),\"\"\"\",\"\")))","v":null},{"$f":"IF(M252=\"\",\"\",LEN(SUBSTITUTE(SUBSTITUTE(SUBSTITUTE(SUBSTITUTE(SUBSTITUTE(SUBSTITUTE(M252,\"!\",\"\"),\",\",\"\"),\".\",\"\"),\";\",\"\"),\":\",\"\"),\"\"\"\",\"\")))","v":null},"https://likebk.com/","регистрация-сейчас","","","Россия","2,3","","-","Остановлено","Работает везде","Регистрация прямо сейчас||Форум||Новости||Рейтинг персонажей||||||||","Зарегистрируйтесь и вступите в наш клуб||Обсудите все ваши достежения и задания с реальными игроками||Узнайте все новости о мире нашего клуба||Посмотрите рейтинг реальных персонажей||||||||","https://likebk.com/register||https://forum.likebk.com/||https://likebk.com/news||https://top.likebk.com/exp_raiting.php/||||||||","","","","","https://direct.yandex.ru/images/direct/2433298/2VVXefm9f2GZMtv9PK8GyQ","","","Отлична графика||MMORPG||Передача атмосферы||Увлекательная игра||Отличное качество","","","","","","","","","","",""]
["-","Текстово-графическое","-","4458363196","Группа 6","6","-","26433375151","бойцовский клуб игра онлайн олдбк 2","10259215450","Компьютерная игра твоего детства.","Полное погружение в игру БК-2!","БК-2 компьютерная игра прямиком из 2000-х. Отличная графика и полное погружение!",{"$f":"IF(K253=\"\",\"\",LEN(SUBSTITUTE(SUBSTITUTE(SUBSTITUTE(SUBSTITUTE(SUBSTITUTE(SUBSTITUTE(K253,\"!\",\"\"),\",\",\"\"),\".\",\"\"),\";\",\"\"),\":\",\"\"),\"\"\"\",\"\")))","v":null},{"$f":"IF(L253=\"\",\"\",LEN(SUBSTITUTE(SUBSTITUTE(SUBSTITUTE(SUBSTITUTE(SUBSTITUTE(SUBSTITUTE(L253,\"!\",\"\"),\",\",\"\"),\".\",\"\"),\";\",\"\"),\":\",\"\"),\"\"\"\",\"\")))","v":null},{"$f":"IF(M253=\"\",\"\",LEN(SUBSTITUTE(SUBSTITUTE(SUBSTITUTE(SUBSTITUTE(SUBSTITUTE(SUBSTITUTE(M253,\"!\",\"\"),\",\",\"\"),\".\",\"\"),\";\",\"\"),\":\",\"\"),\"\"\"\",\"\")))","v":null},"https://likebk.com/","регистрация-сейчас","","","Россия","2,3","","-","Остановлено","Работает везде","Регистрация прямо сейчас||Форум||Новости||Рейтинг персонажей||||||||","Зарегистрируйтесь и вступите в наш клуб||Обсудите все ваши достежения и задания с реальными игроками||Узнайте все новости о мире нашего клуба||Посмотрите рейтинг реальных персонажей||||||||","https://likebk.com/register||https://forum.likebk.com/||https://likebk.com/news||https://top.likebk.com/exp_raiting.php/||||||||","","","","","https://direct.yandex.ru/images/direct/2433298/2VVXefm9f2GZMtv9PK8GyQ","","","Отлична графика||MMORPG||Передача атмосферы||Увлекательная игра||Отличное качество","","","","","","","","","","",""]
["-","Текстово-графическое","-","4458363196","Группа 6","6","-","26433375152","бойцовский клуб игра онлайн официальный сайт","10259215450","Компьютерная игра твоего детства.","Полное погружение в игру БК-2!","БК-2 компьютерная игра прямиком из 2000-х. Отличная графика и полное погружение!",{"$f":"IF(K254=\"\",\"\",LEN(SUBSTITUTE(SUBSTITUTE(SUBSTITUTE(SUBSTITUTE(SUBSTITUTE(SUBSTITUTE(K254,\"!\",\"\"),\",\",\"\"),\".\",\"\"),\";\",\"\"),\":\",\"\"),\"\"\"\",\"\")))","v":null},{"$f":"IF(L254=\"\",\"\",LEN(SUBSTITUTE(SUBSTITUTE(SUBSTITUTE(SUBSTITUTE(SUBSTITUTE(SUBSTITUTE(L254,\"!\",\"\"),\",\",\"\"),\".\",\"\"),\";\",\"\"),\":\",\"\"),\"\"\"\",\"\")))","v":null},{"$f":"IF(M254=\"\",\"\",LEN(SUBSTITUTE(SUBSTITUTE(SUBSTITUTE(SUBSTITUTE(SUBSTITUTE(SUBSTITUTE(M254,\"!\",\"\"),\",\",\"\"),\".\",\"\"),\";\",\"\"),\":\",\"\"),\"\"\"\",\"\")))","v":null},"https://likebk.com/","регистрация-сейчас","","","Россия","2,3","","-","Остановлено","Работает везде","Регистрация прямо сейчас||Форум||Новости||Рейтинг персонажей||||||||","Зарегистрируйтесь и вступите в наш клуб||Обсудите все ваши достежения и задания с реальными игроками||Узнайте все новости о мире нашего клуба||Посмотрите рейтинг реальных персонажей||||||||","https://likebk.com/register||https://forum.likebk.com/||https://likebk.com/news||https://top.likebk.com/exp_raiting.php/||||||||","","","","","https://direct.yandex.ru/images/direct/2433298/2VVXefm9f2GZMtv9PK8GyQ","","","Отлична графика||MMORPG||Передача атмосферы||Увлекательная игра||Отличное качество","","","","","","","","","","",""]
["-","Текстово-графическое","-","4458363196","Группа 6","6","-","26433375153","браузерная онлайн mmorpg","10259215450","Компьютерная игра твоего детства.","Полное погружение в игру БК-2!","БК-2 компьютерная игра прямиком из 2000-х. Отличная графика и полное погружение!",{"$f":"IF(K255=\"\",\"\",LEN(SUBSTITUTE(SUBSTITUTE(SUBSTITUTE(SUBSTITUTE(SUBSTITUTE(SUBSTITUTE(K255,\"!\",\"\"),\",\",\"\"),\".\",\"\"),\";\",\"\"),\":\",\"\"),\"\"\"\",\"\")))","v":null},{"$f":"IF(L255=\"\",\"\",LEN(SUBSTITUTE(SUBSTITUTE(SUBSTITUTE(SUBSTITUTE(SUBSTITUTE(SUBSTITUTE(L255,\"!\",\"\"),\",\",\"\"),\".\",\"\"),\";\",\"\"),\":\",\"\"),\"\"\"\",\"\")))","v":null},{"$f":"IF(M255=\"\",\"\",LEN(SUBSTITUTE(SUBSTITUTE(SUBSTITUTE(SUBSTITUTE(SUBSTITUTE(SUBSTITUTE(M255,\"!\",\"\"),\",\",\"\"),\".\",\"\"),\";\",\"\"),\":\",\"\"),\"\"\"\",\"\")))","v":null},"https://likebk.com/","регистрация-сейчас","","","Россия","2,3","","-","Остановлено","Работает везде","Регистрация прямо сейчас||Форум||Новости||Рейтинг персонажей||||||||","Зарегистрируйтесь и вступите в наш клуб||Обсудите все ваши достежения и задания с реальными игроками||Узнайте все новости о мире нашего клуба||Посмотрите рейтинг реальных персонажей||||||||","https://likebk.com/register||https://forum.likebk.com/||https://likebk.com/news||https://top.likebk.com/exp_raiting.php/||||||||","","","","","https://direct.yandex.ru/images/direct/2433298/2VVXefm9f2GZMtv9PK8GyQ","","","Отлична графика||MMORPG||Передача атмосферы||Увлекательная игра||Отличное качество","","","","","","","","","","",""]
["-","Текстово-графическое","-","4458363196","Группа 6","6","-","26433375154","игра mmorpg","10259215450","Компьютерная игра твоего детства.","Полное погружение в игру БК-2!","БК-2 компьютерная игра прямиком из 2000-х. Отличная графика и полное погружение!",{"$f":"IF(K256=\"\",\"\",LEN(SUBSTITUTE(SUBSTITUTE(SUBSTITUTE(SUBSTITUTE(SUBSTITUTE(SUBSTITUTE(K256,\"!\",\"\"),\",\",\"\"),\".\",\"\"),\";\",\"\"),\":\",\"\"),\"\"\"\",\"\")))","v":null},{"$f":"IF(L256=\"\",\"\",LEN(SUBSTITUTE(SUBSTITUTE(SUBSTITUTE(SUBSTITUTE(SUBSTITUTE(SUBSTITUTE(L256,\"!\",\"\"),\",\",\"\"),\".\",\"\"),\";\",\"\"),\":\",\"\"),\"\"\"\",\"\")))","v":null},{"$f":"IF(M256=\"\",\"\",LEN(SUBSTITUTE(SUBSTITUTE(SUBSTITUTE(SUBSTITUTE(SUBSTITUTE(SUBSTITUTE(M256,\"!\",\"\"),\",\",\"\"),\".\",\"\"),\";\",\"\"),\":\",\"\"),\"\"\"\",\"\")))","v":null},"https://likebk.com/","регистрация-сейчас","","","Россия","2,3","","-","Остановлено","Работает везде","Регистрация прямо сейчас||Форум||Новости||Рейтинг персонажей||||||||","Зарегистрируйтесь и вступите в наш клуб||Обсудите все ваши достежения и задания с реальными игроками||Узнайте все новости о мире нашего клуба||Посмотрите рейтинг реальных персонажей||||||||","https://likebk.com/register||https://forum.likebk.com/||https://likebk.com/news||https://top.likebk.com/exp_raiting.php/||||||||","","","","","https://direct.yandex.ru/images/direct/2433298/2VVXefm9f2GZMtv9PK8GyQ","","","Отлична графика||MMORPG||Передача атмосферы||Увлекательная игра||Отличное качество","","","","","","","","","","",""]
["-","Текстово-графическое","-","4458363196","Группа 6","6","-","26433375155","играть онлайн mmorpg игры","10259215450","Компьютерная игра твоего детства.","Полное погружение в игру БК-2!","БК-2 компьютерная игра прямиком из 2000-х. Отличная графика и полное погружение!",{"$f":"IF(K257=\"\",\"\",LEN(SUBSTITUTE(SUBSTITUTE(SUBSTITUTE(SUBSTITUTE(SUBSTITUTE(SUBSTITUTE(K257,\"!\",\"\"),\",\",\"\"),\".\",\"\"),\";\",\"\"),\":\",\"\"),\"\"\"\",\"\")))","v":null},{"$f":"IF(L257=\"\",\"\",LEN(SUBSTITUTE(SUBSTITUTE(SUBSTITUTE(SUBSTITUTE(SUBSTITUTE(SUBSTITUTE(L257,\"!\",\"\"),\",\",\"\"),\".\",\"\"),\";\",\"\"),\":\",\"\"),\"\"\"\",\"\")))","v":null},{"$f":"IF(M257=\"\",\"\",LEN(SUBSTITUTE(SUBSTITUTE(SUBSTITUTE(SUBSTITUTE(SUBSTITUTE(SUBSTITUTE(M257,\"!\",\"\"),\",\",\"\"),\".\",\"\"),\";\",\"\"),\":\",\"\"),\"\"\"\",\"\")))","v":null},"https://likebk.com/","регистрация-сейчас","","","Россия","2,3","","-","Остановлено","Работает везде","Регистрация прямо сейчас||Форум||Новости||Рейтинг персонажей||||||||","Зарегистрируйтесь и вступите в наш клуб||Обсудите все ваши достежения и задания с реальными игроками||Узнайте все новости о мире нашего клуба||Посмотрите рейтинг реальных персонажей||||||||","https://likebk.com/register||https://forum.likebk.com/||https://likebk.com/news||https://top.likebk.com/exp_raiting.php/||||||||","","","","","https://direct.yandex.ru/images/direct/2433298/2VVXefm9f2GZMtv9PK8GyQ","","","Отлична графика||MMORPG||Передача атмосферы||Увлекательная игра||Отличное качество","","","","","","","","","","",""]
["-","Текстово-графическое","-","4458363196","Группа 6","6","-","26433375156","игры онлайн mmorpg 2020","10259215450","Компьютерная игра твоего детства.","Полное погружение в игру БК-2!","БК-2 компьютерная игра прямиком из 2000-х. Отличная графика и полное погружение!",{"$f":"IF(K258=\"\",\"\",LEN(SUBSTITUTE(SUBSTITUTE(SUBSTITUTE(SUBSTITUTE(SUBSTITUTE(SUBSTITUTE(K258,\"!\",\"\"),\",\",\"\"),\".\",\"\"),\";\",\"\"),\":\",\"\"),\"\"\"\",\"\")))","v":null},{"$f":"IF(L258=\"\",\"\",LEN(SUBSTITUTE(SUBSTITUTE(SUBSTITUTE(SUBSTITUTE(SUBSTITUTE(SUBSTITUTE(L258,\"!\",\"\"),\",\",\"\"),\".\",\"\"),\";\",\"\"),\":\",\"\"),\"\"\"\",\"\")))","v":null},{"$f":"IF(M258=\"\",\"\",LEN(SUBSTITUTE(SUBSTITUTE(SUBSTITUTE(SUBSTITUTE(SUBSTITUTE(SUBSTITUTE(M258,\"!\",\"\"),\",\",\"\"),\".\",\"\"),\";\",\"\"),\":\",\"\"),\"\"\"\",\"\")))","v":null},"https://likebk.com/","регистрация-сейчас","","","Россия","2,3","","-","Остановлено","Работает везде","Регистрация прямо сейчас||Форум||Новости||Рейтинг персонажей||||||||","Зарегистрируйтесь и вступите в наш клуб||Обсудите все ваши достежения и задания с реальными игроками||Узнайте все новости о мире нашего клуба||Посмотрите рейтинг реальных персонажей||||||||","https://likebk.com/register||https://forum.likebk.com/||https://likebk.com/news||https://top.likebk.com/exp_raiting.php/||||||||","","","","","https://direct.yandex.ru/images/direct/2433298/2VVXefm9f2GZMtv9PK8GyQ","","","Отлична графика||MMORPG||Передача атмосферы||Увлекательная игра||Отличное качество","","","","","","","","","","",""]
["-","Текстово-графическое","-","4458363196","Группа 6","6","-","26433375157","клиентская онлайн mmorpg","10259215450","Компьютерная игра твоего детства.","Полное погружение в игру БК-2!","БК-2 компьютерная игра прямиком из 2000-х. Отличная графика и полное погружение!",{"$f":"IF(K259=\"\",\"\",LEN(SUBSTITUTE(SUBSTITUTE(SUBSTITUTE(SUBSTITUTE(SUBSTITUTE(SUBSTITUTE(K259,\"!\",\"\"),\",\",\"\"),\".\",\"\"),\";\",\"\"),\":\",\"\"),\"\"\"\",\"\")))","v":null},{"$f":"IF(L259=\"\",\"\",LEN(SUBSTITUTE(SUBSTITUTE(SUBSTITUTE(SUBSTITUTE(SUBSTITUTE(SUBSTITUTE(L259,\"!\",\"\"),\",\",\"\"),\".\",\"\"),\";\",\"\"),\":\",\"\"),\"\"\"\",\"\")))","v":null},{"$f":"IF(M259=\"\",\"\",LEN(SUBSTITUTE(SUBSTITUTE(SUBSTITUTE(SUBSTITUTE(SUBSTITUTE(SUBSTITUTE(M259,\"!\",\"\"),\",\",\"\"),\".\",\"\"),\";\",\"\"),\":\",\"\"),\"\"\"\",\"\")))","v":null},"https://likebk.com/","регистрация-сейчас","","","Россия","2,3","","-","Остановлено","Работает везде","Регистрация прямо сейчас||Форум||Новости||Рейтинг персонажей||||||||","Зарегистрируйтесь и вступите в наш клуб||Обсудите все ваши достежения и задания с реальными игроками||Узнайте все новости о мире нашего клуба||Посмотрите рейтинг реальных персонажей||||||||","https://likebk.com/register||https://forum.likebk.com/||https://likebk.com/news||https://top.likebk.com/exp_raiting.php/||||||||","","","","","https://direct.yandex.ru/images/direct/2433298/2VVXefm9f2GZMtv9PK8GyQ","","","Отлична графика||MMORPG||Передача атмосферы||Увлекательная игра||Отличное качество","","","","","","","","","","",""]
["-","Текстово-графическое","-","4458363196","Группа 6","6","-","26433375158","лучшие онлайн mmorpg","10259215450","Компьютерная игра твоего детства.","Полное погружение в игру БК-2!","БК-2 компьютерная игра прямиком из 2000-х. Отличная графика и полное погружение!",{"$f":"IF(K260=\"\",\"\",LEN(SUBSTITUTE(SUBSTITUTE(SUBSTITUTE(SUBSTITUTE(SUBSTITUTE(SUBSTITUTE(K260,\"!\",\"\"),\",\",\"\"),\".\",\"\"),\";\",\"\"),\":\",\"\"),\"\"\"\",\"\")))","v":null},{"$f":"IF(L260=\"\",\"\",LEN(SUBSTITUTE(SUBSTITUTE(SUBSTITUTE(SUBSTITUTE(SUBSTITUTE(SUBSTITUTE(L260,\"!\",\"\"),\",\",\"\"),\".\",\"\"),\";\",\"\"),\":\",\"\"),\"\"\"\",\"\")))","v":null},{"$f":"IF(M260=\"\",\"\",LEN(SUBSTITUTE(SUBSTITUTE(SUBSTITUTE(SUBSTITUTE(SUBSTITUTE(SUBSTITUTE(M260,\"!\",\"\"),\",\",\"\"),\".\",\"\"),\";\",\"\"),\":\",\"\"),\"\"\"\",\"\")))","v":null},"https://likebk.com/","регистрация-сейчас","","","Россия","2,3","","-","Остановлено","Работает везде","Регистрация прямо сейчас||Форум||Новости||Рейтинг персонажей||||||||","Зарегистрируйтесь и вступите в наш клуб||Обсудите все ваши достежения и задания с реальными игроками||Узнайте все новости о мире нашего клуба||Посмотрите рейтинг реальных персонажей||||||||","https://likebk.com/register||https://forum.likebk.com/||https://likebk.com/news||https://top.likebk.com/exp_raiting.php/||||||||","","","","","https://direct.yandex.ru/images/direct/2433298/2VVXefm9f2GZMtv9PK8GyQ","","","Отлична графика||MMORPG||Передача атмосферы||Увлекательная игра||Отличное качество","","","","","","","","","","",""]
["-","Текстово-графическое","-","4458363196","Группа 6","6","-","26433375159","новые онлайн mmorpg","10259215450","Компьютерная игра твоего детства.","Полное погружение в игру БК-2!","БК-2 компьютерная игра прямиком из 2000-х. Отличная графика и полное погружение!",{"$f":"IF(K261=\"\",\"\",LEN(SUBSTITUTE(SUBSTITUTE(SUBSTITUTE(SUBSTITUTE(SUBSTITUTE(SUBSTITUTE(K261,\"!\",\"\"),\",\",\"\"),\".\",\"\"),\";\",\"\"),\":\",\"\"),\"\"\"\",\"\")))","v":null},{"$f":"IF(L261=\"\",\"\",LEN(SUBSTITUTE(SUBSTITUTE(SUBSTITUTE(SUBSTITUTE(SUBSTITUTE(SUBSTITUTE(L261,\"!\",\"\"),\",\",\"\"),\".\",\"\"),\";\",\"\"),\":\",\"\"),\"\"\"\",\"\")))","v":null},{"$f":"IF(M261=\"\",\"\",LEN(SUBSTITUTE(SUBSTITUTE(SUBSTITUTE(SUBSTITUTE(SUBSTITUTE(SUBSTITUTE(M261,\"!\",\"\"),\",\",\"\"),\".\",\"\"),\";\",\"\"),\":\",\"\"),\"\"\"\",\"\")))","v":null},"https://likebk.com/","регистрация-сейчас","","","Россия","2,3","","-","Остановлено","Работает везде","Регистрация прямо сейчас||Форум||Новости||Рейтинг персонажей||||||||","Зарегистрируйтесь и вступите в наш клуб||Обсудите все ваши достежения и задания с реальными игроками||Узнайте все новости о мире нашего клуба||Посмотрите рейтинг реальных персонажей||||||||","https://likebk.com/register||https://forum.likebk.com/||https://likebk.com/news||https://top.likebk.com/exp_raiting.php/||||||||","","","","","https://direct.yandex.ru/images/direct/2433298/2VVXefm9f2GZMtv9PK8GyQ","","","Отлична графика||MMORPG||Передача атмосферы||Увлекательная игра||Отличное качество","","","","","","","","","","",""]
["-","Текстово-графическое","-","4458363196","Группа 6","6","-","26433375160","онлайн игры 2020 года mmorpg новинки","10259215450","Компьютерная игра твоего детства.","Полное погружение в игру БК-2!","БК-2 компьютерная игра прямиком из 2000-х. Отличная графика и полное погружение!",{"$f":"IF(K262=\"\",\"\",LEN(SUBSTITUTE(SUBSTITUTE(SUBSTITUTE(SUBSTITUTE(SUBSTITUTE(SUBSTITUTE(K262,\"!\",\"\"),\",\",\"\"),\".\",\"\"),\";\",\"\"),\":\",\"\"),\"\"\"\",\"\")))","v":null},{"$f":"IF(L262=\"\",\"\",LEN(SUBSTITUTE(SUBSTITUTE(SUBSTITUTE(SUBSTITUTE(SUBSTITUTE(SUBSTITUTE(L262,\"!\",\"\"),\",\",\"\"),\".\",\"\"),\";\",\"\"),\":\",\"\"),\"\"\"\",\"\")))","v":null},{"$f":"IF(M262=\"\",\"\",LEN(SUBSTITUTE(SUBSTITUTE(SUBSTITUTE(SUBSTITUTE(SUBSTITUTE(SUBSTITUTE(M262,\"!\",\"\"),\",\",\"\"),\".\",\"\"),\";\",\"\"),\":\",\"\"),\"\"\"\",\"\")))","v":null},"https://likebk.com/","регистрация-сейчас","","","Россия","2,3","","-","Остановлено","Работает везде","Регистрация прямо сейчас||Форум||Новости||Рейтинг персонажей||||||||","Зарегистрируйтесь и вступите в наш клуб||Обсудите все ваши достежения и задания с реальными игроками||Узнайте все новости о мире нашего клуба||Посмотрите рейтинг реальных персонажей||||||||","https://likebk.com/register||https://forum.likebk.com/||https://likebk.com/news||https://top.likebk.com/exp_raiting.php/||||||||","","","","","https://direct.yandex.ru/images/direct/2433298/2VVXefm9f2GZMtv9PK8GyQ","","","Отлична графика||MMORPG||Передача атмосферы||Увлекательная игра||Отличное качество","","","","","","","","","","",""]
["-","Текстово-графическое","-","4458363196","Группа 6","6","-","26433375161","онлайн игры mmorpg","10259215450","Компьютерная игра твоего детства.","Полное погружение в игру БК-2!","БК-2 компьютерная игра прямиком из 2000-х. Отличная графика и полное погружение!",{"$f":"IF(K263=\"\",\"\",LEN(SUBSTITUTE(SUBSTITUTE(SUBSTITUTE(SUBSTITUTE(SUBSTITUTE(SUBSTITUTE(K263,\"!\",\"\"),\",\",\"\"),\".\",\"\"),\";\",\"\"),\":\",\"\"),\"\"\"\",\"\")))","v":null},{"$f":"IF(L263=\"\",\"\",LEN(SUBSTITUTE(SUBSTITUTE(SUBSTITUTE(SUBSTITUTE(SUBSTITUTE(SUBSTITUTE(L263,\"!\",\"\"),\",\",\"\"),\".\",\"\"),\";\",\"\"),\":\",\"\"),\"\"\"\",\"\")))","v":null},{"$f":"IF(M263=\"\",\"\",LEN(SUBSTITUTE(SUBSTITUTE(SUBSTITUTE(SUBSTITUTE(SUBSTITUTE(SUBSTITUTE(M263,\"!\",\"\"),\",\",\"\"),\".\",\"\"),\";\",\"\"),\":\",\"\"),\"\"\"\",\"\")))","v":null},"https://likebk.com/","регистрация-сейчас","","","Россия","2,3","","-","Остановлено","Работает везде","Регистрация прямо сейчас||Форум||Новости||Рейтинг персонажей||||||||","Зарегистрируйтесь и вступите в наш клуб||Обсудите все ваши достежения и задания с реальными игроками||Узнайте все новости о мире нашего клуба||Посмотрите рейтинг реальных персонажей||||||||","https://likebk.com/register||https://forum.likebk.com/||https://likebk.com/news||https://top.likebk.com/exp_raiting.php/||||||||","","","","","https://direct.yandex.ru/images/direct/2433298/2VVXefm9f2GZMtv9PK8GyQ","","","Отлична графика||MMORPG||Передача атмосферы||Увлекательная игра||Отличное качество","","","","","","","","","","",""]
["-","Текстово-графическое","-","4458363196","Группа 6","6","-","26433375162","онлайн игры mmorpg клиентские","10259215450","Компьютерная игра твоего детства.","Полное погружение в игру БК-2!","БК-2 компьютерная игра прямиком из 2000-х. Отличная графика и полное погружение!",{"$f":"IF(K264=\"\",\"\",LEN(SUBSTITUTE(SUBSTITUTE(SUBSTITUTE(SUBSTITUTE(SUBSTITUTE(SUBSTITUTE(K264,\"!\",\"\"),\",\",\"\"),\".\",\"\"),\";\",\"\"),\":\",\"\"),\"\"\"\",\"\")))","v":null},{"$f":"IF(L264=\"\",\"\",LEN(SUBSTITUTE(SUBSTITUTE(SUBSTITUTE(SUBSTITUTE(SUBSTITUTE(SUBSTITUTE(L264,\"!\",\"\"),\",\",\"\"),\".\",\"\"),\";\",\"\"),\":\",\"\"),\"\"\"\",\"\")))","v":null},{"$f":"IF(M264=\"\",\"\",LEN(SUBSTITUTE(SUBSTITUTE(SUBSTITUTE(SUBSTITUTE(SUBSTITUTE(SUBSTITUTE(M264,\"!\",\"\"),\",\",\"\"),\".\",\"\"),\";\",\"\"),\":\",\"\"),\"\"\"\",\"\")))","v":null},"https://likebk.com/","регистрация-сейчас","","","Россия","2,3","","-","Остановлено","Работает везде","Регистрация прямо сейчас||Форум||Новости||Рейтинг персонажей||||||||","Зарегистрируйтесь и вступите в наш клуб||Обсудите все ваши достежения и задания с реальными игроками||Узнайте все новости о мире нашего клуба||Посмотрите рейтинг реальных персонажей||||||||","https://likebk.com/register||https://forum.likebk.com/||https://likebk.com/news||https://top.likebk.com/exp_raiting.php/||||||||","","","","","https://direct.yandex.ru/images/direct/2433298/2VVXefm9f2GZMtv9PK8GyQ","","","Отлична графика||MMORPG||Передача атмосферы||Увлекательная игра||Отличное качество","","","","","","","","","","",""]
["-","Текстово-графическое","-","4458363196","Группа 6","6","-","26433375163","онлайн игры жанре mmorpg","10259215450","Компьютерная игра твоего детства.","Полное погружение в игру БК-2!","БК-2 компьютерная игра прямиком из 2000-х. Отличная графика и полное погружение!",{"$f":"IF(K265=\"\",\"\",LEN(SUBSTITUTE(SUBSTITUTE(SUBSTITUTE(SUBSTITUTE(SUBSTITUTE(SUBSTITUTE(K265,\"!\",\"\"),\",\",\"\"),\".\",\"\"),\";\",\"\"),\":\",\"\"),\"\"\"\",\"\")))","v":null},{"$f":"IF(L265=\"\",\"\",LEN(SUBSTITUTE(SUBSTITUTE(SUBSTITUTE(SUBSTITUTE(SUBSTITUTE(SUBSTITUTE(L265,\"!\",\"\"),\",\",\"\"),\".\",\"\"),\";\",\"\"),\":\",\"\"),\"\"\"\",\"\")))","v":null},{"$f":"IF(M265=\"\",\"\",LEN(SUBSTITUTE(SUBSTITUTE(SUBSTITUTE(SUBSTITUTE(SUBSTITUTE(SUBSTITUTE(M265,\"!\",\"\"),\",\",\"\"),\".\",\"\"),\";\",\"\"),\":\",\"\"),\"\"\"\",\"\")))","v":null},"https://likebk.com/","регистрация-сейчас","","","Россия","2,3","","-","Остановлено","Работает везде","Регистрация прямо сейчас||Форум||Новости||Рейтинг персонажей||||||||","Зарегистрируйтесь и вступите в наш клуб||Обсудите все ваши достежения и задания с реальными игроками||Узнайте все новости о мире нашего клуба||Посмотрите рейтинг реальных персонажей||||||||","https://likebk.com/register||https://forum.likebk.com/||https://likebk.com/news||https://top.likebk.com/exp_raiting.php/||||||||","","","","","https://direct.yandex.ru/images/direct/2433298/2VVXefm9f2GZMtv9PK8GyQ","","","Отлична графика||MMORPG||Передача атмосферы||Увлекательная игра||Отличное качество","","","","","","","","","","",""]
["-","Текстово-графическое","-","4458363196","Группа 6","6","-","26433375164","русские онлайн mmorpg","10259215450","Компьютерная игра твоего детства.","Полное погружение в игру БК-2!","БК-2 компьютерная игра прямиком из 2000-х. Отличная графика и полное погружение!",{"$f":"IF(K266=\"\",\"\",LEN(SUBSTITUTE(SUBSTITUTE(SUBSTITUTE(SUBSTITUTE(SUBSTITUTE(SUBSTITUTE(K266,\"!\",\"\"),\",\",\"\"),\".\",\"\"),\";\",\"\"),\":\",\"\"),\"\"\"\",\"\")))","v":null},{"$f":"IF(L266=\"\",\"\",LEN(SUBSTITUTE(SUBSTITUTE(SUBSTITUTE(SUBSTITUTE(SUBSTITUTE(SUBSTITUTE(L266,\"!\",\"\"),\",\",\"\"),\".\",\"\"),\";\",\"\"),\":\",\"\"),\"\"\"\",\"\")))","v":null},{"$f":"IF(M266=\"\",\"\",LEN(SUBSTITUTE(SUBSTITUTE(SUBSTITUTE(SUBSTITUTE(SUBSTITUTE(SUBSTITUTE(M266,\"!\",\"\"),\",\",\"\"),\".\",\"\"),\";\",\"\"),\":\",\"\"),\"\"\"\",\"\")))","v":null},"https://likebk.com/","регистрация-сейчас","","","Россия","2,3","","-","Остановлено","Работает везде","Регистрация прямо сейчас||Форум||Новости||Рейтинг персонажей||||||||","Зарегистрируйтесь и вступите в наш клуб||Обсудите все ваши достежения и задания с реальными игроками||Узнайте все новости о мире нашего клуба||Посмотрите рейтинг реальных персонажей||||||||","https://likebk.com/register||https://forum.likebk.com/||https://likebk.com/news||https://top.likebk.com/exp_raiting.php/||||||||","","","","","https://direct.yandex.ru/images/direct/2433298/2VVXefm9f2GZMtv9PK8GyQ","","","Отлична графика||MMORPG||Передача атмосферы||Увлекательная игра||Отличное качество","","","","","","","","","","",""]
["-","Текстово-графическое","-","4458363196","Группа 6","6","-","26433375165","список онлайн mmorpg","10259215450","Компьютерная игра твоего детства.","Полное погружение в игру БК-2!","БК-2 компьютерная игра прямиком из 2000-х. Отличная графика и полное погружение!",{"$f":"IF(K267=\"\",\"\",LEN(SUBSTITUTE(SUBSTITUTE(SUBSTITUTE(SUBSTITUTE(SUBSTITUTE(SUBSTITUTE(K267,\"!\",\"\"),\",\",\"\"),\".\",\"\"),\";\",\"\"),\":\",\"\"),\"\"\"\",\"\")))","v":null},{"$f":"IF(L267=\"\",\"\",LEN(SUBSTITUTE(SUBSTITUTE(SUBSTITUTE(SUBSTITUTE(SUBSTITUTE(SUBSTITUTE(L267,\"!\",\"\"),\",\",\"\"),\".\",\"\"),\";\",\"\"),\":\",\"\"),\"\"\"\",\"\")))","v":null},{"$f":"IF(M267=\"\",\"\",LEN(SUBSTITUTE(SUBSTITUTE(SUBSTITUTE(SUBSTITUTE(SUBSTITUTE(SUBSTITUTE(M267,\"!\",\"\"),\",\",\"\"),\".\",\"\"),\";\",\"\"),\":\",\"\"),\"\"\"\",\"\")))","v":null},"https://likebk.com/","регистрация-сейчас","","","Россия","2,3","","-","Остановлено","Работает везде","Регистрация прямо сейчас||Форум||Новости||Рейтинг персонажей||||||||","Зарегистрируйтесь и вступите в наш клуб||Обсудите все ваши достежения и задания с реальными игроками||Узнайте все новости о мире нашего клуба||Посмотрите рейтинг реальных персонажей||||||||","https://likebk.com/register||https://forum.likebk.com/||https://likebk.com/news||https://top.likebk.com/exp_raiting.php/||||||||","","","","","https://direct.yandex.ru/images/direct/2433298/2VVXefm9f2GZMtv9PK8GyQ","","","Отлична графика||MMORPG||Передача атмосферы||Увлекательная игра||Отличное качество","","","","","","","","","","",""]
["+","Текстово-графическое","-","4458363196","Группа 6","6","-","","","10259215451","Компьютерная игра твоего детства.","Реалистическая графика!","БК-2 компьютерная игра прямиком из 2000-х. Отличная графика и полное погружение!",{"$f":"IF(K268=\"\",\"\",LEN(SUBSTITUTE(SUBSTITUTE(SUBSTITUTE(SUBSTITUTE(SUBSTITUTE(SUBSTITUTE(K268,\"!\",\"\"),\",\",\"\"),\".\",\"\"),\";\",\"\"),\":\",\"\"),\"\"\"\",\"\")))","v":null},{"$f":"IF(L268=\"\",\"\",LEN(SUBSTITUTE(SUBSTITUTE(SUBSTITUTE(SUBSTITUTE(SUBSTITUTE(SUBSTITUTE(L268,\"!\",\"\"),\",\",\"\"),\".\",\"\"),\";\",\"\"),\":\",\"\"),\"\"\"\",\"\")))","v":null},{"$f":"IF(M268=\"\",\"\",LEN(SUBSTITUTE(SUBSTITUTE(SUBSTITUTE(SUBSTITUTE(SUBSTITUTE(SUBSTITUTE(M268,\"!\",\"\"),\",\",\"\"),\".\",\"\"),\";\",\"\"),\":\",\"\"),\"\"\"\",\"\")))","v":null},"https://likebk.com/","регистрация-сейчас","","","","","","-","Остановлено","","Регистрация прямо сейчас||Форум||Новости||Рейтинг персонажей||||||||","Зарегистрируйтесь и вступите в наш клуб||Обсудите все ваши достежения и задания с реальными игроками||Узнайте все новости о мире нашего клуба||Посмотрите рейтинг реальных персонажей||||||||","https://likebk.com/register||https://forum.likebk.com/||https://likebk.com/news||https://top.likebk.com/exp_raiting.php/||||||||","","","","","https://direct.yandex.ru/images/direct/2433298/2VVXefm9f2GZMtv9PK8GyQ","","","Отлична графика||MMORPG||Передача атмосферы||Увлекательная игра||Отличное качество","","","","","","","","","","",""]
["+","Текстово-графическое","-","4458363196","Группа 6","6","-","","","10259215453","Компьютерная игра твоего детства.","Уникальный мир с населением!","БК-2 компьютерная игра прямиком из 2000-х. Отличная графика и полное погружение!",{"$f":"IF(K269=\"\",\"\",LEN(SUBSTITUTE(SUBSTITUTE(SUBSTITUTE(SUBSTITUTE(SUBSTITUTE(SUBSTITUTE(K269,\"!\",\"\"),\",\",\"\"),\".\",\"\"),\";\",\"\"),\":\",\"\"),\"\"\"\",\"\")))","v":null},{"$f":"IF(L269=\"\",\"\",LEN(SUBSTITUTE(SUBSTITUTE(SUBSTITUTE(SUBSTITUTE(SUBSTITUTE(SUBSTITUTE(L269,\"!\",\"\"),\",\",\"\"),\".\",\"\"),\";\",\"\"),\":\",\"\"),\"\"\"\",\"\")))","v":null},{"$f":"IF(M269=\"\",\"\",LEN(SUBSTITUTE(SUBSTITUTE(SUBSTITUTE(SUBSTITUTE(SUBSTITUTE(SUBSTITUTE(M269,\"!\",\"\"),\",\",\"\"),\".\",\"\"),\";\",\"\"),\":\",\"\"),\"\"\"\",\"\")))","v":null},"https://likebk.com/","регистрация-сейчас","","","","","","-","Остановлено","","Регистрация прямо сейчас||Форум||Новости||Рейтинг персонажей||||||||","Зарегистрируйтесь и вступите в наш клуб||Обсудите все ваши достежения и задания с реальными игроками||Узнайте все новости о мире нашего клуба||Посмотрите рейтинг реальных персонажей||||||||","https://likebk.com/register||https://forum.likebk.com/||https://likebk.com/news||https://top.likebk.com/exp_raiting.php/||||||||","","","","","https://direct.yandex.ru/images/direct/2433298/2VVXefm9f2GZMtv9PK8GyQ","","","Отлична графика||MMORPG||Передача атмосферы||Увлекательная игра||Отличное качество","","","","","","","","","","",""]

{"sheet":"Контактная информация","index":1,"n_rows":31,"n_cols":11,"rows_kept":31,"cut":false,"hidden":false,"merged":[[8,2,8,5],[10,2,10,5],[12,8,12,10],[16,1,16,5],[16,8,16,10],[19,1,19,5],[22,1,22,2],[22,8,26,10]]}
[]
[]
[]
[]
[]
["Контактная информация"]
[]
[]
["","Страна*:",""]
[]
["","Город*:",""]
["","","","","","","","","ОГРН / ОГРНИП:"]
["","Телефон*:","","","","","","",""]
["","","код страны","код города","телефон","добавочный"]
[]
["","Название компании / ФИО*:","","","","","","","Контактный e-mail:"]
["","","","","","","","",""]
[]
["","Контактное лицо:","","","","","","","Интернет-пейджер:"]
["","","","","","","","","","",""]
["","","","","","","","","IM (icq, skype, mail_agent, jabber, MSN)","","IM Логин"]
["","Почтовый адрес:","","","","","","","Подробнее о товаре/услуге:"]
["","","","","","","","",""]
["","улица","","дом","корпус","офис"]
[]
["","Время работы*:"]
["","пн","пт","","10:00","18:00"]
[]
[]
[]
["","* - поля, обязательные для заполнения"]

{"sheet":"Регионы","index":2,"n_rows":1078,"n_cols":7,"rows_kept":1078,"cut":false,"hidden":false,"merged":[]}
[]
[]
["","Регионы","","","","",""]
[]
["","Россия"]
["","","Центр"]
["","","","Москва и область"]
["","","","","Москва"]
["","","","","","Зеленоград"]
["","","","","","Троицк"]
["","","","","","Щербинка"]
["","","","","Балашиха"]
["","","","","Богородский (городской округ)"]
["","","","","","Ногинск"]
["","","","","","Старая Купавна"]
["","","","","","Электроугли"]
["","","","","Бронницы"]
["","","","","Волоколамский район"]
["","","","","","Волоколамск"]
["","","","","Воскресенский район"]
["","","","","","Белоозерский"]
["","","","","","Воскресенск"]
["","","","","Дзержинский"]
["","","","","Дмитровский район"]
["","","","","","Дмитров"]
["","","","","Долгопрудный"]
["","","","","Домодедово"]
["","","","","Дубна"]
["","","","","Егорьевск (городской округ)"]
["","","","","","Егорьевск"]
["","","","","Жуковский"]
["","","","","Зарайск (городской округ)"]
["","","","","","Зарайск"]
["","","","","Звенигород"]
["","","","","Ивантеевка"]
["","","","","Истра (городской округ)"]
["","","","","","Дедовск"]
["","","","","","Истра"]
["","","","","Кашира (городской округ)"]
["","","","","","Кашира"]
["","","","","Клин (городской округ)"]
["","","","","","Клин"]
["","","","","Коломна"]
["","","","","Королёв"]
["","","","","Красноармейск"]
["","","","","Красногорск (городской округ)"]
["","","","","","Красногорск"]
["","","","","","Нахабино"]
["","","","","Краснознаменск"]
["","","","","Ленинский район"]
["","","","","","Видное"]
["","","","","Лобня"]
["","","","","Лосино-Петровский"]
["","","","","Луховицы (городской округ)"]
["","","","","","Луховицы"]
["","","","","Лыткарино"]
["","","","","Люберцы (городской округ)"]
["","","","","","Люберцы"]
["","","","","Можайский (городской округ)"]
["","","","","","Можайск"]
["","","","","Мытищи (городской округ)"]
["","","","","","Мытищи"]
["","","","","Наро-Фоминский городской округ"]
["","","","","","Апрелевка"]
["","","","","","Наро-Фоминск"]
["","","","","Одинцовский район"]
["","","","","","Голицыно"]
["","","","","","Кубинка"]
["","","","","","Одинцово"]
["","","","","Орехово-Зуево"]
["","","","","Павловский Посад (городской округ)"]
["","","","","","Павловский Посад"]
["","","","","Подольск"]
["","","","","Протвино"]
["","","","","Пушкинский район"]
["","","","","","Пушкино"]
["","","","","Пущино"]
["","","","","Раменский район"]
["","","","","","Раменское"]
["","","","","Реутов"]
["","","","","Рузский городской округ"]
["","","","","","Руза"]
["","","","","Сергиево-Посадский район"]
["","","","","","Сергиев Посад"]
["","","","","","Хотьково"]
["","","","","Серпухов"]
["","","","","Солнечногорский район"]
["","","","","","Солнечногорск"]
["","","","","Ступино (городской округ)"]
["","","","","","Ступино"]
["","","","","Фрязино"]
["","","","","Химки"]
["","","","","Черноголовка"]
["","","","","Чехов (городской округ)"]
["","","","","","Чехов"]
["","","","","Шатура (городской округ)"]
["","","","","","Шатура"]
["","","","","Щёлковский район"]
["","","","","","Щелково"]
["","","","","Электросталь"]
["","","","Белгородская область"]
["","","","","Алексеевский район"]
["","","","","","Алексеевка"]
["","","","","Белгород"]
["","","","","Губкин"]
["","","","","Старый Оскол"]
["","","","","Шебекинский район"]
["","","","","","Шебекино"]
["","","","","Яковлевский район"]
["","","","","","Строитель"]
["","","","Брянская область"]
["","","","","Брянск"]
["","","","","Клинцы"]
["","","","Владимирская область"]
["","","","","Александровский район"]
["","","","","","Александров"]
["","","","","Владимир"]
["","","","","Гусь-Хрустальный"]
["","","","","Киржачский район"]
["","","","","","Киржач"]
["","","","","Ковров"]
["","","","","Муром"]
["","","","","Петушинский район"]
["","","","","","Покров"]
["","","","Воронежская область"]
["","","","","Воронеж"]
["","","","","Россошанский район"]
["","","","","","Россошь"]
["","","","Ивановская область"]
["","","","","Иваново"]
["","","","","Кинешма"]
["","","","","Шуя"]
["","","","Калужская область"]
["","","","","Калуга"]
["","","","","Малоярославецкий район"]
["","","","","","Малоярославец"]
["","","","","Обнинск"]
["","","","Костромская область"]
["","","","","Кострома"]
["","","","Курская область"]
["","","","","Железногорск"]
["","","","","Курск"]
["","","","","Курчатов"]
["","","","Липецкая область"]
["","","","","Елец"]
["","","","","Липецк"]
["","","","Орловская область"]
["","","","","Орёл"]
["","","","Рязанская область"]
["","","","","Касимов"]
["","","","","Рязань"]
["","","","Смоленская область"]
["","","","","Вяземский район"]
["","","","","","Вязьма"]
["","","","","Гагаринский район"]
["","","","","","Гагарин"]
["","","","","Смоленск"]
["","","","","Ярцевский район"]
["","","","","","Ярцево"]
["","","","Тамбовская область"]
["","","","","Мичуринск"]
["","","","","Тамбов"]
["","","","Тверская область"]
["","","","","Бологовский район"]
["","","","","","Бологое"]
["","","","","Вышний Волочёк"]
["","","","","Кимры"]
["","","","","Конаковский район"]
["","","","","","Конаково"]
["","","","","Осташковский район"]
["","","","","","Осташков"]
["","","","","Ржев"]
["","","","","Тверь"]
["","","","","Удомельский район"]
["","","","","","Удомля"]
["","","","Тульская область"]
["","","","","Богородицкий район"]
["","","","","","Богородицк"]
["","","","","Ефремов"]
["","","","","Новомосковск"]
["","","","","Тула"]
["","","","Ярославская область"]
["","","","","Мышкинский район"]
["","","","","","Мышкин"]
["","","","","Переславль-Залесский"]
["","","","","Рыбинск"]
["","","","","Тутаевский район"]
["","","","","","Тутаев"]
["","","","","Угличский район"]
["","","","","","Углич"]
["","","","","Ярославль"]
["","","Северо-Запад"]
["","","","Санкт-Петербург и Ленинградская область"]
["","","","","Волховский район"]
["","","","","","Волхов"]
["","","","","Всеволожский район"]
["","","","","","Всеволожск"]
["","","","","Выборгский район"]
["","","","","","Выборг"]
["","","","","Гатчинский район"]
["","","","","","Гатчина"]
["","","","","Кингисеппский район"]
["","","","","","Кингисепп"]
["","","","","Киришский район"]
["","","","","","Кириши"]
["","","","","Кировский район"]
["","","","","","Кировск"]
["","","","","Лужский район"]
["","","","","","Луга"]
["","","","","Подпорожский район"]
["","","","","","Вознесенье"]
["","","","","","Подпорожье"]
["","","","","Приозерский район"]
["","","","","","Приозерск"]
["","","","","Санкт-Петербург"]
["","","","","","Колпинский район"]
["","","","","","","Колпино"]
["","","","","","Пушкинский район"]
["","","","","","","Пушкин"]
["","","","","Сланцевский район"]
["","","","","","Сланцы"]
["","","","","Сосновый Бор"]
["","","","","Тихвинский район"]
["","","","","","Тихвин"]
["","","","","Тосненский район"]
["","","","","","Тосно"]
["","","","Архангельская область"]
["","","","","Архангельск"]
["","","","","Котлас"]
["","","","","Новодвинск"]
["","","","","Северодвинск"]
["","","","Вологодская область"]
["","","","","Великоустюгский район"]
["","","","","","Великий Устюг"]
["","","","","Вологда"]
["","","","","Череповец"]
["","","","Калининградская область"]
["","","","","Зеленоградск"]
["","","","","Калининград"]
["","","","","Пионерский"]
["","","","","Советск"]
["","","","Мурманская область"]
["","","","","Апатиты"]
["","","","","Кандалакшский район"]
["","","","","","Кандалакша"]
["","","","","Мончегорск"]
["","","","","Мурманск"]
["","","","","Оленегорск"]
["","","","Ненецкий автономный округ"]
["","","","","Нарьян-Мар"]
["","","","Новгородская область"]
["","","","","Боровичский район"]
["","","","","","Боровичи"]
["","","","","Валдайский район"]
["","","","","","Валдай"]
["","","","","Великий Новгород"]
["","","","","Старорусский район"]
["","","","","","Старая Русса"]
["","","","Псковская область"]
["","","","","Великие Луки"]
["","","","","Псков"]
["","","","Республика Карелия"]
["","","","","Кондопожский район"]
["","","","","","Кондопога"]
["","","","","Костомукша"]
["","","","","Петрозаводск"]
["","","","","Сегежский район"]
["","","","","","Сегежа"]
["","","","","Сортавальский район"]
["","","","","","Сортавала"]
["","","","Республика Коми"]
["","","","","Воркута"]
["","","","","Инта"]
["","","","","Район Печора"]
["","","","","","Печора"]
["","","","","Сыктывкар"]
["","","","","Усинск"]
["","","","","Ухта"]
["","","Поволжье"]
["","","","Кировская область"]
["","","","","Вятские Поляны"]
["","","","","Киров"]
["","","","","Кирово-Чепецк"]
["","","","Нижегородская область"]
["","","","","Арзамас"]
["","","","","Выкса"]
["","","","","Дзержинск (Нижегородская область)"]
["","","","","Кстовский район"]
["","","","","","Кстово"]
["","","","","Нижний Новгород"]
["","","","","Павловский район"]
["","","","","","Павлово"]
["","","","","Саров"]
["","","","Оренбургская область"]
["","","","","Бузулук"]
["","","","","Гай"]
["","","","","Новотроицк"]
["","","","","Оренбург"]
["","","","","Орск"]
["","","","Пензенская область"]
["","","","","Кузнецк"]
["","","","","Пенза"]
["","","","Пермский край"]
["","","","","Березники"]
["","","","","Лысьва"]
["","","","","Пермь"]
["","","","","Соликамск"]
["","","","","Чайковский район"]
["","","","","","Чайковский"]
["","","","Республика Башкортостан"]
["","","","","Белебеевский район"]
["","","","","","Белебей"]
["","","","","Белорецкий район"]
["","","","","","Белорецк"]
["","","","","Ишимбайский район"]
["","","","","","Ишимбай"]
["","","","","Кумертау"]
["","","","","Мелеузовский район"]
["","","","","","Мелеуз"]
["","","","","Нефтекамск"]
["","","","","Октябрьский"]
["","","","","Салават"]
["","","","","Сибай"]
["","","","","Стерлитамак"]
["","","","","Туймазинский район"]
["","","","","","Туймазы"]
["","","","","Уфа"]
["","","","","Учалинский район"]
["","","","","","Учалы"]
["","","","Республика Марий Эл"]
["","","","","Волжск"]
["","","","","Йошкар-Ола"]
["","","","Республика Мордовия"]
["","","","","Рузаевский район"]
["","","","","","Рузаевка"]
["","","","","Саранск"]
["","","","Республика Татарстан"]
["","","","","Альметьевск"]
["","","","","Бугульма"]
["","","","","Казань"]
["","","","","Набережные Челны"]
["","","","","Нижнекамск"]
["","","","","Чистополь"]
["","","","Самарская область"]
["","","","","Жигулёвск"]
["","","","","Новокуйбышевск"]
["","","","","Самара"]
["","","","","Сызрань"]
["","","","","Тольятти"]
["","","","Саратовская область"]
["","","","","Балаковский район"]
["","","","","","Балаково"]
["","","","","Балашовский район"]
["","","","","","Балашов"]
["","","","","Марксовский район"]
["","","","","","Маркс"]
["","","","","Саратов"]
["","","","","Энгельсский район"]
["","","","","","Энгельс"]
["","","","Удмуртская Республика"]
["","","","","Воткинск"]
["","","","","Глазов"]
["","","","","Ижевск"]
["","","","","Сарапул"]
["","","","Ульяновская область"]
["","","","","Димитровград"]
["","","","","Новоульяновск"]
["","","","","Ульяновск"]
["","","","Чувашская Республика"]
["","","","","Новочебоксарск"]
["","","","","Чебоксары"]
["","","","","Шумерля"]
["","","Юг"]
["","","","Астраханская область"]
["","","","","Астрахань"]
["","","","","Ахтубинский район"]
["","","","","","Ахтубинск"]
["","","","Волгоградская область"]
["","","","","Волгоград"]
["","","","","Волжский"]
["","","","","Камышин"]
["","","","","Михайловка"]
["","","","","Урюпинск"]
["","","","Краснодарский край"]
["","","","","Анапа"]
["","","","","Армавир"]
["","","","","Белореченский район"]
["","","","","","Белореченск"]
["","","","","Геленджик"]
["","","","","Ейский район"]
["","","","","","Ейск"]
["","","","","Кавказский район"]
["","","","","","Кропоткин"]
["","","","","Краснодар"]
["","","","","Крымский район"]
["","","","","","Крымск"]
["","","","","Новороссийск"]
["","","","","Славянский район"]
["","","","","","Славянск-на-Кубани"]
["","","","","Сочи"]
["","","","","Тимашевский район"]
["","","","","","Тимашевск"]
["","","","","Тихорецкий район"]
["","","","","","Тихорецк"]
["","","","","Туапсинский район"]
["","","","","","Туапсе"]
["","","","Республика Адыгея"]
["","","","","Майкоп"]
["","","","Республика Калмыкия"]
["","","","","Элиста"]
["","","","Ростовская область"]
["","","","","Азов"]
["","","","","Батайск"]
["","","","","Белокалитвинский район"]
["","","","","","Белая Калитва"]
["","","","","Волгодонск"]
["","","","","Гуково"]
["","","","","Каменск-Шахтинский"]
["","","","","Новочеркасск"]
["","","","","Новошахтинск"]
["","","","","Ростов-на-Дону"]
["","","","","Таганрог"]
["","","","","Шахты"]
["","","Сибирь"]
["","","","Алтайский край"]
["","","","","Барнаул"]
["","","","","Бийск"]
["","","","","Заринск"]
["","","","","Новоалтайск"]
["","","","","Рубцовск"]
["","","","Иркутская область"]
["","","","","Ангарск"]
["","","","","Братск"]
["","","","","Иркутск"]
["","","","","Нижнеудинский район"]
["","","","","","Нижнеудинск"]
["","","","","Тайшетский район"]
["","","","","","Тайшет"]
["","","","","Тулун"]
["","","","","Усолье-Сибирское"]
["","","","","Усть-Илимск"]
["","","","","Усть-Кутский район"]
["","","","","","Усть-Кут"]
["","","","","Черемхово"]
["","","","Кемеровская область (Кузбасс)"]
["","","","","Анжеро-Судженск"]
["","","","","Белово"]
["","","","","Берёзовский (Кемеровская область)"]
["","","","","Кемерово"]
["","","","","Киселёвск"]
["","","","","Ленинск-Кузнецкий"]
["","","","","Междуреченск"]
["","","","","Мыски"]
["","","","","Новокузнецк"]
["","","","","Полысаево"]
["","","","","Прокопьевск"]
["","","","","Юрга"]
["","","","Красноярский край"]
["","","","","Ачинск"]
["","","","","Енисейск"]
["","","","","Железногорск"]
["","","","","Зеленогорск"]
["","","","","Красноярск"]
["","","","","Минусинск"]
["","","","","Норильск"]
["","","","Новосибирская область"]
["","","","","Барабинский район"]
["","","","","","Барабинск"]
["","","","","Бердск"]
["","","","","Искитим"]
["","","","","Карасукский район"]
["","","","","","Карасук"]
["","","","","Новосибирск"]
["","","","Омская область"]
["","","","","Омск"]
["","","","Республика Алтай"]
["","","","","Горно-Алтайск"]
["","","","Республика Тыва"]
["","","","","Кызыл"]
["","","","Республика Хакасия"]
["","","","","Абакан"]
["","","","Томская область"]
["","","","","Каргасокский район"]
["","","","","","Каргасок"]
["","","","","Колпашевский район"]
["","","","","","Колпашево"]
["","","","","Северск"]
["","","","","Стрежевой"]
["","","","","Томск"]
["","","Дальний Восток"]
["","","","Амурская область"]
["","","","","Белогорск"]
["","","","","Благовещенск"]
["","","","","Свободный"]
["","","","","Тында"]
["","","","Еврейская автономная область"]
["","","","","Биробиджан"]
["","","","Забайкальский край"]
["","","","","Чита"]
["","","","Камчатский край"]
["","","","","Петропавловск-Камчатский"]
["","","","Магаданская область"]
["","","","","Магадан"]
["","","","Приморский край"]
["","","","","Арсеньев"]
["","","","","Артём"]
["","","","","Владивосток"]
["","","","","Дальнегорск"]
["","","","","Находка"]
["","","","","Спасск-Дальний"]
["","","","","Уссурийск"]
["","","","Республика Бурятия"]
["","","","","Баргузинский район"]
["","","","","","Усть-Баргузин"]
["","","","","Северобайкальск"]
["","","","","Улан-Удэ"]
["","","","Республика Саха (Якутия)"]
["","","","","Нерюнгринский район"]
["","","","","","Нерюнгри"]
["","","","","Якутск"]
["","","","Сахалинская область"]
["","","","","Невельск"]
["","","","","Южно-Сахалинск"]
["","","","Хабаровский край"]
["","","","","Амурский район"]
["","","","","","Амурск"]
["","","","","Комсомольск-на-Амуре"]
["","","","","Хабаровск"]
["","","","Чукотский автономный округ"]
["","","Республика Крым"]
["","","","Алушта"]
["","","","Армянск"]
["","","","Бахчисарайский район"]
["","","","","Бахчисарай"]
["","","","Джанкой"]
["","","","Евпатория"]
["","","","Керчь"]
["","","","Красноперекопск"]
["","","","Ленинский район"]
["","","","","Щёлкино"]
["","","","Саки"]
["","","","Севастополь"]
["","","","Симферополь"]
["","","","Судак"]
["","","","Феодосия"]
["","","","Ялта"]
["","","Северный Кавказ"]
["","","","Кабардино-Балкарская Республика"]
["","","","","Нальчик"]
["","","","Карачаево-Черкесская Республика"]
["","","","","Черкесск"]
["","","","Республика Дагестан"]
["","","","","Буйнакск"]
["","","","","Дербент"]
["","","","","Избербаш"]
["","","","","Каспийск"]
["","","","","Кизляр"]
["","","","","Махачкала"]
["","","","","Хасавюрт"]
["","","","Республика Ингушетия"]
["","","","","Магас"]
["","","","","Назрань"]
["","","","Республика Северная Осетия — Алания"]
["","","","","Владикавказ"]
["","","","Ставропольский край"]
["","","","","Будённовский район"]
["","","","","","Будённовск"]
["","","","","Георгиевск"]
["","","","","Ессентуки"]
["","","","","Кисловодск"]
["","","","","Минеральные Воды"]
["","","","","Невинномысск"]
["","","","","Пятигорск"]
["","","","","Ставрополь"]
["","","","Чеченская Республика"]
["","","","","Грозный"]
["","","Урал"]
["","","","Курганская область"]
["","","","","Курган"]
["","","","","Шадринск"]
["","","","Свердловская область"]
["","","","","Асбест"]
["","","","","Белоярский"]
["","","","","Берёзовский (Свердловская область)"]
["","","","","Верхняя Пышма"]
["","","","","Верхняя Салда"]
["","","","","Екатеринбург"]
["","","","","Каменск-Уральский"]
["","","","","Качканар"]
["","","","","Краснотурьинск"]
["","","","","Красноуфимск"]
["","","","","Кушва"]
["","","","","Лесной"]
["","","","","Невьянск"]
["","","","","Нижний Тагил"]
["","","","","Нижняя Тура"]
["","","","","Новоуральск"]
["","","","","Первоуральск"]
["","","","","Полевской"]
["","","","","Ревда"]
["","","","","Реж"]
["","","","","Североуральск"]
["","","","","Серов"]
["","","","Тюменская область"]
["","","","","Ишим"]
["","","","","Тобольск"]
["","","","","Тюмень"]
["","","","","Ялуторовск"]
["","","","Ханты-Мансийский автономный округ - Югра"]
["","","","","Когалым"]
["","","","","Лангепас"]
["","","","","Мегион"]
["","","","","Нефтеюганск"]
["","","","","Нижневартовск"]
["","","","","Нягань"]
["","","","","Пыть-Ях"]
["","","","","Радужный"]
["","","","","Сургут"]
["","","","","Урай"]
["","","","","Ханты-Мансийск"]
["","","","","Югорск"]
["","","","Челябинская область"]
["","","","","Ашинский район"]
["","","","","","Аша"]
["","","","","Верхний Уфалей"]
["","","","","Златоуст"]
["","","","","Копейск"]
["","","","","Магнитогорск"]
["","","","","Миасс"]
["","","","","Озёрск"]
["","","","","Саткинский район"]
["","","","","","Сатка"]
["","","","","Снежинск"]
["","","","","Троицк"]
["","","","","Усть-Катав"]
["","","","","Чебаркуль"]
["","","","","Челябинск"]
["","","","","Южноуральск"]
["","","","Ямало-Ненецкий автономный округ"]
["","","","","Губкинский"]
["","","","","Надымский район"]
["","","","","","Надым"]
["","","","","Новый Уренгой"]
["","","","","Ноябрьск"]
["","","","","Салехард"]
[]
["","СНГ (исключая Россию)"]
["","","Абхазия"]
["","","Азербайджан"]
["","","","Баку"]
["","","Армения"]
["","","","Ереван"]
["","","","Область Арагацотн"]
["","","","Область Арарат"]
["","","","Область Армавир"]
["","","","Область Вайоц-Дзор"]
["","","","Область Гехаркуник"]
["","","","Область Котайк"]
["","","","Область Лори"]
["","","","","Ванадзор"]
["","","","Область Сюник"]
["","","","Область Тавуш"]
["","","","Область Ширак"]
["","","","","Гюмри"]
["","","Беларусь"]
["","","","Брест и область"]
["","","","","Барановичи"]
["","","","","Брест"]
["","","","","Кобринский район"]
["","","","","","Кобрин"]
["","","","","Пинск"]
["","","","Витебск и область"]
["","","","","Верхнедвинский район"]
["","","","","","Верхнедвинск"]
["","","","","Витебск"]
["","","","","Глубокский район"]
["","","","","","Глубокое"]
["","","","","Миорский район"]
["","","","","","Миоры"]
["","","","","Новополоцк"]
["","","","","Оршанский район"]
["","","","","","Орша"]
["","","","","Полоцкий район"]
["","","","","","Полоцк"]
["","","","","Поставский район"]
["","","","","","Поставы"]
["","","","Гомель и область"]
["","","","","Гомель"]
["","","","","Жлобинский район"]
["","","","","","Жлобин"]
["","","","","Калинковичский район"]
["","","","","","Калинковичи"]
["","","","","Мозырский район"]
["","","","","","Мозырь"]
["","","","","Речицкий район"]
["","","","","","Речица"]
["","","","","Рогачёвский район"]
["","","","","","Рогачёв"]
["","","","","Светлогорский район"]
["","","","","","Светлогорск"]
["","","","Гродно и область"]
["","","","","Волковысский район"]
["","","","","","Волковыск"]
["","","","","Гродно"]
["","","","","Лидский район"]
["","","","","","Лида"]
["","","","","Мостовский район"]
["","","","","","Мосты"]
["","","","","Новогрудский район"]
["","","","","","Новогрудок"]
["","","","","Слонимский район"]
["","","","","","Слоним"]
["","","","","Сморгонский район"]
["","","","","","Сморгонь"]
["","","","Минск и область"]
["","","","","Борисовский район"]
["","","","","","Борисов"]
["","","","","Вилейский район"]
["","","","","","Вилейка"]
["","","","","Дзержинский район"]
["","","","","","Дзержинск (Минская область)"]
["","","","","Жодино"]
["","","","","Крупский район"]
["","","","","","Крупки"]
["","","","","Минск"]
["","","","","Молодечненский район"]
["","","","","","Молодечно"]
["","","","","Слуцкий район"]
["","","","","","Слуцк"]
["","","","","Солигорский район"]
["","","","","","Солигорск"]
["","","","Могилёв и область"]
["","","","","Бобруйск"]
["","","","","Быховский район"]
["","","","","","Быхов"]
["","","","","Горецкий район"]
["","","","","","Горки"]
["","","","","Климовичский район"]
["","","","","","Климовичи"]
["","","","","Кричевский район"]
["","","","","","Кричев"]
["","","","","Могилёв"]
["","","","","Осиповичский район"]
["","","","","","Осиповичи"]
["","","","","Шкловский район"]
["","","","","","Шклов"]
["","","Казахстан"]
["","","","Актау и Мангистауская область"]
["","","","","Актау"]
["","","","","Жанаозен"]
["","","","","Мунайлинский район"]
["","","","Актобе и область"]
["","","","","Актобе"]
["","","","Алматы и область"]
["","","","","Алматы"]
["","","","","Енбекшиказахский район"]
["","","","","Жамбылский район"]
["","","","","Илийский район"]
["","","","","Карасайский район"]
["","","","","Панфиловский район"]
["","","","","Талгарский район"]
["","","","","Талдыкорган"]
["","","","Атырау и область"]
["","","","","Атырау"]
["","","","Восточно-Казахстанская область"]
["","","","","Семей"]
["","","","","Усть-Каменогорск"]
["","","","Западно-Казахстанская область"]
["","","","","Уральск"]
["","","","Караганда и область"]
["","","","","Жезказган"]
["","","","","Караганда"]
["","","","","Темиртау"]
["","","","Костанай и область"]
["","","","","Костанай"]
["","","","","Рудный"]
["","","","Кызылорда и область"]
["","","","","Кызылорда"]
["","","","Нур-Султан и Акмолинская область"]
["","","","","Кокшетау"]
["","","","","Нур-Султан"]
["","","","Павлодар и область"]
["","","","","Павлодар"]
["","","","","Экибастуз"]
["","","","Северо-Казахстанская область"]
["","","","","Петропавловск"]
["","","","Тараз и Жамбылская область"]
["","","","","Кордайский район"]
["","","","","Тараз"]
["","","","Туркестан и область"]
["","","","","Казыгуртский район"]
["","","","","Мактааральский район"]
["","","","","Ордабасинский район"]
["","","","","Сайрамский район"]
["","","","","Сарыагашский район"]
["","","","","Толебийский район"]
["","","","","Туркестан"]
["","","","","Тюлькубасский район"]
["","","","","Шардаринский район"]
["","","","","Шымкент"]
["","","Киргизия"]
["","","","Бишкек"]
["","","","Ош"]
["","","Молдова"]
["","","","Кишинев"]
["","","Таджикистан"]
["","","Туркменистан"]
["","","Узбекистан"]
["","","","Андижанская область"]
["","","","","Андижан"]
["","","","Бухарская область"]
["","","","","Бухара"]
["","","","Джизакская область"]
["","","","","Джизак"]
["","","","Кашкадарьинская область"]
["","","","","Карши"]
["","","","","Шахрисабз"]
["","","","Навоийская область"]
["","","","","Навои"]
["","","","Наманганская область"]
["","","","","Наманган"]
["","","","Республика Каракалпакстан"]
["","","","","Нукус"]
["","","","","Ходжейлийский район"]
["","","","Самаркандская область"]
["","","","","Самарканд"]
["","","","Сурхандарьинская область"]
["","","","","Термез"]
["","","","Сырдарьинская область"]
["","","","Ташкент"]
["","","","Ташкентская область"]
["","","","","Алмалык"]
["","","","","Ахангаранский район"]
["","","","","","Ангрен"]
["","","","","Бекабад"]
["","","","","Чирчик"]
["","","","Ферганская область"]
["","","","","Коканд"]
["","","","","Маргилан"]
["","","","","Фергана"]
["","","","Хорезмская область"]
["","","","","Ургенч"]
["","","Украина"]
["","","","Винница и область"]
["","","","","Винница"]
["","","","Днепр и область"]
["","","","","Днепр"]
["","","","","Каменское"]
["","","","","Кривой Рог"]
["","","","","Никополь"]
["","","","","Павлоград"]
["","","","Донецк и область"]
["","","","","Горловка"]
["","","","","Донецк"]
["","","","","Краматорск"]
["","","","","Макеевка"]
["","","","","Мариуполь"]
["","","","Житомир и область"]
["","","","Запорожье и область"]
["","","","","Запорожье"]
["","","","Ивано-Франковск и область"]
["","","","Киев и область"]
["","","","","Белая Церковь"]
["","","","","Киев"]
["","","","Кропивницкий и Кировоградская область"]
["","","","Луганск и область"]
["","","","","Алчевск"]
["","","","","Луганск"]
["","","","","Северодонецк"]
["","","","Луцк и Волынская область"]
["","","","Львов и область"]
["","","","","Львов"]
["","","","Николаев и область"]
["","","","","Николаев"]
["","","","Одесса и область"]
["","","","","Одесса"]
["","","","Полтава и область"]
["","","","","Кременчуг"]
["","","","","Полтава"]
["","","","Ровно и область"]
["","","","Сумы и область"]
["","","","","Сумы"]
["","","","Тернополь и область"]
["","","","Ужгород и Закарпатская область"]
["","","","Харьков и область"]
["","","","","Харьков"]
["","","","Херсон и область"]
["","","","","Херсон"]
["","","","Хмельницкий и область"]
["","","","","Хмельницкий"]
["","","","Черкассы и область"]
["","","","Чернигов и область"]
["","","","","Нежин"]
["","","","Черновцы и область"]
["","","Южная Осетия"]
[]
["","Европа"]
["","","Австрия"]
["","","Бельгия"]
["","","Болгария"]
["","","Великобритания"]
["","","","Англия"]
["","","","","Восточная Англия"]
["","","","","","Графство Кембриджшир"]
["","","","","","","Кембридж"]
["","","Венгрия"]
["","","Германия"]
["","","","Свободное государство Бавария"]
["","","","","Ингольштадт"]
["","","Греция"]
["","","Дания"]
["","","Испания"]
["","","Италия"]
["","","Кипр"]
["","","Латвия"]
["","","","Рига"]
["","","Литва"]
["","","","Вильнюсский уезд"]
["","","","","Вильнюс"]
["","","Нидерланды"]
["","","Норвегия"]
["","","Польша"]
["","","Португалия"]
["","","Румыния"]
["","","Сербия"]
["","","","Округ Белград"]
["","","","","Белград"]
["","","Словакия"]
["","","Словения"]
["","","Турция"]
["","","","Провинция Агры"]
["","","","Провинция Адана"]
["","","","Провинция Адыяман"]
["","","","Провинция Айдын"]
["","","","Провинция Аксарай"]
["","","","Провинция Амасья"]
["","","","Провинция Анкара"]
["","","","Провинция Анталья"]
["","","","Провинция Ардахан"]
["","","","Провинция Артвин"]
["","","","Провинция Афьонкарахисар"]
["","","","Провинция Байбурт"]
["","","","Провинция Балыкесир"]
["","","","Провинция Бартын"]
["","","","Провинция Батман"]
["","","","Провинция Биледжик"]
["","","","Провинция Бингёль"]
["","","","Провинция Битлис"]
["","","","Провинция Болу"]
["","","","Провинция Бурдур"]
["","","","Провинция Бурса"]
["","","","Провинция Ван"]
["","","","Провинция Газиантеп"]
["","","","Провинция Гиресун"]
["","","","Провинция Гюмюшхане"]
["","","","Провинция Денизли"]
["","","","Провинция Диярбакыр"]
["","","","Провинция Дюздже"]
["","","","Провинция Зонгулдак"]
["","","","Провинция Измир"]
["","","","Провинция Йозгат"]
["","","","Провинция Кайсери"]
["","","","Провинция Карабюк"]
["","","","Провинция Караман"]
["","","","Провинция Карс"]
["","","","Провинция Кастамону"]
["","","","Провинция Кахраманмараш"]
["","","","Провинция Килис"]
["","","","Провинция Коджаэли"]
["","","","Провинция Конья"]
["","","","Провинция Кыркларели"]
["","","","Провинция Кыршехир"]
["","","","Провинция Кырыккале"]
["","","","Провинция Кютахья"]
["","","","Провинция Малатья"]
["","","","Провинция Маниса"]
["","","","Провинция Мардин"]
["","","","Провинция Мерсин"]
["","","","Провинция Мугла"]
["","","","Провинция Муш"]
["","","","Провинция Невшехир"]
["","","","Провинция Нигде"]
["","","","Провинция Орду"]
["","","","Провинция Османие"]
["","","","Провинция Ризе"]
["","","","Провинция Сакарья"]
["","","","Провинция Самсун"]
["","","","Провинция Сивас"]
["","","","Провинция Сиирт"]
["","","","Провинция Синоп"]
["","","","Провинция Стамбул"]
["","","","Провинция Текирдаг"]
["","","","Провинция Токат"]
["","","","Провинция Трабзон"]
["","","","Провинция Тунджели"]
["","","","Провинция Ушак"]
["","","","Провинция Хаккяри"]
["","","","Провинция Хатай"]
["","","","Провинция Чанаккале"]
["","","","Провинция Чанкыры"]
["","","","Провинция Чорум"]
["","","","Провинция Шанлыурфа"]
["","","","Провинция Ширнак"]
["","","","Провинция Ыгдыр"]
["","","","Провинция Ыспарта"]
["","","","Провинция Эдирне"]
["","","","Провинция Элязыг"]
["","","","Провинция Эрзинджан"]
["","","","Провинция Эрзурум"]
["","","","Провинция Эскишехир"]
["","","","Провинция Ялова"]
["","","Финляндия"]
["","","","Уусимаа"]
["","","","","Хельсинки"]
["","","Франция"]
["","","Хорватия"]
["","","Черногория"]
["","","Чехия"]
["","","Швейцария"]
["","","Швеция"]
["","","Эстония"]
["","","","Тартумаа"]
["","","","","Тарту"]
["","","","Харьюмаа"]
["","","","","Таллин"]
[]
["","Азия"]
["","","Грузия"]
["","","","Автономная Республика Аджария"]
["","","","","Батуми"]
["","","","Гурия"]
["","","","Имеретия"]
["","","","Кахетия"]
["","","","Квемо-Картли"]
["","","","","Рустави"]
["","","","Мцхета-Мтианети"]
["","","","Рача-Лечхуми и Квемо-Сванети"]
["","","","Самегрело и Земо-Сванети"]
["","","","Самцхе-Джавахети"]
["","","","Тбилиси"]
["","","","Шида-Картли"]
["","","Израиль"]
["","","","Тель-Авивский АО"]
["","","","","Тель-Авив"]
["","","","Хайфский АО"]
["","","","","Хайфа"]
["","","","Центральный АО"]
["","","","","Ришон-ле-Цион"]
["","","","Южный АО"]
["","","","","Ашкелон"]
["","","Индия"]
["","","Индонезия"]
["","","Камбоджа"]
["","","Китай"]
["","","Объединённые Арабские Эмираты"]
["","","Саудовская Аравия"]
["","","Таиланд"]
["","","Южная Корея"]
["","","Япония"]
[]
["","Африка"]
["","","Египет"]
["","","Кот-д’Ивуар"]
["","","","Абиджан"]
[]
["","Северная Америка"]
["","","Гватемала"]
["","","Доминиканская Республика"]
["","","Канада"]
["","","США"]
[]
["","Южная Америка"]
["","","Аргентина"]
["","","Бразилия"]
[]
["","Австралия и Океания"]
["","","Австралия"]
["","","Новая Зеландия"]

{"sheet":"Словарь значений полей","index":3,"n_rows":32,"n_cols":5,"rows_kept":32,"cut":false,"hidden":false,"merged":[[1,3,1,4]]}
[]
["","Тип кампании","","Версия ОС",""]
["","Текстово-графическая кампания","","Android","iOS"]
["","Реклама мобильных приложений","","1.0","1.0"]
["","","","1.1","2.0"]
["","Тип объявления","","1.5","3.0"]
["","Текстово-графическое","","1.6","3.1"]
["","Графическое","","2.0","4.0"]
["","","","2.1","4.1"]
["","Тип устройства","","2.2","4.2"]
["","Все","","2.3","5.0"]
["","Планшеты","","3.0","5.1"]
["","Смартфоны","","3.1","6.0"]
["","","","3.2","6.1"]
["","Тип связи","","4.0","7.0"]
["","Мобильная связь и Wi-Fi","","4.1","7.1"]
["","Только Wi-Fi","","4.2","8.0"]
["","","","4.3","8.1"]
["","","","4.4","8.2"]
["","","","5.0","8.3"]
["","","","5.1","8.4"]
["","","","6.0","9.0"]
["","","","7.0","9.1"]
["","","","7.1","9.2"]
["","","","8.0","9.3"]
["","","","8.1","10.0"]
["","","","","10.1"]
["","","","","10.2"]
["","","","","10.3"]
["","","","","11.0"]
["","","","","11.1"]
["","","","","11.2"]